Workbook

Sheet Front page

Sheet Guide
B8: Context & Purpose
B9: What is the MH FYFV Dashboard? The MH FYFV Dashboard, first published in October 2016, is a response to the recommendation in the Five Year Forward View for Mental Health that NHS England create a tool “that will identify metrics for monitoring key performance and outcomes data and that that will allow us to hold national and local bodies to account for implementing this strategy.” A key purpose of the Dashboard is to enable NHS England and the Five Year Forward View Programme Board to monitor progress on its commitments to transform mental health services. Additionally, by making the data publically available, we are ensuring that commissioners can use it as a tool to inform their work and that service users and their families and carers can see how local services are performing. Understanding financial data in the mental health dashboard The mental health dashboard includes an unprecedented level of information on the amount of money being invested in mental health services across England. As well as continuing to publish overall spend on mental health, the latest version of the dashboard includes programme level spend at CCG, STP, regional and national level for the first time. This includes spend data on: • Children and young people’s mental health services • CYP eating disorder services • Early intervention in psychosis services • IAPT services • A&E liaison services • Crisis resolution home treatment services It is important to note that some CCGs have had difficulties extracting costs for specific services that they commission because of block contract arrangements. As a consequence, national and regional totals for programme level spending are likely to underestimate the true level of CCG spend on these services. NHS England continues to work closely with CCGs to support them to improve the quality of information they are able to provide on their expenditure. Nevertheless, it is advised that this information is used with caution. Calculating the Mental Health Investment Standard NHS England has committed to increasing the proportion of NHS spending on mental health, and has developed the ‘Mental Health Investment Standard’ (MHIS) to track whether this is being delivered. In simple terms, achievement of the MHIS compares the growth of CCG spend on mental health with the growth of a CCG’s allocation. The increase in MH spend should be at least equal or greater in percentage terms to the % overall growth in allocation. The MHIS is calculated at CCG level and nationally. Please note that the MHIS is calculated based on the CCG 16/17 actual outturn reported in 17/18 plans. This differs from the 16/17 outturn published in the Q4 Mental Health Dashboard as the former is adjusted for non-recurrent spend. This adjustment ensures that the MHIS is fairly comparing 16/17 recurrent spend with 2017/18 recurrent spend. Data availability and quality While every effort has been made to ensure that the data in the Mental Health Dashboard has been properly quality assured, some of the data used is classed as experimental, whilst other information, particularly financial data, is necessarily revised and improved over time. Data is correct at the time of publishing, however, caution is advised when seeking to draw comparisons between data between different iterations of the Dashboard.
B22: Sheet description
B23: Metadata: | D23: This sheet contains information about the data used for each indicator. In particular, it includes a description of the indicators, information on the numerators and denominators _where applicable), any caveats around the data and the methodology, the indicator reporting period _quarter or year) as well as information and links to the data sources.
B25: Future indicators: | D25: There are a number of areas where we have identified a requirement to include a measure of performance and progress, but either data are not yet available or the exact measures to be used for this are yet to be fully defined. These measures are listed in this sheet. This list could change over time in response to the work being developed and emerging priorities.
B27: Dashboard: | D27: This sheet shows the value, the change, the annual objective, the trend and performance against the national median for each indicator. A detailed description of each column is provided in the "Dashboard" section below
B29: Dashboard
B30: To begin, select one of the four geographies _England, Region, STP or CCG) from the first drop-down list at the top of the page. If you have selected "England" there is no further action required. For all other geographies, please select one of the four regions _North of England, London, Midlands and East of England, and South of England) from the second drop-down list. Similar to the first drop-down, if you have selected "Region" there is no further action required. Lastly, for CCGs or STPs, select one of the 209 CCGs or 44 STPs listed by region and alphabetically in the last drop-down list.
B40: The dashboard is automatically populated with the data relevant to the selected geography or organisation.
B41: A key/description for each column is also available in the Dashboard tab by clicking on the column headings.
B42: A description of each column in the Dashboard can be found below:
B43: Code: | D43: This is a unique code for each indicator, used across this spreadsheet. You can use this code to search for the indicator you are interested in by using the filter in column B of the Metadata tab.
B45: Indicator: | D45: This column shows the short description of each indicator. For a more detailed description please see the Metadata tab. National measures only: Certain indicator data are only available at a national and in some cases regional level only, hence a few indicators are marked as national measures only. When a CCG is selected from the drop-down list, the values for these measures are greyed out.
B50: Latest reporting period: | D50: This column shows for each indicator the latest reporting period that the dashboard includes data for. For indicators updated in the latest dashboard iteration this field is in bold and italics
B52: Indicator value | D52: The value of the indicator in the latest reporting period and in brackets the annual objective for each indicator (where applicable), as set out in the Five Year Forward View for Mental Health implementation plan. Where there is an annual objective, a red dot signifies that the value is below the objective; a green dot that it's meeting the objective. A blank cell signifies a missing or undefined (where the denominator is 0) value. A star (*) signifies a suppressed value (less or equal to 5).
B57: Trend | D57: The sparklines give an indication of trend over a specified time period (the last 3 six month periods or last 4 years depending on the indicator reporting period and the data availability). NB: Where there are only a limited number of data points in the sparkline graphs then apparent changes may appear distorted and care should be taken when interpreting.
B60: Better is..: | D60: This column indicates whether a high or a low value is considered better for the particular measure. An upward arrow p indicates that higher values are better, while a downward arrow q that lower values are better. N/A" denotes Not Applicable and is shown when an indicator needs to be considered alongside other measures to interpret the figures and hence a higher or a lower value is not necessarily indication of better performance.
B63: Range | D63: The spine chart shows the relative performance of the organisation. An organisation value towards the right of the scale indicates “better” performance (which may relate to a lower or higher indicator value depending on the indicator in hand) and towards the left of the scale indicates “worse” performance. Percentiles are based on national data. The spine chart is only available at CCG level and only applicable to a set of indicators. When the organisation value is blank or suppressed (*) it is not showing on the chart. NB:Not all indicators presented with spine charts have been standardised, so interpretation needs to be undertaken with caution. Please use the sparklines to add context
B75: Printing
B76: The "Dashboard" and associated tabs are designed to print on A3 paper. Go to the File Ribbon and select Print. If you are happy with the print preview then click print otherwise select page setup to adjust scaling.
B78: Updates
B79: Previous dashboards were updated quarterly until the end of Q4 2016/17. The new dashboard combines data from Q1 and the latest data from Q2 2017/18, providing a view of NHS performance across the first half of the year.
B81: Version Control
B82: 2016-10-27 | C82: October 2016 publication | D82: First version
B83: 2017-01-30 | C83: January 2017 publication | D83: Refreshed data for all indicators bolded and italicised in the "Latest reporting period" column. Added STP functionality. Added two new indicators, IAPT _i_b) and IAPT_ii_b). Revised the definition and calculation for indicators SP (ii_a) and SP (ii_b).
B84: 2017-05-02 | C84: May 2017 publication | D84: Refreshed data for all indicators bolded and italicised in the "Latest reporting period" column. Revised the definition and calculation for indicator IAPT (i_b). Replaced previously reported experimental measure CYP (ii) Number of new CYP under 18 receiving treatment in NHS funded community services with Number of CYP receiving at least two contacts in NHS funded community services. See the Metadata tab for the definition of updated indicator
B85: 2017-07-28 | C85: July 2017 publication | D85: Refreshed data for all indicators bolded and italicised in the "Latest reporting period" column. Revised finance indicators to no longer refer to plan data but to year end outturn data.
B86: 2018-01-31 | C86: National Summary (Q1&Q2 2017/18) | D86: Provided a summary front sheet giving a national view of a 6 month period (Q1 and Q2 2017/18).
B87: 2018-02-07 | C87: February 2018 publication | D87: Time period of publication changed from quarterly to cover a 6 month period (Q1 and Q2 2017/18). Refreshed data for all indicators bolded and italicised in the "Latest reporting period" column. Indicators updated, amended and removed.
B89: Contacts
B90: If you have comments or issues related to this Dashboard then please contact england.fyfvmh-dashboard@nhs.net

Sheet Metadata
B8: Code | C8: Indicator name | D8: Description * | E8: Standard (if applicable) | F8: Numerator | G8: Denominator | H8: Methodology/Caveats | I8: Reporting period | J8: Data source | K8: Link to published data source (where available)
B9: Children and Young people (CYP) Mental Health
B10: CYP(i) | C10: Number of individual CYP aged 0-18 receiving treatment by NHS funded community services | D10: This analysis is a count of people who, regardless of when the referral was received, attended their first contact or indirect activity linked to that referral (excluding SMS or email) in the financial year before their 18th birthday and had at least one subsequent attended contact (excluding SMS or email) or indirect activity for that referral. There is no limit to the time between the first and second contact. The date of the second contact dictates which period the person is counted in. They will not be counted again during the financial year, even if they had a new referral, but will be counted again in subsequent financial years if they have at least one contact. | F10: N/A | G10: N/A | H10: Scrutiny of data on the number of CYP aged 0-18 receiving treatment by NHS commissioned services has highlighted anomalies (most notably significant under-reporting of CYP). This data does not therefore give an accurate representation of the national picture. NHS England continues to work with national and local partners to improve the quality of all mental health data, and we expect to be able to publish this indicator in future. NHS Digital are working closely with providers who have not yet submitted data and expect coverage and data quality to improve over the coming months. As a result, figures presented here for children and young people accessing mental health services are known to be underreported. This may mean that there are geographical patches including a number of CCGs in which no data is currently being recorded, or there are many areas in which the actual levels of activity will be underreported . Further information can be found in the data quality section of the associated monthly publications from which figures are taken. These statistics are classified as experimental and should be used with caution. Experimental statistics are new official statistics undergoing evaluation. Except for England, all values of less than 5 have been suppressed and replaced with a * in this output. All unsuppressed sub-national values have been rounded to the nearest 5. NB: Comparison between time periods for this measure is not advisable and hence a trend line and the change between quarters is not being presented in the Dashboard tab. The reason for this is that due to the way the measure is constructed, i.e because a person can only be counted once in the financial year and because there is no time limit between the two contacts, there will always be this spike in Q1 as it’s the first opportunity a person has to be counted. | I10: 6 months | J10: MHSDS | K10: NHS Digital supplementary information files: Children and young people mental health indicators
B11: CYP(ii.a) | C11: % of CYP with eating disorders seen within 1 week (urgent) | D11: The proportion of CYP with ED (urgent cases) that wait 1 week or less from referral to start of NICE-approved treatment. | E11: 95% by 2020/21 | F11: The number of CYP with ED (urgent cases) referred with a suspected ED that start treatment within 1 week of referral in the reporting period. | G11: The number of CYP with a suspected ED (urgent cases) that start treatment in the reporting period. | H11: NHS England has outlined a clear commitment to driving a more equal response across mental and physical health. A key element of this is ensuring that people have timely access to evidence-based and effective treatment, a vision outlined in Achieving Better Access for Mental Health Services by 2020. The Children and Young People with an Eating Disorder (CYP ED)Access and Waiting Time standard states that children and young people (up to the age of 19) referred for assessment or treatment for an eating disorder should receive NICE-approved treatment with a designated healthcare professional within one week for urgent cases and four weeks for every other case. The standard includes all children and young people up to the age of 19 years in whatever setting (community or inpatients) the young person is receiving care. NB due to small numbers of children and young people at a CCG and STP level, the percentages for these organisations are calculated using data for a rolling 12 month period | I11: 6 months (regional and national data) Rolling 12 months (CCG and STP level) | J11: Unify2 | K11: https://www.england.nhs.uk/statistics/statistical-work-areas/cyped-waiting-times/
B12: CYP(ii.b) | C12: % of CYP with eating disorders seen within 4 weeks (routine) | D12: The proportion of CYP with ED (routine cases) that wait 4 weeks or less from referral to start of NICE-approved treatment. | E12: 95% by 2020/21 | F12: The number of CYP referred (routine cases) with suspected ED that started treatment within 4 weeks of referral in the reporting period. | G12: The number of CYP referred (routine cases) with suspected ED that start treatment in the reporting period. | H12: NHS England has outlined a clear commitment to driving a more equal response across mental and physical health. A key element of this is ensuring that people have timely access to evidence-based and effective treatment, a vision outlined in Achieving Better Access for Mental Health Services by 2020. The Children and Young People with an Eating Disorder (CYP ED)Access and Waiting Time standard states that children and young people (up to the age of 19) referred for assessment or treatment for an eating disorder should receive NICE-approved treatment with a designated healthcare professional within one week for urgent cases and four weeks for every other case. The standard includes all children and young people up to the age of 19 years in whatever setting (community or inpatients) the young person is receiving care. NB due to small numbers of children and young people at a CCG and STP level, the percentages for these organisations are calculated using data for a rolling 12 month period | I12: 6 months (regional and national data) Rolling 12 months (CCG and STP level) | J12: Unify2 | K12: https://www.england.nhs.uk/statistics/statistical-work-areas/cyped-waiting-times/
B13: CYP(iii.a) | C13: a. Total number of bed days for CYP under 18 in CAMHS tier 4 wards | D13: The number of bed days in CAMHS Wards for CAMHS Patients aged 0-17 in the reporting period | F13: N/A | G13: N/A | H13: Since the previous publication of the mental health dashboard, data quality against this indicator has been reviewed. Following this work, figures for England for 2016/17 have been updated. Please note that this indicator now includes medium secure and deaf inpatient children (from 2017/18). All values of less than 5 have been suppressed and replaced with N/A in this output. | I13: Quarter | J13: Provider Specialised Mental Health template submissions (NHS England) | K13: N/A
B14: CYP(iii.b) | C14: Number of admissions of CYP under 18 in Child and Adolescent Mental Health Services tier 4 wards | D14: The number of admissions in CAMHS Wards for CAMHS Patients aged 0-17 in the reporting period | F14: N/A | G14: N/A | H14: Since the previous publication of the mental health dashboard, data quality against this indicator has been reviewed. Following this work, figures for England for 2016/17 have been updated. Please note that this indicator now includes medium secure and deaf inpatient children (from 2017/18). All values of less than 5 have been suppressed and replaced with N/A in this output. | I14: 6 months | J14: Provider Specialised Mental Health template Provider submissions (NHS England) | K14: N/A
B15: CYP(iv.a) | C15: Bed days of CYP under 18 in adult in-patient wards | D15: A count of bed days for people aged 0-17 who were in an adult ward each month. Individuals are allocated to a CCG based on the person's CCG at the end of the month. Three months data is then aggregated to produce the quarterly figure. (MHSDS measure: MHS24a-c) | F15: N/A | G15: N/A | H15: Statistics for the number of people under the age of 18 being treated on adult wards have not yet been published by NHS Digital for Q2, so data here is limited to Q1, and trends are based on quarterly data. These statistics represent a small number of people, as such data quality issues in particular providers submissions can have a large impact. One provider has reported data quality errors in the August 2017 submission. An unexpected change in system configuration has resulted in a children's ward been incorrectly classified as an adult ward, resulting in high figures of people under 18 on an adult ward. Assurance processes are being tightened by the Trust to prevent this issue reoccurring. While the impact of these error are being understood these statistics have been removed from this report. NHS Digital are working closely with providers who have not yet submitted data and expect coverage and data quality to improve over the coming months. Due to this, figures presented here for children and young people accessing mental health services are known to be underreported. This may mean that there are geographical patches including a number of CCGs in which no data is currently being recorded, or are areas in which the actual levels of activity will be underreported. Further information can be found in the data quality section of the associated monthly MHSDS publications. These statistics are classified as experimental and should be used with caution. Experimental statistics are new official statistics undergoing evaluation. Except for England, all values of less than 5 have been suppressed and replaced with a N/A in this output. All unsuppressed sub-national values have been rounded to the nearest 5. Please note that for Q4, a number of providers have corrected coding errors which has resulted in a large drop in the values for this indicator. Please see the NHS Digital data quality reports for more detail using the link to the right. This measure is produced monthly and further information about the construction can be found in the meta data file which accompanies each release here: | I15: 6 months | J15: MHSDS | K15: NHS Digital supplementary information files: Children and young people mental health indicators
B16: CYP(iv.b) | C16: Number of CYP under 18 in adult in-patient wards | D16: The number of children and young people aged 0-17 admitted in adult in-patient wards in the reporting period. This is a count of people, aged 0-17, who were on an adult ward at any point during the quarter. To avoid counting individuals more than once, the CCG is allocated based on the data submitted for the latest month in the quarter that person spent time in an adult ward. | F16: N/A | G16: N/A | H16: Statistics for the number of people under the age of 18 being treated on adult wards have not yet been published by NHS Digital for Q2, so data here is limited to Q1, and trends are based on quarterly data. These statistics represent a small number of people, as such data quality issues in particular providers submissions can have a large impact. One provider has reported data quality errors in the August 2017 submission. An unexpected change in system configuration has resulted in a children's ward been incorrectly classified as an adult ward, resulting in high figures of people under 18 on an adult ward. Assurance processes are being tightened by the Trust to prevent this issue reoccurring. While the impact of these error are being understood these statistics have been removed from this report. NHS Digital are working closely with providers who have not yet submitted data and expect coverage and data quality to improve over the coming months. Due to this, figures presented here for children and young people accessing mental health services are known to be underreported. This may mean that there are geographical patches including a number of CCGs in which no data is currently being recorded, or are areas in which the actual levels of activity will be underreported. Further information can be found in the data quality section of the associated monthly MHSDS publications. These statistics are classified as experimental and should be used with caution. Experimental statistics are new official statistics undergoing evaluation. Except for England, all values of less than 5 have been suppressed and replaced with a * in this output. All unsuppressed sub-national values have been rounded to the nearest 5. Please note that for Q4, a number of providers have corrected coding errors which has resulted in a large drop in the values for this indicator. Please see the NHS Digital data quality reports for more detail using the link to the right. This measure is produced monthly and further information about the construction can be found in the meta data file which accompanies each release here: | I16: 6 months | J16: MHSDS | K16: NHS Digital supplementary information files: Children and young people mental health indicators
B17: CYP(v) | C17: CYP Mental Health planned CCG spend - excluding learning disabilities and eating disorders | D17: 2017/18 planned spend by CCGs for CYP MH excluding learning disabilities and eating disorders | F17: N/A | G17: N/A | I17: Year | J17: NHS England Finance tracker | K17: N/A
B18: CYP(vi) | C18: CYP Mental Health planned CCG spend - eating disorders | D18: 2017/18 planned spend by CCGs for CYP MH eating disorders | F18: N/A | G18: N/A | H18: Some CCGs have had difficulties extracting costs for specific services that they commission because of block contract arrangements. As a result there are some CCGs that show zero spend for mental health programmes, which is being reported as N/A in this dashboard. There are 17 CCGs showing zero in their plans for CYP Eating Disorder services. | I18: Year | J18: NHS England Finance tracker | K18: N/A
B19: Adult mental health: common mental health problems
B20: IAPT(i.a) | C20: Improving Access to Psychological Therapies access rate: proportion of people with depression/anxiety entering during reporting period (annualised figure) | D20: The proportion of people who have depression and/or anxiety disorders that enter NHS funded treatment with IAPT Services in the reporting period | E20: 16.8% by end Q4 2017/18 | F20: The number of people who enter treatment to IAPT Services in the reporting period, multiplied by two to give an annualised equivalent (Column name in the IAPT quarterly report: FirstTreatment) | G20: The number of people who have depression and/or anxiety disorders (local estimate based on Adult Psychiatric Morbidity Survey 2000) | H20: The annual objective set out in the Five Year Forward View Implementation plan for 2017/18 is 16.8%, which translates to 4.2% for each quarter. Please note that this is not a national standard, rather an ambition set in the implementation plan - "Assessment will be based on a quarterly “run rate” requirement , with the expectation that each CCG will achieve a rate of at least 4.2% of local prevalence entering services in quarter 4 of 2017/18 and 4.75% in quarter 4 of 2018/19." The measurement of whether IAPT access ambitions have been met is made in the last quarter of the year: giving time for expansion to take place. | I20: 6 months | J20: IAPT dataset | K20: NHS Digital: IAPT reports
B21: IAPT(i.b) | C21: IAPT % of all referrals that are for older people 65+ | D21: The proportion of referrals for those aged 65 and over of all referrals | F21: The number of referrals for those aged 65 and over | G21: All referrals | I21: 6 months | J21: IAPT dataset | K21: NHS Digital: IAPT reports
B22: IAPT(ii.a) | C22: IAPT recovery rate: % of people that attended at least 2 treatment contacts and are moving to recovery | D22: The proportion of people who have attended at least two treatment contacts and are moving to recovery (defined as those who at initial assessment achieved "caseness” and at final session did not) in the reporting period (Column name in the IAPT quarterly report: Recovery Rate) | E22: 0.5 | F22: The sum of all the CCGs within each region for the Recovery Column in the IAPT quarterly report | G22: The sum of all the CCGs within each region for the FinishedCourseTreatment Column minus the NotCaseness Column | H22: The IAPT quarterly report does not include a regional aggregation. The regional proportions have been calculated by NHS England as follows: The sum of all the CCGs within each region for the Recovery Column in the IAPT quarterly report/ the sum of all the CCGs within each region for the FinishedCourseTreatment Column minus the NotCaseness Column | I22: 6 months | J22: IAPT dataset | K22: NHS Digital: IAPT reports
B23: IAPT(ii.b) | C23: IAPT recovery rate for black or minority ethnic (BME) groups | D23: The proportion of people with a BME ethnic group who have attended at least two treatment contacts and are moving to recovery (defined as those who at initial assessment achieved "caseness” and at final session did not) in the reporting period (Column name in the IAPT quarterly report: Recovery Rate for variable type: BME) | E23: 0.5 | F23: The sum of all the CCGs within each region for the Recovery Column in the IAPT quarterly report for BME only | G23: The sum of all the CCGs within each region for the FinishedCourseTreatment Column minus the NotCaseness Column - for BME only | H23: The IAPT quarterly report does not include a regional aggregation. The regional proportions have been calculated by NHS England as follows: The sum of all the CCGs within each region for the Recovery Column in the IAPT quarterly report/ the sum of all the CCGs within each region for the FinishedCourseTreatment Column minus the NotCaseness Column | I23: 6 months | J23: IAPT dataset | K23: NHS Digital: IAPT reports
B24: IAPT(iii.a) | C24: IAPT % of people receiving first treatment appointment within 6 weeks of referral | D24: The proportion of people who had their first treatment appointment within 6 weeks of referral in the reporting period | E24: 0.75 | F24: FirstTreatment6WeeksFinishedCourse | G24: FinishedCourseTreatment | H24: This measure was first published in the quarterly IAPT reports in Q1 2016/17. Before that, the data for the numerator and denominator was included in the IAPT monthly reports only and the quarterly figures were constructed by NHS England using the monthly published figures, as follows: (FirstTreatment6WeeksFinishedCourse/( FinishedCourseTreatment) NB: The monthly figures are suppressed and rounded to the nearest 5. Therefore the figures are likely to differ from the published quarterly figures due to rounding and suppression The IAPT quarterly report does not include a regional or STP aggregation. The regional and STP proportions have been calculated by NHS England by using the construction above and aggregating the CCG level figures. | I24: 6 months | J24: IAPT dataset | K24: NHS Digital: IAPT reports
B25: IAPT(iii.b) | C25: IAPT % of people receiving first treatment appointment within 18 weeks of referral | D25: The proportion of people who had their first treatment appointment within 18 weeks of referral in the reporting period | E25: 0.95 | F25: FirstTreatment18WeeksFinishedCourse | G25: FinishedCourseTreatment | H25: This measure was first published in the quarterly IAPT reports in Q1 2016/17. Before that, the data for the numerator and denominator was included in the IAPT monthly reports only and the quarterly figures were constructed by NHS England using the monthly published figures, as follows: (FirstTreatment18WeeksFinishedCourse/( FinishedCourseTreatment) NB: The monthly figures are suppressed and rounded to the nearest 5. Therefore the figures are likely to differ from the published quarterly figures due to rounding and suppression The IAPT quarterly report does not include a regional or STP aggregation. The regional and STP proportions have been calculated by NHS England by using the construction above and aggregating the CCG level figures. | I25: 6 months | J25: IAPT dataset | K25: NHS Digital: IAPT reports
B26: IAPT(iv) | C26: IAPT planned CCG spend | D26: 2017/18 planned spend by CCGs for Improving Access to Psychological Therapies services | F26: N/A | G26: N/A | I26: Year | J26: NHS England Finance tracker | K26: N/A
B27: Early intervention in psychosis (EIP)
B28: EIP(i) | C28: % of people who started treatment within 2 weeks of referral - All ages | D28: Proportion of ended referrals who received their first treatment appointment within 2 weeks of referral in the reporting period | E28: 0.5 | F28: The number of ended referrals that start a course of treatment in the reporting period who received their first treatment appointment within 2 weeks of referral. | G28: The number of ended referrals that start a course of treatment in the reporting period. | H28: The UNIFY2 data collection is an interim aggregate experimental data collection which is being run by NHS England until data of sufficient quality are available from the Mental Health Services dataset (MHSDS). While data quality in the MHSDS dataset has improved significantly, there remains a gap between MHSDS data and the UNIFY2 collection for this reporting period. | I28: 6 months | J28: Unify2 | K28: NHS England: EIP waiting times
B29: EIP(ii) | C29: EIP planned CCG spend | D29: 2017/18 planned spend by CCGs for EIP teams | F29: N/A | G29: N/A | H29: Some CCGs have had difficulties extracting costs for specific services that they commission because of block contract arrangements. As a result there are some CCGs that show zero spend for mental health programmes, which is being reported as N/A in this dashboard. There are 17 CCGs showing zero in their plans for Early Intervention in Psychosis services. | I29: Year | J29: NHS England Finance tracker | K29: N/A
B30: Employment Support
B31: ES(i) | C31: Number of people accessing Individual Placement Support services | D31: The number of secondary mental health service users who accessed an IPS service during 2016/17 for the purposes of receiving employment support. IPS = Individual Placement and Support. | E31: 2016/17 is baseline figure to be doubled by 2020/21 | F31: N/A | G31: N/A | H31: This data collection established a baseline from which to measure improved access to IPS. It is intended that further collections will be undertaken in 2018/19 to provide at least an annual view of progress on this indicator. Data relates only to IPS services (not generic employment support services). Not all STPs currently have IPS provision in their area. STP allocation is from the geographical location of the service. Data was collected at aggregate service level, not individual service user record level. | I31: Year | J31: NHS England IPS Stocktake | K31: N / A
B32: Crisis and acute care and use of the Mental Health Act (MHA)
B33: CR(i) | C33: % of Crisis Resolution Home Treatment services able to meet selected core functions | D33: Services able to meet all of functions A-F. These functions have been selected as key indicators from the survey to demonstrate elements of a 24/7 crisis response and capacity to offer intensive 24/7 home treatment. See descriptions below | F33: The number of sites in the selected geography answering yes to indciators C, D,E and F together | G33: The number of sites in the selected geography submitting figures to the survey | H33: This data collection established a baseline from which to measure improvements in Crisis Resolution Home Treatment teams. It is intended that further collections will be undertaken to provide an annual view of progress in this area. It is expected that updated data for 2017/18 will be available in June 2018. Survey responses submitted by CRHTTs to HEE / UCL survey as a snapshot in November 2016. Survey data are intended to prompt further local discussion. Local data on CRHT provision likely to be more accurate and should take precedence. | I33: 2016/17 | J33: Survey commissioned by Health Education England, conducted by University College London | K33: N/A
B34: CR(ii) | C34: Crisis resolution home treatment teams planned spend | D34: 2017/18 planned spend for A&E and Ward Liaison mental health services | F34: N/A | G34: N/A | H34: Some CCGs have had difficulties extracting costs for specific services that they commission because of block contract arrangements. As a result there are some CCGs that show zero spend for mental health programmes, which is being reported as N/A in this dashboard. 31 CCGs returned zero in their planned spend for crisis resolution home treatment teams. | I34: Year | J34: NHS England Finance tracker | K34: N/A
B35: CR(iv.a) | C35: Number of detentions under the Mental Health Act ~ | D35: The number of detentions under the mental health act 1983 (includes all providers) | F35: N/A | G35: N/A | H35: The most important aspect of the report to note is that this is the first annual MHA report by NHS Digital using Mental Health Services Data Set (MHSDS) data as the official source of MHA statistics. There are therefore significant data quality and completeness issues and differences in NHS Digital’s analytical approach, which render comparability of overall numbers with previous years misleading and unhelpful. NHS Digital make this clear in the report and in a separate supplementary Background Data Quality Report. We have been aware that this was going to be the case and have been engaged in discussions with NHS Digital, NHS Improvement, the Care Quality Commission (CQC) and the Department of Health since the change was first formally announced in last year’s annual report (published in November 2016). While this new data seems to indicate a reduction, this note sets out why we are confident this is inaccurate and how we will work with our partners to improve data quality and completeness. NHS Digital make clear that although this appears to constitute a 27.9% fall in detentions between 2015/16 and 2016/17, this is due to missing data and therefore these sets of figures are not directly comparable. New analysis of the MHSDS patient-level data has allowed them to find instances where the same detentions were recorded by more than one provider, which occurs where a person is transferred between hospitals whilst remaining detained. NHS Digital state that the new insights presented in this report, particularly in relation to transfers of detained patients between hospitals, suggest that: o The level of detentions in previous years may have been overstated due to double counting. o The change in detentions from 2015/16 to 2016/17 is estimated as a 2% increase, when based on a group of providers with good data quality. These are still speculations to some extent, which need verifying – though they are potentially very significant in the implications for apparent rising trends and numbers of detentions in previous years. Further detail is provided below in the ‘Next steps’ section of this note. The count of detentions does not include uses of Sections 4, 5(2) & 5(4) or 135 & 136 | I35: Year | J35: Mental Health Act Statistics, NHS Digital | K35: NHS Digital Publications: Mental Health Act Statisitcs
B36: CR(iv.b) | C36: % of people detained under the MHA who are BME ~ | D36: The proportion of total detentions under the mental health act 1983, with a black or minority ethnic (BME) ethnicity | F36: The number of people with a "mixed", "Asian or Asian British", "black or black British" or "other ethnic groups" ethnic group that have been detained under the mental health act | G36: The total number of detentions under the mental health act | H36: The most important aspect of the report to note is that this is the first annual MHA report by NHS Digital using Mental Health Services Data Set (MHSDS) data as the official source of MHA statistics. There are therefore significant data quality and completeness issues and differences in NHS Digital’s analytical approach, which render comparability of overall numbers with previous years misleading and unhelpful. NHS Digital make this clear in the report and in a separate supplementary Background Data Quality Report. We have been aware that this was going to be the case and have been engaged in discussions with NHS Digital, NHS Improvement, the Care Quality Commission (CQC) and the Department of Health since the change was first formally announced in last year’s annual report (published in November 2016). While this new data seems to indicate a reduction, this note sets out why we are confident this is inaccurate and how we will work with our partners to improve data quality and completeness. NHS Digital make clear that although this appears to constitute a 27.9% fall in detentions between 2015/16 and 2016/17, this is due to missing data and therefore these sets of figures are not directly comparable. New analysis of the MHSDS patient-level data has allowed them to find instances where the same detentions were recorded by more than one provider, which occurs where a person is transferred between hospitals whilst remaining detained. NHS Digital state that the new insights presented in this report, particularly in relation to transfers of detained patients between hospitals, suggest that: o The level of detentions in previous years may have been overstated due to double counting. o The change in detentions from 2015/16 to 2016/17 is estimated as a 2% increase, when based on a group of providers with good data quality. These are still speculations to some extent, which need verifying – though they are potentially very significant in the implications for apparent rising trends and numbers of detentions in previous years. Further detail is provided below in the ‘Next steps’ section of this note. The count of detentions does not include uses of Sections 4, 5(2) & 5(4) or 135 & 136 | I36: Year | J36: Mental Health Act Statistics, NHS Digital | K36: NHS Digital Publications: Mental Health Act Statisitcs
B37: CR(v.a) | C37: Number of section 136 detentions taken to police cells as a place of safety | D37: The number of section136 detentions taken to police cells as a place of safety in England | F37: N/A | G37: N/A | I37: Year | J37: National Police Chiefs' Council Lead for Mental Health | K37: Use of Section 136 of the Mental Health Act 1983 in 2016-17
B38: CR(v.b) | C38: Number of section 136 detentions taken to police cells as a place of safety that are under 18 | D38: The number of section136 detentions taken to police cells as a place of safety in England that are under 18 | F38: N/A | G38: N/A | I38: Year | J38: National Police Chiefs' Council Lead for Mental Health | K38: Use of Section 136 of the Mental Health Act 1983 in 2016-17
B39: Acute hospital mental health liaison
B40: AC(i) | C40: % of acute hospitals meeting the ‘core 24’ service standard | D40: The proportion of acute hospitals meeting all three core 24 criteria - Liaison teams commissioned to operate 24/7 Liaison teams in acute hospitals operating close to recommended minimum workforce numbers to operate 24/7, i.e. services with a "Core 24" or "Enhanced LPSE-3 Service Grading Teams with response time standards (1hr for emergency, 24 hr for ward referrals) | E40: 0.07 | F40: The number of acute hospitals meeting all three core 24 criteria | G40: The total number of acute hospitals with complete data | H40: The baseline for this indicator was set in 2015 at 7%. It is intended that further collections will be undertaken to provide an annual view of progress on this indicator. It is expected that updated data for 2017/18 will be available in 2018. | I40: TBD | J40: Third Annual Survey of Liaison Psychiatry in England , Health Education England | K40: N/A
B41: AC(ii) | C41: A&E and Ward Liaison ental health planned spend | D41: 2017/18 planned spend for A&E and Ward Liaison mental health services | F41: N/A | G41: N/A | H41: Some CCGs have had difficulties extracting costs for specific services that they commission because of block contract arrangements. As a result there are some CCGs that show zero spend for mental health programmes, which is being reported as N/A in this dashboard. There are 10 CCGs returning zero in their planned spend for A&E liaison services. | I41: Year | J41: NHS England Finance tracker | K41: N/A
B42: Health & Justice
B43: HJ(i) | C43: Number of mental health secure transfers within 2 weeks of acceptance under the MHA- Age:18+ | D43: The number of mental health secure transfers for patients aged 18 and over within 2 weeks of acceptance under the MHA | F43: N/A | G43: N/A | I43: 6 months | J43: Health and Justice Indicators of Performance (HJIP) | K43: N/A
B44: HJ(ii.a) | C44: % of prison population receiving group therapy in secure and detained settings - Age:18+ ~ | D44: The proportion of the prison population receiving group therapy in secure and detained settings | F44: The number of the prison population receiving group therapy | G44: The number of patients in secure and detained settings (according to QOF codes) at the end of the reporting period | I44: 6 months | J44: Health and Justice Indicators of Performance (HJIP) | K44: N/A
B45: HJ(ii.b) | C45: % of mental health patients receiving individual therapy in secure and detained settings - Age:18+ | D45: The proportion of mental health patients receiving individual therapy in secure and detained settings | F45: The number of mental health patients receiving individual therapy | G45: The number patients on the mental health register in secure and detained settings (according to QOF codes) at the end of the reporting period | H45: We wouldn’t expect all patients on the register to be receiving group and/or individual therapies at a given point in time, as some patients' condition maybe in remission or managed by medication and won't require additional therapies. As group and individual therapies are not mutually exclusive, a small number of patients may be in receipt of both in any given reporting period. | I45: 6 months | J45: Health and Justice Indicators of Performance (HJIP) | K45: N/A
B46: HJ(iii) | C46: % of population of England with access to liaison and diversion services - All ages | D46: The proportion of population with access to Liaison and Diversion services | E46: 0.6 | F46: The number of people with access to Liaison and Diversion services | G46: Total England population based on the 2011 census | I46: Year | J46: Liaison and Diversion Programme Team | K46: N/A
B47: Suicide prevention
B48: SP(i) | C48: Suicide: age-standardised death rate per 100,000 population - Age:10+ | D48: The rolling three year aggregate age-standardised mortality rate from suicide and injury of undetermined intent per 100,000 population | F48: Number of deaths from suicide in the reporting period. In England and Wales, suicide is defined as deaths given an underlying cause of intentional self-harm or injury/poisoning of undetermined intent. International Classification of Diseases (ICD) codes used in this dataset X60-X84 Intentional self-harm Y10-Y3478 Injury/poisoning of undetermined intent Deaths were selected using the final underlying cause of death. 7 Excluding injury/poisoning of undetermined intent for persons aged 10-14. 8 Excluding Y33.9 where the coroner's verdict was pending in England and Wales for the years 2001-2006. From 2007 onwards, deaths which were previously coded to Y33.9 are coded to U50.9. | G48: The resident population divided by 100,000 | H48: Figures are for suicides of persons aged 10 years and over. This same age band was used as a lower limit for the underlying population dataset used to calculate rates. The rates are standardised 100,000 population to the 2013 European Standard Population. Age-standardised rates are used to allow comparison between populations which may contain different proportions of people of different ages. | I48: Rolling three year aggregate | J48: Office for National Statistics | K48: ONS CCG level age standardised suicide rates
K49: ONS STP level age standardised suicide rates
B50: SP(ii.a) | C50: Hospital admissions for self-harm: age standardised rate per 100,000 - Age: 10-24 | D50: Directly standardised rate of finished admission episodes for self-harm per 100,000 population aged 10-24 years | F50: Number of finished admission episodes in children aged between 10 and 24 years for intentional self-harm in the reporting period. Self-harm is defined by external cause codes (ICD10 X60-X84) which include: •Intentional self poisoning (X60 to X69 inclusive); •Intentional self harm by hanging, drowning or jumping (X70, X71 and X80); • Intentional self harm by firearm/explosive (X72 to X75 inclusive); • Intentional self harm using other implement (X78 and X79) • Intentional self harm other (X76, X77 and X81 to X84). This definition does not include events of undetermined intent | G50: Numbers of patients registered at a GP Practice aged between 10 to 24 divided by 100,000. | H50: Directly standardised rate per 100,000 population calculated using the revised European Standard Population 2013 (2013 ESP). For more information on the methodology please see ONS publication below: | I50: 6 months | J50: Numerator: Hospital Episode Statistics (HES), NHS Digital Denominator: Number of patients registered at a GP practice, NHS Digital | K50: Numerator: NHS Digital: HES
H51: Revised European Standard Population 2013 | K51: Denominator: NHS Digital: GP registered population
B52: SP(ii.b) | C52: Hospital admissions for self-harm: age standardised rate per 100,000 - Age:25+ | D52: Directly standardised rate of finished admission episodes for self-harm per 100,000 population aged 25+ | F52: Number of finished admission episodes in children aged between 10 and 24 years for intentional self-harm in the reporting period. See SP(ii(a) for self-harm definition | G52: Numbers of patients registered at a GP Practice aged 25 and over divided by 100,000. | H52: Directly standardised rate per 100,000 population calculated using the revised European Standard Population 2013 (2013 ESP). For more information on the methodology please see ONS publication below: | I52: 6 months | J52: Numerator: Hospital Episode Statistics (HES), NHS Digital Denominator: Number of patients registered at a GP practice, NHS Digital | K52: Numerator: NHS Digital: HES
H53: Revised European Standard Population 2013 | K53: Denominator: NHS Digital: GP registered population
B54: SP(iii) | C54: % of patients on CPA discharged from hospital and followed up within 7 days | D54: The proportion patients on CPA discharged from hospital and followed up within 7 days | F54: Number of patients on CPA who were followed up within 7 days after discharge from psychiatric inpatient care (QA) | G54: Total number of patients on CPA discharged from psychiatric inpatient care (QA) | H54: The national total includes figures for services commissioned by NHS England | I54: 6 months | J54: Unify2 | K54: N/A
B55: Meeting commitment to increase mental health funding
B56: MHF(i) | C56: Mental health planned spend as a % of overall CCG allocation | D56: 2017/18 mental health planned spend (including learning disabilities and dementia) as a proportion of overall CCG allocation | F56: Total 2017/18 planned spend mental health spend including learning disabilities and dementia | G56: Total 2017/18 CCG allocation | H56: This shows the planned spend (see definition below) as a percentage of the overall CCG allocation. The overall CCG allocation excludes primary care co-commissioning and admin allocations. For 2017/18 the percentage of CCG allocation is calculated on total CCG allocations which excludes administration and delegated primary care co-commissioning allocations. For 2015/16 & for 2016/17 the percentage of CCG allocation is calculated on total CCG allocations which includes administration and delegated primary care co-commissioning allocations these allocations. Excluding administration and primary care co-commissioning allocations, total spend on mental health was 13.1% for 2015/16 and 13.6% for 2016/17. | I56: Year | J56: NHS England Finance tracker | K56: N/A
B57: MHF(ii.a) | C57: Mental health actual spend in 2016/17 | D57: Total 2016/17 mental health actual spend (including learning disabilities and dementia) | F57: N/A | G57: N/A | H57: The MHIS is calculated based on the CCG 16/17 actual outturn reported in 17/18 plans. At regional, STP and CCG level, the actual spend for 16/17 published in the Q1 2017/18 dashboard therefore differs from the 16/17 outturn published in the Q4 Mental Health Dashboard as the former is adjusted for non-recurrent spend. This adjustment ensures that the MHIS is fairly comparing 16/17 recurrent spend with 2017/18 recurrent spend. | I57: Year | J57: NHS England Finance tracker | K57: N/A
B58: MHF(ii.b) | C58: Mental health planned spend in 2017/18 | D58: Total 2017/18 mental health planned spend (including learning disabilities and dementia) | F58: N/A | G58: N/A | H58: The planned spend includes the spend on any additional allocations issued in year to CCGs, as this more accurately reflects additional investment in MH. The spend on additional funding included in CCG baselines is included in both the total spend by CCG and in the programme level spend by CCG. | I58: Year | J58: NHS England Finance tracker | K58: N/A
B59: MHF(iii) | C59: On track to meet the Mental Health Investment Standard? | D59: This measure shows whether the MH investment standard is being achieved in the 2017/18 outurn. This is being calculated by comparing the growth in mental health spend from 16/17 to overall programme growth for each CCG adjusted for the additional children and young people mental health monies included in 17/18 CCG baselines and spend against ‘new’ mental health funding in 16/17 and 17/18 | F59: N/A | G59: N/A | H59: Achievement of the MHIS is calculated by comparing the growth in MH spend (2016/17 actual spend to 2017/18 planned spend) and the growth in the overall programme allocation. The increase in MH spend should be at least equal or greater in percentage terms to the % overall growth in allocation. The MHIS is calculated at CCG level and nationally. | I59: Year | J59: NHS England Finance tracker | K59: N/A

Sheet Dashboard
N3: =TypeSelector -> 1
N5: =LEFT(Selected_Org_Name,3) -> Eng
N6: =CCGName -> England
N7: =IF(TypeSelector=3,"Select STP","Select CCG") -> Select CCG
N8: =IF(N3=3,"Overview for "&Selected_Org_Name&" STP", "Overview for "&Selected_Org_Name) -> Overview for England
N10: =OFFSET('LKP - Organisation codes'!$A$2,MATCH(Selected_Org_Name,'LKP - Organisation codes'!Org_list,0),) -> EN
D12: Click on the column headings below for a brief description of each column
B13: Code | C13: Indicator* - Please see the Metadata tab for further details on the indicators | D13: Reporting period | E13: Indicator value | F13: Standard met / on track | G13: Trend **** | H13: Better is… | I13: Range *^*
B14: Children and Young people (CYP) Mental Health | D14: ='Calc - Sparklines'!D13 -> 0 | E14: =IFERROR(IF('Calc - Sparklines'!T13="","",'Calc - Sparklines'!T13),"N/A") -> N/A | G14: ='Calc - Sparklines'!X13 -> N/A
B15: CYP(i) | C15: Number of individual CYP aged 0-18 receiving treatment by NHS funded community services ⱡ | D15: N/A | E15: N/A | F15: N/A | G15: ='Calc - Sparklines'!X14 -> N/A | H15: ▲ | I15: N/A
B16: CYP(ii.a) | C16: % of CYP with eating disorders seen within 1 week (urgent) | D16: =IF(OR($N$3=3,$N$3=4), "Q3 2016/17 - Q2 2017/18",'Calc - Sparklines'!D15) -> Q1-Q2 2017/18 | E16: =IFERROR(IF('Calc - Sparklines'!T15="","",'Calc - Sparklines'!T15),"N/A") -> 0.721340388 | F16: N/A | G16: ='Calc - Sparklines'!X15 ->  | H16: ▲ | I16: N/A
B17: CYP(ii.b) | C17: % of CYP with eating disorders seen within 4 weeks (routine) | D17: =IF(OR($N$3=3,$N$3=4), "Q3 2016/17 - Q2 2017/18",'Calc - Sparklines'!D16) -> Q1-Q2 2017/18 | E17: =IFERROR(IF('Calc - Sparklines'!T16="","",'Calc - Sparklines'!T16),"N/A") -> 0.8058035714 | F17: N/A | G17: ='Calc - Sparklines'!X16 ->  | H17: ▲ | I17: N/A
B18: CYP(iii.a) | C18: Number of bed days for CYP under 18 in Child and Adolescent Mental Health Services tier 4 wards | D18: ='Calc - Sparklines'!D17 -> Q1-Q2 2017/18 | E18: =IFERROR(IF('Calc - Sparklines'!T17="","",'Calc - Sparklines'!T17),"N/A") -> 218140 | F18: N/A | G18: ='Calc - Sparklines'!X17 -> N/A | H18: ▼ | I18: N/A
B19: CYP(iii.b) | C19: Number of admissions of CYP under 18 in Child and Adolescent Mental Health Services tier 4 wards | D19: ='Calc - Sparklines'!D18 -> Q1-Q2 2017/18 | E19: =IFERROR(IF('Calc - Sparklines'!T18="","",'Calc - Sparklines'!T18),"N/A") -> 2334 | F19: N/A | G19: ='Calc - Sparklines'!X18 -> N/A | H19: ▼ | I19: N/A
B20: CYP(iv.a) | C20: Bed days of CYP under 18 in adult in-patient wards** | D20: ='Calc - Sparklines'!D19 -> Q1 2017/18 | E20: =IFERROR(IF('Calc - Sparklines'!T19="","",'Calc - Sparklines'!T19),"N/A") -> 428 | F20: N/A | G20: ='Calc - Sparklines'!X19 ->  | H20: ▼ | I20: N/A
B21: CYP(iv.b) | C21: Number of CYP under 18 in adult in-patient wards** | D21: ='Calc - Sparklines'!D20 -> Q1 2017/18 | E21: =IFERROR(IF('Calc - Sparklines'!T20="","",'Calc - Sparklines'!T20),"N/A") -> 57 | F21: N/A | G21: ='Calc - Sparklines'!X20 ->  | H21: ▼ | I21: N/A
B22: CYP(v) | C22: CYP Mental Health planned CCG spend - excluding learning disabilities and eating disorders | D22: ='Calc - Sparklines'!D21 -> 2017/18 | E22: =IFERROR(IF('Calc - Sparklines'!T21="","",'Calc - Sparklines'!T21),"N/A") -> 614127742.6 | F22: N/A | G22: ='Calc - Sparklines'!X21 -> N/A | H22: N/A | I22: N/A
B23: CYP(vi) | C23: CYP Mental Health planned CCG spend - eating disorders | D23: ='Calc - Sparklines'!D22 -> 2017/18 | E23: =IFERROR(IF('Calc - Sparklines'!T22="","",'Calc - Sparklines'!T22),"N/A") -> 46716934.23 | F23: N/A | G23: ='Calc - Sparklines'!X22 -> N/A | H23: N/A | I23: N/A
B24: Adult mental health: common mental health problems (Improving Access to Psychological Therapies services)
B25: IAPT(i.a) | C25: IAPT access rate: proportion of people with depression/anxiety entering NHS funded treatment during reporting period*** | D25: ='Calc - Sparklines'!D24 -> Q1-Q2 2017/18 | E25: =IFERROR(IF('Calc - Sparklines'!T24="","",'Calc - Sparklines'!T24),"N/A") -> 0.1608281136 | F25: N/A | G25: ='Calc - Sparklines'!X24 ->  | H25: ▲ | I25: =IF($N$3=1,"Chart available at STP and CCG level", IF($N$3=2,"Chart available at STP and CCG level", IF($N$3=3,"", IF($N$3=4,"","")))) -> Chart available at STP and CCG level
B26: IAPT(i.b) | C26: IAPT % of all referrals that are for older people 65+ | D26: ='Calc - Sparklines'!D25 -> Q1-Q2 2017/18 | E26: =IFERROR(IF('Calc - Sparklines'!T25="","",'Calc - Sparklines'!T25),"N/A") -> 0.06884736227 | F26: N/A | G26: ='Calc - Sparklines'!X25 -> N/A | H26: ▲ | I26: Chart available at STP and CCG level
B27: IAPT(ii.a) | C27: IAPT recovery rate: % of people that attended at least 2 treatment contacts and are moving to recovery | D27: ='Calc - Sparklines'!D26 -> Q1-Q2 2017/18 | E27: =IFERROR(IF('Calc - Sparklines'!T26="","",'Calc - Sparklines'!T26),"N/A") -> 0.5072391413 | F27: =E27 -> 0.5072391413 | G27: ='Calc - Sparklines'!X26 ->  | H27: ▲ | I27: Chart available at STP and CCG level
B28: IAPT(ii.b) | C28: IAPT recovery rate for black or minority ethnic (BME) groups | D28: ='Calc - Sparklines'!D27 -> Q1-Q2 2017/18 | E28: =IFERROR(IF('Calc - Sparklines'!T27="","",'Calc - Sparklines'!T27),"N/A") -> 0.4705637459 | F28: 0.4705637459 | G28: ='Calc - Sparklines'!X27 ->  | H28: ▲ | I28: Chart available at STP and CCG level
B29: IAPT(iii.a) | C29: IAPT % of people receiving first treatment appointment within 6 weeks of referral | D29: ='Calc - Sparklines'!D28 -> Q1-Q2 2017/18 | E29: =IFERROR(IF('Calc - Sparklines'!T28="","",'Calc - Sparklines'!T28),"N/A") -> 0.8894273096 | F29: =E29 -> 0.8894273096 | G29: ='Calc - Sparklines'!X28 ->  | H29: ▲ | I29: Chart available at STP and CCG level
B30: IAPT(iii.b) | C30: IAPT % of people receiving first treatment appointment within 18 weeks of referral | D30: ='Calc - Sparklines'!D29 -> Q1-Q2 2017/18 | E30: =IFERROR(IF('Calc - Sparklines'!T29="","",'Calc - Sparklines'!T29),"N/A") -> 0.9897286503 | F30: =E30 -> 0.9897286503 | G30: ='Calc - Sparklines'!X29 ->  | H30: ▲ | I30: Chart available at STP and CCG level
B31: IAPT(iv) | C31: IAPT planned CCG spend | D31: ='Calc - Sparklines'!D30 -> 2017/18 | E31: =IFERROR(IF('Calc - Sparklines'!T30="","",'Calc - Sparklines'!T30),"N/A") -> 428790556.9 | F31: N/A | G31: ='Calc - Sparklines'!X30 -> N/A | H31: N/A | I31: N/A
B32: Early intervention in psychosis (EIP)
B33: EIP(i) | C33: % of people who started treatment within 2 weeks of referral - All ages | D33: ='Calc - Sparklines'!D32 -> Q1-Q2 2017/18 | E33: =IFERROR(IF('Calc - Sparklines'!T32="","",'Calc - Sparklines'!T32),"N/A") -> 0.7590006207 | F33: =E33 -> 0.7590006207 | G33: ='Calc - Sparklines'!X32 ->  | H33: ▲ | I33: =IF($N$3=1,"Chart available at STP and CCG level", IF($N$3=2,"Chart available at STP and CCG level", IF($N$3=3,"", IF($N$3=4,"","")))) -> Chart available at STP and CCG level
B34: EIP(ii) | C34: EIP planned CCG spend | D34: ='Calc - Sparklines'!D33 -> 2017/18 | E34: =IFERROR(IF('Calc - Sparklines'!T33="","",'Calc - Sparklines'!T33),"N/A") -> 148630976.7 | F34: N/A | G34: ='Calc - Sparklines'!X33 -> N/A | H34: N/A | I34: N/A
B35: Employment support
B36: ES(i) | C36: Number of people accessing Individual Placement Support services | D36: ='Calc - Sparklines'!D35 -> 2016/17 | E36: =IFERROR(IF('Calc - Sparklines'!T35="","",'Calc - Sparklines'!T35),"N/A") -> 9775 | F36: N/A | G36: ='Calc - Sparklines'!X35 -> Baseline figure | H36: ▲ | I36: =IF($N$3=1,"N/A", IF($N$3=2,"National measure only", IF($N$3=3,"National measure only", IF($N$3=4,"National measure only","")))) -> N/A
B37: Crisis and acute care and use of the Mental Health Act (MHA)
B38: CR(i) | C38: % of Crisis Resolution Home Treatment services able to meet selected core functions | D38: ='Calc - Sparklines'!D37 -> 2016/17 | E38: =IFERROR(IF('Calc - Sparklines'!T37="","",'Calc - Sparklines'!T37),"N/A") -> 0.2368421053 | F38: N/A | G38: ='Calc - Sparklines'!X37 -> Baseline figure | H38: ▲ | I38: =IF($N$3=1,"N/A", IF($N$3=2,"Chart available at STP level", IF($N$3=3,"", IF($N$3=4,"Data not available at CCG level","")))) -> N/A
B39: CR(ii) | C39: Crisis resolution home treatment teams planned spend | D39: ='Calc - Sparklines'!D38 -> 2017/18 | E39: =IFERROR(IF('Calc - Sparklines'!T38="","",'Calc - Sparklines'!T38),"N/A") -> 290659055.8 | F39: N/A | G39: ='Calc - Sparklines'!X38 -> N/A | H39: N/A | I39: N/A
B40: CR(iv.a) | C40: Number of detentions under the Mental Health Act ~ | D40: ='Calc - Sparklines'!D40 -> 2016/17 | E40: =IFERROR(IF('Calc - Sparklines'!T40="","",'Calc - Sparklines'!T40),"N/A") -> 45864 | F40: N/A | G40: ='Calc - Sparklines'!X40 -> N/A | H40: ▼ | I40: =IF($N$3=1,"N/A", IF($N$3=2,"National measure only", IF($N$3=3,"National measure only", IF($N$3=4,"National measure only","")))) -> N/A
B41: CR(iv.b) | C41: % of people detained under the MHA who are BME ~ | D41: ='Calc - Sparklines'!D41 -> 2016/17 | E41: =IFERROR(IF('Calc - Sparklines'!T41="","",'Calc - Sparklines'!T41),"N/A") -> 0.3 | F41: N/A | G41: ='Calc - Sparklines'!X41 -> N/A | H41: ▼ | I41: =IF($N$3=1,"N/A", IF($N$3=2,"National measure only", IF($N$3=3,"National measure only", IF($N$3=4,"National measure only","")))) -> N/A
B42: CR(v.a) | C42: Number of section 136 detentions taken to police cells as a place of safety | D42: ='Calc - Sparklines'!D42 -> 2016/17 | E42: =IFERROR(IF('Calc - Sparklines'!T42="","",'Calc - Sparklines'!T42),"N/A") -> 898 | F42: N/A | G42: ='Calc - Sparklines'!X42 ->  | H42: ▼ | I42: =IF($N$3=1,"N/A", IF($N$3=2,"National measure only", IF($N$3=3,"National measure only", IF($N$3=4,"National measure only","")))) -> N/A
B43: CR(v.b) | C43: Number of section 136 detentions taken to police cells as a place of safety that are under 18 | D43: ='Calc - Sparklines'!D43 -> 2016/17 | E43: =IFERROR(IF('Calc - Sparklines'!T43="","",'Calc - Sparklines'!T43),"N/A") -> 20 | F43: N/A | G43: ='Calc - Sparklines'!X43 ->  | H43: ▼ | I43: =IF($N$3=1,"N/A", IF($N$3=2,"National measure only", IF($N$3=3,"National measure only", IF($N$3=4,"National measure only","")))) -> N/A
B44: Acute hospital mental health liaison
B45: AC(i) | C45: % of acute hospitals meeting the ‘core 24’ service standard | D45: ='Calc - Sparklines'!D45 -> 2015/16 | E45: =IFERROR(IF('Calc - Sparklines'!T45="","",'Calc - Sparklines'!T45),"N/A") -> 0.1016949153 | F45: =E45 -> 0.1016949153 | G45: ='Calc - Sparklines'!X45 -> N/A | H45: ▲ | I45: =IF($N$3=1,"N/A", IF($N$3=2,"National measure only", IF($N$3=3,"National measure only", IF($N$3=4,"National measure only","")))) -> N/A
B46: AC(ii) | C46: A&E and Ward Liaison mental health planned spend | D46: ='Calc - Sparklines'!D46 -> 2017/18 | E46: =IFERROR(IF('Calc - Sparklines'!T46="","",'Calc - Sparklines'!T46),"N/A") -> 143225364.7 | F46: N/A | G46: ='Calc - Sparklines'!X46 -> N/A | H46: N/A | I46: N/A
B47: Health & Justice
B48: HJ(i) | C48: Number of mental health secure transfers within 2 weeks of acceptance under the MHA- Age:18+ # | D48: N/A | E48: N/A | F48: N/A | G48: N/A | H48: N/A | I48: =IF($N$3=1,"N/A", IF($N$3=2,"National measure only", IF($N$3=3,"National measure only", IF($N$3=4,"National measure only","")))) -> N/A
B49: HJ(ii.a) | C49: % of prison population receiving group therapy in secure and detained settings - Age:18+ ~ | D49: ='Calc - Sparklines'!D49 -> Q1-Q2 2017/18 | E49: =IFERROR(IF('Calc - Sparklines'!T49="","",'Calc - Sparklines'!T49),"N/A") -> 0.029 | F49: N/A | G49: ='Calc - Sparklines'!X49 -> N/A | H49: ▲ | I49: =IF($N$3=1,"N/A", IF($N$3=2,"National measure only", IF($N$3=3,"National measure only", IF($N$3=4,"National measure only","")))) -> N/A
B50: HJ(ii.b) | C50: % of mental health patients receiving individual therapy in secure and detained settings - Age:18+ | D50: ='Calc - Sparklines'!D50 -> Q1-Q2 2017/18 | E50: =IFERROR(IF('Calc - Sparklines'!T50="","",'Calc - Sparklines'!T50),"N/A") -> 0.52 | F50: N/A | G50: ='Calc - Sparklines'!X50 ->  | H50: ▲ | I50: =IF($N$3=1,"N/A", IF($N$3=2,"National measure only", IF($N$3=3,"National measure only", IF($N$3=4,"National measure only","")))) -> N/A
B51: HJ(iii) | C51: % of population of England with access to liaison and diversion services - All ages | D51: ='Calc - Sparklines'!D51 -> 2016/17 | E51: =IFERROR(IF('Calc - Sparklines'!T51="","",'Calc - Sparklines'!T51),"N/A") -> 0.68 | F51: =E51 -> 0.68 | G51: ='Calc - Sparklines'!X51 -> N/A | H51: ▲ | I51: =IF($N$3=1,"N/A", IF($N$3=2,"National measure only", IF($N$3=3,"National measure only", IF($N$3=4,"National measure only","")))) -> N/A
B52: Suicide prevention
B53: SP(i) | C53: Suicide: age-standardised death rate per 100,000 population - Age:10+ | D53: ='Calc - Sparklines'!D53 -> 2014-2016 | E53: =IFERROR(IF('Calc - Sparklines'!T53="","",'Calc - Sparklines'!T53),"N/A") -> 9.9 | F53: N/A | G53: ='Calc - Sparklines'!X53 ->  | H53: ▼ | I53: =IF($N$3=1,"Chart available at STP and CCG level", IF($N$3=2,"Chart available at STP and CCG level", IF($N$3=3,"", IF($N$3=4,"","")))) -> Chart available at STP and CCG level
B54: SP(ii.a) | C54: Hospital admissions for self-harm: age standardised rate per 100,000 - Age: 10-24 | D54: ='Calc - Sparklines'!D54 -> Q1-Q2 2017/18 | E54: =IFERROR(IF('Calc - Sparklines'!T54="","",'Calc - Sparklines'!T54),"N/A") -> 207.5978822 | F54: N/A | G54: ='Calc - Sparklines'!X54 ->  | H54: ▼ | I54: =IF($N$3=1,"Chart available at STP and CCG level", IF($N$3=2,"Chart available at STP and CCG level", IF($N$3=3,"", IF($N$3=4,"","")))) -> Chart available at STP and CCG level
B55: SP(ii.b) | C55: Hospital admissions for self-harm: age standardised rate per 100,000 - Age:25+ | D55: ='Calc - Sparklines'!D55 -> Q1-Q2 2017/18 | E55: =IFERROR(IF('Calc - Sparklines'!T55="","",'Calc - Sparklines'!T55),"N/A") -> 80.22507773 | F55: N/A | G55: ='Calc - Sparklines'!X55 ->  | H55: ▼ | I55: =IF($N$3=1,"Chart available at STP and CCG level", IF($N$3=2,"Chart available at STP and CCG level", IF($N$3=3,"", IF($N$3=4,"","")))) -> Chart available at STP and CCG level
B56: SP(iii) | C56: % of patients on Care Programme Approach discharged from hospital and followed up within 7 days | D56: ='Calc - Sparklines'!D56 -> Q1-Q2 2017/18 | E56: =IFERROR(IF('Calc - Sparklines'!T56="","",'Calc - Sparklines'!T56),"N/A") -> 0.9669610929 | F56: N/A | G56: ='Calc - Sparklines'!X56 ->  | H56: ▲ | I56: =IF($N$3=1,"Chart available at STP and CCG level", IF($N$3=2,"Chart available at STP and CCG level", IF($N$3=3,"", IF($N$3=4,"","")))) -> Chart available at STP and CCG level
B57: Meeting commitment to increase mental health funding | D57: ='Calc - Sparklines'!D57 -> 0 | G57: ='Calc - Sparklines'!X57 -> N/A
B58: MHF(i) | C58: Mental health planned spend as a % of overall CCG allocation | D58: ='Calc - Sparklines'!D58 -> 2017/18 | E58: =IFERROR(IF('Calc - Sparklines'!T58="","",'Calc - Sparklines'!T58),"N/A") -> 0.1375446959 | F58: N/A | G58: ='Calc - Sparklines'!X58 -> N/A | H58: N/A | I58: N/A
B59: MHF(ii.a) | C59: Mental health actual spend in 2016/17 ^ | D59: ='Calc - Sparklines'!D59 -> 2016/17 | E59: =IFERROR(IF('Calc - Sparklines'!T59="","",'Calc - Sparklines'!T59),"N/A") -> 9644090802 | F59: N/A | G59: ='Calc - Sparklines'!X59 -> N/A | H59: N/A | I59: N/A
B60: MHF(ii.b) | C60: Mental health planned spend in 2017/18 ^ | D60: ='Calc - Sparklines'!D60 -> 2017/18 | E60: =IFERROR(IF('Calc - Sparklines'!T60="","",'Calc - Sparklines'!T60),"N/A") -> 9907754679 | F60: N/A | G60: ='Calc - Sparklines'!X60 -> N/A | H60: N/A | I60: N/A
B61: MHF(iii) | C61: On track to meet the Mental Health Investment Standard? | D61: ='Calc - Sparklines'!D61 -> 2017/18 | E61: =IFERROR(IF('Calc - Sparklines'!T61="","",'Calc - Sparklines'!T61),"N/A") -> Y | F61: N/A | G61: ='Calc - Sparklines'!X61 -> N/A | H61: N/A | I61: N/A
C64: Meeting commitment to increase mental health funding | D64: £m | E64: % CCG total | F64: MHIS met? | G64: % CCGs meeting MHIS | H64: No. CCGs meeting MHIS
C65: 2015/16 actual CCG spend | D65: 9148.3 | E65: 0.131 | F65: N/A | G65: N/A | H65: N/A
C66: Total 2016/17 actual CCG spend^ | D66: 9722.8 | E66: 0.136 | F66: Y | G66: 0.85 | H66: 177 out of 209
C67: 2017/18 planned CCG spend^ | D67: 9978 | E67: 0.139 | F67: Y | G67: 0.85 | H67: 175 out of 207
C68: Total MH spend 2015/16 (incl. CCG and specialised commissioning spend) | D68: 10978.9
C69: Total MH spend 2016/17 (incl. CCG and specialised commissioning spend) | D69: 11601.9
C70: Total planned MH spend 2017/18 (incl. CCG and specialised commissioning spend) | D70: 11860
B72: ^ | C72: 2017/18 CCG planned spend of £9,978.0m includes known in year recurrent and non-recurrent allocations issued to date. If non-recurrent in year allocations are excluded then the 2017/18 CCG spend figure is £9,907.8m. 2016/17 expenditure of £9,722.8m includes all expenditure against in year recurrent and non-recurrent allocations. If spend against non-recurrent allocations is excluded then the 2016/17 CCG spend figure is £9,644.1m. CCG spend on mental health is planned to rise by 2.6% in 2017/18 - this is compared to an overall allocation increase of 2.1% on 2016/17.
B74: ~ | C74: This indicator and its methodology has been revised since the previous publication. See the metadata tab for further details.
B75: * | C75: The indicators within this dashboard should be interpreted with caution, some data are experimental and improvements or decreases could be due to data quality fluctuations. Please see Metadata tab for further details.
B76: ⱡ | C76: Scrutiny of data on the number of CYP aged 0-18 receiving treatment by NHS commissioned services has highlighted anomalies (most notably significant under-reporting of CYP). This data does not therefore give an accurate representation of the national picture. NHS England continues to work with national and local partners to improve the quality of all mental health data, and we expect to be able to publish this indicator in future. To see the Q1 data file from NHS Digital please follow the link below. Title: 'Children and Young People mental health indicators (Q1 2017-18)'. Date 30th October 2017
C77: NHS Digital supplementary information files: Children and young people mental health indicators
B78: ** | C78: Statistics for the number of people under the age of 18 being treated on adult wards have not yet been published by NHS Digital for Q2, so data here is limited to Q1, and trends are based on quarterly data. These statistics represent a small number of people, as such data quality issues in particular providers submissions can have a large impact. While the impact of these data issues are being understood Q2 statistics have been removed from this report.
B79: *** | C79: This figure uses first visits for the period of April to September 2017 to estimate an annualised access rate.
B80: **** | C80: Trendlines for 6 month reporting periods are shown from the start of 2016/17. Where fewer than three time periods are available trendlines are not shown.
B81: *^* | C81: Not all indicators presented with spine charts have been standardised, so interpretation needs to be undertaken with caution. Please use the trend lines to add context.
B82: # | C82: This indicator has been excluded while an issue with the completeness of the data is investigated.
B84: Note: This dashboard covers April to September 2017. Counts, rates and percentages are calculated using data for the six month period.
B86: Mergers
B87: 00W NHS Central Manchester CCG, 01M NHS North Manchester CCG and 01N NHS South Manchester merged to form 14L NHS Manchester CCG on 01/04/2017. Historic data has been merged for use in trendlines.
B88: 01H NHS Cumbria CCG and 01K NHS Lancashire North CCG reapportioned to form 01H NHS North Cumbria CCG and 01K Morecambe Bay CCG on 01/04/2017. Trendlines should be viewed with caution as data prior to 01/04/2017 represents a slightly different geographical footprint.

Sheet Future Indicators
B8: Code | C8: Indicator name | D8: Description *
B9: Perinatal Mental Health
B10: PMH(i) | C10: Additional number of women receiving specialist perinatal care compared to baseline | D10: Total number of women receiving specialist perinatal care
B11: Children and Young people (CYP) Mental Health
B12: CYP(vii) | C12: Child and Adolescent Mental Health Services tier 4 spend (£) | D12: Child and Adolescent Mental Health Services tier 4
B13: Crisis and acute care and use of the Mental Health Act (MHA)
B14: CR(iii) | C14: Total number and costs of inappropriate out of area placements | D14: This indicator is a placeholder at present and we plan to include in future version of the dashboard as data quality improves.

Sheet Briefing tables (hidden)
B8: Code | C8: Indicator - Please see the Metadata tab for further details on the indicators | D8: Q1 2016/17 | E8: Q2 2016/17 | F8: Q3 2016/17 | G8: Q4 2016/17 | H8: Q1 2017/18 | I8: Change * | K8: Min | L8: Max | M8: Better is…
B9: Children and Young people (CYP) Mental Health
B10: CYP(i.c) | C10: Number of new CYP aged 0-18 receiving treatment from NHS funded community services ⱡ | D10: - | E10: 17902 | F10: 21921 | G10: 24825 | H10: 23924 | I10: =IF(H10>G10,"▲", IF(H10<G10,"▼","◄►")) -> ▼ | K10: =MIN(Data_Latest_CYP_i) -> 10 | L10: =MAX(Data_Latest_CYP_i) -> 1045 | M10: ▲
B11: CYP(ii.a) | C11: % of CYP with eating disorders seen within 1 week (urgent) | D11: 0.6485355649 | E11: 0.5796460177 | F11: 0.6721854305 | G11: 0.686746988 | H11: 0.7330960854 | I11: ▲ | K11: =MIN(Data_Latest_CYP_ii_a) ->  | L11: =MAX(Data_Latest_CYP_ii_a) ->  | M11: ▲
B12: CYP(ii.b) | C12: % of CYP with eating disorders seen within 4 weeks (routine) | D12: 0.6513661202 | E12: 0.6748140276 | F12: 0.7896081772 | G12: 0.7886382623 | H12: 0.7874538745 | I12: ▼ | K12: =MIN(Data_Latest_CYP_ii_b) ->  | L12: =MAX(Data_Latest_CYP_ii_b) ->  | M12: ▲
B13: CYP(iii.a) | C13: Number of bed days for CYP under 18 in CAMHS tier 4 wards | D13: 92380 | E13: 95378 | F13: 102567 | G13: 103421 | H13: 91791 | I13: ▼ | K13: =MIN(Data_Latest_CYP_iii_a) -> 12 | L13: =MAX(Data_Latest_CYP_iii_a) -> 5081 | M13: ▼
B14: CYP(iii.b) | C14: Number of admissions of CYP under 18 in CAMHS tier 4 wards | D14: 4117 | E14: 2967 | F14: 2434 | G14: 1348 | H14: 2612 | I14: ▲ | K14: =MIN(Data_Latest_CYP_iii_b) -> 5 | L14: =MAX(Data_Latest_CYP_iii_b) -> 44 | M14: ▼
B15: CYP(iv.a) | C15: Bed days of CYP under 18 in adult in-patient wards | D15: 1938 | E15: 2654 | F15: 2700 | G15: 321 | H15: 428 | I15: ▲ | K15: =MIN(Data_Latest_CYP_iv_a) -> 5 | L15: =MAX(Data_Latest_CYP_iv_a) -> 65 | M15: ▼
B16: CYP(iv.b) | C16: Number of CYP under 18 in adult in-patient wards | D16: 79 | E16: 90 | F16: 83 | G16: 42 | H16: 57 | I16: ▲ | K16: =MIN(Data_Latest_CYP_iv_b) -> 5 | L16: =MAX(Data_Latest_CYP_iv_b) -> 5 | M16: ▼
B17: Adult mental health: common mental health problems
B18: IAPT(i.a) | C18: IAPT access to treatment rate | D18: 0.04004039662 | E18: 0.03752950236 | F18: 0.03806242492 | G18: 0.04120502699 | H18: 0.04030370169 | I18: =IF(H18>G18,"▲", IF(H18<G18,"▼","◄►")) -> ▼ | K18: =MIN(Data_Latest_IAPT_i_a) -> 0.07782395164 | L18: =MAX(Data_Latest_IAPT_i_a) -> 0.2908192359 | M18: ▲
B19: IAPT(i.b) | C19: IAPT % of all referrals that are for older people 65+ | D19: 0.07051405173 | E19: 0.0758319296 | F19: 0.06790641312 | G19: 0.06844675613 | H19: 0.06786990036 | I19: ▼ | K19: =MIN(Data_Latest_IAPT_i_b) -> 0.0170212766 | L19: =MAX(Data_Latest_IAPT_i_b) -> 0.2004219409 | M19: ▲
B20: IAPT(ii.a) | C20: IAPT recovery rate: % of people that attended at least 2 treatment contacts and are moving to recovery | D20: 0.489 | E20: 0.485 | F20: 0.488 | G20: 0.51 | H20: 0.506 | I20: ▼ | K20: =MIN(Data_Latest_IAPT_ii_a) -> 0.321969697 | L20: =MAX(Data_Latest_IAPT_ii_a) -> 0.6734693878 | M20: ▲
B21: IAPT(ii.b) | C21: IAPT recovery rate for black or minority ethnic (BME) groups | D21: 0.451 | E21: 0.45 | F21: 0.457 | G21: 0.47 | H21: 0.468 | I21: ▼ | K21: =MIN(Data_Latest_IAPT_ii_b) -> 0 | L21: =MAX(Data_Latest_IAPT_ii_b) -> 0.8333333333 | M21: ▲
B22: IAPT(iii.a) | C22: IAPT: % of people receiving first treatment appointment within 6 weeks of referral | D22: 0.8456414993 | E22: 0.8672008928 | F22: 0.8864402442 | G22: 0.8964721093 | H22: 0.892 | I22: ▼ | K22: =MIN(Data_Latest_IAPT_iii_a) -> 0.5988372093 | L22: =MAX(Data_Latest_IAPT_iii_a) -> 1 | M22: ▲
B23: IAPT(iii.b) | C23: IAPT: % of people receiving first treatment appointment within 18 weeks of referral | D23: 0.9726217678 | E23: 0.9800135797 | F23: 0.983957884 | G23: 1 | H23: 0.99 | I23: ▼ | K23: =MIN(Data_Latest_IAPT_iii_b) -> 0.8333333333 | L23: =MAX(Data_Latest_IAPT_iii_b) -> 1 | M23: ▲
B24: Early intervention in psychosis (EIP)
B25: EIP(i) | C25: % of people who started treatment within 2 weeks of referral - All ages | D25: 0.6867061812 | E25: 0.7619843924 | F25: 0.7625737567 | G25: 0.7659084365 | H25: 0.7619793298 | I25: =IF(H25>G25,"▲", IF(H25<G25,"▼","◄►")) -> ▼ | K25: =MIN(Data_Latest_EIP_i) -> 0.2156862745 | L25: =MAX(Data_Latest_EIP_i) -> 1 | M25: ▲
B26: Suicide prevention
B27: SP(ii.a) | C27: Hospital admissions for self-harm: age standardised rate per 100,000 - Age: 10-24 | D27: 107.5188639 | E27: 89.94124719 | F27: 89.30476313 | G27: 105.7517192 | H27: 112.4575234 | I27: =IF(H27>G27,"▲", IF(H27<G27,"▼","◄►")) -> ▲ | K27: =MIN(Data_Latest_SP_ii_a) -> 55.70453072 | L27: =MAX(Data_Latest_SP_ii_a) -> 554.1049474 | M27: ▼
B28: SP(ii.b) | C28: Hospital admissions for self-harm: age standardised rate per 100,000 - Age:25+ | D28: 41.02023713 | E28: 39.91281021 | F28: 35.21954812 | G28: 34.45998154 | H28: 39.87991401 | I28: ▲ | K28: =MIN(Data_Latest_SP_ii_b) -> 15.66874143 | L28: =MAX(Data_Latest_SP_ii_b) -> 212.4276484 | M28: ▼
B29: SP(iii) | C29: % of patients on CPA discharged from hospital and followed up within 7 days | D29: 0.9620300056 | E29: 0.9679459887 | F29: 0.9676164977 | G29: 0.9684847004 | H29: 0.9665282189 | I29: ▼ | K29: =MIN(Data_Latest_SP_iii) -> 0.8775510204 | L29: =MAX(Data_Latest_SP_iii) -> 1 | M29: ▲
B30: Crisis and acute care and use of the mental health act (MHA)
B31: CR(iii.a) | C31: Total number of bed nights for Out of Area Placements (OAPs) | D31: - | E31: - | F31: - | G31: - | H31: 67550 | K31: =MIN(Data_Latest_CR_iii_a) ->  | L31: =MAX(Data_Latest_CR_iii_a) ->  | M31: ▼
B32: CR(iii.b) | C32: Total number of Out of Area Placements (OAPs) | D32: - | E32: - | F32: - | G32: - | H32: 833 | K32: =MIN(Data_Latest_CR_iii_b) ->  | L32: =MAX(Data_Latest_CR_iii_b) ->  | M32: ▼
B33: CR(iii.c) | C33: Total costs for Out of Area Placements (OAPs - external placements only) | D33: - | E33: - | F33: - | G33: - | H33: 25163100 | K33: =MIN(Data_Latest_CR_iii_c) ->  | L33: =MAX(Data_Latest_CR_iii_c) ->  | M33: ▼
B34: CR(iv.a) | C34: Number of detentions under the Mental Health Act | D34: - | E34: - | F34: - | G34: - | H34: 45864 | K34: =MIN(Data_Latest_CR_iv_a) ->  | L34: =MAX(Data_Latest_CR_iv_a) ->  | M34: ▼
B35: CR(iv.b) | C35: % of people detained under the MHA who are BME | D35: - | E35: - | F35: - | G35: - | H35: 0.3 | K35: =MIN(Data_Latest_CR_iv_b) ->  | L35: =MAX(Data_Latest_CR_iv_b) ->  | M35: N/A
B36: Health & Justice
B37: HJ(i) | C37: Number of mental health secure transfers within 2 weeks of acceptance under the MHA- Age:18+ | D37: 90 | E37: 89 | F37: 108 | G37: 83 | H37: 73 | I37: =IF(H37>G37,"▲", IF(H37<G37,"▼","◄►")) -> ▼ | K37: =MIN(Data_Latest_HJ_i) ->  | L37: =MAX(Data_Latest_HJ_i) ->  | M37: N/A
B38: HJ(ii.a) | C38: % of mental health patients receiving group therapy in secure and detained settings - Age:18+ | H38: 0.03176944615 | I38: ▲ | K38: =MIN(Data_Latest_HJ_ii_a) ->  | L38: =MAX(Data_Latest_HJ_ii_a) ->  | M38: ▲
B39: HJ(ii.b) | C39: % of mental patients receiving individual therapy in secure and detained settings - Age:18+ | D39: 0.3186717157 | E39: 0.3521471192 | F39: 0.363717605 | G39: 0.400315831 | H39: 0.7617757782 | I39: ▲ | K39: =MIN(Data_Latest_HJ_ii_b) ->  | L39: =MAX(Data_Latest_HJ_ii_b) ->  | M39: ▲
B41: Acute hospital (UEC) liaison | D41: 2015/16
B42: AC(i) | C42: % of acute hospitals meeting the ‘core 24’ service standard (criteria a, b and c below) | D42: 0.1016949153 | K42: =MIN(Data_Latest_AC_i) ->  | L42: =MAX(Data_Latest_AC_i) ->  | M42: ▲
B44: Crisis and acute care and use of the mental health act (MHA) | D44: 2016/17
B45: CR(i) | C45: % of CRHT services in the STP area able to meet selected core functions | D45: 0.2368421053 | K45: =MIN(Data_Latest_CR_i) ->  | L45: =MAX(Data_Latest_CR_i) ->  | M45: ▲
B47: Health & Justice | D47: 2015/16 | E47: 2016/17
B48: HJ(iii) | C48: % of population with access to liaison and diversion services - All ages | D48: 0.22 | E48: 0.68 | I48: =IF(E48>D48,"▲", IF(E48<D48,"▼","◄►")) -> ▲ | K48: =MIN(Data_Latest_HJ_iii) ->  | L48: =MAX(Data_Latest_HJ_iii) ->  | M48: ▲
B50: Crisis and acute care and use of the mental health act (MHA) | D50: 2013/14 | E50: 2014/15 | F50: 2015/16 | G50: 2016/17
B51: CR(v.a) | C51: Number of section 136 detentions taken to police cells as a place of safety | D51: - | E51: 3996 | F51: 1764 | G51: 898 | I51: =IF(F51>E51,"▲", IF(F51<E51,"▼","◄►")) -> ▼ | K51: =MIN(Data_Latest_CR_v_a) ->  | L51: =MAX(Data_Latest_CR_v_a) ->  | M51: ▼
B52: CR(v.b) | C52: Number of these that are under 18 | D52: 236 | E52: 145 | F52: 35 | G52: 20 | I52: =IF(F52>E52,"▲", IF(F52<E52,"▼","◄►")) -> ▼ | K52: =MIN(Data_Latest_CR_v_b) ->  | L52: =MAX(Data_Latest_CR_v_b) ->  | M52: ▼
B54: Meeting commitment to increase mental health funding | D54: 2015/16 | E54: 2016/17 | F54: 2017/18
B55: MHF(i) | C55: Mental health planned spend as a % of overall CCG allocation | D55: 0.1252598265 | E55: 0.1266054465 | F55: 0.136953073 | I55: =IF(F55>E55,"▲", IF(F55<E55,"▼","◄►")) -> ▲ | K55: =MIN(Data_Latest_MHF_i) -> 0.07806718168 | L55: =MAX(Data_Latest_MHF_i) -> 0.2178892409 | M55: N/A
B56: MHF(ii.a) | C56: Mental health forecast outturn (£k) | D56: 9148313.818 | E56: 9722830.54 | F56: 9921159.67 | I56: =IF(F56>E56,"▲", IF(F56<E56,"▼","◄►")) -> ▲ | K56: =MIN(Data_Latest_MHF_ii) ->  | L56: =MAX(Data_Latest_MHF_ii) ->  | M56: N/A
B57: MHF(ii.b) | C57: Mental health planned spend (£k) | D57: - | E57: 9722830.54 | F57: 9907754.679 | I57: =IF(F57>E57,"▲", IF(F57<E57,"▼","◄►")) -> ▲ | K57: =MIN(Data_Latest_MHF_ii_b) -> 11365000 | L57: =MAX(Data_Latest_MHF_ii_b) -> 198425004.3 | M57: N/A
B58: MHF(iii) | C58: Mental Health Investment Standard achieved? | D58: - | E58: Y | F58: Y | M58: N/A
B59: MHF(iv) | C59: Mental Health Spec Comm planned spend (£k) | D59: - | E59: - | F59: - | K59: =MIN(Data_Latest_MHF_iv) ->  | L59: =MAX(Data_Latest_MHF_iv) ->  | M59: N/A
B61: Suicide prevention | D61: 2011-2013 | E61: 2012-2014 | F61: 2013-2015
B62: SP(i) | C62: Suicide: age-standardised death rate per 100,000 population - Age:10+ | D62: 9.8 | E62: 10 | F62: 10.1 | I62: =IF(F62>E62,"▲", IF(F62<E62,"▼","◄►")) -> ▲ | K62: =MIN(Data_Latest_SP_i) -> 5 | L62: =MAX(Data_Latest_SP_i) -> 17.5 | M62: ▼

Sheet Calc - Sparklines (hidden)
A1: Selected CCG | C1: =Selected_Org_Name -> England
A2: Selected Org Code | C2: =Selected_Org_Code -> EN | E2: =IFERROR(IF(ISNUMBER( INDEX(INDIRECT(#REF!), MATCH('Calc - Sparklines'!$C$1,INDIRECT(#REF!),0), MATCH('Calc - Sparklines'!#REF!,INDIRECT(#REF!),0)-11))=FALSE,NA(), INDEX(INDIRECT(#REF!), MATCH('Calc - Sparklines'!$C$1,INDIRECT(#REF!),0), MATCH('Calc - Sparklines'!#REF!,INDIRECT(#REF!),0)-11)),NA()) ->  | F2: =ISNUMBER(#REF!) -> FALSE | G2: =ISNUMBER(#REF!) -> FALSE | H2: =ISNUMBER(#REF!) -> FALSE | I2: =ISNUMBER(#REF!) -> FALSE | J2: =ISNUMBER(#REF!) -> FALSE | K2: =ISNUMBER(#REF!) -> FALSE | L2: =ISNUMBER(#REF!) -> FALSE | M2: =ISNUMBER(#REF!) -> FALSE | N2: =ISNUMBER(#REF!) -> FALSE | O2: =ISNUMBER(#REF!) -> FALSE
E3: 11 | F3: 10 | G3: 9 | H3: 8 | I3: 7 | J3: 6 | K3: 5 | L3: 4 | M3: 3 | N3: 2 | O3: 1 | P3: 0
Q6: p | R6: p
C10: Indicator | D10: Latest Period | E10: Period 1 | F10: Period 2 | G10: Period 3 | H10: Period 4 | I10: Period 5 | J10: Period 6 | K10: Period 7 | L10: Period 8 | M10: Period 9 | N10: Period 10 | O10: Period 11 | P10: Period 12 | R10: Available data points | S10: Periods out of date | T10: Latest value | U10: Previous Value | V10: Change | W10: Sparkline Named range | X10: Include sparkline? | Z10: Data Range | AA10: Organisation Range | AB10: Period Range
A11: Perinatal Mental Health | B11: Perinatal Mental Health | D11: =#REF! ->  | E11: =IFERROR(IF(ISNUMBER( INDEX(INDIRECT($Z11), MATCH('Calc - Sparklines'!$C$1,INDIRECT($AA11),0), MATCH('Calc - Sparklines'!$D11,INDIRECT($AB11),0)-E$3))=FALSE,NA(), INDEX(INDIRECT($Z11), MATCH('Calc - Sparklines'!$C$1,INDIRECT($AA11),0), MATCH('Calc - Sparklines'!$D11,INDIRECT($AB11),0)-E$3)),NA()) ->  | F11: =IFERROR(IF(ISNUMBER( INDEX(INDIRECT($Z11), MATCH('Calc - Sparklines'!$C$1,INDIRECT($AA11),0), MATCH('Calc - Sparklines'!$D11,INDIRECT($AB11),0)-F$3))=FALSE,NA(), INDEX(INDIRECT($Z11), MATCH('Calc - Sparklines'!$C$1,INDIRECT($AA11),0), MATCH('Calc - Sparklines'!$D11,INDIRECT($AB11),0)-F$3)),NA()) ->  | G11: =IFERROR(IF(ISNUMBER( INDEX(INDIRECT($Z11), MATCH('Calc - Sparklines'!$C$1,INDIRECT($AA11),0), MATCH('Calc - Sparklines'!$D11,INDIRECT($AB11),0)-G$3))=FALSE,NA(), INDEX(INDIRECT($Z11), MATCH('Calc - Sparklines'!$C$1,INDIRECT($AA11),0), MATCH('Calc - Sparklines'!$D11,INDIRECT($AB11),0)-G$3)),NA()) ->  | H11: =IFERROR(IF(ISNUMBER( INDEX(INDIRECT($Z11), MATCH('Calc - Sparklines'!$C$1,INDIRECT($AA11),0), MATCH('Calc - Sparklines'!$D11,INDIRECT($AB11),0)-H$3))=FALSE,NA(), INDEX(INDIRECT($Z11), MATCH('Calc - Sparklines'!$C$1,INDIRECT($AA11),0), MATCH('Calc - Sparklines'!$D11,INDIRECT($AB11),0)-H$3)),NA()) ->  | I11: =IFERROR(IF(ISNUMBER( INDEX(INDIRECT($Z11), MATCH('Calc - Sparklines'!$C$1,INDIRECT($AA11),0), MATCH('Calc - Sparklines'!$D11,INDIRECT($AB11),0)-I$3))=FALSE,NA(), INDEX(INDIRECT($Z11), MATCH('Calc - Sparklines'!$C$1,INDIRECT($AA11),0), MATCH('Calc - Sparklines'!$D11,INDIRECT($AB11),0)-I$3)),NA()) ->  | J11: =IFERROR(IF(ISNUMBER( INDEX(INDIRECT($Z11), MATCH('Calc - Sparklines'!$C$1,INDIRECT($AA11),0), MATCH('Calc - Sparklines'!$D11,INDIRECT($AB11),0)-J$3))=FALSE,NA(), INDEX(INDIRECT($Z11), MATCH('Calc - Sparklines'!$C$1,INDIRECT($AA11),0), MATCH('Calc - Sparklines'!$D11,INDIRECT($AB11),0)-J$3)),NA()) ->  | K11: =IFERROR(IF(ISNUMBER( INDEX(INDIRECT($Z11), MATCH('Calc - Sparklines'!$C$1,INDIRECT($AA11),0), MATCH('Calc - Sparklines'!$D11,INDIRECT($AB11),0)-K$3))=FALSE,NA(), INDEX(INDIRECT($Z11), MATCH('Calc - Sparklines'!$C$1,INDIRECT($AA11),0), MATCH('Calc - Sparklines'!$D11,INDIRECT($AB11),0)-K$3)),NA()) ->  | L11: =IFERROR(IF(ISNUMBER( INDEX(INDIRECT($Z11), MATCH('Calc - Sparklines'!$C$1,INDIRECT($AA11),0), MATCH('Calc - Sparklines'!$D11,INDIRECT($AB11),0)-L$3))=FALSE,NA(), INDEX(INDIRECT($Z11), MATCH('Calc - Sparklines'!$C$1,INDIRECT($AA11),0), MATCH('Calc - Sparklines'!$D11,INDIRECT($AB11),0)-L$3)),NA()) ->  | M11: =IFERROR(IF(ISNUMBER( INDEX(INDIRECT($Z11), MATCH('Calc - Sparklines'!$C$1,INDIRECT($AA11),0), MATCH('Calc - Sparklines'!$D11,INDIRECT($AB11),0)-M$3))=FALSE,NA(), INDEX(INDIRECT($Z11), MATCH('Calc - Sparklines'!$C$1,INDIRECT($AA11),0), MATCH('Calc - Sparklines'!$D11,INDIRECT($AB11),0)-M$3)),NA()) ->  | N11: =IFERROR(IF(ISNUMBER( INDEX(INDIRECT($Z11), MATCH('Calc - Sparklines'!$C$1,INDIRECT($AA11),0), MATCH('Calc - Sparklines'!$D11,INDIRECT($AB11),0)-N$3))=FALSE,NA(), INDEX(INDIRECT($Z11), MATCH('Calc - Sparklines'!$C$1,INDIRECT($AA11),0), MATCH('Calc - Sparklines'!$D11,INDIRECT($AB11),0)-N$3)),NA()) ->  | O11: =IFERROR(IF(ISNUMBER( INDEX(INDIRECT($Z11), MATCH('Calc - Sparklines'!$C$1,INDIRECT($AA11),0), MATCH('Calc - Sparklines'!$D11,INDIRECT($AB11),0)-O$3))=FALSE,NA(), INDEX(INDIRECT($Z11), MATCH('Calc - Sparklines'!$C$1,INDIRECT($AA11),0), MATCH('Calc - Sparklines'!$D11,INDIRECT($AB11),0)-O$3)),NA()) ->  | P11: =IFERROR(IF(ISNUMBER( INDEX(INDIRECT($Z11), MATCH('Calc - Sparklines'!$C$1,INDIRECT($AA11),0), MATCH('Calc - Sparklines'!$D11,INDIRECT($AB11),0)-P$3))=FALSE,NA(), INDEX(INDIRECT($Z11), MATCH('Calc - Sparklines'!$C$1,INDIRECT($AA11),0), MATCH('Calc - Sparklines'!$D11,INDIRECT($AB11),0)-P$3)),NA()) ->  | R11: =IF(COUNTA(E11:P11)-COUNTIF(E11:P11,"#N/A")<3, 0, COUNTA(E11:P11)-COUNTIF(E11:P11,"#N/A")) -> 0 | S11: =IF(P11="N/A",IF(O11="N/A",2,1),0) ->  | T11: =OFFSET(P11,,-S11) ->  | U11: =IF(ISERROR(O11),IF(ISERROR(N11),IF(ISERROR(M11),IF(ISERROR(L11),IF(ISERROR(K11),IF(ISERROR(J11),IF(ISERROR(I11),IF(ISERROR(H11),IF(ISERROR(G11),IF(ISERROR(F11),IF(ISERROR(E11), NA(), E11),F11),G11),H11),I11),J11),K11),L11),M11),N11),O11) ->  | V11: =IF(D11="","",IFERROR(IF(T11>U11,"▲", IF(T11<U11,"▼","◄►")),"N/A")) ->  | X11: =IF(R11<=2,"N/A","") -> N/A | AD11: Heading
B12: PMH(i) | C12: Additional number of women receiving specialist perinatal care compared to baseline | E12: =IFERROR(IF(ISNUMBER( INDEX(INDIRECT($Z12), MATCH('Calc - Sparklines'!$C$1,INDIRECT($AA12),0), MATCH('Calc - Sparklines'!$D12,INDIRECT($AB12),0)-E$3))=FALSE,NA(), INDEX(INDIRECT($Z12), MATCH('Calc - Sparklines'!$C$1,INDIRECT($AA12),0), MATCH('Calc - Sparklines'!$D12,INDIRECT($AB12),0)-E$3)),NA()) ->  | F12: =IFERROR(IF(ISNUMBER( INDEX(INDIRECT($Z12), MATCH('Calc - Sparklines'!$C$1,INDIRECT($AA12),0), MATCH('Calc - Sparklines'!$D12,INDIRECT($AB12),0)-F$3))=FALSE,NA(), INDEX(INDIRECT($Z12), MATCH('Calc - Sparklines'!$C$1,INDIRECT($AA12),0), MATCH('Calc - Sparklines'!$D12,INDIRECT($AB12),0)-F$3)),NA()) ->  | G12: =IFERROR(IF(ISNUMBER( INDEX(INDIRECT($Z12), MATCH('Calc - Sparklines'!$C$1,INDIRECT($AA12),0), MATCH('Calc - Sparklines'!$D12,INDIRECT($AB12),0)-G$3))=FALSE,NA(), INDEX(INDIRECT($Z12), MATCH('Calc - Sparklines'!$C$1,INDIRECT($AA12),0), MATCH('Calc - Sparklines'!$D12,INDIRECT($AB12),0)-G$3)),NA()) ->  | H12: =IFERROR(IF(ISNUMBER( INDEX(INDIRECT($Z12), MATCH('Calc - Sparklines'!$C$1,INDIRECT($AA12),0), MATCH('Calc - Sparklines'!$D12,INDIRECT($AB12),0)-H$3))=FALSE,NA(), INDEX(INDIRECT($Z12), MATCH('Calc - Sparklines'!$C$1,INDIRECT($AA12),0), MATCH('Calc - Sparklines'!$D12,INDIRECT($AB12),0)-H$3)),NA()) ->  | I12: =IFERROR(IF(ISNUMBER( INDEX(INDIRECT($Z12), MATCH('Calc - Sparklines'!$C$1,INDIRECT($AA12),0), MATCH('Calc - Sparklines'!$D12,INDIRECT($AB12),0)-I$3))=FALSE,NA(), INDEX(INDIRECT($Z12), MATCH('Calc - Sparklines'!$C$1,INDIRECT($AA12),0), MATCH('Calc - Sparklines'!$D12,INDIRECT($AB12),0)-I$3)),NA()) ->  | J12: =IFERROR(IF(ISNUMBER( INDEX(INDIRECT($Z12), MATCH('Calc - Sparklines'!$C$1,INDIRECT($AA12),0), MATCH('Calc - Sparklines'!$D12,INDIRECT($AB12),0)-J$3))=FALSE,NA(), INDEX(INDIRECT($Z12), MATCH('Calc - Sparklines'!$C$1,INDIRECT($AA12),0), MATCH('Calc - Sparklines'!$D12,INDIRECT($AB12),0)-J$3)),NA()) ->  | K12: =IFERROR(IF(ISNUMBER( INDEX(INDIRECT($Z12), MATCH('Calc - Sparklines'!$C$1,INDIRECT($AA12),0), MATCH('Calc - Sparklines'!$D12,INDIRECT($AB12),0)-K$3))=FALSE,NA(), INDEX(INDIRECT($Z12), MATCH('Calc - Sparklines'!$C$1,INDIRECT($AA12),0), MATCH('Calc - Sparklines'!$D12,INDIRECT($AB12),0)-K$3)),NA()) ->  | L12: =IFERROR(IF(ISNUMBER( INDEX(INDIRECT($Z12), MATCH('Calc - Sparklines'!$C$1,INDIRECT($AA12),0), MATCH('Calc - Sparklines'!$D12,INDIRECT($AB12),0)-L$3))=FALSE,NA(), INDEX(INDIRECT($Z12), MATCH('Calc - Sparklines'!$C$1,INDIRECT($AA12),0), MATCH('Calc - Sparklines'!$D12,INDIRECT($AB12),0)-L$3)),NA()) ->  | M12: =IFERROR(IF(ISNUMBER( INDEX(INDIRECT($Z12), MATCH('Calc - Sparklines'!$C$1,INDIRECT($AA12),0), MATCH('Calc - Sparklines'!$D12,INDIRECT($AB12),0)-M$3))=FALSE,NA(), INDEX(INDIRECT($Z12), MATCH('Calc - Sparklines'!$C$1,INDIRECT($AA12),0), MATCH('Calc - Sparklines'!$D12,INDIRECT($AB12),0)-M$3)),NA()) ->  | N12: =IFERROR(IF(ISNUMBER( INDEX(INDIRECT($Z12), MATCH('Calc - Sparklines'!$C$1,INDIRECT($AA12),0), MATCH('Calc - Sparklines'!$D12,INDIRECT($AB12),0)-N$3))=FALSE,NA(), INDEX(INDIRECT($Z12), MATCH('Calc - Sparklines'!$C$1,INDIRECT($AA12),0), MATCH('Calc - Sparklines'!$D12,INDIRECT($AB12),0)-N$3)),NA()) ->  | O12: =IFERROR(IF(ISNUMBER( INDEX(INDIRECT($Z12), MATCH('Calc - Sparklines'!$C$1,INDIRECT($AA12),0), MATCH('Calc - Sparklines'!$D12,INDIRECT($AB12),0)-O$3))=FALSE,NA(), INDEX(INDIRECT($Z12), MATCH('Calc - Sparklines'!$C$1,INDIRECT($AA12),0), MATCH('Calc - Sparklines'!$D12,INDIRECT($AB12),0)-O$3)),NA()) ->  | P12: =IFERROR(IF(ISNUMBER( INDEX(INDIRECT($Z12), MATCH('Calc - Sparklines'!$C$1,INDIRECT($AA12),0), MATCH('Calc - Sparklines'!$D12,INDIRECT($AB12),0)-P$3))=FALSE,NA(), INDEX(INDIRECT($Z12), MATCH('Calc - Sparklines'!$C$1,INDIRECT($AA12),0), MATCH('Calc - Sparklines'!$D12,INDIRECT($AB12),0)-P$3)),NA()) ->  | R12: 0 | W12: Sparkline01 | X12: =IF(R12<=2,"N/A","") -> N/A | AD12: Placeholder | AE12: Placeholder
A13: Children and Young people Mental Health | B13: Children and Young people Mental Health | E13: =IFERROR(IF(ISNUMBER( INDEX(INDIRECT($Z13), MATCH('Calc - Sparklines'!$C$1,INDIRECT($AA13),0), MATCH('Calc - Sparklines'!$D13,INDIRECT($AB13),0)-E$3))=FALSE,NA(), INDEX(INDIRECT($Z13), MATCH('Calc - Sparklines'!$C$1,INDIRECT($AA13),0), MATCH('Calc - Sparklines'!$D13,INDIRECT($AB13),0)-E$3)),NA()) ->  | F13: =IFERROR(IF(ISNUMBER( INDEX(INDIRECT($Z13), MATCH('Calc - Sparklines'!$C$1,INDIRECT($AA13),0), MATCH('Calc - Sparklines'!$D13,INDIRECT($AB13),0)-F$3))=FALSE,NA(), INDEX(INDIRECT($Z13), MATCH('Calc - Sparklines'!$C$1,INDIRECT($AA13),0), MATCH('Calc - Sparklines'!$D13,INDIRECT($AB13),0)-F$3)),NA()) ->  | G13: =IFERROR(IF(ISNUMBER( INDEX(INDIRECT($Z13), MATCH('Calc - Sparklines'!$C$1,INDIRECT($AA13),0), MATCH('Calc - Sparklines'!$D13,INDIRECT($AB13),0)-G$3))=FALSE,NA(), INDEX(INDIRECT($Z13), MATCH('Calc - Sparklines'!$C$1,INDIRECT($AA13),0), MATCH('Calc - Sparklines'!$D13,INDIRECT($AB13),0)-G$3)),NA()) ->  | H13: =IFERROR(IF(ISNUMBER( INDEX(INDIRECT($Z13), MATCH('Calc - Sparklines'!$C$1,INDIRECT($AA13),0), MATCH('Calc - Sparklines'!$D13,INDIRECT($AB13),0)-H$3))=FALSE,NA(), INDEX(INDIRECT($Z13), MATCH('Calc - Sparklines'!$C$1,INDIRECT($AA13),0), MATCH('Calc - Sparklines'!$D13,INDIRECT($AB13),0)-H$3)),NA()) ->  | I13: =IFERROR(IF(ISNUMBER( INDEX(INDIRECT($Z13), MATCH('Calc - Sparklines'!$C$1,INDIRECT($AA13),0), MATCH('Calc - Sparklines'!$D13,INDIRECT($AB13),0)-I$3))=FALSE,NA(), INDEX(INDIRECT($Z13), MATCH('Calc - Sparklines'!$C$1,INDIRECT($AA13),0), MATCH('Calc - Sparklines'!$D13,INDIRECT($AB13),0)-I$3)),NA()) ->  | J13: =IFERROR(IF(ISNUMBER( INDEX(INDIRECT($Z13), MATCH('Calc - Sparklines'!$C$1,INDIRECT($AA13),0), MATCH('Calc - Sparklines'!$D13,INDIRECT($AB13),0)-J$3))=FALSE,NA(), INDEX(INDIRECT($Z13), MATCH('Calc - Sparklines'!$C$1,INDIRECT($AA13),0), MATCH('Calc - Sparklines'!$D13,INDIRECT($AB13),0)-J$3)),NA()) ->  | K13: =IFERROR(IF(ISNUMBER( INDEX(INDIRECT($Z13), MATCH('Calc - Sparklines'!$C$1,INDIRECT($AA13),0), MATCH('Calc - Sparklines'!$D13,INDIRECT($AB13),0)-K$3))=FALSE,NA(), INDEX(INDIRECT($Z13), MATCH('Calc - Sparklines'!$C$1,INDIRECT($AA13),0), MATCH('Calc - Sparklines'!$D13,INDIRECT($AB13),0)-K$3)),NA()) ->  | L13: =IFERROR(IF(ISNUMBER( INDEX(INDIRECT($Z13), MATCH('Calc - Sparklines'!$C$1,INDIRECT($AA13),0), MATCH('Calc - Sparklines'!$D13,INDIRECT($AB13),0)-L$3))=FALSE,NA(), INDEX(INDIRECT($Z13), MATCH('Calc - Sparklines'!$C$1,INDIRECT($AA13),0), MATCH('Calc - Sparklines'!$D13,INDIRECT($AB13),0)-L$3)),NA()) ->  | M13: =IFERROR(IF(ISNUMBER( INDEX(INDIRECT($Z13), MATCH('Calc - Sparklines'!$C$1,INDIRECT($AA13),0), MATCH('Calc - Sparklines'!$D13,INDIRECT($AB13),0)-M$3))=FALSE,NA(), INDEX(INDIRECT($Z13), MATCH('Calc - Sparklines'!$C$1,INDIRECT($AA13),0), MATCH('Calc - Sparklines'!$D13,INDIRECT($AB13),0)-M$3)),NA()) ->  | N13: =IFERROR(IF(ISNUMBER( INDEX(INDIRECT($Z13), MATCH('Calc - Sparklines'!$C$1,INDIRECT($AA13),0), MATCH('Calc - Sparklines'!$D13,INDIRECT($AB13),0)-N$3))=FALSE,NA(), INDEX(INDIRECT($Z13), MATCH('Calc - Sparklines'!$C$1,INDIRECT($AA13),0), MATCH('Calc - Sparklines'!$D13,INDIRECT($AB13),0)-N$3)),NA()) ->  | O13: =IFERROR(IF(ISNUMBER( INDEX(INDIRECT($Z13), MATCH('Calc - Sparklines'!$C$1,INDIRECT($AA13),0), MATCH('Calc - Sparklines'!$D13,INDIRECT($AB13),0)-O$3))=FALSE,NA(), INDEX(INDIRECT($Z13), MATCH('Calc - Sparklines'!$C$1,INDIRECT($AA13),0), MATCH('Calc - Sparklines'!$D13,INDIRECT($AB13),0)-O$3)),NA()) ->  | P13: =IFERROR(IF(ISNUMBER( INDEX(INDIRECT($Z13), MATCH('Calc - Sparklines'!$C$1,INDIRECT($AA13),0), MATCH('Calc - Sparklines'!$D13,INDIRECT($AB13),0)-P$3))=FALSE,NA(), INDEX(INDIRECT($Z13), MATCH('Calc - Sparklines'!$C$1,INDIRECT($AA13),0), MATCH('Calc - Sparklines'!$D13,INDIRECT($AB13),0)-P$3)),NA()) ->  | R13: 0 | X13: =IF(R13<=2,"N/A","") -> N/A | AD13: Heading
A14: CYP_i | B14: CYP(i) | C14: Number of new CYP aged 0-18 receiving treatment from NHS funded community services | D14: ='CYP(i)_FINAL CALC'!B6 -> Q1 2017/18 | E14: =IFERROR(IF(ISNUMBER( INDEX(INDIRECT($Z14), MATCH('Calc - Sparklines'!$C$1,INDIRECT($AA14),0), MATCH('Calc - Sparklines'!$D14,INDIRECT($AB14),0)-E$3))=FALSE,NA(), INDEX(INDIRECT($Z14), MATCH('Calc - Sparklines'!$C$1,INDIRECT($AA14),0), MATCH('Calc - Sparklines'!$D14,INDIRECT($AB14),0)-E$3)),NA()) ->  | F14: =IFERROR(IF(ISNUMBER( INDEX(INDIRECT($Z14), MATCH('Calc - Sparklines'!$C$1,INDIRECT($AA14),0), MATCH('Calc - Sparklines'!$D14,INDIRECT($AB14),0)-F$3))=FALSE,NA(), INDEX(INDIRECT($Z14), MATCH('Calc - Sparklines'!$C$1,INDIRECT($AA14),0), MATCH('Calc - Sparklines'!$D14,INDIRECT($AB14),0)-F$3)),NA()) ->  | G14: =IFERROR(IF(ISNUMBER( INDEX(INDIRECT($Z14), MATCH('Calc - Sparklines'!$C$1,INDIRECT($AA14),0), MATCH('Calc - Sparklines'!$D14,INDIRECT($AB14),0)-G$3))=FALSE,NA(), INDEX(INDIRECT($Z14), MATCH('Calc - Sparklines'!$C$1,INDIRECT($AA14),0), MATCH('Calc - Sparklines'!$D14,INDIRECT($AB14),0)-G$3)),NA()) ->  | H14: =IFERROR(IF(ISNUMBER( INDEX(INDIRECT($Z14), MATCH('Calc - Sparklines'!$C$1,INDIRECT($AA14),0), MATCH('Calc - Sparklines'!$D14,INDIRECT($AB14),0)-H$3))=FALSE,NA(), INDEX(INDIRECT($Z14), MATCH('Calc - Sparklines'!$C$1,INDIRECT($AA14),0), MATCH('Calc - Sparklines'!$D14,INDIRECT($AB14),0)-H$3)),NA()) ->  | I14: =IFERROR(IF(ISNUMBER( INDEX(INDIRECT($Z14), MATCH('Calc - Sparklines'!$C$1,INDIRECT($AA14),0), MATCH('Calc - Sparklines'!$D14,INDIRECT($AB14),0)-I$3))=FALSE,NA(), INDEX(INDIRECT($Z14), MATCH('Calc - Sparklines'!$C$1,INDIRECT($AA14),0), MATCH('Calc - Sparklines'!$D14,INDIRECT($AB14),0)-I$3)),NA()) ->  | J14: =IFERROR(IF(ISNUMBER( INDEX(INDIRECT($Z14), MATCH('Calc - Sparklines'!$C$1,INDIRECT($AA14),0), MATCH('Calc - Sparklines'!$D14,INDIRECT($AB14),0)-J$3))=FALSE,NA(), INDEX(INDIRECT($Z14), MATCH('Calc - Sparklines'!$C$1,INDIRECT($AA14),0), MATCH('Calc - Sparklines'!$D14,INDIRECT($AB14),0)-J$3)),NA()) ->  | K14: =IFERROR(IF(ISNUMBER( INDEX(INDIRECT($Z14), MATCH('Calc - Sparklines'!$C$1,INDIRECT($AA14),0), MATCH('Calc - Sparklines'!$D14,INDIRECT($AB14),0)-K$3))=FALSE,NA(), INDEX(INDIRECT($Z14), MATCH('Calc - Sparklines'!$C$1,INDIRECT($AA14),0), MATCH('Calc - Sparklines'!$D14,INDIRECT($AB14),0)-K$3)),NA()) ->  | L14: =IFERROR(IF(ISNUMBER( INDEX(INDIRECT($Z14), MATCH('Calc - Sparklines'!$C$1,INDIRECT($AA14),0), MATCH('Calc - Sparklines'!$D14,INDIRECT($AB14),0)-L$3))=FALSE,NA(), INDEX(INDIRECT($Z14), MATCH('Calc - Sparklines'!$C$1,INDIRECT($AA14),0), MATCH('Calc - Sparklines'!$D14,INDIRECT($AB14),0)-L$3)),NA()) ->  | M14: =IFERROR(IF(ISNUMBER( INDEX(INDIRECT($Z14), MATCH('Calc - Sparklines'!$C$1,INDIRECT($AA14),0), MATCH('Calc - Sparklines'!$D14,INDIRECT($AB14),0)-M$3))=FALSE,NA(), INDEX(INDIRECT($Z14), MATCH('Calc - Sparklines'!$C$1,INDIRECT($AA14),0), MATCH('Calc - Sparklines'!$D14,INDIRECT($AB14),0)-M$3)),NA()) -> 41568 | N14: =IFERROR(IF(ISNUMBER( INDEX(INDIRECT($Z14), MATCH('Calc - Sparklines'!$C$1,INDIRECT($AA14),0), MATCH('Calc - Sparklines'!$D14,INDIRECT($AB14),0)-N$3))=FALSE,NA(), INDEX(INDIRECT($Z14), MATCH('Calc - Sparklines'!$C$1,INDIRECT($AA14),0), MATCH('Calc - Sparklines'!$D14,INDIRECT($AB14),0)-N$3)),NA()) -> 41356 | O14: =IFERROR(IF(ISNUMBER( INDEX(INDIRECT($Z14), MATCH('Calc - Sparklines'!$C$1,INDIRECT($AA14),0), MATCH('Calc - Sparklines'!$D14,INDIRECT($AB14),0)-O$3))=FALSE,NA(), INDEX(INDIRECT($Z14), MATCH('Calc - Sparklines'!$C$1,INDIRECT($AA14),0), MATCH('Calc - Sparklines'!$D14,INDIRECT($AB14),0)-O$3)),NA()) -> 42039 | P14: =IFERROR(IF(ISNUMBER( INDEX(INDIRECT($Z14), MATCH('Calc - Sparklines'!$C$1,INDIRECT($AA14),0), MATCH('Calc - Sparklines'!$D14,INDIRECT($AB14),0)-P$3))=FALSE,NA(), INDEX(INDIRECT($Z14), MATCH('Calc - Sparklines'!$C$1,INDIRECT($AA14),0), MATCH('Calc - Sparklines'!$D14,INDIRECT($AB14),0)-P$3)),NA()) -> 48988 | R14: 4 | S14: 0 | T14: 48988 | U14: 42039 | V14: ▲ | W14: Sparkline04 | X14: N/A | Z14: Data_Table_CYP_i | AA14: Data_Orgs_CYP_i | AB14: Data_Dates_CYP_i | AD14: National and regional measure only | AE14: National and regional measure only
A15: CYP_ii_a | B15: CYP(ii.a) | C15: % of CYP with eating disorders seen within 1 week (urgent) | D15: ='CYP(ii_a)_FINAL CALC'!B6 -> Q1-Q2 2017/18 | E15: =IFERROR(IF(ISNUMBER( INDEX(INDIRECT($Z15), MATCH('Calc - Sparklines'!$C$1,INDIRECT($AA15),0), MATCH('Calc - Sparklines'!$D15,INDIRECT($AB15),0)-E$3))=FALSE,NA(), INDEX(INDIRECT($Z15), MATCH('Calc - Sparklines'!$C$1,INDIRECT($AA15),0), MATCH('Calc - Sparklines'!$D15,INDIRECT($AB15),0)-E$3)),NA()) ->  | F15: =IFERROR(IF(ISNUMBER( INDEX(INDIRECT($Z15), MATCH('Calc - Sparklines'!$C$1,INDIRECT($AA15),0), MATCH('Calc - Sparklines'!$D15,INDIRECT($AB15),0)-F$3))=FALSE,NA(), INDEX(INDIRECT($Z15), MATCH('Calc - Sparklines'!$C$1,INDIRECT($AA15),0), MATCH('Calc - Sparklines'!$D15,INDIRECT($AB15),0)-F$3)),NA()) ->  | G15: =IFERROR(IF(ISNUMBER( INDEX(INDIRECT($Z15), MATCH('Calc - Sparklines'!$C$1,INDIRECT($AA15),0), MATCH('Calc - Sparklines'!$D15,INDIRECT($AB15),0)-G$3))=FALSE,NA(), INDEX(INDIRECT($Z15), MATCH('Calc - Sparklines'!$C$1,INDIRECT($AA15),0), MATCH('Calc - Sparklines'!$D15,INDIRECT($AB15),0)-G$3)),NA()) ->  | H15: =IFERROR(IF(ISNUMBER( INDEX(INDIRECT($Z15), MATCH('Calc - Sparklines'!$C$1,INDIRECT($AA15),0), MATCH('Calc - Sparklines'!$D15,INDIRECT($AB15),0)-H$3))=FALSE,NA(), INDEX(INDIRECT($Z15), MATCH('Calc - Sparklines'!$C$1,INDIRECT($AA15),0), MATCH('Calc - Sparklines'!$D15,INDIRECT($AB15),0)-H$3)),NA()) ->  | I15: =IFERROR(IF(ISNUMBER( INDEX(INDIRECT($Z15), MATCH('Calc - Sparklines'!$C$1,INDIRECT($AA15),0), MATCH('Calc - Sparklines'!$D15,INDIRECT($AB15),0)-I$3))=FALSE,NA(), INDEX(INDIRECT($Z15), MATCH('Calc - Sparklines'!$C$1,INDIRECT($AA15),0), MATCH('Calc - Sparklines'!$D15,INDIRECT($AB15),0)-I$3)),NA()) ->  | J15: =IFERROR(IF(ISNUMBER( INDEX(INDIRECT($Z15), MATCH('Calc - Sparklines'!$C$1,INDIRECT($AA15),0), MATCH('Calc - Sparklines'!$D15,INDIRECT($AB15),0)-J$3))=FALSE,NA(), INDEX(INDIRECT($Z15), MATCH('Calc - Sparklines'!$C$1,INDIRECT($AA15),0), MATCH('Calc - Sparklines'!$D15,INDIRECT($AB15),0)-J$3)),NA()) ->  | K15: =IFERROR(IF(ISNUMBER( INDEX(INDIRECT($Z15), MATCH('Calc - Sparklines'!$C$1,INDIRECT($AA15),0), MATCH('Calc - Sparklines'!$D15,INDIRECT($AB15),0)-K$3))=FALSE,NA(), INDEX(INDIRECT($Z15), MATCH('Calc - Sparklines'!$C$1,INDIRECT($AA15),0), MATCH('Calc - Sparklines'!$D15,INDIRECT($AB15),0)-K$3)),NA()) ->  | L15: =IFERROR(IF(ISNUMBER( INDEX(INDIRECT($Z15), MATCH('Calc - Sparklines'!$C$1,INDIRECT($AA15),0), MATCH('Calc - Sparklines'!$D15,INDIRECT($AB15),0)-L$3))=FALSE,NA(), INDEX(INDIRECT($Z15), MATCH('Calc - Sparklines'!$C$1,INDIRECT($AA15),0), MATCH('Calc - Sparklines'!$D15,INDIRECT($AB15),0)-L$3)),NA()) ->  | M15: =IFERROR(IF(ISNUMBER( INDEX(INDIRECT($Z15), MATCH('Calc - Sparklines'!$C$1,INDIRECT($AA15),0), MATCH('Calc - Sparklines'!$D15,INDIRECT($AB15),0)-M$3))=FALSE,NA(), INDEX(INDIRECT($Z15), MATCH('Calc - Sparklines'!$C$1,INDIRECT($AA15),0), MATCH('Calc - Sparklines'!$D15,INDIRECT($AB15),0)-M$3)),NA()) ->  | N15: =IFERROR(IF(ISNUMBER( INDEX(INDIRECT($Z15), MATCH('Calc - Sparklines'!$C$1,INDIRECT($AA15),0), MATCH('Calc - Sparklines'!$D15,INDIRECT($AB15),0)-N$3))=FALSE,NA(), INDEX(INDIRECT($Z15), MATCH('Calc - Sparklines'!$C$1,INDIRECT($AA15),0), MATCH('Calc - Sparklines'!$D15,INDIRECT($AB15),0)-N$3)),NA()) -> 0.6150537634 | O15: =IFERROR(IF(ISNUMBER( INDEX(INDIRECT($Z15), MATCH('Calc - Sparklines'!$C$1,INDIRECT($AA15),0), MATCH('Calc - Sparklines'!$D15,INDIRECT($AB15),0)-O$3))=FALSE,NA(), INDEX(INDIRECT($Z15), MATCH('Calc - Sparklines'!$C$1,INDIRECT($AA15),0), MATCH('Calc - Sparklines'!$D15,INDIRECT($AB15),0)-O$3)),NA()) -> 0.6787658802 | P15: =IFERROR(IF(ISNUMBER( INDEX(INDIRECT($Z15), MATCH('Calc - Sparklines'!$C$1,INDIRECT($AA15),0), MATCH('Calc - Sparklines'!$D15,INDIRECT($AB15),0)-P$3))=FALSE,NA(), INDEX(INDIRECT($Z15), MATCH('Calc - Sparklines'!$C$1,INDIRECT($AA15),0), MATCH('Calc - Sparklines'!$D15,INDIRECT($AB15),0)-P$3)),NA()) -> 0.721340388 | R15: 3 | S15: 0 | T15: 0.721340388 | U15: 0.6787658802 | V15: ▲ | W15: Sparkline54 | X15: =IF(R15<=2,"N/A","") ->  | Z15: Data_Table_CYP_ii_a | AA15: Data_Orgs_CYP_ii_a | AB15: Data_Dates_CYP_ii_a | AD15: National and regional measure only | AE15: National and regional measure only
A16: CYP_ii_b | B16: CYP(ii.b) | C16: % of CYP with eating disorders seen within 4 weeks (routine) | D16: ='CYP(ii_b)_FINAL CALC'!B6 -> Q1-Q2 2017/18 | E16: =IFERROR(IF(ISNUMBER( INDEX(INDIRECT($Z16), MATCH('Calc - Sparklines'!$C$1,INDIRECT($AA16),0), MATCH('Calc - Sparklines'!$D16,INDIRECT($AB16),0)-E$3))=FALSE,NA(), INDEX(INDIRECT($Z16), MATCH('Calc - Sparklines'!$C$1,INDIRECT($AA16),0), MATCH('Calc - Sparklines'!$D16,INDIRECT($AB16),0)-E$3)),NA()) ->  | F16: =IFERROR(IF(ISNUMBER( INDEX(INDIRECT($Z16), MATCH('Calc - Sparklines'!$C$1,INDIRECT($AA16),0), MATCH('Calc - Sparklines'!$D16,INDIRECT($AB16),0)-F$3))=FALSE,NA(), INDEX(INDIRECT($Z16), MATCH('Calc - Sparklines'!$C$1,INDIRECT($AA16),0), MATCH('Calc - Sparklines'!$D16,INDIRECT($AB16),0)-F$3)),NA()) ->  | G16: =IFERROR(IF(ISNUMBER( INDEX(INDIRECT($Z16), MATCH('Calc - Sparklines'!$C$1,INDIRECT($AA16),0), MATCH('Calc - Sparklines'!$D16,INDIRECT($AB16),0)-G$3))=FALSE,NA(), INDEX(INDIRECT($Z16), MATCH('Calc - Sparklines'!$C$1,INDIRECT($AA16),0), MATCH('Calc - Sparklines'!$D16,INDIRECT($AB16),0)-G$3)),NA()) ->  | H16: =IFERROR(IF(ISNUMBER( INDEX(INDIRECT($Z16), MATCH('Calc - Sparklines'!$C$1,INDIRECT($AA16),0), MATCH('Calc - Sparklines'!$D16,INDIRECT($AB16),0)-H$3))=FALSE,NA(), INDEX(INDIRECT($Z16), MATCH('Calc - Sparklines'!$C$1,INDIRECT($AA16),0), MATCH('Calc - Sparklines'!$D16,INDIRECT($AB16),0)-H$3)),NA()) ->  | I16: =IFERROR(IF(ISNUMBER( INDEX(INDIRECT($Z16), MATCH('Calc - Sparklines'!$C$1,INDIRECT($AA16),0), MATCH('Calc - Sparklines'!$D16,INDIRECT($AB16),0)-I$3))=FALSE,NA(), INDEX(INDIRECT($Z16), MATCH('Calc - Sparklines'!$C$1,INDIRECT($AA16),0), MATCH('Calc - Sparklines'!$D16,INDIRECT($AB16),0)-I$3)),NA()) ->  | J16: =IFERROR(IF(ISNUMBER( INDEX(INDIRECT($Z16), MATCH('Calc - Sparklines'!$C$1,INDIRECT($AA16),0), MATCH('Calc - Sparklines'!$D16,INDIRECT($AB16),0)-J$3))=FALSE,NA(), INDEX(INDIRECT($Z16), MATCH('Calc - Sparklines'!$C$1,INDIRECT($AA16),0), MATCH('Calc - Sparklines'!$D16,INDIRECT($AB16),0)-J$3)),NA()) ->  | K16: =IFERROR(IF(ISNUMBER( INDEX(INDIRECT($Z16), MATCH('Calc - Sparklines'!$C$1,INDIRECT($AA16),0), MATCH('Calc - Sparklines'!$D16,INDIRECT($AB16),0)-K$3))=FALSE,NA(), INDEX(INDIRECT($Z16), MATCH('Calc - Sparklines'!$C$1,INDIRECT($AA16),0), MATCH('Calc - Sparklines'!$D16,INDIRECT($AB16),0)-K$3)),NA()) ->  | L16: =IFERROR(IF(ISNUMBER( INDEX(INDIRECT($Z16), MATCH('Calc - Sparklines'!$C$1,INDIRECT($AA16),0), MATCH('Calc - Sparklines'!$D16,INDIRECT($AB16),0)-L$3))=FALSE,NA(), INDEX(INDIRECT($Z16), MATCH('Calc - Sparklines'!$C$1,INDIRECT($AA16),0), MATCH('Calc - Sparklines'!$D16,INDIRECT($AB16),0)-L$3)),NA()) ->  | M16: =IFERROR(IF(ISNUMBER( INDEX(INDIRECT($Z16), MATCH('Calc - Sparklines'!$C$1,INDIRECT($AA16),0), MATCH('Calc - Sparklines'!$D16,INDIRECT($AB16),0)-M$3))=FALSE,NA(), INDEX(INDIRECT($Z16), MATCH('Calc - Sparklines'!$C$1,INDIRECT($AA16),0), MATCH('Calc - Sparklines'!$D16,INDIRECT($AB16),0)-M$3)),NA()) ->  | N16: =IFERROR(IF(ISNUMBER( INDEX(INDIRECT($Z16), MATCH('Calc - Sparklines'!$C$1,INDIRECT($AA16),0), MATCH('Calc - Sparklines'!$D16,INDIRECT($AB16),0)-N$3))=FALSE,NA(), INDEX(INDIRECT($Z16), MATCH('Calc - Sparklines'!$C$1,INDIRECT($AA16),0), MATCH('Calc - Sparklines'!$D16,INDIRECT($AB16),0)-N$3)),NA()) -> 0.6632543103 | O16: =IFERROR(IF(ISNUMBER( INDEX(INDIRECT($Z16), MATCH('Calc - Sparklines'!$C$1,INDIRECT($AA16),0), MATCH('Calc - Sparklines'!$D16,INDIRECT($AB16),0)-O$3))=FALSE,NA(), INDEX(INDIRECT($Z16), MATCH('Calc - Sparklines'!$C$1,INDIRECT($AA16),0), MATCH('Calc - Sparklines'!$D16,INDIRECT($AB16),0)-O$3)),NA()) -> 0.7891185154 | P16: =IFERROR(IF(ISNUMBER( INDEX(INDIRECT($Z16), MATCH('Calc - Sparklines'!$C$1,INDIRECT($AA16),0), MATCH('Calc - Sparklines'!$D16,INDIRECT($AB16),0)-P$3))=FALSE,NA(), INDEX(INDIRECT($Z16), MATCH('Calc - Sparklines'!$C$1,INDIRECT($AA16),0), MATCH('Calc - Sparklines'!$D16,INDIRECT($AB16),0)-P$3)),NA()) -> 0.8058035714 | R16: 3 | S16: 0 | T16: 0.8058035714 | U16: 0.7891185154 | V16: ▲ | W16: Sparkline05 | Z16: Data_Table_CYP_ii_b | AA16: Data_Orgs_CYP_ii_b | AB16: Data_Dates_CYP_ii_b | AD16: Chart available at CCG & STP level only | AE16: =IF(OR(Dashboard!$N$3=1,Dashboard!$N$3=2),"Chart available at CCG & STP level only","") -> Chart available at CCG & STP level only
A17: CYP_iii_a | B17: CYP(iii.a) | C17: Number of bed days for CYP under 18 in CAMHS tier 4 wards | D17: ='CYP(iii_a)_FINAL CALC'!B6 -> Q1-Q2 2017/18 | E17: =IFERROR(IF(ISNUMBER( INDEX(INDIRECT($Z17), MATCH('Calc - Sparklines'!$C$1,INDIRECT($AA17),0), MATCH('Calc - Sparklines'!$D17,INDIRECT($AB17),0)-E$3))=FALSE,NA(), INDEX(INDIRECT($Z17), MATCH('Calc - Sparklines'!$C$1,INDIRECT($AA17),0), MATCH('Calc - Sparklines'!$D17,INDIRECT($AB17),0)-E$3)),NA()) ->  | F17: =IFERROR(IF(ISNUMBER( INDEX(INDIRECT($Z17), MATCH('Calc - Sparklines'!$C$1,INDIRECT($AA17),0), MATCH('Calc - Sparklines'!$D17,INDIRECT($AB17),0)-F$3))=FALSE,NA(), INDEX(INDIRECT($Z17), MATCH('Calc - Sparklines'!$C$1,INDIRECT($AA17),0), MATCH('Calc - Sparklines'!$D17,INDIRECT($AB17),0)-F$3)),NA()) ->  | G17: =IFERROR(IF(ISNUMBER( INDEX(INDIRECT($Z17), MATCH('Calc - Sparklines'!$C$1,INDIRECT($AA17),0), MATCH('Calc - Sparklines'!$D17,INDIRECT($AB17),0)-G$3))=FALSE,NA(), INDEX(INDIRECT($Z17), MATCH('Calc - Sparklines'!$C$1,INDIRECT($AA17),0), MATCH('Calc - Sparklines'!$D17,INDIRECT($AB17),0)-G$3)),NA()) ->  | H17: =IFERROR(IF(ISNUMBER( INDEX(INDIRECT($Z17), MATCH('Calc - Sparklines'!$C$1,INDIRECT($AA17),0), MATCH('Calc - Sparklines'!$D17,INDIRECT($AB17),0)-H$3))=FALSE,NA(), INDEX(INDIRECT($Z17), MATCH('Calc - Sparklines'!$C$1,INDIRECT($AA17),0), MATCH('Calc - Sparklines'!$D17,INDIRECT($AB17),0)-H$3)),NA()) ->  | I17: =IFERROR(IF(ISNUMBER( INDEX(INDIRECT($Z17), MATCH('Calc - Sparklines'!$C$1,INDIRECT($AA17),0), MATCH('Calc - Sparklines'!$D17,INDIRECT($AB17),0)-I$3))=FALSE,NA(), INDEX(INDIRECT($Z17), MATCH('Calc - Sparklines'!$C$1,INDIRECT($AA17),0), MATCH('Calc - Sparklines'!$D17,INDIRECT($AB17),0)-I$3)),NA()) ->  | J17: =IFERROR(IF(ISNUMBER( INDEX(INDIRECT($Z17), MATCH('Calc - Sparklines'!$C$1,INDIRECT($AA17),0), MATCH('Calc - Sparklines'!$D17,INDIRECT($AB17),0)-J$3))=FALSE,NA(), INDEX(INDIRECT($Z17), MATCH('Calc - Sparklines'!$C$1,INDIRECT($AA17),0), MATCH('Calc - Sparklines'!$D17,INDIRECT($AB17),0)-J$3)),NA()) ->  | K17: =IFERROR(IF(ISNUMBER( INDEX(INDIRECT($Z17), MATCH('Calc - Sparklines'!$C$1,INDIRECT($AA17),0), MATCH('Calc - Sparklines'!$D17,INDIRECT($AB17),0)-K$3))=FALSE,NA(), INDEX(INDIRECT($Z17), MATCH('Calc - Sparklines'!$C$1,INDIRECT($AA17),0), MATCH('Calc - Sparklines'!$D17,INDIRECT($AB17),0)-K$3)),NA()) ->  | L17: =IFERROR(IF(ISNUMBER( INDEX(INDIRECT($Z17), MATCH('Calc - Sparklines'!$C$1,INDIRECT($AA17),0), MATCH('Calc - Sparklines'!$D17,INDIRECT($AB17),0)-L$3))=FALSE,NA(), INDEX(INDIRECT($Z17), MATCH('Calc - Sparklines'!$C$1,INDIRECT($AA17),0), MATCH('Calc - Sparklines'!$D17,INDIRECT($AB17),0)-L$3)),NA()) ->  | M17: =IFERROR(IF(ISNUMBER( INDEX(INDIRECT($Z17), MATCH('Calc - Sparklines'!$C$1,INDIRECT($AA17),0), MATCH('Calc - Sparklines'!$D17,INDIRECT($AB17),0)-M$3))=FALSE,NA(), INDEX(INDIRECT($Z17), MATCH('Calc - Sparklines'!$C$1,INDIRECT($AA17),0), MATCH('Calc - Sparklines'!$D17,INDIRECT($AB17),0)-M$3)),NA()) ->  | N17: =IFERROR(IF(ISNUMBER( INDEX(INDIRECT($Z17), MATCH('Calc - Sparklines'!$C$1,INDIRECT($AA17),0), MATCH('Calc - Sparklines'!$D17,INDIRECT($AB17),0)-N$3))=FALSE,NA(), INDEX(INDIRECT($Z17), MATCH('Calc - Sparklines'!$C$1,INDIRECT($AA17),0), MATCH('Calc - Sparklines'!$D17,INDIRECT($AB17),0)-N$3)),NA()) -> 231633 | O17: =IFERROR(IF(ISNUMBER( INDEX(INDIRECT($Z17), MATCH('Calc - Sparklines'!$C$1,INDIRECT($AA17),0), MATCH('Calc - Sparklines'!$D17,INDIRECT($AB17),0)-O$3))=FALSE,NA(), INDEX(INDIRECT($Z17), MATCH('Calc - Sparklines'!$C$1,INDIRECT($AA17),0), MATCH('Calc - Sparklines'!$D17,INDIRECT($AB17),0)-O$3)),NA()) -> 243645 | P17: =IFERROR(IF(ISNUMBER( INDEX(INDIRECT($Z17), MATCH('Calc - Sparklines'!$C$1,INDIRECT($AA17),0), MATCH('Calc - Sparklines'!$D17,INDIRECT($AB17),0)-P$3))=FALSE,NA(), INDEX(INDIRECT($Z17), MATCH('Calc - Sparklines'!$C$1,INDIRECT($AA17),0), MATCH('Calc - Sparklines'!$D17,INDIRECT($AB17),0)-P$3)),NA()) -> 218140 | R17: 3 | S17: 0 | T17: 218140 | U17: 243645 | V17: ▼ | X17: N/A | Z17: Data_Table_CYP_iii_a | AA17: Data_Orgs_CYP_iii_a | AB17: Data_Dates_CYP_iii_a | AD17: Chart available at CCG & STP level only | AE17: =IF(OR(Dashboard!$N$3=1,Dashboard!$N$3=2),"Chart available at CCG & STP level only","") -> Chart available at CCG & STP level only
A18: CYP_iii_b | B18: CYP(iii.b) | C18: Number of admissions of CYP under 18 in CAMHS tier 4 wards | D18: ='CYP(iii_b)_FINAL CALC'!B6 -> Q1-Q2 2017/18 | E18: =IFERROR(IF(ISNUMBER( INDEX(INDIRECT($Z18), MATCH('Calc - Sparklines'!$C$1,INDIRECT($AA18),0), MATCH('Calc - Sparklines'!$D18,INDIRECT($AB18),0)-E$3))=FALSE,NA(), INDEX(INDIRECT($Z18), MATCH('Calc - Sparklines'!$C$1,INDIRECT($AA18),0), MATCH('Calc - Sparklines'!$D18,INDIRECT($AB18),0)-E$3)),NA()) ->  | F18: =IFERROR(IF(ISNUMBER( INDEX(INDIRECT($Z18), MATCH('Calc - Sparklines'!$C$1,INDIRECT($AA18),0), MATCH('Calc - Sparklines'!$D18,INDIRECT($AB18),0)-F$3))=FALSE,NA(), INDEX(INDIRECT($Z18), MATCH('Calc - Sparklines'!$C$1,INDIRECT($AA18),0), MATCH('Calc - Sparklines'!$D18,INDIRECT($AB18),0)-F$3)),NA()) ->  | G18: =IFERROR(IF(ISNUMBER( INDEX(INDIRECT($Z18), MATCH('Calc - Sparklines'!$C$1,INDIRECT($AA18),0), MATCH('Calc - Sparklines'!$D18,INDIRECT($AB18),0)-G$3))=FALSE,NA(), INDEX(INDIRECT($Z18), MATCH('Calc - Sparklines'!$C$1,INDIRECT($AA18),0), MATCH('Calc - Sparklines'!$D18,INDIRECT($AB18),0)-G$3)),NA()) ->  | H18: =IFERROR(IF(ISNUMBER( INDEX(INDIRECT($Z18), MATCH('Calc - Sparklines'!$C$1,INDIRECT($AA18),0), MATCH('Calc - Sparklines'!$D18,INDIRECT($AB18),0)-H$3))=FALSE,NA(), INDEX(INDIRECT($Z18), MATCH('Calc - Sparklines'!$C$1,INDIRECT($AA18),0), MATCH('Calc - Sparklines'!$D18,INDIRECT($AB18),0)-H$3)),NA()) ->  | I18: =IFERROR(IF(ISNUMBER( INDEX(INDIRECT($Z18), MATCH('Calc - Sparklines'!$C$1,INDIRECT($AA18),0), MATCH('Calc - Sparklines'!$D18,INDIRECT($AB18),0)-I$3))=FALSE,NA(), INDEX(INDIRECT($Z18), MATCH('Calc - Sparklines'!$C$1,INDIRECT($AA18),0), MATCH('Calc - Sparklines'!$D18,INDIRECT($AB18),0)-I$3)),NA()) ->  | J18: =IFERROR(IF(ISNUMBER( INDEX(INDIRECT($Z18), MATCH('Calc - Sparklines'!$C$1,INDIRECT($AA18),0), MATCH('Calc - Sparklines'!$D18,INDIRECT($AB18),0)-J$3))=FALSE,NA(), INDEX(INDIRECT($Z18), MATCH('Calc - Sparklines'!$C$1,INDIRECT($AA18),0), MATCH('Calc - Sparklines'!$D18,INDIRECT($AB18),0)-J$3)),NA()) ->  | K18: =IFERROR(IF(ISNUMBER( INDEX(INDIRECT($Z18), MATCH('Calc - Sparklines'!$C$1,INDIRECT($AA18),0), MATCH('Calc - Sparklines'!$D18,INDIRECT($AB18),0)-K$3))=FALSE,NA(), INDEX(INDIRECT($Z18), MATCH('Calc - Sparklines'!$C$1,INDIRECT($AA18),0), MATCH('Calc - Sparklines'!$D18,INDIRECT($AB18),0)-K$3)),NA()) ->  | L18: =IFERROR(IF(ISNUMBER( INDEX(INDIRECT($Z18), MATCH('Calc - Sparklines'!$C$1,INDIRECT($AA18),0), MATCH('Calc - Sparklines'!$D18,INDIRECT($AB18),0)-L$3))=FALSE,NA(), INDEX(INDIRECT($Z18), MATCH('Calc - Sparklines'!$C$1,INDIRECT($AA18),0), MATCH('Calc - Sparklines'!$D18,INDIRECT($AB18),0)-L$3)),NA()) ->  | M18: =IFERROR(IF(ISNUMBER( INDEX(INDIRECT($Z18), MATCH('Calc - Sparklines'!$C$1,INDIRECT($AA18),0), MATCH('Calc - Sparklines'!$D18,INDIRECT($AB18),0)-M$3))=FALSE,NA(), INDEX(INDIRECT($Z18), MATCH('Calc - Sparklines'!$C$1,INDIRECT($AA18),0), MATCH('Calc - Sparklines'!$D18,INDIRECT($AB18),0)-M$3)),NA()) ->  | N18: =IFERROR(IF(ISNUMBER( INDEX(INDIRECT($Z18), MATCH('Calc - Sparklines'!$C$1,INDIRECT($AA18),0), MATCH('Calc - Sparklines'!$D18,INDIRECT($AB18),0)-N$3))=FALSE,NA(), INDEX(INDIRECT($Z18), MATCH('Calc - Sparklines'!$C$1,INDIRECT($AA18),0), MATCH('Calc - Sparklines'!$D18,INDIRECT($AB18),0)-N$3)),NA()) -> 2199 | O18: =IFERROR(IF(ISNUMBER( INDEX(INDIRECT($Z18), MATCH('Calc - Sparklines'!$C$1,INDIRECT($AA18),0), MATCH('Calc - Sparklines'!$D18,INDIRECT($AB18),0)-O$3))=FALSE,NA(), INDEX(INDIRECT($Z18), MATCH('Calc - Sparklines'!$C$1,INDIRECT($AA18),0), MATCH('Calc - Sparklines'!$D18,INDIRECT($AB18),0)-O$3)),NA()) -> 2496 | P18: =IFERROR(IF(ISNUMBER( INDEX(INDIRECT($Z18), MATCH('Calc - Sparklines'!$C$1,INDIRECT($AA18),0), MATCH('Calc - Sparklines'!$D18,INDIRECT($AB18),0)-P$3))=FALSE,NA(), INDEX(INDIRECT($Z18), MATCH('Calc - Sparklines'!$C$1,INDIRECT($AA18),0), MATCH('Calc - Sparklines'!$D18,INDIRECT($AB18),0)-P$3)),NA()) -> 2334 | R18: 3 | S18: 0 | T18: 2334 | U18: 2496 | V18: ▼ | X18: N/A | Z18: Data_Table_CYP_iii_b | AA18: Data_Orgs_CYP_iii_b | AB18: Data_Dates_CYP_iii_b | AD18: National and regional measure only | AE18: National and regional measure only
A19: CYP_iv_a | B19: CYP(iv.a) | C19: Bed days of CYP under 18 in adult in-patient wards | D19: ='CYP(iv_a)_FINAL CALC'!B6 -> Q1 2017/18 | E19: =IFERROR(IF(ISNUMBER( INDEX(INDIRECT($Z19), MATCH('Calc - Sparklines'!$C$1,INDIRECT($AA19),0), MATCH('Calc - Sparklines'!$D19,INDIRECT($AB19),0)-E$3))=FALSE,NA(), INDEX(INDIRECT($Z19), MATCH('Calc - Sparklines'!$C$1,INDIRECT($AA19),0), MATCH('Calc - Sparklines'!$D19,INDIRECT($AB19),0)-E$3)),NA()) ->  | F19: =IFERROR(IF(ISNUMBER( INDEX(INDIRECT($Z19), MATCH('Calc - Sparklines'!$C$1,INDIRECT($AA19),0), MATCH('Calc - Sparklines'!$D19,INDIRECT($AB19),0)-F$3))=FALSE,NA(), INDEX(INDIRECT($Z19), MATCH('Calc - Sparklines'!$C$1,INDIRECT($AA19),0), MATCH('Calc - Sparklines'!$D19,INDIRECT($AB19),0)-F$3)),NA()) ->  | G19: =IFERROR(IF(ISNUMBER( INDEX(INDIRECT($Z19), MATCH('Calc - Sparklines'!$C$1,INDIRECT($AA19),0), MATCH('Calc - Sparklines'!$D19,INDIRECT($AB19),0)-G$3))=FALSE,NA(), INDEX(INDIRECT($Z19), MATCH('Calc - Sparklines'!$C$1,INDIRECT($AA19),0), MATCH('Calc - Sparklines'!$D19,INDIRECT($AB19),0)-G$3)),NA()) ->  | H19: =IFERROR(IF(ISNUMBER( INDEX(INDIRECT($Z19), MATCH('Calc - Sparklines'!$C$1,INDIRECT($AA19),0), MATCH('Calc - Sparklines'!$D19,INDIRECT($AB19),0)-H$3))=FALSE,NA(), INDEX(INDIRECT($Z19), MATCH('Calc - Sparklines'!$C$1,INDIRECT($AA19),0), MATCH('Calc - Sparklines'!$D19,INDIRECT($AB19),0)-H$3)),NA()) ->  | I19: =IFERROR(IF(ISNUMBER( INDEX(INDIRECT($Z19), MATCH('Calc - Sparklines'!$C$1,INDIRECT($AA19),0), MATCH('Calc - Sparklines'!$D19,INDIRECT($AB19),0)-I$3))=FALSE,NA(), INDEX(INDIRECT($Z19), MATCH('Calc - Sparklines'!$C$1,INDIRECT($AA19),0), MATCH('Calc - Sparklines'!$D19,INDIRECT($AB19),0)-I$3)),NA()) ->  | J19: =IFERROR(IF(ISNUMBER( INDEX(INDIRECT($Z19), MATCH('Calc - Sparklines'!$C$1,INDIRECT($AA19),0), MATCH('Calc - Sparklines'!$D19,INDIRECT($AB19),0)-J$3))=FALSE,NA(), INDEX(INDIRECT($Z19), MATCH('Calc - Sparklines'!$C$1,INDIRECT($AA19),0), MATCH('Calc - Sparklines'!$D19,INDIRECT($AB19),0)-J$3)),NA()) ->  | K19: =IFERROR(IF(ISNUMBER( INDEX(INDIRECT($Z19), MATCH('Calc - Sparklines'!$C$1,INDIRECT($AA19),0), MATCH('Calc - Sparklines'!$D19,INDIRECT($AB19),0)-K$3))=FALSE,NA(), INDEX(INDIRECT($Z19), MATCH('Calc - Sparklines'!$C$1,INDIRECT($AA19),0), MATCH('Calc - Sparklines'!$D19,INDIRECT($AB19),0)-K$3)),NA()) ->  | L19: =IFERROR(IF(ISNUMBER( INDEX(INDIRECT($Z19), MATCH('Calc - Sparklines'!$C$1,INDIRECT($AA19),0), MATCH('Calc - Sparklines'!$D19,INDIRECT($AB19),0)-L$3))=FALSE,NA(), INDEX(INDIRECT($Z19), MATCH('Calc - Sparklines'!$C$1,INDIRECT($AA19),0), MATCH('Calc - Sparklines'!$D19,INDIRECT($AB19),0)-L$3)),NA()) -> 1938 | M19: =IFERROR(IF(ISNUMBER( INDEX(INDIRECT($Z19), MATCH('Calc - Sparklines'!$C$1,INDIRECT($AA19),0), MATCH('Calc - Sparklines'!$D19,INDIRECT($AB19),0)-M$3))=FALSE,NA(), INDEX(INDIRECT($Z19), MATCH('Calc - Sparklines'!$C$1,INDIRECT($AA19),0), MATCH('Calc - Sparklines'!$D19,INDIRECT($AB19),0)-M$3)),NA()) -> 2654 | N19: =IFERROR(IF(ISNUMBER( INDEX(INDIRECT($Z19), MATCH('Calc - Sparklines'!$C$1,INDIRECT($AA19),0), MATCH('Calc - Sparklines'!$D19,INDIRECT($AB19),0)-N$3))=FALSE,NA(), INDEX(INDIRECT($Z19), MATCH('Calc - Sparklines'!$C$1,INDIRECT($AA19),0), MATCH('Calc - Sparklines'!$D19,INDIRECT($AB19),0)-N$3)),NA()) -> 2700 | O19: =IFERROR(IF(ISNUMBER( INDEX(INDIRECT($Z19), MATCH('Calc - Sparklines'!$C$1,INDIRECT($AA19),0), MATCH('Calc - Sparklines'!$D19,INDIRECT($AB19),0)-O$3))=FALSE,NA(), INDEX(INDIRECT($Z19), MATCH('Calc - Sparklines'!$C$1,INDIRECT($AA19),0), MATCH('Calc - Sparklines'!$D19,INDIRECT($AB19),0)-O$3)),NA()) -> 321 | P19: =IFERROR(IF(ISNUMBER( INDEX(INDIRECT($Z19), MATCH('Calc - Sparklines'!$C$1,INDIRECT($AA19),0), MATCH('Calc - Sparklines'!$D19,INDIRECT($AB19),0)-P$3))=FALSE,NA(), INDEX(INDIRECT($Z19), MATCH('Calc - Sparklines'!$C$1,INDIRECT($AA19),0), MATCH('Calc - Sparklines'!$D19,INDIRECT($AB19),0)-P$3)),NA()) -> 428 | R19: 5 | S19: 0 | T19: 428 | U19: 321 | V19: ▲ | W19: Sparkline08 | Z19: Data_Table_CYP_iv_a | AA19: Data_Orgs_CYP_iv_a | AB19: Data_Dates_CYP_iv_a | AD19: National and regional measure only | AE19: National and regional measure only
A20: CYP_iv_b | B20: CYP(iv.b) | C20: Number of CYP under 18 in adult in-patient wards | D20: ='CYP(iv_b)_FINAL CALC'!B6 -> Q1 2017/18 | E20: =IFERROR(IF(ISNUMBER( INDEX(INDIRECT($Z20), MATCH('Calc - Sparklines'!$C$1,INDIRECT($AA20),0), MATCH('Calc - Sparklines'!$D20,INDIRECT($AB20),0)-E$3))=FALSE,NA(), INDEX(INDIRECT($Z20), MATCH('Calc - Sparklines'!$C$1,INDIRECT($AA20),0), MATCH('Calc - Sparklines'!$D20,INDIRECT($AB20),0)-E$3)),NA()) ->  | F20: =IFERROR(IF(ISNUMBER( INDEX(INDIRECT($Z20), MATCH('Calc - Sparklines'!$C$1,INDIRECT($AA20),0), MATCH('Calc - Sparklines'!$D20,INDIRECT($AB20),0)-F$3))=FALSE,NA(), INDEX(INDIRECT($Z20), MATCH('Calc - Sparklines'!$C$1,INDIRECT($AA20),0), MATCH('Calc - Sparklines'!$D20,INDIRECT($AB20),0)-F$3)),NA()) ->  | G20: =IFERROR(IF(ISNUMBER( INDEX(INDIRECT($Z20), MATCH('Calc - Sparklines'!$C$1,INDIRECT($AA20),0), MATCH('Calc - Sparklines'!$D20,INDIRECT($AB20),0)-G$3))=FALSE,NA(), INDEX(INDIRECT($Z20), MATCH('Calc - Sparklines'!$C$1,INDIRECT($AA20),0), MATCH('Calc - Sparklines'!$D20,INDIRECT($AB20),0)-G$3)),NA()) ->  | H20: =IFERROR(IF(ISNUMBER( INDEX(INDIRECT($Z20), MATCH('Calc - Sparklines'!$C$1,INDIRECT($AA20),0), MATCH('Calc - Sparklines'!$D20,INDIRECT($AB20),0)-H$3))=FALSE,NA(), INDEX(INDIRECT($Z20), MATCH('Calc - Sparklines'!$C$1,INDIRECT($AA20),0), MATCH('Calc - Sparklines'!$D20,INDIRECT($AB20),0)-H$3)),NA()) ->  | I20: =IFERROR(IF(ISNUMBER( INDEX(INDIRECT($Z20), MATCH('Calc - Sparklines'!$C$1,INDIRECT($AA20),0), MATCH('Calc - Sparklines'!$D20,INDIRECT($AB20),0)-I$3))=FALSE,NA(), INDEX(INDIRECT($Z20), MATCH('Calc - Sparklines'!$C$1,INDIRECT($AA20),0), MATCH('Calc - Sparklines'!$D20,INDIRECT($AB20),0)-I$3)),NA()) ->  | J20: =IFERROR(IF(ISNUMBER( INDEX(INDIRECT($Z20), MATCH('Calc - Sparklines'!$C$1,INDIRECT($AA20),0), MATCH('Calc - Sparklines'!$D20,INDIRECT($AB20),0)-J$3))=FALSE,NA(), INDEX(INDIRECT($Z20), MATCH('Calc - Sparklines'!$C$1,INDIRECT($AA20),0), MATCH('Calc - Sparklines'!$D20,INDIRECT($AB20),0)-J$3)),NA()) ->  | K20: =IFERROR(IF(ISNUMBER( INDEX(INDIRECT($Z20), MATCH('Calc - Sparklines'!$C$1,INDIRECT($AA20),0), MATCH('Calc - Sparklines'!$D20,INDIRECT($AB20),0)-K$3))=FALSE,NA(), INDEX(INDIRECT($Z20), MATCH('Calc - Sparklines'!$C$1,INDIRECT($AA20),0), MATCH('Calc - Sparklines'!$D20,INDIRECT($AB20),0)-K$3)),NA()) ->  | L20: =IFERROR(IF(ISNUMBER( INDEX(INDIRECT($Z20), MATCH('Calc - Sparklines'!$C$1,INDIRECT($AA20),0), MATCH('Calc - Sparklines'!$D20,INDIRECT($AB20),0)-L$3))=FALSE,NA(), INDEX(INDIRECT($Z20), MATCH('Calc - Sparklines'!$C$1,INDIRECT($AA20),0), MATCH('Calc - Sparklines'!$D20,INDIRECT($AB20),0)-L$3)),NA()) -> 79 | M20: =IFERROR(IF(ISNUMBER( INDEX(INDIRECT($Z20), MATCH('Calc - Sparklines'!$C$1,INDIRECT($AA20),0), MATCH('Calc - Sparklines'!$D20,INDIRECT($AB20),0)-M$3))=FALSE,NA(), INDEX(INDIRECT($Z20), MATCH('Calc - Sparklines'!$C$1,INDIRECT($AA20),0), MATCH('Calc - Sparklines'!$D20,INDIRECT($AB20),0)-M$3)),NA()) -> 90 | N20: =IFERROR(IF(ISNUMBER( INDEX(INDIRECT($Z20), MATCH('Calc - Sparklines'!$C$1,INDIRECT($AA20),0), MATCH('Calc - Sparklines'!$D20,INDIRECT($AB20),0)-N$3))=FALSE,NA(), INDEX(INDIRECT($Z20), MATCH('Calc - Sparklines'!$C$1,INDIRECT($AA20),0), MATCH('Calc - Sparklines'!$D20,INDIRECT($AB20),0)-N$3)),NA()) -> 83 | O20: =IFERROR(IF(ISNUMBER( INDEX(INDIRECT($Z20), MATCH('Calc - Sparklines'!$C$1,INDIRECT($AA20),0), MATCH('Calc - Sparklines'!$D20,INDIRECT($AB20),0)-O$3))=FALSE,NA(), INDEX(INDIRECT($Z20), MATCH('Calc - Sparklines'!$C$1,INDIRECT($AA20),0), MATCH('Calc - Sparklines'!$D20,INDIRECT($AB20),0)-O$3)),NA()) -> 42 | P20: =IFERROR(IF(ISNUMBER( INDEX(INDIRECT($Z20), MATCH('Calc - Sparklines'!$C$1,INDIRECT($AA20),0), MATCH('Calc - Sparklines'!$D20,INDIRECT($AB20),0)-P$3))=FALSE,NA(), INDEX(INDIRECT($Z20), MATCH('Calc - Sparklines'!$C$1,INDIRECT($AA20),0), MATCH('Calc - Sparklines'!$D20,INDIRECT($AB20),0)-P$3)),NA()) -> 57 | R20: 5 | S20: 0 | T20: 57 | U20: 42 | V20: ▲ | W20: Sparkline09 | Z20: Data_Table_CYP_iv_b | AA20: Data_Orgs_CYP_iv_b | AB20: Data_Dates_CYP_iv_b | AD20: Chart available at STP level only | AE20: =IF(OR(Dashboard!$N$3=1,Dashboard!$N$3=2),"Chart available at CCG & STP level only","") -> Chart available at CCG & STP level only
A21: CYP_v | B21: CYP(v) | C21: CYP MH forecast outturn (£k) - excluding learning disabilities and eating disorders | D21: ='CYP(v)_FINAL CALC'!$B$6 -> 2017/18 | E21: =IFERROR(IF(ISNUMBER( INDEX(INDIRECT($Z21), MATCH('Calc - Sparklines'!$C$1,INDIRECT($AA21),0), MATCH('Calc - Sparklines'!$D21,INDIRECT($AB21),0)-E$3))=FALSE,NA(), INDEX(INDIRECT($Z21), MATCH('Calc - Sparklines'!$C$1,INDIRECT($AA21),0), MATCH('Calc - Sparklines'!$D21,INDIRECT($AB21),0)-E$3)),NA()) ->  | F21: =IFERROR(IF(ISNUMBER( INDEX(INDIRECT($Z21), MATCH('Calc - Sparklines'!$C$1,INDIRECT($AA21),0), MATCH('Calc - Sparklines'!$D21,INDIRECT($AB21),0)-F$3))=FALSE,NA(), INDEX(INDIRECT($Z21), MATCH('Calc - Sparklines'!$C$1,INDIRECT($AA21),0), MATCH('Calc - Sparklines'!$D21,INDIRECT($AB21),0)-F$3)),NA()) ->  | G21: =IFERROR(IF(ISNUMBER( INDEX(INDIRECT($Z21), MATCH('Calc - Sparklines'!$C$1,INDIRECT($AA21),0), MATCH('Calc - Sparklines'!$D21,INDIRECT($AB21),0)-G$3))=FALSE,NA(), INDEX(INDIRECT($Z21), MATCH('Calc - Sparklines'!$C$1,INDIRECT($AA21),0), MATCH('Calc - Sparklines'!$D21,INDIRECT($AB21),0)-G$3)),NA()) ->  | H21: =IFERROR(IF(ISNUMBER( INDEX(INDIRECT($Z21), MATCH('Calc - Sparklines'!$C$1,INDIRECT($AA21),0), MATCH('Calc - Sparklines'!$D21,INDIRECT($AB21),0)-H$3))=FALSE,NA(), INDEX(INDIRECT($Z21), MATCH('Calc - Sparklines'!$C$1,INDIRECT($AA21),0), MATCH('Calc - Sparklines'!$D21,INDIRECT($AB21),0)-H$3)),NA()) ->  | I21: =IFERROR(IF(ISNUMBER( INDEX(INDIRECT($Z21), MATCH('Calc - Sparklines'!$C$1,INDIRECT($AA21),0), MATCH('Calc - Sparklines'!$D21,INDIRECT($AB21),0)-I$3))=FALSE,NA(), INDEX(INDIRECT($Z21), MATCH('Calc - Sparklines'!$C$1,INDIRECT($AA21),0), MATCH('Calc - Sparklines'!$D21,INDIRECT($AB21),0)-I$3)),NA()) ->  | J21: =IFERROR(IF(ISNUMBER( INDEX(INDIRECT($Z21), MATCH('Calc - Sparklines'!$C$1,INDIRECT($AA21),0), MATCH('Calc - Sparklines'!$D21,INDIRECT($AB21),0)-J$3))=FALSE,NA(), INDEX(INDIRECT($Z21), MATCH('Calc - Sparklines'!$C$1,INDIRECT($AA21),0), MATCH('Calc - Sparklines'!$D21,INDIRECT($AB21),0)-J$3)),NA()) ->  | K21: =IFERROR(IF(ISNUMBER( INDEX(INDIRECT($Z21), MATCH('Calc - Sparklines'!$C$1,INDIRECT($AA21),0), MATCH('Calc - Sparklines'!$D21,INDIRECT($AB21),0)-K$3))=FALSE,NA(), INDEX(INDIRECT($Z21), MATCH('Calc - Sparklines'!$C$1,INDIRECT($AA21),0), MATCH('Calc - Sparklines'!$D21,INDIRECT($AB21),0)-K$3)),NA()) ->  | L21: =IFERROR(IF(ISNUMBER( INDEX(INDIRECT($Z21), MATCH('Calc - Sparklines'!$C$1,INDIRECT($AA21),0), MATCH('Calc - Sparklines'!$D21,INDIRECT($AB21),0)-L$3))=FALSE,NA(), INDEX(INDIRECT($Z21), MATCH('Calc - Sparklines'!$C$1,INDIRECT($AA21),0), MATCH('Calc - Sparklines'!$D21,INDIRECT($AB21),0)-L$3)),NA()) ->  | M21: =IFERROR(IF(ISNUMBER( INDEX(INDIRECT($Z21), MATCH('Calc - Sparklines'!$C$1,INDIRECT($AA21),0), MATCH('Calc - Sparklines'!$D21,INDIRECT($AB21),0)-M$3))=FALSE,NA(), INDEX(INDIRECT($Z21), MATCH('Calc - Sparklines'!$C$1,INDIRECT($AA21),0), MATCH('Calc - Sparklines'!$D21,INDIRECT($AB21),0)-M$3)),NA()) ->  | N21: =IFERROR(IF(ISNUMBER( INDEX(INDIRECT($Z21), MATCH('Calc - Sparklines'!$C$1,INDIRECT($AA21),0), MATCH('Calc - Sparklines'!$D21,INDIRECT($AB21),0)-N$3))=FALSE,NA(), INDEX(INDIRECT($Z21), MATCH('Calc - Sparklines'!$C$1,INDIRECT($AA21),0), MATCH('Calc - Sparklines'!$D21,INDIRECT($AB21),0)-N$3)),NA()) ->  | O21: =IFERROR(IF(ISNUMBER( INDEX(INDIRECT($Z21), MATCH('Calc - Sparklines'!$C$1,INDIRECT($AA21),0), MATCH('Calc - Sparklines'!$D21,INDIRECT($AB21),0)-O$3))=FALSE,NA(), INDEX(INDIRECT($Z21), MATCH('Calc - Sparklines'!$C$1,INDIRECT($AA21),0), MATCH('Calc - Sparklines'!$D21,INDIRECT($AB21),0)-O$3)),NA()) ->  | P21: =IFERROR(IF(ISNUMBER( INDEX(INDIRECT($Z21), MATCH('Calc - Sparklines'!$C$1,INDIRECT($AA21),0), MATCH('Calc - Sparklines'!$D21,INDIRECT($AB21),0)-P$3))=FALSE,NA(), INDEX(INDIRECT($Z21), MATCH('Calc - Sparklines'!$C$1,INDIRECT($AA21),0), MATCH('Calc - Sparklines'!$D21,INDIRECT($AB21),0)-P$3)),NA()) -> 614127742.6 | R21: 0 | S21: 0 | T21: 614127742.6 | V21: N/A | W21: Sparkline10 | X21: N/A | Z21: Data_Table_CYP_v | AA21: Data_Orgs_CYP_v | AB21: Data_Dates_CYP_v | AD21: Not Applicable | AE21: Not Applicable
A22: CYP_vi | B22: CYP(vi) | C22: CYP MH forecast outturn (£k) - eating disorders | D22: ='CYP(vi)_FINAL CALC'!$B$6 -> 2017/18 | E22: =IFERROR(IF(ISNUMBER( INDEX(INDIRECT($Z22), MATCH('Calc - Sparklines'!$C$1,INDIRECT($AA22),0), MATCH('Calc - Sparklines'!$D22,INDIRECT($AB22),0)-E$3))=FALSE,NA(), INDEX(INDIRECT($Z22), MATCH('Calc - Sparklines'!$C$1,INDIRECT($AA22),0), MATCH('Calc - Sparklines'!$D22,INDIRECT($AB22),0)-E$3)),NA()) ->  | F22: =IFERROR(IF(ISNUMBER( INDEX(INDIRECT($Z22), MATCH('Calc - Sparklines'!$C$1,INDIRECT($AA22),0), MATCH('Calc - Sparklines'!$D22,INDIRECT($AB22),0)-F$3))=FALSE,NA(), INDEX(INDIRECT($Z22), MATCH('Calc - Sparklines'!$C$1,INDIRECT($AA22),0), MATCH('Calc - Sparklines'!$D22,INDIRECT($AB22),0)-F$3)),NA()) ->  | G22: =IFERROR(IF(ISNUMBER( INDEX(INDIRECT($Z22), MATCH('Calc - Sparklines'!$C$1,INDIRECT($AA22),0), MATCH('Calc - Sparklines'!$D22,INDIRECT($AB22),0)-G$3))=FALSE,NA(), INDEX(INDIRECT($Z22), MATCH('Calc - Sparklines'!$C$1,INDIRECT($AA22),0), MATCH('Calc - Sparklines'!$D22,INDIRECT($AB22),0)-G$3)),NA()) ->  | H22: =IFERROR(IF(ISNUMBER( INDEX(INDIRECT($Z22), MATCH('Calc - Sparklines'!$C$1,INDIRECT($AA22),0), MATCH('Calc - Sparklines'!$D22,INDIRECT($AB22),0)-H$3))=FALSE,NA(), INDEX(INDIRECT($Z22), MATCH('Calc - Sparklines'!$C$1,INDIRECT($AA22),0), MATCH('Calc - Sparklines'!$D22,INDIRECT($AB22),0)-H$3)),NA()) ->  | I22: =IFERROR(IF(ISNUMBER( INDEX(INDIRECT($Z22), MATCH('Calc - Sparklines'!$C$1,INDIRECT($AA22),0), MATCH('Calc - Sparklines'!$D22,INDIRECT($AB22),0)-I$3))=FALSE,NA(), INDEX(INDIRECT($Z22), MATCH('Calc - Sparklines'!$C$1,INDIRECT($AA22),0), MATCH('Calc - Sparklines'!$D22,INDIRECT($AB22),0)-I$3)),NA()) ->  | J22: =IFERROR(IF(ISNUMBER( INDEX(INDIRECT($Z22), MATCH('Calc - Sparklines'!$C$1,INDIRECT($AA22),0), MATCH('Calc - Sparklines'!$D22,INDIRECT($AB22),0)-J$3))=FALSE,NA(), INDEX(INDIRECT($Z22), MATCH('Calc - Sparklines'!$C$1,INDIRECT($AA22),0), MATCH('Calc - Sparklines'!$D22,INDIRECT($AB22),0)-J$3)),NA()) ->  | K22: =IFERROR(IF(ISNUMBER( INDEX(INDIRECT($Z22), MATCH('Calc - Sparklines'!$C$1,INDIRECT($AA22),0), MATCH('Calc - Sparklines'!$D22,INDIRECT($AB22),0)-K$3))=FALSE,NA(), INDEX(INDIRECT($Z22), MATCH('Calc - Sparklines'!$C$1,INDIRECT($AA22),0), MATCH('Calc - Sparklines'!$D22,INDIRECT($AB22),0)-K$3)),NA()) ->  | L22: =IFERROR(IF(ISNUMBER( INDEX(INDIRECT($Z22), MATCH('Calc - Sparklines'!$C$1,INDIRECT($AA22),0), MATCH('Calc - Sparklines'!$D22,INDIRECT($AB22),0)-L$3))=FALSE,NA(), INDEX(INDIRECT($Z22), MATCH('Calc - Sparklines'!$C$1,INDIRECT($AA22),0), MATCH('Calc - Sparklines'!$D22,INDIRECT($AB22),0)-L$3)),NA()) ->  | M22: =IFERROR(IF(ISNUMBER( INDEX(INDIRECT($Z22), MATCH('Calc - Sparklines'!$C$1,INDIRECT($AA22),0), MATCH('Calc - Sparklines'!$D22,INDIRECT($AB22),0)-M$3))=FALSE,NA(), INDEX(INDIRECT($Z22), MATCH('Calc - Sparklines'!$C$1,INDIRECT($AA22),0), MATCH('Calc - Sparklines'!$D22,INDIRECT($AB22),0)-M$3)),NA()) ->  | N22: =IFERROR(IF(ISNUMBER( INDEX(INDIRECT($Z22), MATCH('Calc - Sparklines'!$C$1,INDIRECT($AA22),0), MATCH('Calc - Sparklines'!$D22,INDIRECT($AB22),0)-N$3))=FALSE,NA(), INDEX(INDIRECT($Z22), MATCH('Calc - Sparklines'!$C$1,INDIRECT($AA22),0), MATCH('Calc - Sparklines'!$D22,INDIRECT($AB22),0)-N$3)),NA()) ->  | O22: =IFERROR(IF(ISNUMBER( INDEX(INDIRECT($Z22), MATCH('Calc - Sparklines'!$C$1,INDIRECT($AA22),0), MATCH('Calc - Sparklines'!$D22,INDIRECT($AB22),0)-O$3))=FALSE,NA(), INDEX(INDIRECT($Z22), MATCH('Calc - Sparklines'!$C$1,INDIRECT($AA22),0), MATCH('Calc - Sparklines'!$D22,INDIRECT($AB22),0)-O$3)),NA()) ->  | P22: =IFERROR(IF(ISNUMBER( INDEX(INDIRECT($Z22), MATCH('Calc - Sparklines'!$C$1,INDIRECT($AA22),0), MATCH('Calc - Sparklines'!$D22,INDIRECT($AB22),0)-P$3))=FALSE,NA(), INDEX(INDIRECT($Z22), MATCH('Calc - Sparklines'!$C$1,INDIRECT($AA22),0), MATCH('Calc - Sparklines'!$D22,INDIRECT($AB22),0)-P$3)),NA()) -> 46716934.23 | R22: 0 | S22: 0 | T22: 46716934.23 | V22: N/A | X22: N/A | Z22: Data_Table_CYP_vi | AA22: Data_Orgs_CYP_vi | AB22: Data_Dates_CYP_vi
A23: Adult mental health: common mental health problems | B23: Adult mental health: common mental health problems | E23: =IFERROR(IF(ISNUMBER( INDEX(INDIRECT($Z23), MATCH('Calc - Sparklines'!$C$1,INDIRECT($AA23),0), MATCH('Calc - Sparklines'!$D23,INDIRECT($AB23),0)-E$3))=FALSE,NA(), INDEX(INDIRECT($Z23), MATCH('Calc - Sparklines'!$C$1,INDIRECT($AA23),0), MATCH('Calc - Sparklines'!$D23,INDIRECT($AB23),0)-E$3)),NA()) ->  | F23: =IFERROR(IF(ISNUMBER( INDEX(INDIRECT($Z23), MATCH('Calc - Sparklines'!$C$1,INDIRECT($AA23),0), MATCH('Calc - Sparklines'!$D23,INDIRECT($AB23),0)-F$3))=FALSE,NA(), INDEX(INDIRECT($Z23), MATCH('Calc - Sparklines'!$C$1,INDIRECT($AA23),0), MATCH('Calc - Sparklines'!$D23,INDIRECT($AB23),0)-F$3)),NA()) ->  | G23: =IFERROR(IF(ISNUMBER( INDEX(INDIRECT($Z23), MATCH('Calc - Sparklines'!$C$1,INDIRECT($AA23),0), MATCH('Calc - Sparklines'!$D23,INDIRECT($AB23),0)-G$3))=FALSE,NA(), INDEX(INDIRECT($Z23), MATCH('Calc - Sparklines'!$C$1,INDIRECT($AA23),0), MATCH('Calc - Sparklines'!$D23,INDIRECT($AB23),0)-G$3)),NA()) ->  | H23: =IFERROR(IF(ISNUMBER( INDEX(INDIRECT($Z23), MATCH('Calc - Sparklines'!$C$1,INDIRECT($AA23),0), MATCH('Calc - Sparklines'!$D23,INDIRECT($AB23),0)-H$3))=FALSE,NA(), INDEX(INDIRECT($Z23), MATCH('Calc - Sparklines'!$C$1,INDIRECT($AA23),0), MATCH('Calc - Sparklines'!$D23,INDIRECT($AB23),0)-H$3)),NA()) ->  | I23: =IFERROR(IF(ISNUMBER( INDEX(INDIRECT($Z23), MATCH('Calc - Sparklines'!$C$1,INDIRECT($AA23),0), MATCH('Calc - Sparklines'!$D23,INDIRECT($AB23),0)-I$3))=FALSE,NA(), INDEX(INDIRECT($Z23), MATCH('Calc - Sparklines'!$C$1,INDIRECT($AA23),0), MATCH('Calc - Sparklines'!$D23,INDIRECT($AB23),0)-I$3)),NA()) ->  | J23: =IFERROR(IF(ISNUMBER( INDEX(INDIRECT($Z23), MATCH('Calc - Sparklines'!$C$1,INDIRECT($AA23),0), MATCH('Calc - Sparklines'!$D23,INDIRECT($AB23),0)-J$3))=FALSE,NA(), INDEX(INDIRECT($Z23), MATCH('Calc - Sparklines'!$C$1,INDIRECT($AA23),0), MATCH('Calc - Sparklines'!$D23,INDIRECT($AB23),0)-J$3)),NA()) ->  | K23: =IFERROR(IF(ISNUMBER( INDEX(INDIRECT($Z23), MATCH('Calc - Sparklines'!$C$1,INDIRECT($AA23),0), MATCH('Calc - Sparklines'!$D23,INDIRECT($AB23),0)-K$3))=FALSE,NA(), INDEX(INDIRECT($Z23), MATCH('Calc - Sparklines'!$C$1,INDIRECT($AA23),0), MATCH('Calc - Sparklines'!$D23,INDIRECT($AB23),0)-K$3)),NA()) ->  | L23: =IFERROR(IF(ISNUMBER( INDEX(INDIRECT($Z23), MATCH('Calc - Sparklines'!$C$1,INDIRECT($AA23),0), MATCH('Calc - Sparklines'!$D23,INDIRECT($AB23),0)-L$3))=FALSE,NA(), INDEX(INDIRECT($Z23), MATCH('Calc - Sparklines'!$C$1,INDIRECT($AA23),0), MATCH('Calc - Sparklines'!$D23,INDIRECT($AB23),0)-L$3)),NA()) ->  | M23: =IFERROR(IF(ISNUMBER( INDEX(INDIRECT($Z23), MATCH('Calc - Sparklines'!$C$1,INDIRECT($AA23),0), MATCH('Calc - Sparklines'!$D23,INDIRECT($AB23),0)-M$3))=FALSE,NA(), INDEX(INDIRECT($Z23), MATCH('Calc - Sparklines'!$C$1,INDIRECT($AA23),0), MATCH('Calc - Sparklines'!$D23,INDIRECT($AB23),0)-M$3)),NA()) ->  | N23: =IFERROR(IF(ISNUMBER( INDEX(INDIRECT($Z23), MATCH('Calc - Sparklines'!$C$1,INDIRECT($AA23),0), MATCH('Calc - Sparklines'!$D23,INDIRECT($AB23),0)-N$3))=FALSE,NA(), INDEX(INDIRECT($Z23), MATCH('Calc - Sparklines'!$C$1,INDIRECT($AA23),0), MATCH('Calc - Sparklines'!$D23,INDIRECT($AB23),0)-N$3)),NA()) ->  | O23: =IFERROR(IF(ISNUMBER( INDEX(INDIRECT($Z23), MATCH('Calc - Sparklines'!$C$1,INDIRECT($AA23),0), MATCH('Calc - Sparklines'!$D23,INDIRECT($AB23),0)-O$3))=FALSE,NA(), INDEX(INDIRECT($Z23), MATCH('Calc - Sparklines'!$C$1,INDIRECT($AA23),0), MATCH('Calc - Sparklines'!$D23,INDIRECT($AB23),0)-O$3)),NA()) ->  | P23: =IFERROR(IF(ISNUMBER( INDEX(INDIRECT($Z23), MATCH('Calc - Sparklines'!$C$1,INDIRECT($AA23),0), MATCH('Calc - Sparklines'!$D23,INDIRECT($AB23),0)-P$3))=FALSE,NA(), INDEX(INDIRECT($Z23), MATCH('Calc - Sparklines'!$C$1,INDIRECT($AA23),0), MATCH('Calc - Sparklines'!$D23,INDIRECT($AB23),0)-P$3)),NA()) ->  | R23: 0 | X23: N/A | AD23: Heading
A24: IAPT_i_a | B24: IAPT(i.a) | C24: IAPT access to treatment rate | D24: ='IAPT(i_a)_FINAL CALC'!B6 -> Q1-Q2 2017/18 | E24: =IFERROR(IF(ISNUMBER( INDEX(INDIRECT($Z24), MATCH('Calc - Sparklines'!$C$1,INDIRECT($AA24),0), MATCH('Calc - Sparklines'!$D24,INDIRECT($AB24),0)-E$3))=FALSE,NA(), INDEX(INDIRECT($Z24), MATCH('Calc - Sparklines'!$C$1,INDIRECT($AA24),0), MATCH('Calc - Sparklines'!$D24,INDIRECT($AB24),0)-E$3)),NA()) ->  | F24: =IFERROR(IF(ISNUMBER( INDEX(INDIRECT($Z24), MATCH('Calc - Sparklines'!$C$1,INDIRECT($AA24),0), MATCH('Calc - Sparklines'!$D24,INDIRECT($AB24),0)-F$3))=FALSE,NA(), INDEX(INDIRECT($Z24), MATCH('Calc - Sparklines'!$C$1,INDIRECT($AA24),0), MATCH('Calc - Sparklines'!$D24,INDIRECT($AB24),0)-F$3)),NA()) ->  | G24: =IFERROR(IF(ISNUMBER( INDEX(INDIRECT($Z24), MATCH('Calc - Sparklines'!$C$1,INDIRECT($AA24),0), MATCH('Calc - Sparklines'!$D24,INDIRECT($AB24),0)-G$3))=FALSE,NA(), INDEX(INDIRECT($Z24), MATCH('Calc - Sparklines'!$C$1,INDIRECT($AA24),0), MATCH('Calc - Sparklines'!$D24,INDIRECT($AB24),0)-G$3)),NA()) ->  | H24: =IFERROR(IF(ISNUMBER( INDEX(INDIRECT($Z24), MATCH('Calc - Sparklines'!$C$1,INDIRECT($AA24),0), MATCH('Calc - Sparklines'!$D24,INDIRECT($AB24),0)-H$3))=FALSE,NA(), INDEX(INDIRECT($Z24), MATCH('Calc - Sparklines'!$C$1,INDIRECT($AA24),0), MATCH('Calc - Sparklines'!$D24,INDIRECT($AB24),0)-H$3)),NA()) ->  | I24: =IFERROR(IF(ISNUMBER( INDEX(INDIRECT($Z24), MATCH('Calc - Sparklines'!$C$1,INDIRECT($AA24),0), MATCH('Calc - Sparklines'!$D24,INDIRECT($AB24),0)-I$3))=FALSE,NA(), INDEX(INDIRECT($Z24), MATCH('Calc - Sparklines'!$C$1,INDIRECT($AA24),0), MATCH('Calc - Sparklines'!$D24,INDIRECT($AB24),0)-I$3)),NA()) ->  | J24: =IFERROR(IF(ISNUMBER( INDEX(INDIRECT($Z24), MATCH('Calc - Sparklines'!$C$1,INDIRECT($AA24),0), MATCH('Calc - Sparklines'!$D24,INDIRECT($AB24),0)-J$3))=FALSE,NA(), INDEX(INDIRECT($Z24), MATCH('Calc - Sparklines'!$C$1,INDIRECT($AA24),0), MATCH('Calc - Sparklines'!$D24,INDIRECT($AB24),0)-J$3)),NA()) ->  | K24: =IFERROR(IF(ISNUMBER( INDEX(INDIRECT($Z24), MATCH('Calc - Sparklines'!$C$1,INDIRECT($AA24),0), MATCH('Calc - Sparklines'!$D24,INDIRECT($AB24),0)-K$3))=FALSE,NA(), INDEX(INDIRECT($Z24), MATCH('Calc - Sparklines'!$C$1,INDIRECT($AA24),0), MATCH('Calc - Sparklines'!$D24,INDIRECT($AB24),0)-K$3)),NA()) ->  | L24: =IFERROR(IF(ISNUMBER( INDEX(INDIRECT($Z24), MATCH('Calc - Sparklines'!$C$1,INDIRECT($AA24),0), MATCH('Calc - Sparklines'!$D24,INDIRECT($AB24),0)-L$3))=FALSE,NA(), INDEX(INDIRECT($Z24), MATCH('Calc - Sparklines'!$C$1,INDIRECT($AA24),0), MATCH('Calc - Sparklines'!$D24,INDIRECT($AB24),0)-L$3)),NA()) ->  | M24: =IFERROR(IF(ISNUMBER( INDEX(INDIRECT($Z24), MATCH('Calc - Sparklines'!$C$1,INDIRECT($AA24),0), MATCH('Calc - Sparklines'!$D24,INDIRECT($AB24),0)-M$3))=FALSE,NA(), INDEX(INDIRECT($Z24), MATCH('Calc - Sparklines'!$C$1,INDIRECT($AA24),0), MATCH('Calc - Sparklines'!$D24,INDIRECT($AB24),0)-M$3)),NA()) ->  | N24: =IFERROR(IF(ISNUMBER( INDEX(INDIRECT($Z24), MATCH('Calc - Sparklines'!$C$1,INDIRECT($AA24),0), MATCH('Calc - Sparklines'!$D24,INDIRECT($AB24),0)-N$3))=FALSE,NA(), INDEX(INDIRECT($Z24), MATCH('Calc - Sparklines'!$C$1,INDIRECT($AA24),0), MATCH('Calc - Sparklines'!$D24,INDIRECT($AB24),0)-N$3)),NA()) -> 0.1551033456 | O24: =IFERROR(IF(ISNUMBER( INDEX(INDIRECT($Z24), MATCH('Calc - Sparklines'!$C$1,INDIRECT($AA24),0), MATCH('Calc - Sparklines'!$D24,INDIRECT($AB24),0)-O$3))=FALSE,NA(), INDEX(INDIRECT($Z24), MATCH('Calc - Sparklines'!$C$1,INDIRECT($AA24),0), MATCH('Calc - Sparklines'!$D24,INDIRECT($AB24),0)-O$3)),NA()) -> 0.1584897803 | P24: =IFERROR(IF(ISNUMBER( INDEX(INDIRECT($Z24), MATCH('Calc - Sparklines'!$C$1,INDIRECT($AA24),0), MATCH('Calc - Sparklines'!$D24,INDIRECT($AB24),0)-P$3))=FALSE,NA(), INDEX(INDIRECT($Z24), MATCH('Calc - Sparklines'!$C$1,INDIRECT($AA24),0), MATCH('Calc - Sparklines'!$D24,INDIRECT($AB24),0)-P$3)),NA()) -> 0.1608281136 | R24: 3 | S24: 0 | T24: 0.1608281136 | U24: 0.1584897803 | V24: ▲ | W24: Sparkline12 | Z24: Data_Table_IAPT_i_a | AA24: Data_Orgs_IAPT_i_a | AB24: Data_Dates_IAPT_i_a | AD24: Chart available at CCG & STP level only | AE24: =IF(OR(Dashboard!$N$3=1,Dashboard!$N$3=2),"Chart available at CCG & STP level only","") -> Chart available at CCG & STP level only
A25: IAPT_i_b | B25: IAPT(i.b) | C25: IAPT % of all referrals that are for older people 65+ | D25: ='IAPT(i_b)_FINAL CALC'!B6 -> Q1-Q2 2017/18 | E25: =IFERROR(IF(ISNUMBER( INDEX(INDIRECT($Z25), MATCH('Calc - Sparklines'!$C$1,INDIRECT($AA25),0), MATCH('Calc - Sparklines'!$D25,INDIRECT($AB25),0)-E$3))=FALSE,NA(), INDEX(INDIRECT($Z25), MATCH('Calc - Sparklines'!$C$1,INDIRECT($AA25),0), MATCH('Calc - Sparklines'!$D25,INDIRECT($AB25),0)-E$3)),NA()) ->  | F25: =IFERROR(IF(ISNUMBER( INDEX(INDIRECT($Z25), MATCH('Calc - Sparklines'!$C$1,INDIRECT($AA25),0), MATCH('Calc - Sparklines'!$D25,INDIRECT($AB25),0)-F$3))=FALSE,NA(), INDEX(INDIRECT($Z25), MATCH('Calc - Sparklines'!$C$1,INDIRECT($AA25),0), MATCH('Calc - Sparklines'!$D25,INDIRECT($AB25),0)-F$3)),NA()) ->  | G25: =IFERROR(IF(ISNUMBER( INDEX(INDIRECT($Z25), MATCH('Calc - Sparklines'!$C$1,INDIRECT($AA25),0), MATCH('Calc - Sparklines'!$D25,INDIRECT($AB25),0)-G$3))=FALSE,NA(), INDEX(INDIRECT($Z25), MATCH('Calc - Sparklines'!$C$1,INDIRECT($AA25),0), MATCH('Calc - Sparklines'!$D25,INDIRECT($AB25),0)-G$3)),NA()) ->  | H25: =IFERROR(IF(ISNUMBER( INDEX(INDIRECT($Z25), MATCH('Calc - Sparklines'!$C$1,INDIRECT($AA25),0), MATCH('Calc - Sparklines'!$D25,INDIRECT($AB25),0)-H$3))=FALSE,NA(), INDEX(INDIRECT($Z25), MATCH('Calc - Sparklines'!$C$1,INDIRECT($AA25),0), MATCH('Calc - Sparklines'!$D25,INDIRECT($AB25),0)-H$3)),NA()) ->  | I25: =IFERROR(IF(ISNUMBER( INDEX(INDIRECT($Z25), MATCH('Calc - Sparklines'!$C$1,INDIRECT($AA25),0), MATCH('Calc - Sparklines'!$D25,INDIRECT($AB25),0)-I$3))=FALSE,NA(), INDEX(INDIRECT($Z25), MATCH('Calc - Sparklines'!$C$1,INDIRECT($AA25),0), MATCH('Calc - Sparklines'!$D25,INDIRECT($AB25),0)-I$3)),NA()) ->  | J25: =IFERROR(IF(ISNUMBER( INDEX(INDIRECT($Z25), MATCH('Calc - Sparklines'!$C$1,INDIRECT($AA25),0), MATCH('Calc - Sparklines'!$D25,INDIRECT($AB25),0)-J$3))=FALSE,NA(), INDEX(INDIRECT($Z25), MATCH('Calc - Sparklines'!$C$1,INDIRECT($AA25),0), MATCH('Calc - Sparklines'!$D25,INDIRECT($AB25),0)-J$3)),NA()) ->  | K25: =IFERROR(IF(ISNUMBER( INDEX(INDIRECT($Z25), MATCH('Calc - Sparklines'!$C$1,INDIRECT($AA25),0), MATCH('Calc - Sparklines'!$D25,INDIRECT($AB25),0)-K$3))=FALSE,NA(), INDEX(INDIRECT($Z25), MATCH('Calc - Sparklines'!$C$1,INDIRECT($AA25),0), MATCH('Calc - Sparklines'!$D25,INDIRECT($AB25),0)-K$3)),NA()) ->  | L25: =IFERROR(IF(ISNUMBER( INDEX(INDIRECT($Z25), MATCH('Calc - Sparklines'!$C$1,INDIRECT($AA25),0), MATCH('Calc - Sparklines'!$D25,INDIRECT($AB25),0)-L$3))=FALSE,NA(), INDEX(INDIRECT($Z25), MATCH('Calc - Sparklines'!$C$1,INDIRECT($AA25),0), MATCH('Calc - Sparklines'!$D25,INDIRECT($AB25),0)-L$3)),NA()) ->  | M25: =IFERROR(IF(ISNUMBER( INDEX(INDIRECT($Z25), MATCH('Calc - Sparklines'!$C$1,INDIRECT($AA25),0), MATCH('Calc - Sparklines'!$D25,INDIRECT($AB25),0)-M$3))=FALSE,NA(), INDEX(INDIRECT($Z25), MATCH('Calc - Sparklines'!$C$1,INDIRECT($AA25),0), MATCH('Calc - Sparklines'!$D25,INDIRECT($AB25),0)-M$3)),NA()) ->  | N25: =IFERROR(IF(ISNUMBER( INDEX(INDIRECT($Z25), MATCH('Calc - Sparklines'!$C$1,INDIRECT($AA25),0), MATCH('Calc - Sparklines'!$D25,INDIRECT($AB25),0)-N$3))=FALSE,NA(), INDEX(INDIRECT($Z25), MATCH('Calc - Sparklines'!$C$1,INDIRECT($AA25),0), MATCH('Calc - Sparklines'!$D25,INDIRECT($AB25),0)-N$3)),NA()) ->  | O25: =IFERROR(IF(ISNUMBER( INDEX(INDIRECT($Z25), MATCH('Calc - Sparklines'!$C$1,INDIRECT($AA25),0), MATCH('Calc - Sparklines'!$D25,INDIRECT($AB25),0)-O$3))=FALSE,NA(), INDEX(INDIRECT($Z25), MATCH('Calc - Sparklines'!$C$1,INDIRECT($AA25),0), MATCH('Calc - Sparklines'!$D25,INDIRECT($AB25),0)-O$3)),NA()) -> 0.06267685283 | P25: =IFERROR(IF(ISNUMBER( INDEX(INDIRECT($Z25), MATCH('Calc - Sparklines'!$C$1,INDIRECT($AA25),0), MATCH('Calc - Sparklines'!$D25,INDIRECT($AB25),0)-P$3))=FALSE,NA(), INDEX(INDIRECT($Z25), MATCH('Calc - Sparklines'!$C$1,INDIRECT($AA25),0), MATCH('Calc - Sparklines'!$D25,INDIRECT($AB25),0)-P$3)),NA()) -> 0.06884736227 | R25: 0 | S25: 0 | T25: 0.06884736227 | U25: 0.06267685283 | V25: ▲ | W25: Sparkline13 | X25: N/A | Z25: Data_Table_IAPT_i_b | AA25: Data_Orgs_IAPT_i_b | AB25: Data_Dates_IAPT_i_b | AD25: Chart available at CCG & STP level only | AE25: =IF(OR(Dashboard!$N$3=1,Dashboard!$N$3=2),"Chart available at CCG & STP level only","") -> Chart available at CCG & STP level only
A26: IAPT_ii_a | B26: IAPT(ii.a) | C26: IAPT recovery rate: % of people that attended at least 2 treatment contacts and are moving to recovery | D26: ='IAPT(ii_a)_FINAL CALC'!B6 -> Q1-Q2 2017/18 | E26: =IFERROR(IF(ISNUMBER( INDEX(INDIRECT($Z26), MATCH('Calc - Sparklines'!$C$1,INDIRECT($AA26),0), MATCH('Calc - Sparklines'!$D26,INDIRECT($AB26),0)-E$3))=FALSE,NA(), INDEX(INDIRECT($Z26), MATCH('Calc - Sparklines'!$C$1,INDIRECT($AA26),0), MATCH('Calc - Sparklines'!$D26,INDIRECT($AB26),0)-E$3)),NA()) ->  | F26: =IFERROR(IF(ISNUMBER( INDEX(INDIRECT($Z26), MATCH('Calc - Sparklines'!$C$1,INDIRECT($AA26),0), MATCH('Calc - Sparklines'!$D26,INDIRECT($AB26),0)-F$3))=FALSE,NA(), INDEX(INDIRECT($Z26), MATCH('Calc - Sparklines'!$C$1,INDIRECT($AA26),0), MATCH('Calc - Sparklines'!$D26,INDIRECT($AB26),0)-F$3)),NA()) ->  | G26: =IFERROR(IF(ISNUMBER( INDEX(INDIRECT($Z26), MATCH('Calc - Sparklines'!$C$1,INDIRECT($AA26),0), MATCH('Calc - Sparklines'!$D26,INDIRECT($AB26),0)-G$3))=FALSE,NA(), INDEX(INDIRECT($Z26), MATCH('Calc - Sparklines'!$C$1,INDIRECT($AA26),0), MATCH('Calc - Sparklines'!$D26,INDIRECT($AB26),0)-G$3)),NA()) ->  | H26: =IFERROR(IF(ISNUMBER( INDEX(INDIRECT($Z26), MATCH('Calc - Sparklines'!$C$1,INDIRECT($AA26),0), MATCH('Calc - Sparklines'!$D26,INDIRECT($AB26),0)-H$3))=FALSE,NA(), INDEX(INDIRECT($Z26), MATCH('Calc - Sparklines'!$C$1,INDIRECT($AA26),0), MATCH('Calc - Sparklines'!$D26,INDIRECT($AB26),0)-H$3)),NA()) ->  | I26: =IFERROR(IF(ISNUMBER( INDEX(INDIRECT($Z26), MATCH('Calc - Sparklines'!$C$1,INDIRECT($AA26),0), MATCH('Calc - Sparklines'!$D26,INDIRECT($AB26),0)-I$3))=FALSE,NA(), INDEX(INDIRECT($Z26), MATCH('Calc - Sparklines'!$C$1,INDIRECT($AA26),0), MATCH('Calc - Sparklines'!$D26,INDIRECT($AB26),0)-I$3)),NA()) ->  | J26: =IFERROR(IF(ISNUMBER( INDEX(INDIRECT($Z26), MATCH('Calc - Sparklines'!$C$1,INDIRECT($AA26),0), MATCH('Calc - Sparklines'!$D26,INDIRECT($AB26),0)-J$3))=FALSE,NA(), INDEX(INDIRECT($Z26), MATCH('Calc - Sparklines'!$C$1,INDIRECT($AA26),0), MATCH('Calc - Sparklines'!$D26,INDIRECT($AB26),0)-J$3)),NA()) ->  | K26: =IFERROR(IF(ISNUMBER( INDEX(INDIRECT($Z26), MATCH('Calc - Sparklines'!$C$1,INDIRECT($AA26),0), MATCH('Calc - Sparklines'!$D26,INDIRECT($AB26),0)-K$3))=FALSE,NA(), INDEX(INDIRECT($Z26), MATCH('Calc - Sparklines'!$C$1,INDIRECT($AA26),0), MATCH('Calc - Sparklines'!$D26,INDIRECT($AB26),0)-K$3)),NA()) ->  | L26: =IFERROR(IF(ISNUMBER( INDEX(INDIRECT($Z26), MATCH('Calc - Sparklines'!$C$1,INDIRECT($AA26),0), MATCH('Calc - Sparklines'!$D26,INDIRECT($AB26),0)-L$3))=FALSE,NA(), INDEX(INDIRECT($Z26), MATCH('Calc - Sparklines'!$C$1,INDIRECT($AA26),0), MATCH('Calc - Sparklines'!$D26,INDIRECT($AB26),0)-L$3)),NA()) ->  | M26: =IFERROR(IF(ISNUMBER( INDEX(INDIRECT($Z26), MATCH('Calc - Sparklines'!$C$1,INDIRECT($AA26),0), MATCH('Calc - Sparklines'!$D26,INDIRECT($AB26),0)-M$3))=FALSE,NA(), INDEX(INDIRECT($Z26), MATCH('Calc - Sparklines'!$C$1,INDIRECT($AA26),0), MATCH('Calc - Sparklines'!$D26,INDIRECT($AB26),0)-M$3)),NA()) ->  | N26: =IFERROR(IF(ISNUMBER( INDEX(INDIRECT($Z26), MATCH('Calc - Sparklines'!$C$1,INDIRECT($AA26),0), MATCH('Calc - Sparklines'!$D26,INDIRECT($AB26),0)-N$3))=FALSE,NA(), INDEX(INDIRECT($Z26), MATCH('Calc - Sparklines'!$C$1,INDIRECT($AA26),0), MATCH('Calc - Sparklines'!$D26,INDIRECT($AB26),0)-N$3)),NA()) -> 0.4868726697 | O26: =IFERROR(IF(ISNUMBER( INDEX(INDIRECT($Z26), MATCH('Calc - Sparklines'!$C$1,INDIRECT($AA26),0), MATCH('Calc - Sparklines'!$D26,INDIRECT($AB26),0)-O$3))=FALSE,NA(), INDEX(INDIRECT($Z26), MATCH('Calc - Sparklines'!$C$1,INDIRECT($AA26),0), MATCH('Calc - Sparklines'!$D26,INDIRECT($AB26),0)-O$3)),NA()) -> 0.4991565741 | P26: =IFERROR(IF(ISNUMBER( INDEX(INDIRECT($Z26), MATCH('Calc - Sparklines'!$C$1,INDIRECT($AA26),0), MATCH('Calc - Sparklines'!$D26,INDIRECT($AB26),0)-P$3))=FALSE,NA(), INDEX(INDIRECT($Z26), MATCH('Calc - Sparklines'!$C$1,INDIRECT($AA26),0), MATCH('Calc - Sparklines'!$D26,INDIRECT($AB26),0)-P$3)),NA()) -> 0.5072391413 | R26: 3 | S26: 0 | T26: 0.5072391413 | U26: 0.4991565741 | V26: ▲ | W26: Sparkline14 | Z26: Data_Table_IAPT_ii_a | AA26: Data_Orgs_IAPT_ii_a | AB26: Data_Dates_IAPT_ii_a | AD26: Chart available at CCG & STP level only | AE26: =IF(OR(Dashboard!$N$3=1,Dashboard!$N$3=2),"Chart available at CCG & STP level only","") -> Chart available at CCG & STP level only
A27: IAPT_ii_b | B27: IAPT(ii.b) | C27: IAPT recovery rate for black or minority ethnic (BME) groups | D27: ='IAPT(ii_b)_FINAL CALC'!B6 -> Q1-Q2 2017/18 | E27: =IFERROR(IF(ISNUMBER( INDEX(INDIRECT($Z27), MATCH('Calc - Sparklines'!$C$1,INDIRECT($AA27),0), MATCH('Calc - Sparklines'!$D27,INDIRECT($AB27),0)-E$3))=FALSE,NA(), INDEX(INDIRECT($Z27), MATCH('Calc - Sparklines'!$C$1,INDIRECT($AA27),0), MATCH('Calc - Sparklines'!$D27,INDIRECT($AB27),0)-E$3)),NA()) ->  | F27: =IFERROR(IF(ISNUMBER( INDEX(INDIRECT($Z27), MATCH('Calc - Sparklines'!$C$1,INDIRECT($AA27),0), MATCH('Calc - Sparklines'!$D27,INDIRECT($AB27),0)-F$3))=FALSE,NA(), INDEX(INDIRECT($Z27), MATCH('Calc - Sparklines'!$C$1,INDIRECT($AA27),0), MATCH('Calc - Sparklines'!$D27,INDIRECT($AB27),0)-F$3)),NA()) ->  | G27: =IFERROR(IF(ISNUMBER( INDEX(INDIRECT($Z27), MATCH('Calc - Sparklines'!$C$1,INDIRECT($AA27),0), MATCH('Calc - Sparklines'!$D27,INDIRECT($AB27),0)-G$3))=FALSE,NA(), INDEX(INDIRECT($Z27), MATCH('Calc - Sparklines'!$C$1,INDIRECT($AA27),0), MATCH('Calc - Sparklines'!$D27,INDIRECT($AB27),0)-G$3)),NA()) ->  | H27: =IFERROR(IF(ISNUMBER( INDEX(INDIRECT($Z27), MATCH('Calc - Sparklines'!$C$1,INDIRECT($AA27),0), MATCH('Calc - Sparklines'!$D27,INDIRECT($AB27),0)-H$3))=FALSE,NA(), INDEX(INDIRECT($Z27), MATCH('Calc - Sparklines'!$C$1,INDIRECT($AA27),0), MATCH('Calc - Sparklines'!$D27,INDIRECT($AB27),0)-H$3)),NA()) ->  | I27: =IFERROR(IF(ISNUMBER( INDEX(INDIRECT($Z27), MATCH('Calc - Sparklines'!$C$1,INDIRECT($AA27),0), MATCH('Calc - Sparklines'!$D27,INDIRECT($AB27),0)-I$3))=FALSE,NA(), INDEX(INDIRECT($Z27), MATCH('Calc - Sparklines'!$C$1,INDIRECT($AA27),0), MATCH('Calc - Sparklines'!$D27,INDIRECT($AB27),0)-I$3)),NA()) ->  | J27: =IFERROR(IF(ISNUMBER( INDEX(INDIRECT($Z27), MATCH('Calc - Sparklines'!$C$1,INDIRECT($AA27),0), MATCH('Calc - Sparklines'!$D27,INDIRECT($AB27),0)-J$3))=FALSE,NA(), INDEX(INDIRECT($Z27), MATCH('Calc - Sparklines'!$C$1,INDIRECT($AA27),0), MATCH('Calc - Sparklines'!$D27,INDIRECT($AB27),0)-J$3)),NA()) ->  | K27: =IFERROR(IF(ISNUMBER( INDEX(INDIRECT($Z27), MATCH('Calc - Sparklines'!$C$1,INDIRECT($AA27),0), MATCH('Calc - Sparklines'!$D27,INDIRECT($AB27),0)-K$3))=FALSE,NA(), INDEX(INDIRECT($Z27), MATCH('Calc - Sparklines'!$C$1,INDIRECT($AA27),0), MATCH('Calc - Sparklines'!$D27,INDIRECT($AB27),0)-K$3)),NA()) ->  | L27: =IFERROR(IF(ISNUMBER( INDEX(INDIRECT($Z27), MATCH('Calc - Sparklines'!$C$1,INDIRECT($AA27),0), MATCH('Calc - Sparklines'!$D27,INDIRECT($AB27),0)-L$3))=FALSE,NA(), INDEX(INDIRECT($Z27), MATCH('Calc - Sparklines'!$C$1,INDIRECT($AA27),0), MATCH('Calc - Sparklines'!$D27,INDIRECT($AB27),0)-L$3)),NA()) ->  | M27: =IFERROR(IF(ISNUMBER( INDEX(INDIRECT($Z27), MATCH('Calc - Sparklines'!$C$1,INDIRECT($AA27),0), MATCH('Calc - Sparklines'!$D27,INDIRECT($AB27),0)-M$3))=FALSE,NA(), INDEX(INDIRECT($Z27), MATCH('Calc - Sparklines'!$C$1,INDIRECT($AA27),0), MATCH('Calc - Sparklines'!$D27,INDIRECT($AB27),0)-M$3)),NA()) ->  | N27: =IFERROR(IF(ISNUMBER( INDEX(INDIRECT($Z27), MATCH('Calc - Sparklines'!$C$1,INDIRECT($AA27),0), MATCH('Calc - Sparklines'!$D27,INDIRECT($AB27),0)-N$3))=FALSE,NA(), INDEX(INDIRECT($Z27), MATCH('Calc - Sparklines'!$C$1,INDIRECT($AA27),0), MATCH('Calc - Sparklines'!$D27,INDIRECT($AB27),0)-N$3)),NA()) -> 0.4504373178 | O27: =IFERROR(IF(ISNUMBER( INDEX(INDIRECT($Z27), MATCH('Calc - Sparklines'!$C$1,INDIRECT($AA27),0), MATCH('Calc - Sparklines'!$D27,INDIRECT($AB27),0)-O$3))=FALSE,NA(), INDEX(INDIRECT($Z27), MATCH('Calc - Sparklines'!$C$1,INDIRECT($AA27),0), MATCH('Calc - Sparklines'!$D27,INDIRECT($AB27),0)-O$3)),NA()) -> 0.4637298245 | P27: =IFERROR(IF(ISNUMBER( INDEX(INDIRECT($Z27), MATCH('Calc - Sparklines'!$C$1,INDIRECT($AA27),0), MATCH('Calc - Sparklines'!$D27,INDIRECT($AB27),0)-P$3))=FALSE,NA(), INDEX(INDIRECT($Z27), MATCH('Calc - Sparklines'!$C$1,INDIRECT($AA27),0), MATCH('Calc - Sparklines'!$D27,INDIRECT($AB27),0)-P$3)),NA()) -> 0.4705637459 | R27: 3 | S27: 0 | T27: 0.4705637459 | U27: 0.4637298245 | V27: ▲ | W27: Sparkline15 | Z27: Data_Table_IAPT_ii_b | AA27: Data_Orgs_IAPT_ii_b | AB27: Data_Dates_IAPT_ii_b | AD27: Chart available at CCG & STP level only | AE27: =IF(OR(Dashboard!$N$3=1,Dashboard!$N$3=2),"Chart available at CCG & STP level only","") -> Chart available at CCG & STP level only
A28: IAPT_iii_a | B28: IAPT(iii.a) | C28: IAPT: % of people receiving first treatment appointment within 6 weeks of referral | D28: ='IAPT(iii_a)_FINAL CALC'!B6 -> Q1-Q2 2017/18 | E28: =IFERROR(IF(ISNUMBER( INDEX(INDIRECT($Z28), MATCH('Calc - Sparklines'!$C$1,INDIRECT($AA28),0), MATCH('Calc - Sparklines'!$D28,INDIRECT($AB28),0)-E$3))=FALSE,NA(), INDEX(INDIRECT($Z28), MATCH('Calc - Sparklines'!$C$1,INDIRECT($AA28),0), MATCH('Calc - Sparklines'!$D28,INDIRECT($AB28),0)-E$3)),NA()) ->  | F28: =IFERROR(IF(ISNUMBER( INDEX(INDIRECT($Z28), MATCH('Calc - Sparklines'!$C$1,INDIRECT($AA28),0), MATCH('Calc - Sparklines'!$D28,INDIRECT($AB28),0)-F$3))=FALSE,NA(), INDEX(INDIRECT($Z28), MATCH('Calc - Sparklines'!$C$1,INDIRECT($AA28),0), MATCH('Calc - Sparklines'!$D28,INDIRECT($AB28),0)-F$3)),NA()) ->  | G28: =IFERROR(IF(ISNUMBER( INDEX(INDIRECT($Z28), MATCH('Calc - Sparklines'!$C$1,INDIRECT($AA28),0), MATCH('Calc - Sparklines'!$D28,INDIRECT($AB28),0)-G$3))=FALSE,NA(), INDEX(INDIRECT($Z28), MATCH('Calc - Sparklines'!$C$1,INDIRECT($AA28),0), MATCH('Calc - Sparklines'!$D28,INDIRECT($AB28),0)-G$3)),NA()) ->  | H28: =IFERROR(IF(ISNUMBER( INDEX(INDIRECT($Z28), MATCH('Calc - Sparklines'!$C$1,INDIRECT($AA28),0), MATCH('Calc - Sparklines'!$D28,INDIRECT($AB28),0)-H$3))=FALSE,NA(), INDEX(INDIRECT($Z28), MATCH('Calc - Sparklines'!$C$1,INDIRECT($AA28),0), MATCH('Calc - Sparklines'!$D28,INDIRECT($AB28),0)-H$3)),NA()) ->  | I28: =IFERROR(IF(ISNUMBER( INDEX(INDIRECT($Z28), MATCH('Calc - Sparklines'!$C$1,INDIRECT($AA28),0), MATCH('Calc - Sparklines'!$D28,INDIRECT($AB28),0)-I$3))=FALSE,NA(), INDEX(INDIRECT($Z28), MATCH('Calc - Sparklines'!$C$1,INDIRECT($AA28),0), MATCH('Calc - Sparklines'!$D28,INDIRECT($AB28),0)-I$3)),NA()) ->  | J28: =IFERROR(IF(ISNUMBER( INDEX(INDIRECT($Z28), MATCH('Calc - Sparklines'!$C$1,INDIRECT($AA28),0), MATCH('Calc - Sparklines'!$D28,INDIRECT($AB28),0)-J$3))=FALSE,NA(), INDEX(INDIRECT($Z28), MATCH('Calc - Sparklines'!$C$1,INDIRECT($AA28),0), MATCH('Calc - Sparklines'!$D28,INDIRECT($AB28),0)-J$3)),NA()) ->  | K28: =IFERROR(IF(ISNUMBER( INDEX(INDIRECT($Z28), MATCH('Calc - Sparklines'!$C$1,INDIRECT($AA28),0), MATCH('Calc - Sparklines'!$D28,INDIRECT($AB28),0)-K$3))=FALSE,NA(), INDEX(INDIRECT($Z28), MATCH('Calc - Sparklines'!$C$1,INDIRECT($AA28),0), MATCH('Calc - Sparklines'!$D28,INDIRECT($AB28),0)-K$3)),NA()) ->  | L28: =IFERROR(IF(ISNUMBER( INDEX(INDIRECT($Z28), MATCH('Calc - Sparklines'!$C$1,INDIRECT($AA28),0), MATCH('Calc - Sparklines'!$D28,INDIRECT($AB28),0)-L$3))=FALSE,NA(), INDEX(INDIRECT($Z28), MATCH('Calc - Sparklines'!$C$1,INDIRECT($AA28),0), MATCH('Calc - Sparklines'!$D28,INDIRECT($AB28),0)-L$3)),NA()) ->  | M28: =IFERROR(IF(ISNUMBER( INDEX(INDIRECT($Z28), MATCH('Calc - Sparklines'!$C$1,INDIRECT($AA28),0), MATCH('Calc - Sparklines'!$D28,INDIRECT($AB28),0)-M$3))=FALSE,NA(), INDEX(INDIRECT($Z28), MATCH('Calc - Sparklines'!$C$1,INDIRECT($AA28),0), MATCH('Calc - Sparklines'!$D28,INDIRECT($AB28),0)-M$3)),NA()) ->  | N28: =IFERROR(IF(ISNUMBER( INDEX(INDIRECT($Z28), MATCH('Calc - Sparklines'!$C$1,INDIRECT($AA28),0), MATCH('Calc - Sparklines'!$D28,INDIRECT($AB28),0)-N$3))=FALSE,NA(), INDEX(INDIRECT($Z28), MATCH('Calc - Sparklines'!$C$1,INDIRECT($AA28),0), MATCH('Calc - Sparklines'!$D28,INDIRECT($AB28),0)-N$3)),NA()) -> 0.8565967739 | O28: =IFERROR(IF(ISNUMBER( INDEX(INDIRECT($Z28), MATCH('Calc - Sparklines'!$C$1,INDIRECT($AA28),0), MATCH('Calc - Sparklines'!$D28,INDIRECT($AB28),0)-O$3))=FALSE,NA(), INDEX(INDIRECT($Z28), MATCH('Calc - Sparklines'!$C$1,INDIRECT($AA28),0), MATCH('Calc - Sparklines'!$D28,INDIRECT($AB28),0)-O$3)),NA()) -> 0.8915284529 | P28: =IFERROR(IF(ISNUMBER( INDEX(INDIRECT($Z28), MATCH('Calc - Sparklines'!$C$1,INDIRECT($AA28),0), MATCH('Calc - Sparklines'!$D28,INDIRECT($AB28),0)-P$3))=FALSE,NA(), INDEX(INDIRECT($Z28), MATCH('Calc - Sparklines'!$C$1,INDIRECT($AA28),0), MATCH('Calc - Sparklines'!$D28,INDIRECT($AB28),0)-P$3)),NA()) -> 0.8894273096 | R28: 3 | S28: 0 | T28: 0.8894273096 | U28: 0.8915284529 | V28: ▼ | W28: Sparkline16 | Z28: Data_Table_IAPT_iii_a | AA28: Data_Orgs_IAPT_iii_a | AB28: Data_Dates_IAPT_iii_a | AD28: Chart available at CCG & STP level only | AE28: =IF(OR(Dashboard!$N$3=1,Dashboard!$N$3=2),"Chart available at CCG & STP level only","") -> Chart available at CCG & STP level only
A29: IAPT_iii_b | B29: IAPT(iii.b) | C29: IAPT: % of people receiving first treatment appointment within 18 weeks of referral | D29: ='IAPT(iii_b)_FINAL CALC'!B6 -> Q1-Q2 2017/18 | E29: =IFERROR(IF(ISNUMBER( INDEX(INDIRECT($Z29), MATCH('Calc - Sparklines'!$C$1,INDIRECT($AA29),0), MATCH('Calc - Sparklines'!$D29,INDIRECT($AB29),0)-E$3))=FALSE,NA(), INDEX(INDIRECT($Z29), MATCH('Calc - Sparklines'!$C$1,INDIRECT($AA29),0), MATCH('Calc - Sparklines'!$D29,INDIRECT($AB29),0)-E$3)),NA()) ->  | F29: =IFERROR(IF(ISNUMBER( INDEX(INDIRECT($Z29), MATCH('Calc - Sparklines'!$C$1,INDIRECT($AA29),0), MATCH('Calc - Sparklines'!$D29,INDIRECT($AB29),0)-F$3))=FALSE,NA(), INDEX(INDIRECT($Z29), MATCH('Calc - Sparklines'!$C$1,INDIRECT($AA29),0), MATCH('Calc - Sparklines'!$D29,INDIRECT($AB29),0)-F$3)),NA()) ->  | G29: =IFERROR(IF(ISNUMBER( INDEX(INDIRECT($Z29), MATCH('Calc - Sparklines'!$C$1,INDIRECT($AA29),0), MATCH('Calc - Sparklines'!$D29,INDIRECT($AB29),0)-G$3))=FALSE,NA(), INDEX(INDIRECT($Z29), MATCH('Calc - Sparklines'!$C$1,INDIRECT($AA29),0), MATCH('Calc - Sparklines'!$D29,INDIRECT($AB29),0)-G$3)),NA()) ->  | H29: =IFERROR(IF(ISNUMBER( INDEX(INDIRECT($Z29), MATCH('Calc - Sparklines'!$C$1,INDIRECT($AA29),0), MATCH('Calc - Sparklines'!$D29,INDIRECT($AB29),0)-H$3))=FALSE,NA(), INDEX(INDIRECT($Z29), MATCH('Calc - Sparklines'!$C$1,INDIRECT($AA29),0), MATCH('Calc - Sparklines'!$D29,INDIRECT($AB29),0)-H$3)),NA()) ->  | I29: =IFERROR(IF(ISNUMBER( INDEX(INDIRECT($Z29), MATCH('Calc - Sparklines'!$C$1,INDIRECT($AA29),0), MATCH('Calc - Sparklines'!$D29,INDIRECT($AB29),0)-I$3))=FALSE,NA(), INDEX(INDIRECT($Z29), MATCH('Calc - Sparklines'!$C$1,INDIRECT($AA29),0), MATCH('Calc - Sparklines'!$D29,INDIRECT($AB29),0)-I$3)),NA()) ->  | J29: =IFERROR(IF(ISNUMBER( INDEX(INDIRECT($Z29), MATCH('Calc - Sparklines'!$C$1,INDIRECT($AA29),0), MATCH('Calc - Sparklines'!$D29,INDIRECT($AB29),0)-J$3))=FALSE,NA(), INDEX(INDIRECT($Z29), MATCH('Calc - Sparklines'!$C$1,INDIRECT($AA29),0), MATCH('Calc - Sparklines'!$D29,INDIRECT($AB29),0)-J$3)),NA()) ->  | K29: =IFERROR(IF(ISNUMBER( INDEX(INDIRECT($Z29), MATCH('Calc - Sparklines'!$C$1,INDIRECT($AA29),0), MATCH('Calc - Sparklines'!$D29,INDIRECT($AB29),0)-K$3))=FALSE,NA(), INDEX(INDIRECT($Z29), MATCH('Calc - Sparklines'!$C$1,INDIRECT($AA29),0), MATCH('Calc - Sparklines'!$D29,INDIRECT($AB29),0)-K$3)),NA()) ->  | L29: =IFERROR(IF(ISNUMBER( INDEX(INDIRECT($Z29), MATCH('Calc - Sparklines'!$C$1,INDIRECT($AA29),0), MATCH('Calc - Sparklines'!$D29,INDIRECT($AB29),0)-L$3))=FALSE,NA(), INDEX(INDIRECT($Z29), MATCH('Calc - Sparklines'!$C$1,INDIRECT($AA29),0), MATCH('Calc - Sparklines'!$D29,INDIRECT($AB29),0)-L$3)),NA()) ->  | M29: =IFERROR(IF(ISNUMBER( INDEX(INDIRECT($Z29), MATCH('Calc - Sparklines'!$C$1,INDIRECT($AA29),0), MATCH('Calc - Sparklines'!$D29,INDIRECT($AB29),0)-M$3))=FALSE,NA(), INDEX(INDIRECT($Z29), MATCH('Calc - Sparklines'!$C$1,INDIRECT($AA29),0), MATCH('Calc - Sparklines'!$D29,INDIRECT($AB29),0)-M$3)),NA()) ->  | N29: =IFERROR(IF(ISNUMBER( INDEX(INDIRECT($Z29), MATCH('Calc - Sparklines'!$C$1,INDIRECT($AA29),0), MATCH('Calc - Sparklines'!$D29,INDIRECT($AB29),0)-N$3))=FALSE,NA(), INDEX(INDIRECT($Z29), MATCH('Calc - Sparklines'!$C$1,INDIRECT($AA29),0), MATCH('Calc - Sparklines'!$D29,INDIRECT($AB29),0)-N$3)),NA()) -> 0.9763778721 | O29: =IFERROR(IF(ISNUMBER( INDEX(INDIRECT($Z29), MATCH('Calc - Sparklines'!$C$1,INDIRECT($AA29),0), MATCH('Calc - Sparklines'!$D29,INDIRECT($AB29),0)-O$3))=FALSE,NA(), INDEX(INDIRECT($Z29), MATCH('Calc - Sparklines'!$C$1,INDIRECT($AA29),0), MATCH('Calc - Sparklines'!$D29,INDIRECT($AB29),0)-O$3)),NA()) -> 0.9920945199 | P29: =IFERROR(IF(ISNUMBER( INDEX(INDIRECT($Z29), MATCH('Calc - Sparklines'!$C$1,INDIRECT($AA29),0), MATCH('Calc - Sparklines'!$D29,INDIRECT($AB29),0)-P$3))=FALSE,NA(), INDEX(INDIRECT($Z29), MATCH('Calc - Sparklines'!$C$1,INDIRECT($AA29),0), MATCH('Calc - Sparklines'!$D29,INDIRECT($AB29),0)-P$3)),NA()) -> 0.9897286503 | R29: 3 | S29: 0 | T29: 0.9897286503 | U29: 0.9920945199 | V29: ▼ | W29: Sparkline17 | Z29: Data_Table_IAPT_iii_b | AA29: Data_Orgs_IAPT_iii_b | AB29: Data_Dates_IAPT_iii_b | AD29: Not Applicable | AE29: Not Applicable
A30: IAPT_iv | B30: IAPT(iv) | C30: IAPT forecast outturn (£k) | D30: ='IAPT(iv)_FINAL CALC'!B6 -> 2017/18 | E30: =IFERROR(IF(ISNUMBER( INDEX(INDIRECT($Z30), MATCH('Calc - Sparklines'!$C$1,INDIRECT($AA30),0), MATCH('Calc - Sparklines'!$D30,INDIRECT($AB30),0)-E$3))=FALSE,NA(), INDEX(INDIRECT($Z30), MATCH('Calc - Sparklines'!$C$1,INDIRECT($AA30),0), MATCH('Calc - Sparklines'!$D30,INDIRECT($AB30),0)-E$3)),NA()) ->  | F30: =IFERROR(IF(ISNUMBER( INDEX(INDIRECT($Z30), MATCH('Calc - Sparklines'!$C$1,INDIRECT($AA30),0), MATCH('Calc - Sparklines'!$D30,INDIRECT($AB30),0)-F$3))=FALSE,NA(), INDEX(INDIRECT($Z30), MATCH('Calc - Sparklines'!$C$1,INDIRECT($AA30),0), MATCH('Calc - Sparklines'!$D30,INDIRECT($AB30),0)-F$3)),NA()) ->  | G30: =IFERROR(IF(ISNUMBER( INDEX(INDIRECT($Z30), MATCH('Calc - Sparklines'!$C$1,INDIRECT($AA30),0), MATCH('Calc - Sparklines'!$D30,INDIRECT($AB30),0)-G$3))=FALSE,NA(), INDEX(INDIRECT($Z30), MATCH('Calc - Sparklines'!$C$1,INDIRECT($AA30),0), MATCH('Calc - Sparklines'!$D30,INDIRECT($AB30),0)-G$3)),NA()) ->  | H30: =IFERROR(IF(ISNUMBER( INDEX(INDIRECT($Z30), MATCH('Calc - Sparklines'!$C$1,INDIRECT($AA30),0), MATCH('Calc - Sparklines'!$D30,INDIRECT($AB30),0)-H$3))=FALSE,NA(), INDEX(INDIRECT($Z30), MATCH('Calc - Sparklines'!$C$1,INDIRECT($AA30),0), MATCH('Calc - Sparklines'!$D30,INDIRECT($AB30),0)-H$3)),NA()) ->  | I30: =IFERROR(IF(ISNUMBER( INDEX(INDIRECT($Z30), MATCH('Calc - Sparklines'!$C$1,INDIRECT($AA30),0), MATCH('Calc - Sparklines'!$D30,INDIRECT($AB30),0)-I$3))=FALSE,NA(), INDEX(INDIRECT($Z30), MATCH('Calc - Sparklines'!$C$1,INDIRECT($AA30),0), MATCH('Calc - Sparklines'!$D30,INDIRECT($AB30),0)-I$3)),NA()) ->  | J30: =IFERROR(IF(ISNUMBER( INDEX(INDIRECT($Z30), MATCH('Calc - Sparklines'!$C$1,INDIRECT($AA30),0), MATCH('Calc - Sparklines'!$D30,INDIRECT($AB30),0)-J$3))=FALSE,NA(), INDEX(INDIRECT($Z30), MATCH('Calc - Sparklines'!$C$1,INDIRECT($AA30),0), MATCH('Calc - Sparklines'!$D30,INDIRECT($AB30),0)-J$3)),NA()) ->  | K30: =IFERROR(IF(ISNUMBER( INDEX(INDIRECT($Z30), MATCH('Calc - Sparklines'!$C$1,INDIRECT($AA30),0), MATCH('Calc - Sparklines'!$D30,INDIRECT($AB30),0)-K$3))=FALSE,NA(), INDEX(INDIRECT($Z30), MATCH('Calc - Sparklines'!$C$1,INDIRECT($AA30),0), MATCH('Calc - Sparklines'!$D30,INDIRECT($AB30),0)-K$3)),NA()) ->  | L30: =IFERROR(IF(ISNUMBER( INDEX(INDIRECT($Z30), MATCH('Calc - Sparklines'!$C$1,INDIRECT($AA30),0), MATCH('Calc - Sparklines'!$D30,INDIRECT($AB30),0)-L$3))=FALSE,NA(), INDEX(INDIRECT($Z30), MATCH('Calc - Sparklines'!$C$1,INDIRECT($AA30),0), MATCH('Calc - Sparklines'!$D30,INDIRECT($AB30),0)-L$3)),NA()) ->  | M30: =IFERROR(IF(ISNUMBER( INDEX(INDIRECT($Z30), MATCH('Calc - Sparklines'!$C$1,INDIRECT($AA30),0), MATCH('Calc - Sparklines'!$D30,INDIRECT($AB30),0)-M$3))=FALSE,NA(), INDEX(INDIRECT($Z30), MATCH('Calc - Sparklines'!$C$1,INDIRECT($AA30),0), MATCH('Calc - Sparklines'!$D30,INDIRECT($AB30),0)-M$3)),NA()) ->  | N30: =IFERROR(IF(ISNUMBER( INDEX(INDIRECT($Z30), MATCH('Calc - Sparklines'!$C$1,INDIRECT($AA30),0), MATCH('Calc - Sparklines'!$D30,INDIRECT($AB30),0)-N$3))=FALSE,NA(), INDEX(INDIRECT($Z30), MATCH('Calc - Sparklines'!$C$1,INDIRECT($AA30),0), MATCH('Calc - Sparklines'!$D30,INDIRECT($AB30),0)-N$3)),NA()) ->  | O30: =IFERROR(IF(ISNUMBER( INDEX(INDIRECT($Z30), MATCH('Calc - Sparklines'!$C$1,INDIRECT($AA30),0), MATCH('Calc - Sparklines'!$D30,INDIRECT($AB30),0)-O$3))=FALSE,NA(), INDEX(INDIRECT($Z30), MATCH('Calc - Sparklines'!$C$1,INDIRECT($AA30),0), MATCH('Calc - Sparklines'!$D30,INDIRECT($AB30),0)-O$3)),NA()) ->  | P30: =IFERROR(IF(ISNUMBER( INDEX(INDIRECT($Z30), MATCH('Calc - Sparklines'!$C$1,INDIRECT($AA30),0), MATCH('Calc - Sparklines'!$D30,INDIRECT($AB30),0)-P$3))=FALSE,NA(), INDEX(INDIRECT($Z30), MATCH('Calc - Sparklines'!$C$1,INDIRECT($AA30),0), MATCH('Calc - Sparklines'!$D30,INDIRECT($AB30),0)-P$3)),NA()) -> 428790556.9 | R30: 0 | S30: 0 | T30: 428790556.9 | V30: N/A | X30: N/A | Z30: Data_Table_IAPT_iv | AA30: Data_Orgs_IAPT_iv | AB30: Data_Dates_IAPT_iv
A31: EIP | B31: EIP | E31: =IFERROR(IF(ISNUMBER( INDEX(INDIRECT($Z31), MATCH('Calc - Sparklines'!$C$1,INDIRECT($AA31),0), MATCH('Calc - Sparklines'!$D31,INDIRECT($AB31),0)-E$3))=FALSE,NA(), INDEX(INDIRECT($Z31), MATCH('Calc - Sparklines'!$C$1,INDIRECT($AA31),0), MATCH('Calc - Sparklines'!$D31,INDIRECT($AB31),0)-E$3)),NA()) ->  | F31: =IFERROR(IF(ISNUMBER( INDEX(INDIRECT($Z31), MATCH('Calc - Sparklines'!$C$1,INDIRECT($AA31),0), MATCH('Calc - Sparklines'!$D31,INDIRECT($AB31),0)-F$3))=FALSE,NA(), INDEX(INDIRECT($Z31), MATCH('Calc - Sparklines'!$C$1,INDIRECT($AA31),0), MATCH('Calc - Sparklines'!$D31,INDIRECT($AB31),0)-F$3)),NA()) ->  | G31: =IFERROR(IF(ISNUMBER( INDEX(INDIRECT($Z31), MATCH('Calc - Sparklines'!$C$1,INDIRECT($AA31),0), MATCH('Calc - Sparklines'!$D31,INDIRECT($AB31),0)-G$3))=FALSE,NA(), INDEX(INDIRECT($Z31), MATCH('Calc - Sparklines'!$C$1,INDIRECT($AA31),0), MATCH('Calc - Sparklines'!$D31,INDIRECT($AB31),0)-G$3)),NA()) ->  | H31: =IFERROR(IF(ISNUMBER( INDEX(INDIRECT($Z31), MATCH('Calc - Sparklines'!$C$1,INDIRECT($AA31),0), MATCH('Calc - Sparklines'!$D31,INDIRECT($AB31),0)-H$3))=FALSE,NA(), INDEX(INDIRECT($Z31), MATCH('Calc - Sparklines'!$C$1,INDIRECT($AA31),0), MATCH('Calc - Sparklines'!$D31,INDIRECT($AB31),0)-H$3)),NA()) ->  | I31: =IFERROR(IF(ISNUMBER( INDEX(INDIRECT($Z31), MATCH('Calc - Sparklines'!$C$1,INDIRECT($AA31),0), MATCH('Calc - Sparklines'!$D31,INDIRECT($AB31),0)-I$3))=FALSE,NA(), INDEX(INDIRECT($Z31), MATCH('Calc - Sparklines'!$C$1,INDIRECT($AA31),0), MATCH('Calc - Sparklines'!$D31,INDIRECT($AB31),0)-I$3)),NA()) ->  | J31: =IFERROR(IF(ISNUMBER( INDEX(INDIRECT($Z31), MATCH('Calc - Sparklines'!$C$1,INDIRECT($AA31),0), MATCH('Calc - Sparklines'!$D31,INDIRECT($AB31),0)-J$3))=FALSE,NA(), INDEX(INDIRECT($Z31), MATCH('Calc - Sparklines'!$C$1,INDIRECT($AA31),0), MATCH('Calc - Sparklines'!$D31,INDIRECT($AB31),0)-J$3)),NA()) ->  | K31: =IFERROR(IF(ISNUMBER( INDEX(INDIRECT($Z31), MATCH('Calc - Sparklines'!$C$1,INDIRECT($AA31),0), MATCH('Calc - Sparklines'!$D31,INDIRECT($AB31),0)-K$3))=FALSE,NA(), INDEX(INDIRECT($Z31), MATCH('Calc - Sparklines'!$C$1,INDIRECT($AA31),0), MATCH('Calc - Sparklines'!$D31,INDIRECT($AB31),0)-K$3)),NA()) ->  | L31: =IFERROR(IF(ISNUMBER( INDEX(INDIRECT($Z31), MATCH('Calc - Sparklines'!$C$1,INDIRECT($AA31),0), MATCH('Calc - Sparklines'!$D31,INDIRECT($AB31),0)-L$3))=FALSE,NA(), INDEX(INDIRECT($Z31), MATCH('Calc - Sparklines'!$C$1,INDIRECT($AA31),0), MATCH('Calc - Sparklines'!$D31,INDIRECT($AB31),0)-L$3)),NA()) ->  | M31: =IFERROR(IF(ISNUMBER( INDEX(INDIRECT($Z31), MATCH('Calc - Sparklines'!$C$1,INDIRECT($AA31),0), MATCH('Calc - Sparklines'!$D31,INDIRECT($AB31),0)-M$3))=FALSE,NA(), INDEX(INDIRECT($Z31), MATCH('Calc - Sparklines'!$C$1,INDIRECT($AA31),0), MATCH('Calc - Sparklines'!$D31,INDIRECT($AB31),0)-M$3)),NA()) ->  | N31: =IFERROR(IF(ISNUMBER( INDEX(INDIRECT($Z31), MATCH('Calc - Sparklines'!$C$1,INDIRECT($AA31),0), MATCH('Calc - Sparklines'!$D31,INDIRECT($AB31),0)-N$3))=FALSE,NA(), INDEX(INDIRECT($Z31), MATCH('Calc - Sparklines'!$C$1,INDIRECT($AA31),0), MATCH('Calc - Sparklines'!$D31,INDIRECT($AB31),0)-N$3)),NA()) ->  | O31: =IFERROR(IF(ISNUMBER( INDEX(INDIRECT($Z31), MATCH('Calc - Sparklines'!$C$1,INDIRECT($AA31),0), MATCH('Calc - Sparklines'!$D31,INDIRECT($AB31),0)-O$3))=FALSE,NA(), INDEX(INDIRECT($Z31), MATCH('Calc - Sparklines'!$C$1,INDIRECT($AA31),0), MATCH('Calc - Sparklines'!$D31,INDIRECT($AB31),0)-O$3)),NA()) ->  | P31: =IFERROR(IF(ISNUMBER( INDEX(INDIRECT($Z31), MATCH('Calc - Sparklines'!$C$1,INDIRECT($AA31),0), MATCH('Calc - Sparklines'!$D31,INDIRECT($AB31),0)-P$3))=FALSE,NA(), INDEX(INDIRECT($Z31), MATCH('Calc - Sparklines'!$C$1,INDIRECT($AA31),0), MATCH('Calc - Sparklines'!$D31,INDIRECT($AB31),0)-P$3)),NA()) ->  | R31: 0 | X31: N/A | AD31: Subheading
A32: EIP_i | B32: EIP(i) | C32: % of people who started treatment within 2 weeks of referral - All ages | D32: ='EIP(i)_FINAL CALC'!B6 -> Q1-Q2 2017/18 | E32: =IFERROR(IF(ISNUMBER( INDEX(INDIRECT($Z32), MATCH('Calc - Sparklines'!$C$1,INDIRECT($AA32),0), MATCH('Calc - Sparklines'!$D32,INDIRECT($AB32),0)-E$3))=FALSE,NA(), INDEX(INDIRECT($Z32), MATCH('Calc - Sparklines'!$C$1,INDIRECT($AA32),0), MATCH('Calc - Sparklines'!$D32,INDIRECT($AB32),0)-E$3)),NA()) ->  | F32: =IFERROR(IF(ISNUMBER( INDEX(INDIRECT($Z32), MATCH('Calc - Sparklines'!$C$1,INDIRECT($AA32),0), MATCH('Calc - Sparklines'!$D32,INDIRECT($AB32),0)-F$3))=FALSE,NA(), INDEX(INDIRECT($Z32), MATCH('Calc - Sparklines'!$C$1,INDIRECT($AA32),0), MATCH('Calc - Sparklines'!$D32,INDIRECT($AB32),0)-F$3)),NA()) ->  | G32: =IFERROR(IF(ISNUMBER( INDEX(INDIRECT($Z32), MATCH('Calc - Sparklines'!$C$1,INDIRECT($AA32),0), MATCH('Calc - Sparklines'!$D32,INDIRECT($AB32),0)-G$3))=FALSE,NA(), INDEX(INDIRECT($Z32), MATCH('Calc - Sparklines'!$C$1,INDIRECT($AA32),0), MATCH('Calc - Sparklines'!$D32,INDIRECT($AB32),0)-G$3)),NA()) ->  | H32: =IFERROR(IF(ISNUMBER( INDEX(INDIRECT($Z32), MATCH('Calc - Sparklines'!$C$1,INDIRECT($AA32),0), MATCH('Calc - Sparklines'!$D32,INDIRECT($AB32),0)-H$3))=FALSE,NA(), INDEX(INDIRECT($Z32), MATCH('Calc - Sparklines'!$C$1,INDIRECT($AA32),0), MATCH('Calc - Sparklines'!$D32,INDIRECT($AB32),0)-H$3)),NA()) ->  | I32: =IFERROR(IF(ISNUMBER( INDEX(INDIRECT($Z32), MATCH('Calc - Sparklines'!$C$1,INDIRECT($AA32),0), MATCH('Calc - Sparklines'!$D32,INDIRECT($AB32),0)-I$3))=FALSE,NA(), INDEX(INDIRECT($Z32), MATCH('Calc - Sparklines'!$C$1,INDIRECT($AA32),0), MATCH('Calc - Sparklines'!$D32,INDIRECT($AB32),0)-I$3)),NA()) ->  | J32: =IFERROR(IF(ISNUMBER( INDEX(INDIRECT($Z32), MATCH('Calc - Sparklines'!$C$1,INDIRECT($AA32),0), MATCH('Calc - Sparklines'!$D32,INDIRECT($AB32),0)-J$3))=FALSE,NA(), INDEX(INDIRECT($Z32), MATCH('Calc - Sparklines'!$C$1,INDIRECT($AA32),0), MATCH('Calc - Sparklines'!$D32,INDIRECT($AB32),0)-J$3)),NA()) ->  | K32: =IFERROR(IF(ISNUMBER( INDEX(INDIRECT($Z32), MATCH('Calc - Sparklines'!$C$1,INDIRECT($AA32),0), MATCH('Calc - Sparklines'!$D32,INDIRECT($AB32),0)-K$3))=FALSE,NA(), INDEX(INDIRECT($Z32), MATCH('Calc - Sparklines'!$C$1,INDIRECT($AA32),0), MATCH('Calc - Sparklines'!$D32,INDIRECT($AB32),0)-K$3)),NA()) ->  | L32: =IFERROR(IF(ISNUMBER( INDEX(INDIRECT($Z32), MATCH('Calc - Sparklines'!$C$1,INDIRECT($AA32),0), MATCH('Calc - Sparklines'!$D32,INDIRECT($AB32),0)-L$3))=FALSE,NA(), INDEX(INDIRECT($Z32), MATCH('Calc - Sparklines'!$C$1,INDIRECT($AA32),0), MATCH('Calc - Sparklines'!$D32,INDIRECT($AB32),0)-L$3)),NA()) ->  | M32: =IFERROR(IF(ISNUMBER( INDEX(INDIRECT($Z32), MATCH('Calc - Sparklines'!$C$1,INDIRECT($AA32),0), MATCH('Calc - Sparklines'!$D32,INDIRECT($AB32),0)-M$3))=FALSE,NA(), INDEX(INDIRECT($Z32), MATCH('Calc - Sparklines'!$C$1,INDIRECT($AA32),0), MATCH('Calc - Sparklines'!$D32,INDIRECT($AB32),0)-M$3)),NA()) ->  | N32: =IFERROR(IF(ISNUMBER( INDEX(INDIRECT($Z32), MATCH('Calc - Sparklines'!$C$1,INDIRECT($AA32),0), MATCH('Calc - Sparklines'!$D32,INDIRECT($AB32),0)-N$3))=FALSE,NA(), INDEX(INDIRECT($Z32), MATCH('Calc - Sparklines'!$C$1,INDIRECT($AA32),0), MATCH('Calc - Sparklines'!$D32,INDIRECT($AB32),0)-N$3)),NA()) -> 0.7245828075 | O32: =IFERROR(IF(ISNUMBER( INDEX(INDIRECT($Z32), MATCH('Calc - Sparklines'!$C$1,INDIRECT($AA32),0), MATCH('Calc - Sparklines'!$D32,INDIRECT($AB32),0)-O$3))=FALSE,NA(), INDEX(INDIRECT($Z32), MATCH('Calc - Sparklines'!$C$1,INDIRECT($AA32),0), MATCH('Calc - Sparklines'!$D32,INDIRECT($AB32),0)-O$3)),NA()) -> 0.7642207053 | P32: =IFERROR(IF(ISNUMBER( INDEX(INDIRECT($Z32), MATCH('Calc - Sparklines'!$C$1,INDIRECT($AA32),0), MATCH('Calc - Sparklines'!$D32,INDIRECT($AB32),0)-P$3))=FALSE,NA(), INDEX(INDIRECT($Z32), MATCH('Calc - Sparklines'!$C$1,INDIRECT($AA32),0), MATCH('Calc - Sparklines'!$D32,INDIRECT($AB32),0)-P$3)),NA()) -> 0.7590006207 | R32: 3 | S32: 0 | T32: 0.7590006207 | U32: 0.7642207053 | V32: ▼ | W32: Sparkline18 | Z32: Data_Table_EIP_i | AA32: Data_Orgs_EIP_i | AB32: Data_Dates_EIP_i | AD32: Placeholder | AE32: Placeholder
A33: EIP_ii | B33: EIP(ii) | C33: EIP forecast outturn (£k) | D33: ='EIP(ii)_FINAL CALC'!B6 -> 2017/18 | E33: =IFERROR(IF(ISNUMBER( INDEX(INDIRECT($Z33), MATCH('Calc - Sparklines'!$C$1,INDIRECT($AA33),0), MATCH('Calc - Sparklines'!$D33,INDIRECT($AB33),0)-E$3))=FALSE,NA(), INDEX(INDIRECT($Z33), MATCH('Calc - Sparklines'!$C$1,INDIRECT($AA33),0), MATCH('Calc - Sparklines'!$D33,INDIRECT($AB33),0)-E$3)),NA()) ->  | F33: =IFERROR(IF(ISNUMBER( INDEX(INDIRECT($Z33), MATCH('Calc - Sparklines'!$C$1,INDIRECT($AA33),0), MATCH('Calc - Sparklines'!$D33,INDIRECT($AB33),0)-F$3))=FALSE,NA(), INDEX(INDIRECT($Z33), MATCH('Calc - Sparklines'!$C$1,INDIRECT($AA33),0), MATCH('Calc - Sparklines'!$D33,INDIRECT($AB33),0)-F$3)),NA()) ->  | G33: =IFERROR(IF(ISNUMBER( INDEX(INDIRECT($Z33), MATCH('Calc - Sparklines'!$C$1,INDIRECT($AA33),0), MATCH('Calc - Sparklines'!$D33,INDIRECT($AB33),0)-G$3))=FALSE,NA(), INDEX(INDIRECT($Z33), MATCH('Calc - Sparklines'!$C$1,INDIRECT($AA33),0), MATCH('Calc - Sparklines'!$D33,INDIRECT($AB33),0)-G$3)),NA()) ->  | H33: =IFERROR(IF(ISNUMBER( INDEX(INDIRECT($Z33), MATCH('Calc - Sparklines'!$C$1,INDIRECT($AA33),0), MATCH('Calc - Sparklines'!$D33,INDIRECT($AB33),0)-H$3))=FALSE,NA(), INDEX(INDIRECT($Z33), MATCH('Calc - Sparklines'!$C$1,INDIRECT($AA33),0), MATCH('Calc - Sparklines'!$D33,INDIRECT($AB33),0)-H$3)),NA()) ->  | I33: =IFERROR(IF(ISNUMBER( INDEX(INDIRECT($Z33), MATCH('Calc - Sparklines'!$C$1,INDIRECT($AA33),0), MATCH('Calc - Sparklines'!$D33,INDIRECT($AB33),0)-I$3))=FALSE,NA(), INDEX(INDIRECT($Z33), MATCH('Calc - Sparklines'!$C$1,INDIRECT($AA33),0), MATCH('Calc - Sparklines'!$D33,INDIRECT($AB33),0)-I$3)),NA()) ->  | J33: =IFERROR(IF(ISNUMBER( INDEX(INDIRECT($Z33), MATCH('Calc - Sparklines'!$C$1,INDIRECT($AA33),0), MATCH('Calc - Sparklines'!$D33,INDIRECT($AB33),0)-J$3))=FALSE,NA(), INDEX(INDIRECT($Z33), MATCH('Calc - Sparklines'!$C$1,INDIRECT($AA33),0), MATCH('Calc - Sparklines'!$D33,INDIRECT($AB33),0)-J$3)),NA()) ->  | K33: =IFERROR(IF(ISNUMBER( INDEX(INDIRECT($Z33), MATCH('Calc - Sparklines'!$C$1,INDIRECT($AA33),0), MATCH('Calc - Sparklines'!$D33,INDIRECT($AB33),0)-K$3))=FALSE,NA(), INDEX(INDIRECT($Z33), MATCH('Calc - Sparklines'!$C$1,INDIRECT($AA33),0), MATCH('Calc - Sparklines'!$D33,INDIRECT($AB33),0)-K$3)),NA()) ->  | L33: =IFERROR(IF(ISNUMBER( INDEX(INDIRECT($Z33), MATCH('Calc - Sparklines'!$C$1,INDIRECT($AA33),0), MATCH('Calc - Sparklines'!$D33,INDIRECT($AB33),0)-L$3))=FALSE,NA(), INDEX(INDIRECT($Z33), MATCH('Calc - Sparklines'!$C$1,INDIRECT($AA33),0), MATCH('Calc - Sparklines'!$D33,INDIRECT($AB33),0)-L$3)),NA()) ->  | M33: =IFERROR(IF(ISNUMBER( INDEX(INDIRECT($Z33), MATCH('Calc - Sparklines'!$C$1,INDIRECT($AA33),0), MATCH('Calc - Sparklines'!$D33,INDIRECT($AB33),0)-M$3))=FALSE,NA(), INDEX(INDIRECT($Z33), MATCH('Calc - Sparklines'!$C$1,INDIRECT($AA33),0), MATCH('Calc - Sparklines'!$D33,INDIRECT($AB33),0)-M$3)),NA()) ->  | N33: =IFERROR(IF(ISNUMBER( INDEX(INDIRECT($Z33), MATCH('Calc - Sparklines'!$C$1,INDIRECT($AA33),0), MATCH('Calc - Sparklines'!$D33,INDIRECT($AB33),0)-N$3))=FALSE,NA(), INDEX(INDIRECT($Z33), MATCH('Calc - Sparklines'!$C$1,INDIRECT($AA33),0), MATCH('Calc - Sparklines'!$D33,INDIRECT($AB33),0)-N$3)),NA()) ->  | O33: =IFERROR(IF(ISNUMBER( INDEX(INDIRECT($Z33), MATCH('Calc - Sparklines'!$C$1,INDIRECT($AA33),0), MATCH('Calc - Sparklines'!$D33,INDIRECT($AB33),0)-O$3))=FALSE,NA(), INDEX(INDIRECT($Z33), MATCH('Calc - Sparklines'!$C$1,INDIRECT($AA33),0), MATCH('Calc - Sparklines'!$D33,INDIRECT($AB33),0)-O$3)),NA()) ->  | P33: =IFERROR(IF(ISNUMBER( INDEX(INDIRECT($Z33), MATCH('Calc - Sparklines'!$C$1,INDIRECT($AA33),0), MATCH('Calc - Sparklines'!$D33,INDIRECT($AB33),0)-P$3))=FALSE,NA(), INDEX(INDIRECT($Z33), MATCH('Calc - Sparklines'!$C$1,INDIRECT($AA33),0), MATCH('Calc - Sparklines'!$D33,INDIRECT($AB33),0)-P$3)),NA()) -> 148630976.7 | R33: 0 | S33: 0 | T33: 148630976.7 | V33: N/A | W33: Sparkline20 | X33: N/A | Z33: Data_Table_EIP_ii | AA33: Data_Orgs_EIP_ii | AB33: Data_Dates_EIP_ii | AD33: Placeholder | AE33: Placeholder
A34: Crisis and acute care and use of the Mental Health Act | B34: Employment Support | E34: =IFERROR(IF(ISNUMBER( INDEX(INDIRECT($Z34), MATCH('Calc - Sparklines'!$C$1,INDIRECT($AA34),0), MATCH('Calc - Sparklines'!$D34,INDIRECT($AB34),0)-E$3))=FALSE,NA(), INDEX(INDIRECT($Z34), MATCH('Calc - Sparklines'!$C$1,INDIRECT($AA34),0), MATCH('Calc - Sparklines'!$D34,INDIRECT($AB34),0)-E$3)),NA()) ->  | F34: =IFERROR(IF(ISNUMBER( INDEX(INDIRECT($Z34), MATCH('Calc - Sparklines'!$C$1,INDIRECT($AA34),0), MATCH('Calc - Sparklines'!$D34,INDIRECT($AB34),0)-F$3))=FALSE,NA(), INDEX(INDIRECT($Z34), MATCH('Calc - Sparklines'!$C$1,INDIRECT($AA34),0), MATCH('Calc - Sparklines'!$D34,INDIRECT($AB34),0)-F$3)),NA()) ->  | G34: =IFERROR(IF(ISNUMBER( INDEX(INDIRECT($Z34), MATCH('Calc - Sparklines'!$C$1,INDIRECT($AA34),0), MATCH('Calc - Sparklines'!$D34,INDIRECT($AB34),0)-G$3))=FALSE,NA(), INDEX(INDIRECT($Z34), MATCH('Calc - Sparklines'!$C$1,INDIRECT($AA34),0), MATCH('Calc - Sparklines'!$D34,INDIRECT($AB34),0)-G$3)),NA()) ->  | H34: =IFERROR(IF(ISNUMBER( INDEX(INDIRECT($Z34), MATCH('Calc - Sparklines'!$C$1,INDIRECT($AA34),0), MATCH('Calc - Sparklines'!$D34,INDIRECT($AB34),0)-H$3))=FALSE,NA(), INDEX(INDIRECT($Z34), MATCH('Calc - Sparklines'!$C$1,INDIRECT($AA34),0), MATCH('Calc - Sparklines'!$D34,INDIRECT($AB34),0)-H$3)),NA()) ->  | I34: =IFERROR(IF(ISNUMBER( INDEX(INDIRECT($Z34), MATCH('Calc - Sparklines'!$C$1,INDIRECT($AA34),0), MATCH('Calc - Sparklines'!$D34,INDIRECT($AB34),0)-I$3))=FALSE,NA(), INDEX(INDIRECT($Z34), MATCH('Calc - Sparklines'!$C$1,INDIRECT($AA34),0), MATCH('Calc - Sparklines'!$D34,INDIRECT($AB34),0)-I$3)),NA()) ->  | J34: =IFERROR(IF(ISNUMBER( INDEX(INDIRECT($Z34), MATCH('Calc - Sparklines'!$C$1,INDIRECT($AA34),0), MATCH('Calc - Sparklines'!$D34,INDIRECT($AB34),0)-J$3))=FALSE,NA(), INDEX(INDIRECT($Z34), MATCH('Calc - Sparklines'!$C$1,INDIRECT($AA34),0), MATCH('Calc - Sparklines'!$D34,INDIRECT($AB34),0)-J$3)),NA()) ->  | K34: =IFERROR(IF(ISNUMBER( INDEX(INDIRECT($Z34), MATCH('Calc - Sparklines'!$C$1,INDIRECT($AA34),0), MATCH('Calc - Sparklines'!$D34,INDIRECT($AB34),0)-K$3))=FALSE,NA(), INDEX(INDIRECT($Z34), MATCH('Calc - Sparklines'!$C$1,INDIRECT($AA34),0), MATCH('Calc - Sparklines'!$D34,INDIRECT($AB34),0)-K$3)),NA()) ->  | L34: =IFERROR(IF(ISNUMBER( INDEX(INDIRECT($Z34), MATCH('Calc - Sparklines'!$C$1,INDIRECT($AA34),0), MATCH('Calc - Sparklines'!$D34,INDIRECT($AB34),0)-L$3))=FALSE,NA(), INDEX(INDIRECT($Z34), MATCH('Calc - Sparklines'!$C$1,INDIRECT($AA34),0), MATCH('Calc - Sparklines'!$D34,INDIRECT($AB34),0)-L$3)),NA()) ->  | M34: =IFERROR(IF(ISNUMBER( INDEX(INDIRECT($Z34), MATCH('Calc - Sparklines'!$C$1,INDIRECT($AA34),0), MATCH('Calc - Sparklines'!$D34,INDIRECT($AB34),0)-M$3))=FALSE,NA(), INDEX(INDIRECT($Z34), MATCH('Calc - Sparklines'!$C$1,INDIRECT($AA34),0), MATCH('Calc - Sparklines'!$D34,INDIRECT($AB34),0)-M$3)),NA()) ->  | N34: =IFERROR(IF(ISNUMBER( INDEX(INDIRECT($Z34), MATCH('Calc - Sparklines'!$C$1,INDIRECT($AA34),0), MATCH('Calc - Sparklines'!$D34,INDIRECT($AB34),0)-N$3))=FALSE,NA(), INDEX(INDIRECT($Z34), MATCH('Calc - Sparklines'!$C$1,INDIRECT($AA34),0), MATCH('Calc - Sparklines'!$D34,INDIRECT($AB34),0)-N$3)),NA()) ->  | O34: =IFERROR(IF(ISNUMBER( INDEX(INDIRECT($Z34), MATCH('Calc - Sparklines'!$C$1,INDIRECT($AA34),0), MATCH('Calc - Sparklines'!$D34,INDIRECT($AB34),0)-O$3))=FALSE,NA(), INDEX(INDIRECT($Z34), MATCH('Calc - Sparklines'!$C$1,INDIRECT($AA34),0), MATCH('Calc - Sparklines'!$D34,INDIRECT($AB34),0)-O$3)),NA()) ->  | P34: =IFERROR(IF(ISNUMBER( INDEX(INDIRECT($Z34), MATCH('Calc - Sparklines'!$C$1,INDIRECT($AA34),0), MATCH('Calc - Sparklines'!$D34,INDIRECT($AB34),0)-P$3))=FALSE,NA(), INDEX(INDIRECT($Z34), MATCH('Calc - Sparklines'!$C$1,INDIRECT($AA34),0), MATCH('Calc - Sparklines'!$D34,INDIRECT($AB34),0)-P$3)),NA()) ->  | R34: 0 | X34: N/A | AD34: Subheading
A35: ES_i | B35: ES(i) | C35: Number of people accessing IPS services in 2016/17 | D35: ='ES(i)_FINAL CALC'!B6 -> 2016/17 | E35: =IFERROR(IF(ISNUMBER( INDEX(INDIRECT($Z35), MATCH('Calc - Sparklines'!$C$1,INDIRECT($AA35),0), MATCH('Calc - Sparklines'!$D35,INDIRECT($AB35),0)-E$3))=FALSE,NA(), INDEX(INDIRECT($Z35), MATCH('Calc - Sparklines'!$C$1,INDIRECT($AA35),0), MATCH('Calc - Sparklines'!$D35,INDIRECT($AB35),0)-E$3)),NA()) ->  | F35: =IFERROR(IF(ISNUMBER( INDEX(INDIRECT($Z35), MATCH('Calc - Sparklines'!$C$1,INDIRECT($AA35),0), MATCH('Calc - Sparklines'!$D35,INDIRECT($AB35),0)-F$3))=FALSE,NA(), INDEX(INDIRECT($Z35), MATCH('Calc - Sparklines'!$C$1,INDIRECT($AA35),0), MATCH('Calc - Sparklines'!$D35,INDIRECT($AB35),0)-F$3)),NA()) ->  | G35: =IFERROR(IF(ISNUMBER( INDEX(INDIRECT($Z35), MATCH('Calc - Sparklines'!$C$1,INDIRECT($AA35),0), MATCH('Calc - Sparklines'!$D35,INDIRECT($AB35),0)-G$3))=FALSE,NA(), INDEX(INDIRECT($Z35), MATCH('Calc - Sparklines'!$C$1,INDIRECT($AA35),0), MATCH('Calc - Sparklines'!$D35,INDIRECT($AB35),0)-G$3)),NA()) ->  | H35: =IFERROR(IF(ISNUMBER( INDEX(INDIRECT($Z35), MATCH('Calc - Sparklines'!$C$1,INDIRECT($AA35),0), MATCH('Calc - Sparklines'!$D35,INDIRECT($AB35),0)-H$3))=FALSE,NA(), INDEX(INDIRECT($Z35), MATCH('Calc - Sparklines'!$C$1,INDIRECT($AA35),0), MATCH('Calc - Sparklines'!$D35,INDIRECT($AB35),0)-H$3)),NA()) ->  | I35: =IFERROR(IF(ISNUMBER( INDEX(INDIRECT($Z35), MATCH('Calc - Sparklines'!$C$1,INDIRECT($AA35),0), MATCH('Calc - Sparklines'!$D35,INDIRECT($AB35),0)-I$3))=FALSE,NA(), INDEX(INDIRECT($Z35), MATCH('Calc - Sparklines'!$C$1,INDIRECT($AA35),0), MATCH('Calc - Sparklines'!$D35,INDIRECT($AB35),0)-I$3)),NA()) ->  | J35: =IFERROR(IF(ISNUMBER( INDEX(INDIRECT($Z35), MATCH('Calc - Sparklines'!$C$1,INDIRECT($AA35),0), MATCH('Calc - Sparklines'!$D35,INDIRECT($AB35),0)-J$3))=FALSE,NA(), INDEX(INDIRECT($Z35), MATCH('Calc - Sparklines'!$C$1,INDIRECT($AA35),0), MATCH('Calc - Sparklines'!$D35,INDIRECT($AB35),0)-J$3)),NA()) ->  | K35: =IFERROR(IF(ISNUMBER( INDEX(INDIRECT($Z35), MATCH('Calc - Sparklines'!$C$1,INDIRECT($AA35),0), MATCH('Calc - Sparklines'!$D35,INDIRECT($AB35),0)-K$3))=FALSE,NA(), INDEX(INDIRECT($Z35), MATCH('Calc - Sparklines'!$C$1,INDIRECT($AA35),0), MATCH('Calc - Sparklines'!$D35,INDIRECT($AB35),0)-K$3)),NA()) ->  | L35: =IFERROR(IF(ISNUMBER( INDEX(INDIRECT($Z35), MATCH('Calc - Sparklines'!$C$1,INDIRECT($AA35),0), MATCH('Calc - Sparklines'!$D35,INDIRECT($AB35),0)-L$3))=FALSE,NA(), INDEX(INDIRECT($Z35), MATCH('Calc - Sparklines'!$C$1,INDIRECT($AA35),0), MATCH('Calc - Sparklines'!$D35,INDIRECT($AB35),0)-L$3)),NA()) ->  | M35: =IFERROR(IF(ISNUMBER( INDEX(INDIRECT($Z35), MATCH('Calc - Sparklines'!$C$1,INDIRECT($AA35),0), MATCH('Calc - Sparklines'!$D35,INDIRECT($AB35),0)-M$3))=FALSE,NA(), INDEX(INDIRECT($Z35), MATCH('Calc - Sparklines'!$C$1,INDIRECT($AA35),0), MATCH('Calc - Sparklines'!$D35,INDIRECT($AB35),0)-M$3)),NA()) ->  | N35: =IFERROR(IF(ISNUMBER( INDEX(INDIRECT($Z35), MATCH('Calc - Sparklines'!$C$1,INDIRECT($AA35),0), MATCH('Calc - Sparklines'!$D35,INDIRECT($AB35),0)-N$3))=FALSE,NA(), INDEX(INDIRECT($Z35), MATCH('Calc - Sparklines'!$C$1,INDIRECT($AA35),0), MATCH('Calc - Sparklines'!$D35,INDIRECT($AB35),0)-N$3)),NA()) ->  | O35: =IFERROR(IF(ISNUMBER( INDEX(INDIRECT($Z35), MATCH('Calc - Sparklines'!$C$1,INDIRECT($AA35),0), MATCH('Calc - Sparklines'!$D35,INDIRECT($AB35),0)-O$3))=FALSE,NA(), INDEX(INDIRECT($Z35), MATCH('Calc - Sparklines'!$C$1,INDIRECT($AA35),0), MATCH('Calc - Sparklines'!$D35,INDIRECT($AB35),0)-O$3)),NA()) ->  | P35: =IFERROR(IF(ISNUMBER( INDEX(INDIRECT($Z35), MATCH('Calc - Sparklines'!$C$1,INDIRECT($AA35),0), MATCH('Calc - Sparklines'!$D35,INDIRECT($AB35),0)-P$3))=FALSE,NA(), INDEX(INDIRECT($Z35), MATCH('Calc - Sparklines'!$C$1,INDIRECT($AA35),0), MATCH('Calc - Sparklines'!$D35,INDIRECT($AB35),0)-P$3)),NA()) -> 9775 | R35: =IF(COUNTA(E35:P35)-COUNTIF(E35:P35,"#N/A")<3, 0, COUNTA(E35:P35)-COUNTIF(E35:P35,"#N/A")) -> 0 | S35: =IF(P35="N/A",IF(O35="N/A",2,1),0) -> 0 | T35: =OFFSET(P35,,-S35) -> 9775 | U35: =IF(ISERROR(O35),IF(ISERROR(N35),IF(ISERROR(M35),IF(ISERROR(L35),IF(ISERROR(K35),IF(ISERROR(J35),IF(ISERROR(I35),IF(ISERROR(H35),IF(ISERROR(G35),IF(ISERROR(F35),IF(ISERROR(E35), NA(), E35),F35),G35),H35),I35),J35),K35),L35),M35),N35),O35) ->  | V35: =IF(D35="","",IFERROR(IF(T35>U35,"▲", IF(T35<U35,"▼","◄►")),"N/A")) -> N/A | X35: Baseline figure | Z35: Data_Table_ES_i | AA35: Data_Orgs_ES_i | AB35: Data_Dates_ES_i
A36: Crisis and acute care and use of the Mental Health Act | B36: Crisis and acute care and use of the Mental Health Act | E36: =IFERROR(IF(ISNUMBER( INDEX(INDIRECT($Z36), MATCH('Calc - Sparklines'!$C$1,INDIRECT($AA36),0), MATCH('Calc - Sparklines'!$D36,INDIRECT($AB36),0)-E$3))=FALSE,NA(), INDEX(INDIRECT($Z36), MATCH('Calc - Sparklines'!$C$1,INDIRECT($AA36),0), MATCH('Calc - Sparklines'!$D36,INDIRECT($AB36),0)-E$3)),NA()) ->  | F36: =IFERROR(IF(ISNUMBER( INDEX(INDIRECT($Z36), MATCH('Calc - Sparklines'!$C$1,INDIRECT($AA36),0), MATCH('Calc - Sparklines'!$D36,INDIRECT($AB36),0)-F$3))=FALSE,NA(), INDEX(INDIRECT($Z36), MATCH('Calc - Sparklines'!$C$1,INDIRECT($AA36),0), MATCH('Calc - Sparklines'!$D36,INDIRECT($AB36),0)-F$3)),NA()) ->  | G36: =IFERROR(IF(ISNUMBER( INDEX(INDIRECT($Z36), MATCH('Calc - Sparklines'!$C$1,INDIRECT($AA36),0), MATCH('Calc - Sparklines'!$D36,INDIRECT($AB36),0)-G$3))=FALSE,NA(), INDEX(INDIRECT($Z36), MATCH('Calc - Sparklines'!$C$1,INDIRECT($AA36),0), MATCH('Calc - Sparklines'!$D36,INDIRECT($AB36),0)-G$3)),NA()) ->  | H36: =IFERROR(IF(ISNUMBER( INDEX(INDIRECT($Z36), MATCH('Calc - Sparklines'!$C$1,INDIRECT($AA36),0), MATCH('Calc - Sparklines'!$D36,INDIRECT($AB36),0)-H$3))=FALSE,NA(), INDEX(INDIRECT($Z36), MATCH('Calc - Sparklines'!$C$1,INDIRECT($AA36),0), MATCH('Calc - Sparklines'!$D36,INDIRECT($AB36),0)-H$3)),NA()) ->  | I36: =IFERROR(IF(ISNUMBER( INDEX(INDIRECT($Z36), MATCH('Calc - Sparklines'!$C$1,INDIRECT($AA36),0), MATCH('Calc - Sparklines'!$D36,INDIRECT($AB36),0)-I$3))=FALSE,NA(), INDEX(INDIRECT($Z36), MATCH('Calc - Sparklines'!$C$1,INDIRECT($AA36),0), MATCH('Calc - Sparklines'!$D36,INDIRECT($AB36),0)-I$3)),NA()) ->  | J36: =IFERROR(IF(ISNUMBER( INDEX(INDIRECT($Z36), MATCH('Calc - Sparklines'!$C$1,INDIRECT($AA36),0), MATCH('Calc - Sparklines'!$D36,INDIRECT($AB36),0)-J$3))=FALSE,NA(), INDEX(INDIRECT($Z36), MATCH('Calc - Sparklines'!$C$1,INDIRECT($AA36),0), MATCH('Calc - Sparklines'!$D36,INDIRECT($AB36),0)-J$3)),NA()) ->  | K36: =IFERROR(IF(ISNUMBER( INDEX(INDIRECT($Z36), MATCH('Calc - Sparklines'!$C$1,INDIRECT($AA36),0), MATCH('Calc - Sparklines'!$D36,INDIRECT($AB36),0)-K$3))=FALSE,NA(), INDEX(INDIRECT($Z36), MATCH('Calc - Sparklines'!$C$1,INDIRECT($AA36),0), MATCH('Calc - Sparklines'!$D36,INDIRECT($AB36),0)-K$3)),NA()) ->  | L36: =IFERROR(IF(ISNUMBER( INDEX(INDIRECT($Z36), MATCH('Calc - Sparklines'!$C$1,INDIRECT($AA36),0), MATCH('Calc - Sparklines'!$D36,INDIRECT($AB36),0)-L$3))=FALSE,NA(), INDEX(INDIRECT($Z36), MATCH('Calc - Sparklines'!$C$1,INDIRECT($AA36),0), MATCH('Calc - Sparklines'!$D36,INDIRECT($AB36),0)-L$3)),NA()) ->  | M36: =IFERROR(IF(ISNUMBER( INDEX(INDIRECT($Z36), MATCH('Calc - Sparklines'!$C$1,INDIRECT($AA36),0), MATCH('Calc - Sparklines'!$D36,INDIRECT($AB36),0)-M$3))=FALSE,NA(), INDEX(INDIRECT($Z36), MATCH('Calc - Sparklines'!$C$1,INDIRECT($AA36),0), MATCH('Calc - Sparklines'!$D36,INDIRECT($AB36),0)-M$3)),NA()) ->  | N36: =IFERROR(IF(ISNUMBER( INDEX(INDIRECT($Z36), MATCH('Calc - Sparklines'!$C$1,INDIRECT($AA36),0), MATCH('Calc - Sparklines'!$D36,INDIRECT($AB36),0)-N$3))=FALSE,NA(), INDEX(INDIRECT($Z36), MATCH('Calc - Sparklines'!$C$1,INDIRECT($AA36),0), MATCH('Calc - Sparklines'!$D36,INDIRECT($AB36),0)-N$3)),NA()) ->  | O36: =IFERROR(IF(ISNUMBER( INDEX(INDIRECT($Z36), MATCH('Calc - Sparklines'!$C$1,INDIRECT($AA36),0), MATCH('Calc - Sparklines'!$D36,INDIRECT($AB36),0)-O$3))=FALSE,NA(), INDEX(INDIRECT($Z36), MATCH('Calc - Sparklines'!$C$1,INDIRECT($AA36),0), MATCH('Calc - Sparklines'!$D36,INDIRECT($AB36),0)-O$3)),NA()) ->  | P36: =IFERROR(IF(ISNUMBER( INDEX(INDIRECT($Z36), MATCH('Calc - Sparklines'!$C$1,INDIRECT($AA36),0), MATCH('Calc - Sparklines'!$D36,INDIRECT($AB36),0)-P$3))=FALSE,NA(), INDEX(INDIRECT($Z36), MATCH('Calc - Sparklines'!$C$1,INDIRECT($AA36),0), MATCH('Calc - Sparklines'!$D36,INDIRECT($AB36),0)-P$3)),NA()) ->  | R36: =IF(COUNTA(E36:P36)-COUNTIF(E36:P36,"#N/A")<3, 0, COUNTA(E36:P36)-COUNTIF(E36:P36,"#N/A")) -> 0 | S36: =IF(P36="N/A",IF(O36="N/A",2,1),0) ->  | T36: =OFFSET(P36,,-S36) ->  | U36: =IF(ISERROR(O36),IF(ISERROR(N36),IF(ISERROR(M36),IF(ISERROR(L36),IF(ISERROR(K36),IF(ISERROR(J36),IF(ISERROR(I36),IF(ISERROR(H36),IF(ISERROR(G36),IF(ISERROR(F36),IF(ISERROR(E36), NA(), E36),F36),G36),H36),I36),J36),K36),L36),M36),N36),O36) ->  | V36: =IF(D36="","",IFERROR(IF(T36>U36,"▲", IF(T36<U36,"▼","◄►")),"N/A")) ->  | X36: =IF(R36<=2,"N/A","") -> N/A | AD36: Subheading
A37: CR_i | B37: CR(i) | C37: % of CRHT services in the STP area able to meet selected core functions | D37: ='CR(i)_FINAL CALC'!$B$6 -> 2016/17 | E37: =IFERROR(IF(ISNUMBER( INDEX(INDIRECT($Z37), MATCH('Calc - Sparklines'!$C$1,INDIRECT($AA37),0), MATCH('Calc - Sparklines'!$D37,INDIRECT($AB37),0)-E$3))=FALSE,NA(), INDEX(INDIRECT($Z37), MATCH('Calc - Sparklines'!$C$1,INDIRECT($AA37),0), MATCH('Calc - Sparklines'!$D37,INDIRECT($AB37),0)-E$3)),NA()) ->  | F37: =IFERROR(IF(ISNUMBER( INDEX(INDIRECT($Z37), MATCH('Calc - Sparklines'!$C$1,INDIRECT($AA37),0), MATCH('Calc - Sparklines'!$D37,INDIRECT($AB37),0)-F$3))=FALSE,NA(), INDEX(INDIRECT($Z37), MATCH('Calc - Sparklines'!$C$1,INDIRECT($AA37),0), MATCH('Calc - Sparklines'!$D37,INDIRECT($AB37),0)-F$3)),NA()) ->  | G37: =IFERROR(IF(ISNUMBER( INDEX(INDIRECT($Z37), MATCH('Calc - Sparklines'!$C$1,INDIRECT($AA37),0), MATCH('Calc - Sparklines'!$D37,INDIRECT($AB37),0)-G$3))=FALSE,NA(), INDEX(INDIRECT($Z37), MATCH('Calc - Sparklines'!$C$1,INDIRECT($AA37),0), MATCH('Calc - Sparklines'!$D37,INDIRECT($AB37),0)-G$3)),NA()) ->  | H37: =IFERROR(IF(ISNUMBER( INDEX(INDIRECT($Z37), MATCH('Calc - Sparklines'!$C$1,INDIRECT($AA37),0), MATCH('Calc - Sparklines'!$D37,INDIRECT($AB37),0)-H$3))=FALSE,NA(), INDEX(INDIRECT($Z37), MATCH('Calc - Sparklines'!$C$1,INDIRECT($AA37),0), MATCH('Calc - Sparklines'!$D37,INDIRECT($AB37),0)-H$3)),NA()) ->  | I37: =IFERROR(IF(ISNUMBER( INDEX(INDIRECT($Z37), MATCH('Calc - Sparklines'!$C$1,INDIRECT($AA37),0), MATCH('Calc - Sparklines'!$D37,INDIRECT($AB37),0)-I$3))=FALSE,NA(), INDEX(INDIRECT($Z37), MATCH('Calc - Sparklines'!$C$1,INDIRECT($AA37),0), MATCH('Calc - Sparklines'!$D37,INDIRECT($AB37),0)-I$3)),NA()) ->  | J37: =IFERROR(IF(ISNUMBER( INDEX(INDIRECT($Z37), MATCH('Calc - Sparklines'!$C$1,INDIRECT($AA37),0), MATCH('Calc - Sparklines'!$D37,INDIRECT($AB37),0)-J$3))=FALSE,NA(), INDEX(INDIRECT($Z37), MATCH('Calc - Sparklines'!$C$1,INDIRECT($AA37),0), MATCH('Calc - Sparklines'!$D37,INDIRECT($AB37),0)-J$3)),NA()) ->  | K37: =IFERROR(IF(ISNUMBER( INDEX(INDIRECT($Z37), MATCH('Calc - Sparklines'!$C$1,INDIRECT($AA37),0), MATCH('Calc - Sparklines'!$D37,INDIRECT($AB37),0)-K$3))=FALSE,NA(), INDEX(INDIRECT($Z37), MATCH('Calc - Sparklines'!$C$1,INDIRECT($AA37),0), MATCH('Calc - Sparklines'!$D37,INDIRECT($AB37),0)-K$3)),NA()) ->  | L37: =IFERROR(IF(ISNUMBER( INDEX(INDIRECT($Z37), MATCH('Calc - Sparklines'!$C$1,INDIRECT($AA37),0), MATCH('Calc - Sparklines'!$D37,INDIRECT($AB37),0)-L$3))=FALSE,NA(), INDEX(INDIRECT($Z37), MATCH('Calc - Sparklines'!$C$1,INDIRECT($AA37),0), MATCH('Calc - Sparklines'!$D37,INDIRECT($AB37),0)-L$3)),NA()) ->  | M37: =IFERROR(IF(ISNUMBER( INDEX(INDIRECT($Z37), MATCH('Calc - Sparklines'!$C$1,INDIRECT($AA37),0), MATCH('Calc - Sparklines'!$D37,INDIRECT($AB37),0)-M$3))=FALSE,NA(), INDEX(INDIRECT($Z37), MATCH('Calc - Sparklines'!$C$1,INDIRECT($AA37),0), MATCH('Calc - Sparklines'!$D37,INDIRECT($AB37),0)-M$3)),NA()) ->  | N37: =IFERROR(IF(ISNUMBER( INDEX(INDIRECT($Z37), MATCH('Calc - Sparklines'!$C$1,INDIRECT($AA37),0), MATCH('Calc - Sparklines'!$D37,INDIRECT($AB37),0)-N$3))=FALSE,NA(), INDEX(INDIRECT($Z37), MATCH('Calc - Sparklines'!$C$1,INDIRECT($AA37),0), MATCH('Calc - Sparklines'!$D37,INDIRECT($AB37),0)-N$3)),NA()) ->  | O37: =IFERROR(IF(ISNUMBER( INDEX(INDIRECT($Z37), MATCH('Calc - Sparklines'!$C$1,INDIRECT($AA37),0), MATCH('Calc - Sparklines'!$D37,INDIRECT($AB37),0)-O$3))=FALSE,NA(), INDEX(INDIRECT($Z37), MATCH('Calc - Sparklines'!$C$1,INDIRECT($AA37),0), MATCH('Calc - Sparklines'!$D37,INDIRECT($AB37),0)-O$3)),NA()) ->  | P37: =IFERROR(IF(ISNUMBER( INDEX(INDIRECT($Z37), MATCH('Calc - Sparklines'!$C$1,INDIRECT($AA37),0), MATCH('Calc - Sparklines'!$D37,INDIRECT($AB37),0)-P$3))=FALSE,NA(), INDEX(INDIRECT($Z37), MATCH('Calc - Sparklines'!$C$1,INDIRECT($AA37),0), MATCH('Calc - Sparklines'!$D37,INDIRECT($AB37),0)-P$3)),NA()) -> 0.2368421053 | R37: 0 | S37: 0 | T37: 0.2368421053 | V37: N/A | W37: Sparkline29 | X37: Baseline figure | Z37: Data_Table_CR_i | AA37: Data_Orgs_CR_i | AB37: Data_Dates_CR_i | AD37: Chart available at STP level only | AE37: Chart available at STP level only
A38: CR_ii | B38: CR(ii) | C38: Crisis resolution home treatment teams forecast outturn (£k) | D38: ='CR(ii)_FINAL CALC'!$B$6 -> 2017/18 | E38: =IFERROR(IF(ISNUMBER( INDEX(INDIRECT($Z38), MATCH('Calc - Sparklines'!$C$1,INDIRECT($AA38),0), MATCH('Calc - Sparklines'!$D38,INDIRECT($AB38),0)-E$3))=FALSE,NA(), INDEX(INDIRECT($Z38), MATCH('Calc - Sparklines'!$C$1,INDIRECT($AA38),0), MATCH('Calc - Sparklines'!$D38,INDIRECT($AB38),0)-E$3)),NA()) ->  | F38: =IFERROR(IF(ISNUMBER( INDEX(INDIRECT($Z38), MATCH('Calc - Sparklines'!$C$1,INDIRECT($AA38),0), MATCH('Calc - Sparklines'!$D38,INDIRECT($AB38),0)-F$3))=FALSE,NA(), INDEX(INDIRECT($Z38), MATCH('Calc - Sparklines'!$C$1,INDIRECT($AA38),0), MATCH('Calc - Sparklines'!$D38,INDIRECT($AB38),0)-F$3)),NA()) ->  | G38: =IFERROR(IF(ISNUMBER( INDEX(INDIRECT($Z38), MATCH('Calc - Sparklines'!$C$1,INDIRECT($AA38),0), MATCH('Calc - Sparklines'!$D38,INDIRECT($AB38),0)-G$3))=FALSE,NA(), INDEX(INDIRECT($Z38), MATCH('Calc - Sparklines'!$C$1,INDIRECT($AA38),0), MATCH('Calc - Sparklines'!$D38,INDIRECT($AB38),0)-G$3)),NA()) ->  | H38: =IFERROR(IF(ISNUMBER( INDEX(INDIRECT($Z38), MATCH('Calc - Sparklines'!$C$1,INDIRECT($AA38),0), MATCH('Calc - Sparklines'!$D38,INDIRECT($AB38),0)-H$3))=FALSE,NA(), INDEX(INDIRECT($Z38), MATCH('Calc - Sparklines'!$C$1,INDIRECT($AA38),0), MATCH('Calc - Sparklines'!$D38,INDIRECT($AB38),0)-H$3)),NA()) ->  | I38: =IFERROR(IF(ISNUMBER( INDEX(INDIRECT($Z38), MATCH('Calc - Sparklines'!$C$1,INDIRECT($AA38),0), MATCH('Calc - Sparklines'!$D38,INDIRECT($AB38),0)-I$3))=FALSE,NA(), INDEX(INDIRECT($Z38), MATCH('Calc - Sparklines'!$C$1,INDIRECT($AA38),0), MATCH('Calc - Sparklines'!$D38,INDIRECT($AB38),0)-I$3)),NA()) ->  | J38: =IFERROR(IF(ISNUMBER( INDEX(INDIRECT($Z38), MATCH('Calc - Sparklines'!$C$1,INDIRECT($AA38),0), MATCH('Calc - Sparklines'!$D38,INDIRECT($AB38),0)-J$3))=FALSE,NA(), INDEX(INDIRECT($Z38), MATCH('Calc - Sparklines'!$C$1,INDIRECT($AA38),0), MATCH('Calc - Sparklines'!$D38,INDIRECT($AB38),0)-J$3)),NA()) ->  | K38: =IFERROR(IF(ISNUMBER( INDEX(INDIRECT($Z38), MATCH('Calc - Sparklines'!$C$1,INDIRECT($AA38),0), MATCH('Calc - Sparklines'!$D38,INDIRECT($AB38),0)-K$3))=FALSE,NA(), INDEX(INDIRECT($Z38), MATCH('Calc - Sparklines'!$C$1,INDIRECT($AA38),0), MATCH('Calc - Sparklines'!$D38,INDIRECT($AB38),0)-K$3)),NA()) ->  | L38: =IFERROR(IF(ISNUMBER( INDEX(INDIRECT($Z38), MATCH('Calc - Sparklines'!$C$1,INDIRECT($AA38),0), MATCH('Calc - Sparklines'!$D38,INDIRECT($AB38),0)-L$3))=FALSE,NA(), INDEX(INDIRECT($Z38), MATCH('Calc - Sparklines'!$C$1,INDIRECT($AA38),0), MATCH('Calc - Sparklines'!$D38,INDIRECT($AB38),0)-L$3)),NA()) ->  | M38: =IFERROR(IF(ISNUMBER( INDEX(INDIRECT($Z38), MATCH('Calc - Sparklines'!$C$1,INDIRECT($AA38),0), MATCH('Calc - Sparklines'!$D38,INDIRECT($AB38),0)-M$3))=FALSE,NA(), INDEX(INDIRECT($Z38), MATCH('Calc - Sparklines'!$C$1,INDIRECT($AA38),0), MATCH('Calc - Sparklines'!$D38,INDIRECT($AB38),0)-M$3)),NA()) ->  | N38: =IFERROR(IF(ISNUMBER( INDEX(INDIRECT($Z38), MATCH('Calc - Sparklines'!$C$1,INDIRECT($AA38),0), MATCH('Calc - Sparklines'!$D38,INDIRECT($AB38),0)-N$3))=FALSE,NA(), INDEX(INDIRECT($Z38), MATCH('Calc - Sparklines'!$C$1,INDIRECT($AA38),0), MATCH('Calc - Sparklines'!$D38,INDIRECT($AB38),0)-N$3)),NA()) ->  | O38: =IFERROR(IF(ISNUMBER( INDEX(INDIRECT($Z38), MATCH('Calc - Sparklines'!$C$1,INDIRECT($AA38),0), MATCH('Calc - Sparklines'!$D38,INDIRECT($AB38),0)-O$3))=FALSE,NA(), INDEX(INDIRECT($Z38), MATCH('Calc - Sparklines'!$C$1,INDIRECT($AA38),0), MATCH('Calc - Sparklines'!$D38,INDIRECT($AB38),0)-O$3)),NA()) ->  | P38: =IFERROR(IF(ISNUMBER( INDEX(INDIRECT($Z38), MATCH('Calc - Sparklines'!$C$1,INDIRECT($AA38),0), MATCH('Calc - Sparklines'!$D38,INDIRECT($AB38),0)-P$3))=FALSE,NA(), INDEX(INDIRECT($Z38), MATCH('Calc - Sparklines'!$C$1,INDIRECT($AA38),0), MATCH('Calc - Sparklines'!$D38,INDIRECT($AB38),0)-P$3)),NA()) -> 290659055.8 | R38: 0 | S38: 0 | T38: 290659055.8 | V38: N/A | W38: Sparkline30 | X38: N/A | Z38: Data_Table_CR_ii | AA38: Data_Orgs_CR_ii | AB38: Data_Dates_CR_ii | AD38: Chart available at CCG & STP level only | AE38: =IF(OR(Dashboard!$N$3=1,Dashboard!$N$3=2),"Chart available at CCG & STP level only","") -> Chart available at CCG & STP level only
A39: CR_iii_a | B39: CR(iii.a) | C39: Number of inappropriate out of area bed nights | D39: =#REF! ->  | E39: =IFERROR(IF(ISNUMBER( INDEX(INDIRECT($Z39), MATCH('Calc - Sparklines'!$C$1,INDIRECT($AA39),0), MATCH('Calc - Sparklines'!$D39,INDIRECT($AB39),0)-E$3))=FALSE,NA(), INDEX(INDIRECT($Z39), MATCH('Calc - Sparklines'!$C$1,INDIRECT($AA39),0), MATCH('Calc - Sparklines'!$D39,INDIRECT($AB39),0)-E$3)),NA()) ->  | F39: =IFERROR(IF(ISNUMBER( INDEX(INDIRECT($Z39), MATCH('Calc - Sparklines'!$C$1,INDIRECT($AA39),0), MATCH('Calc - Sparklines'!$D39,INDIRECT($AB39),0)-F$3))=FALSE,NA(), INDEX(INDIRECT($Z39), MATCH('Calc - Sparklines'!$C$1,INDIRECT($AA39),0), MATCH('Calc - Sparklines'!$D39,INDIRECT($AB39),0)-F$3)),NA()) ->  | G39: =IFERROR(IF(ISNUMBER( INDEX(INDIRECT($Z39), MATCH('Calc - Sparklines'!$C$1,INDIRECT($AA39),0), MATCH('Calc - Sparklines'!$D39,INDIRECT($AB39),0)-G$3))=FALSE,NA(), INDEX(INDIRECT($Z39), MATCH('Calc - Sparklines'!$C$1,INDIRECT($AA39),0), MATCH('Calc - Sparklines'!$D39,INDIRECT($AB39),0)-G$3)),NA()) ->  | H39: =IFERROR(IF(ISNUMBER( INDEX(INDIRECT($Z39), MATCH('Calc - Sparklines'!$C$1,INDIRECT($AA39),0), MATCH('Calc - Sparklines'!$D39,INDIRECT($AB39),0)-H$3))=FALSE,NA(), INDEX(INDIRECT($Z39), MATCH('Calc - Sparklines'!$C$1,INDIRECT($AA39),0), MATCH('Calc - Sparklines'!$D39,INDIRECT($AB39),0)-H$3)),NA()) ->  | I39: =IFERROR(IF(ISNUMBER( INDEX(INDIRECT($Z39), MATCH('Calc - Sparklines'!$C$1,INDIRECT($AA39),0), MATCH('Calc - Sparklines'!$D39,INDIRECT($AB39),0)-I$3))=FALSE,NA(), INDEX(INDIRECT($Z39), MATCH('Calc - Sparklines'!$C$1,INDIRECT($AA39),0), MATCH('Calc - Sparklines'!$D39,INDIRECT($AB39),0)-I$3)),NA()) ->  | J39: =IFERROR(IF(ISNUMBER( INDEX(INDIRECT($Z39), MATCH('Calc - Sparklines'!$C$1,INDIRECT($AA39),0), MATCH('Calc - Sparklines'!$D39,INDIRECT($AB39),0)-J$3))=FALSE,NA(), INDEX(INDIRECT($Z39), MATCH('Calc - Sparklines'!$C$1,INDIRECT($AA39),0), MATCH('Calc - Sparklines'!$D39,INDIRECT($AB39),0)-J$3)),NA()) ->  | K39: =IFERROR(IF(ISNUMBER( INDEX(INDIRECT($Z39), MATCH('Calc - Sparklines'!$C$1,INDIRECT($AA39),0), MATCH('Calc - Sparklines'!$D39,INDIRECT($AB39),0)-K$3))=FALSE,NA(), INDEX(INDIRECT($Z39), MATCH('Calc - Sparklines'!$C$1,INDIRECT($AA39),0), MATCH('Calc - Sparklines'!$D39,INDIRECT($AB39),0)-K$3)),NA()) ->  | L39: =IFERROR(IF(ISNUMBER( INDEX(INDIRECT($Z39), MATCH('Calc - Sparklines'!$C$1,INDIRECT($AA39),0), MATCH('Calc - Sparklines'!$D39,INDIRECT($AB39),0)-L$3))=FALSE,NA(), INDEX(INDIRECT($Z39), MATCH('Calc - Sparklines'!$C$1,INDIRECT($AA39),0), MATCH('Calc - Sparklines'!$D39,INDIRECT($AB39),0)-L$3)),NA()) ->  | M39: =IFERROR(IF(ISNUMBER( INDEX(INDIRECT($Z39), MATCH('Calc - Sparklines'!$C$1,INDIRECT($AA39),0), MATCH('Calc - Sparklines'!$D39,INDIRECT($AB39),0)-M$3))=FALSE,NA(), INDEX(INDIRECT($Z39), MATCH('Calc - Sparklines'!$C$1,INDIRECT($AA39),0), MATCH('Calc - Sparklines'!$D39,INDIRECT($AB39),0)-M$3)),NA()) ->  | N39: =IFERROR(IF(ISNUMBER( INDEX(INDIRECT($Z39), MATCH('Calc - Sparklines'!$C$1,INDIRECT($AA39),0), MATCH('Calc - Sparklines'!$D39,INDIRECT($AB39),0)-N$3))=FALSE,NA(), INDEX(INDIRECT($Z39), MATCH('Calc - Sparklines'!$C$1,INDIRECT($AA39),0), MATCH('Calc - Sparklines'!$D39,INDIRECT($AB39),0)-N$3)),NA()) ->  | O39: =IFERROR(IF(ISNUMBER( INDEX(INDIRECT($Z39), MATCH('Calc - Sparklines'!$C$1,INDIRECT($AA39),0), MATCH('Calc - Sparklines'!$D39,INDIRECT($AB39),0)-O$3))=FALSE,NA(), INDEX(INDIRECT($Z39), MATCH('Calc - Sparklines'!$C$1,INDIRECT($AA39),0), MATCH('Calc - Sparklines'!$D39,INDIRECT($AB39),0)-O$3)),NA()) ->  | P39: =IFERROR(IF(ISNUMBER( INDEX(INDIRECT($Z39), MATCH('Calc - Sparklines'!$C$1,INDIRECT($AA39),0), MATCH('Calc - Sparklines'!$D39,INDIRECT($AB39),0)-P$3))=FALSE,NA(), INDEX(INDIRECT($Z39), MATCH('Calc - Sparklines'!$C$1,INDIRECT($AA39),0), MATCH('Calc - Sparklines'!$D39,INDIRECT($AB39),0)-P$3)),NA()) ->  | R39: 0 | W39: Sparkline32 | X39: N/A | Z39: Data_Table_CR_iii_a | AA39: Data_Orgs_CR_iii_a | AB39: Data_Dates_CR_iii_a | AD39: Not Applicable | AE39: Not Applicable
A40: CR_iv_a | B40: CR(iv.a) | C40: Number of detentions under the Mental Health Act | D40: ='CR(iv_a)_FINAL CALC'!B6 -> 2016/17 | E40: =IFERROR(IF(ISNUMBER( INDEX(INDIRECT($Z40), MATCH('Calc - Sparklines'!$C$1,INDIRECT($AA40),0), MATCH('Calc - Sparklines'!$D40,INDIRECT($AB40),0)-E$3))=FALSE,NA(), INDEX(INDIRECT($Z40), MATCH('Calc - Sparklines'!$C$1,INDIRECT($AA40),0), MATCH('Calc - Sparklines'!$D40,INDIRECT($AB40),0)-E$3)),NA()) ->  | F40: =IFERROR(IF(ISNUMBER( INDEX(INDIRECT($Z40), MATCH('Calc - Sparklines'!$C$1,INDIRECT($AA40),0), MATCH('Calc - Sparklines'!$D40,INDIRECT($AB40),0)-F$3))=FALSE,NA(), INDEX(INDIRECT($Z40), MATCH('Calc - Sparklines'!$C$1,INDIRECT($AA40),0), MATCH('Calc - Sparklines'!$D40,INDIRECT($AB40),0)-F$3)),NA()) ->  | G40: =IFERROR(IF(ISNUMBER( INDEX(INDIRECT($Z40), MATCH('Calc - Sparklines'!$C$1,INDIRECT($AA40),0), MATCH('Calc - Sparklines'!$D40,INDIRECT($AB40),0)-G$3))=FALSE,NA(), INDEX(INDIRECT($Z40), MATCH('Calc - Sparklines'!$C$1,INDIRECT($AA40),0), MATCH('Calc - Sparklines'!$D40,INDIRECT($AB40),0)-G$3)),NA()) ->  | H40: =IFERROR(IF(ISNUMBER( INDEX(INDIRECT($Z40), MATCH('Calc - Sparklines'!$C$1,INDIRECT($AA40),0), MATCH('Calc - Sparklines'!$D40,INDIRECT($AB40),0)-H$3))=FALSE,NA(), INDEX(INDIRECT($Z40), MATCH('Calc - Sparklines'!$C$1,INDIRECT($AA40),0), MATCH('Calc - Sparklines'!$D40,INDIRECT($AB40),0)-H$3)),NA()) ->  | I40: =IFERROR(IF(ISNUMBER( INDEX(INDIRECT($Z40), MATCH('Calc - Sparklines'!$C$1,INDIRECT($AA40),0), MATCH('Calc - Sparklines'!$D40,INDIRECT($AB40),0)-I$3))=FALSE,NA(), INDEX(INDIRECT($Z40), MATCH('Calc - Sparklines'!$C$1,INDIRECT($AA40),0), MATCH('Calc - Sparklines'!$D40,INDIRECT($AB40),0)-I$3)),NA()) ->  | J40: =IFERROR(IF(ISNUMBER( INDEX(INDIRECT($Z40), MATCH('Calc - Sparklines'!$C$1,INDIRECT($AA40),0), MATCH('Calc - Sparklines'!$D40,INDIRECT($AB40),0)-J$3))=FALSE,NA(), INDEX(INDIRECT($Z40), MATCH('Calc - Sparklines'!$C$1,INDIRECT($AA40),0), MATCH('Calc - Sparklines'!$D40,INDIRECT($AB40),0)-J$3)),NA()) ->  | K40: =IFERROR(IF(ISNUMBER( INDEX(INDIRECT($Z40), MATCH('Calc - Sparklines'!$C$1,INDIRECT($AA40),0), MATCH('Calc - Sparklines'!$D40,INDIRECT($AB40),0)-K$3))=FALSE,NA(), INDEX(INDIRECT($Z40), MATCH('Calc - Sparklines'!$C$1,INDIRECT($AA40),0), MATCH('Calc - Sparklines'!$D40,INDIRECT($AB40),0)-K$3)),NA()) ->  | L40: =IFERROR(IF(ISNUMBER( INDEX(INDIRECT($Z40), MATCH('Calc - Sparklines'!$C$1,INDIRECT($AA40),0), MATCH('Calc - Sparklines'!$D40,INDIRECT($AB40),0)-L$3))=FALSE,NA(), INDEX(INDIRECT($Z40), MATCH('Calc - Sparklines'!$C$1,INDIRECT($AA40),0), MATCH('Calc - Sparklines'!$D40,INDIRECT($AB40),0)-L$3)),NA()) ->  | M40: =IFERROR(IF(ISNUMBER( INDEX(INDIRECT($Z40), MATCH('Calc - Sparklines'!$C$1,INDIRECT($AA40),0), MATCH('Calc - Sparklines'!$D40,INDIRECT($AB40),0)-M$3))=FALSE,NA(), INDEX(INDIRECT($Z40), MATCH('Calc - Sparklines'!$C$1,INDIRECT($AA40),0), MATCH('Calc - Sparklines'!$D40,INDIRECT($AB40),0)-M$3)),NA()) ->  | N40: =IFERROR(IF(ISNUMBER( INDEX(INDIRECT($Z40), MATCH('Calc - Sparklines'!$C$1,INDIRECT($AA40),0), MATCH('Calc - Sparklines'!$D40,INDIRECT($AB40),0)-N$3))=FALSE,NA(), INDEX(INDIRECT($Z40), MATCH('Calc - Sparklines'!$C$1,INDIRECT($AA40),0), MATCH('Calc - Sparklines'!$D40,INDIRECT($AB40),0)-N$3)),NA()) ->  | O40: =IFERROR(IF(ISNUMBER( INDEX(INDIRECT($Z40), MATCH('Calc - Sparklines'!$C$1,INDIRECT($AA40),0), MATCH('Calc - Sparklines'!$D40,INDIRECT($AB40),0)-O$3))=FALSE,NA(), INDEX(INDIRECT($Z40), MATCH('Calc - Sparklines'!$C$1,INDIRECT($AA40),0), MATCH('Calc - Sparklines'!$D40,INDIRECT($AB40),0)-O$3)),NA()) ->  | P40: =IFERROR(IF(ISNUMBER( INDEX(INDIRECT($Z40), MATCH('Calc - Sparklines'!$C$1,INDIRECT($AA40),0), MATCH('Calc - Sparklines'!$D40,INDIRECT($AB40),0)-P$3))=FALSE,NA(), INDEX(INDIRECT($Z40), MATCH('Calc - Sparklines'!$C$1,INDIRECT($AA40),0), MATCH('Calc - Sparklines'!$D40,INDIRECT($AB40),0)-P$3)),NA()) -> 45864 | R40: 0 | S40: 0 | T40: 45864 | V40: N/A | W40: Sparkline35 | X40: N/A | Z40: Data_Table_CR_iv_a | AA40: Data_Orgs_CR_iv_a | AB40: Data_Dates_CR_iv_a | AD40: National measure only | AE40: National measure only
A41: CR_iv_b | B41: CR(iv.b) | C41: % of people detained under the MHA who are BME | D41: ='CR(iv_b)_FINAL CALC'!B6 -> 2016/17 | E41: =IFERROR(IF(ISNUMBER( INDEX(INDIRECT($Z41), MATCH('Calc - Sparklines'!$C$1,INDIRECT($AA41),0), MATCH('Calc - Sparklines'!$D41,INDIRECT($AB41),0)-E$3))=FALSE,NA(), INDEX(INDIRECT($Z41), MATCH('Calc - Sparklines'!$C$1,INDIRECT($AA41),0), MATCH('Calc - Sparklines'!$D41,INDIRECT($AB41),0)-E$3)),NA()) ->  | F41: =IFERROR(IF(ISNUMBER( INDEX(INDIRECT($Z41), MATCH('Calc - Sparklines'!$C$1,INDIRECT($AA41),0), MATCH('Calc - Sparklines'!$D41,INDIRECT($AB41),0)-F$3))=FALSE,NA(), INDEX(INDIRECT($Z41), MATCH('Calc - Sparklines'!$C$1,INDIRECT($AA41),0), MATCH('Calc - Sparklines'!$D41,INDIRECT($AB41),0)-F$3)),NA()) ->  | G41: =IFERROR(IF(ISNUMBER( INDEX(INDIRECT($Z41), MATCH('Calc - Sparklines'!$C$1,INDIRECT($AA41),0), MATCH('Calc - Sparklines'!$D41,INDIRECT($AB41),0)-G$3))=FALSE,NA(), INDEX(INDIRECT($Z41), MATCH('Calc - Sparklines'!$C$1,INDIRECT($AA41),0), MATCH('Calc - Sparklines'!$D41,INDIRECT($AB41),0)-G$3)),NA()) ->  | H41: =IFERROR(IF(ISNUMBER( INDEX(INDIRECT($Z41), MATCH('Calc - Sparklines'!$C$1,INDIRECT($AA41),0), MATCH('Calc - Sparklines'!$D41,INDIRECT($AB41),0)-H$3))=FALSE,NA(), INDEX(INDIRECT($Z41), MATCH('Calc - Sparklines'!$C$1,INDIRECT($AA41),0), MATCH('Calc - Sparklines'!$D41,INDIRECT($AB41),0)-H$3)),NA()) ->  | I41: =IFERROR(IF(ISNUMBER( INDEX(INDIRECT($Z41), MATCH('Calc - Sparklines'!$C$1,INDIRECT($AA41),0), MATCH('Calc - Sparklines'!$D41,INDIRECT($AB41),0)-I$3))=FALSE,NA(), INDEX(INDIRECT($Z41), MATCH('Calc - Sparklines'!$C$1,INDIRECT($AA41),0), MATCH('Calc - Sparklines'!$D41,INDIRECT($AB41),0)-I$3)),NA()) ->  | J41: =IFERROR(IF(ISNUMBER( INDEX(INDIRECT($Z41), MATCH('Calc - Sparklines'!$C$1,INDIRECT($AA41),0), MATCH('Calc - Sparklines'!$D41,INDIRECT($AB41),0)-J$3))=FALSE,NA(), INDEX(INDIRECT($Z41), MATCH('Calc - Sparklines'!$C$1,INDIRECT($AA41),0), MATCH('Calc - Sparklines'!$D41,INDIRECT($AB41),0)-J$3)),NA()) ->  | K41: =IFERROR(IF(ISNUMBER( INDEX(INDIRECT($Z41), MATCH('Calc - Sparklines'!$C$1,INDIRECT($AA41),0), MATCH('Calc - Sparklines'!$D41,INDIRECT($AB41),0)-K$3))=FALSE,NA(), INDEX(INDIRECT($Z41), MATCH('Calc - Sparklines'!$C$1,INDIRECT($AA41),0), MATCH('Calc - Sparklines'!$D41,INDIRECT($AB41),0)-K$3)),NA()) ->  | L41: =IFERROR(IF(ISNUMBER( INDEX(INDIRECT($Z41), MATCH('Calc - Sparklines'!$C$1,INDIRECT($AA41),0), MATCH('Calc - Sparklines'!$D41,INDIRECT($AB41),0)-L$3))=FALSE,NA(), INDEX(INDIRECT($Z41), MATCH('Calc - Sparklines'!$C$1,INDIRECT($AA41),0), MATCH('Calc - Sparklines'!$D41,INDIRECT($AB41),0)-L$3)),NA()) ->  | M41: =IFERROR(IF(ISNUMBER( INDEX(INDIRECT($Z41), MATCH('Calc - Sparklines'!$C$1,INDIRECT($AA41),0), MATCH('Calc - Sparklines'!$D41,INDIRECT($AB41),0)-M$3))=FALSE,NA(), INDEX(INDIRECT($Z41), MATCH('Calc - Sparklines'!$C$1,INDIRECT($AA41),0), MATCH('Calc - Sparklines'!$D41,INDIRECT($AB41),0)-M$3)),NA()) ->  | N41: =IFERROR(IF(ISNUMBER( INDEX(INDIRECT($Z41), MATCH('Calc - Sparklines'!$C$1,INDIRECT($AA41),0), MATCH('Calc - Sparklines'!$D41,INDIRECT($AB41),0)-N$3))=FALSE,NA(), INDEX(INDIRECT($Z41), MATCH('Calc - Sparklines'!$C$1,INDIRECT($AA41),0), MATCH('Calc - Sparklines'!$D41,INDIRECT($AB41),0)-N$3)),NA()) ->  | O41: =IFERROR(IF(ISNUMBER( INDEX(INDIRECT($Z41), MATCH('Calc - Sparklines'!$C$1,INDIRECT($AA41),0), MATCH('Calc - Sparklines'!$D41,INDIRECT($AB41),0)-O$3))=FALSE,NA(), INDEX(INDIRECT($Z41), MATCH('Calc - Sparklines'!$C$1,INDIRECT($AA41),0), MATCH('Calc - Sparklines'!$D41,INDIRECT($AB41),0)-O$3)),NA()) ->  | P41: =IFERROR(IF(ISNUMBER( INDEX(INDIRECT($Z41), MATCH('Calc - Sparklines'!$C$1,INDIRECT($AA41),0), MATCH('Calc - Sparklines'!$D41,INDIRECT($AB41),0)-P$3))=FALSE,NA(), INDEX(INDIRECT($Z41), MATCH('Calc - Sparklines'!$C$1,INDIRECT($AA41),0), MATCH('Calc - Sparklines'!$D41,INDIRECT($AB41),0)-P$3)),NA()) -> 0.3 | R41: 0 | S41: 0 | T41: 0.3 | V41: N/A | W41: Sparkline36 | X41: N/A | Z41: Data_Table_CR_iv_b | AA41: Data_Orgs_CR_iv_b | AB41: Data_Dates_CR_iv_b | AD41: National measure only | AE41: National measure only
A42: CR_v_a | B42: CR(v.a) | C42: Number of section 136 detentions taken to police cells as a place of safety | D42: ='CR(v_a)_FINAL CALC'!B6 -> 2016/17 | E42: =IFERROR(IF(ISNUMBER( INDEX(INDIRECT($Z42), MATCH('Calc - Sparklines'!$C$1,INDIRECT($AA42),0), MATCH('Calc - Sparklines'!$D42,INDIRECT($AB42),0)-E$3))=FALSE,NA(), INDEX(INDIRECT($Z42), MATCH('Calc - Sparklines'!$C$1,INDIRECT($AA42),0), MATCH('Calc - Sparklines'!$D42,INDIRECT($AB42),0)-E$3)),NA()) ->  | F42: =IFERROR(IF(ISNUMBER( INDEX(INDIRECT($Z42), MATCH('Calc - Sparklines'!$C$1,INDIRECT($AA42),0), MATCH('Calc - Sparklines'!$D42,INDIRECT($AB42),0)-F$3))=FALSE,NA(), INDEX(INDIRECT($Z42), MATCH('Calc - Sparklines'!$C$1,INDIRECT($AA42),0), MATCH('Calc - Sparklines'!$D42,INDIRECT($AB42),0)-F$3)),NA()) ->  | G42: =IFERROR(IF(ISNUMBER( INDEX(INDIRECT($Z42), MATCH('Calc - Sparklines'!$C$1,INDIRECT($AA42),0), MATCH('Calc - Sparklines'!$D42,INDIRECT($AB42),0)-G$3))=FALSE,NA(), INDEX(INDIRECT($Z42), MATCH('Calc - Sparklines'!$C$1,INDIRECT($AA42),0), MATCH('Calc - Sparklines'!$D42,INDIRECT($AB42),0)-G$3)),NA()) ->  | H42: =IFERROR(IF(ISNUMBER( INDEX(INDIRECT($Z42), MATCH('Calc - Sparklines'!$C$1,INDIRECT($AA42),0), MATCH('Calc - Sparklines'!$D42,INDIRECT($AB42),0)-H$3))=FALSE,NA(), INDEX(INDIRECT($Z42), MATCH('Calc - Sparklines'!$C$1,INDIRECT($AA42),0), MATCH('Calc - Sparklines'!$D42,INDIRECT($AB42),0)-H$3)),NA()) ->  | I42: =IFERROR(IF(ISNUMBER( INDEX(INDIRECT($Z42), MATCH('Calc - Sparklines'!$C$1,INDIRECT($AA42),0), MATCH('Calc - Sparklines'!$D42,INDIRECT($AB42),0)-I$3))=FALSE,NA(), INDEX(INDIRECT($Z42), MATCH('Calc - Sparklines'!$C$1,INDIRECT($AA42),0), MATCH('Calc - Sparklines'!$D42,INDIRECT($AB42),0)-I$3)),NA()) ->  | J42: =IFERROR(IF(ISNUMBER( INDEX(INDIRECT($Z42), MATCH('Calc - Sparklines'!$C$1,INDIRECT($AA42),0), MATCH('Calc - Sparklines'!$D42,INDIRECT($AB42),0)-J$3))=FALSE,NA(), INDEX(INDIRECT($Z42), MATCH('Calc - Sparklines'!$C$1,INDIRECT($AA42),0), MATCH('Calc - Sparklines'!$D42,INDIRECT($AB42),0)-J$3)),NA()) ->  | K42: =IFERROR(IF(ISNUMBER( INDEX(INDIRECT($Z42), MATCH('Calc - Sparklines'!$C$1,INDIRECT($AA42),0), MATCH('Calc - Sparklines'!$D42,INDIRECT($AB42),0)-K$3))=FALSE,NA(), INDEX(INDIRECT($Z42), MATCH('Calc - Sparklines'!$C$1,INDIRECT($AA42),0), MATCH('Calc - Sparklines'!$D42,INDIRECT($AB42),0)-K$3)),NA()) ->  | L42: =IFERROR(IF(ISNUMBER( INDEX(INDIRECT($Z42), MATCH('Calc - Sparklines'!$C$1,INDIRECT($AA42),0), MATCH('Calc - Sparklines'!$D42,INDIRECT($AB42),0)-L$3))=FALSE,NA(), INDEX(INDIRECT($Z42), MATCH('Calc - Sparklines'!$C$1,INDIRECT($AA42),0), MATCH('Calc - Sparklines'!$D42,INDIRECT($AB42),0)-L$3)),NA()) ->  | M42: =IFERROR(IF(ISNUMBER( INDEX(INDIRECT($Z42), MATCH('Calc - Sparklines'!$C$1,INDIRECT($AA42),0), MATCH('Calc - Sparklines'!$D42,INDIRECT($AB42),0)-M$3))=FALSE,NA(), INDEX(INDIRECT($Z42), MATCH('Calc - Sparklines'!$C$1,INDIRECT($AA42),0), MATCH('Calc - Sparklines'!$D42,INDIRECT($AB42),0)-M$3)),NA()) -> 6028 | N42: =IFERROR(IF(ISNUMBER( INDEX(INDIRECT($Z42), MATCH('Calc - Sparklines'!$C$1,INDIRECT($AA42),0), MATCH('Calc - Sparklines'!$D42,INDIRECT($AB42),0)-N$3))=FALSE,NA(), INDEX(INDIRECT($Z42), MATCH('Calc - Sparklines'!$C$1,INDIRECT($AA42),0), MATCH('Calc - Sparklines'!$D42,INDIRECT($AB42),0)-N$3)),NA()) -> 3996 | O42: =IFERROR(IF(ISNUMBER( INDEX(INDIRECT($Z42), MATCH('Calc - Sparklines'!$C$1,INDIRECT($AA42),0), MATCH('Calc - Sparklines'!$D42,INDIRECT($AB42),0)-O$3))=FALSE,NA(), INDEX(INDIRECT($Z42), MATCH('Calc - Sparklines'!$C$1,INDIRECT($AA42),0), MATCH('Calc - Sparklines'!$D42,INDIRECT($AB42),0)-O$3)),NA()) -> 1764 | P42: =IFERROR(IF(ISNUMBER( INDEX(INDIRECT($Z42), MATCH('Calc - Sparklines'!$C$1,INDIRECT($AA42),0), MATCH('Calc - Sparklines'!$D42,INDIRECT($AB42),0)-P$3))=FALSE,NA(), INDEX(INDIRECT($Z42), MATCH('Calc - Sparklines'!$C$1,INDIRECT($AA42),0), MATCH('Calc - Sparklines'!$D42,INDIRECT($AB42),0)-P$3)),NA()) -> 898 | R42: 4 | S42: 0 | T42: 898 | U42: 1764 | V42: ▼ | W42: Sparkline37 | Z42: Data_Table_CR_v_a | AA42: Data_Orgs_CR_v_a | AB42: Data_Dates_CR_v_a | AD42: National measure only | AE42: National measure only
A43: CR_v_b | B43: CR(v.b) | C43: Number of these that are under 18 | D43: ='CR(v_b)_FINAL CALC'!B6 -> 2016/17 | E43: =IFERROR(IF(ISNUMBER( INDEX(INDIRECT($Z43), MATCH('Calc - Sparklines'!$C$1,INDIRECT($AA43),0), MATCH('Calc - Sparklines'!$D43,INDIRECT($AB43),0)-E$3))=FALSE,NA(), INDEX(INDIRECT($Z43), MATCH('Calc - Sparklines'!$C$1,INDIRECT($AA43),0), MATCH('Calc - Sparklines'!$D43,INDIRECT($AB43),0)-E$3)),NA()) ->  | F43: =IFERROR(IF(ISNUMBER( INDEX(INDIRECT($Z43), MATCH('Calc - Sparklines'!$C$1,INDIRECT($AA43),0), MATCH('Calc - Sparklines'!$D43,INDIRECT($AB43),0)-F$3))=FALSE,NA(), INDEX(INDIRECT($Z43), MATCH('Calc - Sparklines'!$C$1,INDIRECT($AA43),0), MATCH('Calc - Sparklines'!$D43,INDIRECT($AB43),0)-F$3)),NA()) ->  | G43: =IFERROR(IF(ISNUMBER( INDEX(INDIRECT($Z43), MATCH('Calc - Sparklines'!$C$1,INDIRECT($AA43),0), MATCH('Calc - Sparklines'!$D43,INDIRECT($AB43),0)-G$3))=FALSE,NA(), INDEX(INDIRECT($Z43), MATCH('Calc - Sparklines'!$C$1,INDIRECT($AA43),0), MATCH('Calc - Sparklines'!$D43,INDIRECT($AB43),0)-G$3)),NA()) ->  | H43: =IFERROR(IF(ISNUMBER( INDEX(INDIRECT($Z43), MATCH('Calc - Sparklines'!$C$1,INDIRECT($AA43),0), MATCH('Calc - Sparklines'!$D43,INDIRECT($AB43),0)-H$3))=FALSE,NA(), INDEX(INDIRECT($Z43), MATCH('Calc - Sparklines'!$C$1,INDIRECT($AA43),0), MATCH('Calc - Sparklines'!$D43,INDIRECT($AB43),0)-H$3)),NA()) ->  | I43: =IFERROR(IF(ISNUMBER( INDEX(INDIRECT($Z43), MATCH('Calc - Sparklines'!$C$1,INDIRECT($AA43),0), MATCH('Calc - Sparklines'!$D43,INDIRECT($AB43),0)-I$3))=FALSE,NA(), INDEX(INDIRECT($Z43), MATCH('Calc - Sparklines'!$C$1,INDIRECT($AA43),0), MATCH('Calc - Sparklines'!$D43,INDIRECT($AB43),0)-I$3)),NA()) ->  | J43: =IFERROR(IF(ISNUMBER( INDEX(INDIRECT($Z43), MATCH('Calc - Sparklines'!$C$1,INDIRECT($AA43),0), MATCH('Calc - Sparklines'!$D43,INDIRECT($AB43),0)-J$3))=FALSE,NA(), INDEX(INDIRECT($Z43), MATCH('Calc - Sparklines'!$C$1,INDIRECT($AA43),0), MATCH('Calc - Sparklines'!$D43,INDIRECT($AB43),0)-J$3)),NA()) ->  | K43: =IFERROR(IF(ISNUMBER( INDEX(INDIRECT($Z43), MATCH('Calc - Sparklines'!$C$1,INDIRECT($AA43),0), MATCH('Calc - Sparklines'!$D43,INDIRECT($AB43),0)-K$3))=FALSE,NA(), INDEX(INDIRECT($Z43), MATCH('Calc - Sparklines'!$C$1,INDIRECT($AA43),0), MATCH('Calc - Sparklines'!$D43,INDIRECT($AB43),0)-K$3)),NA()) ->  | L43: =IFERROR(IF(ISNUMBER( INDEX(INDIRECT($Z43), MATCH('Calc - Sparklines'!$C$1,INDIRECT($AA43),0), MATCH('Calc - Sparklines'!$D43,INDIRECT($AB43),0)-L$3))=FALSE,NA(), INDEX(INDIRECT($Z43), MATCH('Calc - Sparklines'!$C$1,INDIRECT($AA43),0), MATCH('Calc - Sparklines'!$D43,INDIRECT($AB43),0)-L$3)),NA()) ->  | M43: =IFERROR(IF(ISNUMBER( INDEX(INDIRECT($Z43), MATCH('Calc - Sparklines'!$C$1,INDIRECT($AA43),0), MATCH('Calc - Sparklines'!$D43,INDIRECT($AB43),0)-M$3))=FALSE,NA(), INDEX(INDIRECT($Z43), MATCH('Calc - Sparklines'!$C$1,INDIRECT($AA43),0), MATCH('Calc - Sparklines'!$D43,INDIRECT($AB43),0)-M$3)),NA()) -> 236 | N43: =IFERROR(IF(ISNUMBER( INDEX(INDIRECT($Z43), MATCH('Calc - Sparklines'!$C$1,INDIRECT($AA43),0), MATCH('Calc - Sparklines'!$D43,INDIRECT($AB43),0)-N$3))=FALSE,NA(), INDEX(INDIRECT($Z43), MATCH('Calc - Sparklines'!$C$1,INDIRECT($AA43),0), MATCH('Calc - Sparklines'!$D43,INDIRECT($AB43),0)-N$3)),NA()) -> 145 | O43: =IFERROR(IF(ISNUMBER( INDEX(INDIRECT($Z43), MATCH('Calc - Sparklines'!$C$1,INDIRECT($AA43),0), MATCH('Calc - Sparklines'!$D43,INDIRECT($AB43),0)-O$3))=FALSE,NA(), INDEX(INDIRECT($Z43), MATCH('Calc - Sparklines'!$C$1,INDIRECT($AA43),0), MATCH('Calc - Sparklines'!$D43,INDIRECT($AB43),0)-O$3)),NA()) -> 35 | P43: =IFERROR(IF(ISNUMBER( INDEX(INDIRECT($Z43), MATCH('Calc - Sparklines'!$C$1,INDIRECT($AA43),0), MATCH('Calc - Sparklines'!$D43,INDIRECT($AB43),0)-P$3))=FALSE,NA(), INDEX(INDIRECT($Z43), MATCH('Calc - Sparklines'!$C$1,INDIRECT($AA43),0), MATCH('Calc - Sparklines'!$D43,INDIRECT($AB43),0)-P$3)),NA()) -> 20 | R43: 4 | S43: 0 | T43: 20 | U43: 35 | V43: ▼ | W43: Sparkline01 | Z43: Data_Table_CR_v_b | AA43: Data_Orgs_CR_v_b | AB43: Data_Dates_CR_v_b
B44: Acute hospital (UEC) liaison | E44: =IFERROR(IF(ISNUMBER( INDEX(INDIRECT($Z44), MATCH('Calc - Sparklines'!$C$1,INDIRECT($AA44),0), MATCH('Calc - Sparklines'!$D44,INDIRECT($AB44),0)-E$3))=FALSE,NA(), INDEX(INDIRECT($Z44), MATCH('Calc - Sparklines'!$C$1,INDIRECT($AA44),0), MATCH('Calc - Sparklines'!$D44,INDIRECT($AB44),0)-E$3)),NA()) ->  | F44: =IFERROR(IF(ISNUMBER( INDEX(INDIRECT($Z44), MATCH('Calc - Sparklines'!$C$1,INDIRECT($AA44),0), MATCH('Calc - Sparklines'!$D44,INDIRECT($AB44),0)-F$3))=FALSE,NA(), INDEX(INDIRECT($Z44), MATCH('Calc - Sparklines'!$C$1,INDIRECT($AA44),0), MATCH('Calc - Sparklines'!$D44,INDIRECT($AB44),0)-F$3)),NA()) ->  | G44: =IFERROR(IF(ISNUMBER( INDEX(INDIRECT($Z44), MATCH('Calc - Sparklines'!$C$1,INDIRECT($AA44),0), MATCH('Calc - Sparklines'!$D44,INDIRECT($AB44),0)-G$3))=FALSE,NA(), INDEX(INDIRECT($Z44), MATCH('Calc - Sparklines'!$C$1,INDIRECT($AA44),0), MATCH('Calc - Sparklines'!$D44,INDIRECT($AB44),0)-G$3)),NA()) ->  | H44: =IFERROR(IF(ISNUMBER( INDEX(INDIRECT($Z44), MATCH('Calc - Sparklines'!$C$1,INDIRECT($AA44),0), MATCH('Calc - Sparklines'!$D44,INDIRECT($AB44),0)-H$3))=FALSE,NA(), INDEX(INDIRECT($Z44), MATCH('Calc - Sparklines'!$C$1,INDIRECT($AA44),0), MATCH('Calc - Sparklines'!$D44,INDIRECT($AB44),0)-H$3)),NA()) ->  | I44: =IFERROR(IF(ISNUMBER( INDEX(INDIRECT($Z44), MATCH('Calc - Sparklines'!$C$1,INDIRECT($AA44),0), MATCH('Calc - Sparklines'!$D44,INDIRECT($AB44),0)-I$3))=FALSE,NA(), INDEX(INDIRECT($Z44), MATCH('Calc - Sparklines'!$C$1,INDIRECT($AA44),0), MATCH('Calc - Sparklines'!$D44,INDIRECT($AB44),0)-I$3)),NA()) ->  | J44: =IFERROR(IF(ISNUMBER( INDEX(INDIRECT($Z44), MATCH('Calc - Sparklines'!$C$1,INDIRECT($AA44),0), MATCH('Calc - Sparklines'!$D44,INDIRECT($AB44),0)-J$3))=FALSE,NA(), INDEX(INDIRECT($Z44), MATCH('Calc - Sparklines'!$C$1,INDIRECT($AA44),0), MATCH('Calc - Sparklines'!$D44,INDIRECT($AB44),0)-J$3)),NA()) ->  | K44: =IFERROR(IF(ISNUMBER( INDEX(INDIRECT($Z44), MATCH('Calc - Sparklines'!$C$1,INDIRECT($AA44),0), MATCH('Calc - Sparklines'!$D44,INDIRECT($AB44),0)-K$3))=FALSE,NA(), INDEX(INDIRECT($Z44), MATCH('Calc - Sparklines'!$C$1,INDIRECT($AA44),0), MATCH('Calc - Sparklines'!$D44,INDIRECT($AB44),0)-K$3)),NA()) ->  | L44: =IFERROR(IF(ISNUMBER( INDEX(INDIRECT($Z44), MATCH('Calc - Sparklines'!$C$1,INDIRECT($AA44),0), MATCH('Calc - Sparklines'!$D44,INDIRECT($AB44),0)-L$3))=FALSE,NA(), INDEX(INDIRECT($Z44), MATCH('Calc - Sparklines'!$C$1,INDIRECT($AA44),0), MATCH('Calc - Sparklines'!$D44,INDIRECT($AB44),0)-L$3)),NA()) ->  | M44: =IFERROR(IF(ISNUMBER( INDEX(INDIRECT($Z44), MATCH('Calc - Sparklines'!$C$1,INDIRECT($AA44),0), MATCH('Calc - Sparklines'!$D44,INDIRECT($AB44),0)-M$3))=FALSE,NA(), INDEX(INDIRECT($Z44), MATCH('Calc - Sparklines'!$C$1,INDIRECT($AA44),0), MATCH('Calc - Sparklines'!$D44,INDIRECT($AB44),0)-M$3)),NA()) ->  | N44: =IFERROR(IF(ISNUMBER( INDEX(INDIRECT($Z44), MATCH('Calc - Sparklines'!$C$1,INDIRECT($AA44),0), MATCH('Calc - Sparklines'!$D44,INDIRECT($AB44),0)-N$3))=FALSE,NA(), INDEX(INDIRECT($Z44), MATCH('Calc - Sparklines'!$C$1,INDIRECT($AA44),0), MATCH('Calc - Sparklines'!$D44,INDIRECT($AB44),0)-N$3)),NA()) ->  | O44: =IFERROR(IF(ISNUMBER( INDEX(INDIRECT($Z44), MATCH('Calc - Sparklines'!$C$1,INDIRECT($AA44),0), MATCH('Calc - Sparklines'!$D44,INDIRECT($AB44),0)-O$3))=FALSE,NA(), INDEX(INDIRECT($Z44), MATCH('Calc - Sparklines'!$C$1,INDIRECT($AA44),0), MATCH('Calc - Sparklines'!$D44,INDIRECT($AB44),0)-O$3)),NA()) ->  | P44: =IFERROR(IF(ISNUMBER( INDEX(INDIRECT($Z44), MATCH('Calc - Sparklines'!$C$1,INDIRECT($AA44),0), MATCH('Calc - Sparklines'!$D44,INDIRECT($AB44),0)-P$3))=FALSE,NA(), INDEX(INDIRECT($Z44), MATCH('Calc - Sparklines'!$C$1,INDIRECT($AA44),0), MATCH('Calc - Sparklines'!$D44,INDIRECT($AB44),0)-P$3)),NA()) ->  | R44: 0 | S44: =IF(P44="N/A",IF(O44="N/A",2,1),0) ->  | T44: =OFFSET(P44,,-S44) ->  | V44: =IF(D44="","",IFERROR(IF(T44>U44,"▲", IF(T44<U44,"▼","◄►")),"N/A")) ->  | X44: =IF(R44<=2,"N/A","") -> N/A | AD44: Subheading
A45: AC_i | B45: AC(i) | C45: % of acute hospitals meeting the ‘core 24’ service standard (criteria a, b and c below) | D45: ='AC(i)_FINAL CALC'!B6 -> 2015/16 | E45: =IFERROR(IF(ISNUMBER( INDEX(INDIRECT($Z45), MATCH('Calc - Sparklines'!$C$1,INDIRECT($AA45),0), MATCH('Calc - Sparklines'!$D45,INDIRECT($AB45),0)-E$3))=FALSE,NA(), INDEX(INDIRECT($Z45), MATCH('Calc - Sparklines'!$C$1,INDIRECT($AA45),0), MATCH('Calc - Sparklines'!$D45,INDIRECT($AB45),0)-E$3)),NA()) ->  | F45: =IFERROR(IF(ISNUMBER( INDEX(INDIRECT($Z45), MATCH('Calc - Sparklines'!$C$1,INDIRECT($AA45),0), MATCH('Calc - Sparklines'!$D45,INDIRECT($AB45),0)-F$3))=FALSE,NA(), INDEX(INDIRECT($Z45), MATCH('Calc - Sparklines'!$C$1,INDIRECT($AA45),0), MATCH('Calc - Sparklines'!$D45,INDIRECT($AB45),0)-F$3)),NA()) ->  | G45: =IFERROR(IF(ISNUMBER( INDEX(INDIRECT($Z45), MATCH('Calc - Sparklines'!$C$1,INDIRECT($AA45),0), MATCH('Calc - Sparklines'!$D45,INDIRECT($AB45),0)-G$3))=FALSE,NA(), INDEX(INDIRECT($Z45), MATCH('Calc - Sparklines'!$C$1,INDIRECT($AA45),0), MATCH('Calc - Sparklines'!$D45,INDIRECT($AB45),0)-G$3)),NA()) ->  | H45: =IFERROR(IF(ISNUMBER( INDEX(INDIRECT($Z45), MATCH('Calc - Sparklines'!$C$1,INDIRECT($AA45),0), MATCH('Calc - Sparklines'!$D45,INDIRECT($AB45),0)-H$3))=FALSE,NA(), INDEX(INDIRECT($Z45), MATCH('Calc - Sparklines'!$C$1,INDIRECT($AA45),0), MATCH('Calc - Sparklines'!$D45,INDIRECT($AB45),0)-H$3)),NA()) ->  | I45: =IFERROR(IF(ISNUMBER( INDEX(INDIRECT($Z45), MATCH('Calc - Sparklines'!$C$1,INDIRECT($AA45),0), MATCH('Calc - Sparklines'!$D45,INDIRECT($AB45),0)-I$3))=FALSE,NA(), INDEX(INDIRECT($Z45), MATCH('Calc - Sparklines'!$C$1,INDIRECT($AA45),0), MATCH('Calc - Sparklines'!$D45,INDIRECT($AB45),0)-I$3)),NA()) ->  | J45: =IFERROR(IF(ISNUMBER( INDEX(INDIRECT($Z45), MATCH('Calc - Sparklines'!$C$1,INDIRECT($AA45),0), MATCH('Calc - Sparklines'!$D45,INDIRECT($AB45),0)-J$3))=FALSE,NA(), INDEX(INDIRECT($Z45), MATCH('Calc - Sparklines'!$C$1,INDIRECT($AA45),0), MATCH('Calc - Sparklines'!$D45,INDIRECT($AB45),0)-J$3)),NA()) ->  | K45: =IFERROR(IF(ISNUMBER( INDEX(INDIRECT($Z45), MATCH('Calc - Sparklines'!$C$1,INDIRECT($AA45),0), MATCH('Calc - Sparklines'!$D45,INDIRECT($AB45),0)-K$3))=FALSE,NA(), INDEX(INDIRECT($Z45), MATCH('Calc - Sparklines'!$C$1,INDIRECT($AA45),0), MATCH('Calc - Sparklines'!$D45,INDIRECT($AB45),0)-K$3)),NA()) ->  | L45: =IFERROR(IF(ISNUMBER( INDEX(INDIRECT($Z45), MATCH('Calc - Sparklines'!$C$1,INDIRECT($AA45),0), MATCH('Calc - Sparklines'!$D45,INDIRECT($AB45),0)-L$3))=FALSE,NA(), INDEX(INDIRECT($Z45), MATCH('Calc - Sparklines'!$C$1,INDIRECT($AA45),0), MATCH('Calc - Sparklines'!$D45,INDIRECT($AB45),0)-L$3)),NA()) ->  | M45: =IFERROR(IF(ISNUMBER( INDEX(INDIRECT($Z45), MATCH('Calc - Sparklines'!$C$1,INDIRECT($AA45),0), MATCH('Calc - Sparklines'!$D45,INDIRECT($AB45),0)-M$3))=FALSE,NA(), INDEX(INDIRECT($Z45), MATCH('Calc - Sparklines'!$C$1,INDIRECT($AA45),0), MATCH('Calc - Sparklines'!$D45,INDIRECT($AB45),0)-M$3)),NA()) ->  | N45: =IFERROR(IF(ISNUMBER( INDEX(INDIRECT($Z45), MATCH('Calc - Sparklines'!$C$1,INDIRECT($AA45),0), MATCH('Calc - Sparklines'!$D45,INDIRECT($AB45),0)-N$3))=FALSE,NA(), INDEX(INDIRECT($Z45), MATCH('Calc - Sparklines'!$C$1,INDIRECT($AA45),0), MATCH('Calc - Sparklines'!$D45,INDIRECT($AB45),0)-N$3)),NA()) ->  | O45: =IFERROR(IF(ISNUMBER( INDEX(INDIRECT($Z45), MATCH('Calc - Sparklines'!$C$1,INDIRECT($AA45),0), MATCH('Calc - Sparklines'!$D45,INDIRECT($AB45),0)-O$3))=FALSE,NA(), INDEX(INDIRECT($Z45), MATCH('Calc - Sparklines'!$C$1,INDIRECT($AA45),0), MATCH('Calc - Sparklines'!$D45,INDIRECT($AB45),0)-O$3)),NA()) -> 0.07 | P45: =IFERROR(IF(ISNUMBER( INDEX(INDIRECT($Z45), MATCH('Calc - Sparklines'!$C$1,INDIRECT($AA45),0), MATCH('Calc - Sparklines'!$D45,INDIRECT($AB45),0)-P$3))=FALSE,NA(), INDEX(INDIRECT($Z45), MATCH('Calc - Sparklines'!$C$1,INDIRECT($AA45),0), MATCH('Calc - Sparklines'!$D45,INDIRECT($AB45),0)-P$3)),NA()) -> 0.1016949153 | R45: 0 | S45: 0 | T45: =OFFSET(P45,,-S45) -> 0.1016949153 | U45: 0.07 | V45: ▲ | W45: Sparkline38 | X45: N/A | Z45: Data_Table_AC_i | AA45: Data_Orgs_AC_i | AB45: Data_Dates_AC_i | AD45: National measure only | AE45: National measure only
A46: AC_ii | B46: AC(ii) | C46: A&E and Ward Liaison MH forecast outturn (£k) | D46: ='AC(ii)_FINAL CALC'!B6 -> 2017/18 | E46: =IFERROR(IF(ISNUMBER( INDEX(INDIRECT($Z46), MATCH('Calc - Sparklines'!$C$1,INDIRECT($AA46),0), MATCH('Calc - Sparklines'!$D46,INDIRECT($AB46),0)-E$3))=FALSE,NA(), INDEX(INDIRECT($Z46), MATCH('Calc - Sparklines'!$C$1,INDIRECT($AA46),0), MATCH('Calc - Sparklines'!$D46,INDIRECT($AB46),0)-E$3)),NA()) ->  | F46: =IFERROR(IF(ISNUMBER( INDEX(INDIRECT($Z46), MATCH('Calc - Sparklines'!$C$1,INDIRECT($AA46),0), MATCH('Calc - Sparklines'!$D46,INDIRECT($AB46),0)-F$3))=FALSE,NA(), INDEX(INDIRECT($Z46), MATCH('Calc - Sparklines'!$C$1,INDIRECT($AA46),0), MATCH('Calc - Sparklines'!$D46,INDIRECT($AB46),0)-F$3)),NA()) ->  | G46: =IFERROR(IF(ISNUMBER( INDEX(INDIRECT($Z46), MATCH('Calc - Sparklines'!$C$1,INDIRECT($AA46),0), MATCH('Calc - Sparklines'!$D46,INDIRECT($AB46),0)-G$3))=FALSE,NA(), INDEX(INDIRECT($Z46), MATCH('Calc - Sparklines'!$C$1,INDIRECT($AA46),0), MATCH('Calc - Sparklines'!$D46,INDIRECT($AB46),0)-G$3)),NA()) ->  | H46: =IFERROR(IF(ISNUMBER( INDEX(INDIRECT($Z46), MATCH('Calc - Sparklines'!$C$1,INDIRECT($AA46),0), MATCH('Calc - Sparklines'!$D46,INDIRECT($AB46),0)-H$3))=FALSE,NA(), INDEX(INDIRECT($Z46), MATCH('Calc - Sparklines'!$C$1,INDIRECT($AA46),0), MATCH('Calc - Sparklines'!$D46,INDIRECT($AB46),0)-H$3)),NA()) ->  | I46: =IFERROR(IF(ISNUMBER( INDEX(INDIRECT($Z46), MATCH('Calc - Sparklines'!$C$1,INDIRECT($AA46),0), MATCH('Calc - Sparklines'!$D46,INDIRECT($AB46),0)-I$3))=FALSE,NA(), INDEX(INDIRECT($Z46), MATCH('Calc - Sparklines'!$C$1,INDIRECT($AA46),0), MATCH('Calc - Sparklines'!$D46,INDIRECT($AB46),0)-I$3)),NA()) ->  | J46: =IFERROR(IF(ISNUMBER( INDEX(INDIRECT($Z46), MATCH('Calc - Sparklines'!$C$1,INDIRECT($AA46),0), MATCH('Calc - Sparklines'!$D46,INDIRECT($AB46),0)-J$3))=FALSE,NA(), INDEX(INDIRECT($Z46), MATCH('Calc - Sparklines'!$C$1,INDIRECT($AA46),0), MATCH('Calc - Sparklines'!$D46,INDIRECT($AB46),0)-J$3)),NA()) ->  | K46: =IFERROR(IF(ISNUMBER( INDEX(INDIRECT($Z46), MATCH('Calc - Sparklines'!$C$1,INDIRECT($AA46),0), MATCH('Calc - Sparklines'!$D46,INDIRECT($AB46),0)-K$3))=FALSE,NA(), INDEX(INDIRECT($Z46), MATCH('Calc - Sparklines'!$C$1,INDIRECT($AA46),0), MATCH('Calc - Sparklines'!$D46,INDIRECT($AB46),0)-K$3)),NA()) ->  | L46: =IFERROR(IF(ISNUMBER( INDEX(INDIRECT($Z46), MATCH('Calc - Sparklines'!$C$1,INDIRECT($AA46),0), MATCH('Calc - Sparklines'!$D46,INDIRECT($AB46),0)-L$3))=FALSE,NA(), INDEX(INDIRECT($Z46), MATCH('Calc - Sparklines'!$C$1,INDIRECT($AA46),0), MATCH('Calc - Sparklines'!$D46,INDIRECT($AB46),0)-L$3)),NA()) ->  | M46: =IFERROR(IF(ISNUMBER( INDEX(INDIRECT($Z46), MATCH('Calc - Sparklines'!$C$1,INDIRECT($AA46),0), MATCH('Calc - Sparklines'!$D46,INDIRECT($AB46),0)-M$3))=FALSE,NA(), INDEX(INDIRECT($Z46), MATCH('Calc - Sparklines'!$C$1,INDIRECT($AA46),0), MATCH('Calc - Sparklines'!$D46,INDIRECT($AB46),0)-M$3)),NA()) ->  | N46: =IFERROR(IF(ISNUMBER( INDEX(INDIRECT($Z46), MATCH('Calc - Sparklines'!$C$1,INDIRECT($AA46),0), MATCH('Calc - Sparklines'!$D46,INDIRECT($AB46),0)-N$3))=FALSE,NA(), INDEX(INDIRECT($Z46), MATCH('Calc - Sparklines'!$C$1,INDIRECT($AA46),0), MATCH('Calc - Sparklines'!$D46,INDIRECT($AB46),0)-N$3)),NA()) ->  | O46: =IFERROR(IF(ISNUMBER( INDEX(INDIRECT($Z46), MATCH('Calc - Sparklines'!$C$1,INDIRECT($AA46),0), MATCH('Calc - Sparklines'!$D46,INDIRECT($AB46),0)-O$3))=FALSE,NA(), INDEX(INDIRECT($Z46), MATCH('Calc - Sparklines'!$C$1,INDIRECT($AA46),0), MATCH('Calc - Sparklines'!$D46,INDIRECT($AB46),0)-O$3)),NA()) ->  | P46: =IFERROR(IF(ISNUMBER( INDEX(INDIRECT($Z46), MATCH('Calc - Sparklines'!$C$1,INDIRECT($AA46),0), MATCH('Calc - Sparklines'!$D46,INDIRECT($AB46),0)-P$3))=FALSE,NA(), INDEX(INDIRECT($Z46), MATCH('Calc - Sparklines'!$C$1,INDIRECT($AA46),0), MATCH('Calc - Sparklines'!$D46,INDIRECT($AB46),0)-P$3)),NA()) -> 143225364.7 | R46: =IF(COUNTA(E46:P46)-COUNTIF(E46:P46,"#N/A")<3, 0, COUNTA(E46:P46)-COUNTIF(E46:P46,"#N/A")) -> 0 | S46: =IF(P46="N/A",IF(O46="N/A",2,1),0) -> 0 | T46: =OFFSET(P46,,-S46) -> 143225364.7 | U46: =IF(ISERROR(O46),IF(ISERROR(N46),IF(ISERROR(M46),IF(ISERROR(L46),IF(ISERROR(K46),IF(ISERROR(J46),IF(ISERROR(I46),IF(ISERROR(H46),IF(ISERROR(G46),IF(ISERROR(F46),IF(ISERROR(E46), NA(), E46),F46),G46),H46),I46),J46),K46),L46),M46),N46),O46) ->  | V46: N/A | W46: Sparkline42 | X46: N/A | Z46: Data_Table_AC_ii | AA46: Data_Orgs_AC_ii | AB46: Data_Dates_AC_ii
A47: Health & Justice | B47: Health & Justice | E47: =IFERROR(IF(ISNUMBER( INDEX(INDIRECT($Z47), MATCH('Calc - Sparklines'!$C$1,INDIRECT($AA47),0), MATCH('Calc - Sparklines'!$D47,INDIRECT($AB47),0)-E$3))=FALSE,NA(), INDEX(INDIRECT($Z47), MATCH('Calc - Sparklines'!$C$1,INDIRECT($AA47),0), MATCH('Calc - Sparklines'!$D47,INDIRECT($AB47),0)-E$3)),NA()) ->  | F47: =IFERROR(IF(ISNUMBER( INDEX(INDIRECT($Z47), MATCH('Calc - Sparklines'!$C$1,INDIRECT($AA47),0), MATCH('Calc - Sparklines'!$D47,INDIRECT($AB47),0)-F$3))=FALSE,NA(), INDEX(INDIRECT($Z47), MATCH('Calc - Sparklines'!$C$1,INDIRECT($AA47),0), MATCH('Calc - Sparklines'!$D47,INDIRECT($AB47),0)-F$3)),NA()) ->  | G47: =IFERROR(IF(ISNUMBER( INDEX(INDIRECT($Z47), MATCH('Calc - Sparklines'!$C$1,INDIRECT($AA47),0), MATCH('Calc - Sparklines'!$D47,INDIRECT($AB47),0)-G$3))=FALSE,NA(), INDEX(INDIRECT($Z47), MATCH('Calc - Sparklines'!$C$1,INDIRECT($AA47),0), MATCH('Calc - Sparklines'!$D47,INDIRECT($AB47),0)-G$3)),NA()) ->  | H47: =IFERROR(IF(ISNUMBER( INDEX(INDIRECT($Z47), MATCH('Calc - Sparklines'!$C$1,INDIRECT($AA47),0), MATCH('Calc - Sparklines'!$D47,INDIRECT($AB47),0)-H$3))=FALSE,NA(), INDEX(INDIRECT($Z47), MATCH('Calc - Sparklines'!$C$1,INDIRECT($AA47),0), MATCH('Calc - Sparklines'!$D47,INDIRECT($AB47),0)-H$3)),NA()) ->  | I47: =IFERROR(IF(ISNUMBER( INDEX(INDIRECT($Z47), MATCH('Calc - Sparklines'!$C$1,INDIRECT($AA47),0), MATCH('Calc - Sparklines'!$D47,INDIRECT($AB47),0)-I$3))=FALSE,NA(), INDEX(INDIRECT($Z47), MATCH('Calc - Sparklines'!$C$1,INDIRECT($AA47),0), MATCH('Calc - Sparklines'!$D47,INDIRECT($AB47),0)-I$3)),NA()) ->  | J47: =IFERROR(IF(ISNUMBER( INDEX(INDIRECT($Z47), MATCH('Calc - Sparklines'!$C$1,INDIRECT($AA47),0), MATCH('Calc - Sparklines'!$D47,INDIRECT($AB47),0)-J$3))=FALSE,NA(), INDEX(INDIRECT($Z47), MATCH('Calc - Sparklines'!$C$1,INDIRECT($AA47),0), MATCH('Calc - Sparklines'!$D47,INDIRECT($AB47),0)-J$3)),NA()) ->  | K47: =IFERROR(IF(ISNUMBER( INDEX(INDIRECT($Z47), MATCH('Calc - Sparklines'!$C$1,INDIRECT($AA47),0), MATCH('Calc - Sparklines'!$D47,INDIRECT($AB47),0)-K$3))=FALSE,NA(), INDEX(INDIRECT($Z47), MATCH('Calc - Sparklines'!$C$1,INDIRECT($AA47),0), MATCH('Calc - Sparklines'!$D47,INDIRECT($AB47),0)-K$3)),NA()) ->  | L47: =IFERROR(IF(ISNUMBER( INDEX(INDIRECT($Z47), MATCH('Calc - Sparklines'!$C$1,INDIRECT($AA47),0), MATCH('Calc - Sparklines'!$D47,INDIRECT($AB47),0)-L$3))=FALSE,NA(), INDEX(INDIRECT($Z47), MATCH('Calc - Sparklines'!$C$1,INDIRECT($AA47),0), MATCH('Calc - Sparklines'!$D47,INDIRECT($AB47),0)-L$3)),NA()) ->  | M47: =IFERROR(IF(ISNUMBER( INDEX(INDIRECT($Z47), MATCH('Calc - Sparklines'!$C$1,INDIRECT($AA47),0), MATCH('Calc - Sparklines'!$D47,INDIRECT($AB47),0)-M$3))=FALSE,NA(), INDEX(INDIRECT($Z47), MATCH('Calc - Sparklines'!$C$1,INDIRECT($AA47),0), MATCH('Calc - Sparklines'!$D47,INDIRECT($AB47),0)-M$3)),NA()) ->  | N47: =IFERROR(IF(ISNUMBER( INDEX(INDIRECT($Z47), MATCH('Calc - Sparklines'!$C$1,INDIRECT($AA47),0), MATCH('Calc - Sparklines'!$D47,INDIRECT($AB47),0)-N$3))=FALSE,NA(), INDEX(INDIRECT($Z47), MATCH('Calc - Sparklines'!$C$1,INDIRECT($AA47),0), MATCH('Calc - Sparklines'!$D47,INDIRECT($AB47),0)-N$3)),NA()) ->  | O47: =IFERROR(IF(ISNUMBER( INDEX(INDIRECT($Z47), MATCH('Calc - Sparklines'!$C$1,INDIRECT($AA47),0), MATCH('Calc - Sparklines'!$D47,INDIRECT($AB47),0)-O$3))=FALSE,NA(), INDEX(INDIRECT($Z47), MATCH('Calc - Sparklines'!$C$1,INDIRECT($AA47),0), MATCH('Calc - Sparklines'!$D47,INDIRECT($AB47),0)-O$3)),NA()) ->  | P47: =IFERROR(IF(ISNUMBER( INDEX(INDIRECT($Z47), MATCH('Calc - Sparklines'!$C$1,INDIRECT($AA47),0), MATCH('Calc - Sparklines'!$D47,INDIRECT($AB47),0)-P$3))=FALSE,NA(), INDEX(INDIRECT($Z47), MATCH('Calc - Sparklines'!$C$1,INDIRECT($AA47),0), MATCH('Calc - Sparklines'!$D47,INDIRECT($AB47),0)-P$3)),NA()) ->  | R47: =IF(COUNTA(E47:P47)-COUNTIF(E47:P47,"#N/A")<3, 0, COUNTA(E47:P47)-COUNTIF(E47:P47,"#N/A")) -> 0 | X47: =IF(R47<=2,"N/A","") -> N/A | AD47: Heading
A48: HJ_i | B48: HJ(i) | C48: Number of mental health secure transfers within 2 weeks of acceptance under the MHA- Age:18+ | D48: ='HJ(i)_FINAL CALC'!B6 -> Q1 2017/18 | E48: =IFERROR(IF(ISNUMBER( INDEX(INDIRECT($Z48), MATCH('Calc - Sparklines'!$C$1,INDIRECT($AA48),0), MATCH('Calc - Sparklines'!$D48,INDIRECT($AB48),0)-E$3))=FALSE,NA(), INDEX(INDIRECT($Z48), MATCH('Calc - Sparklines'!$C$1,INDIRECT($AA48),0), MATCH('Calc - Sparklines'!$D48,INDIRECT($AB48),0)-E$3)),NA()) ->  | F48: =IFERROR(IF(ISNUMBER( INDEX(INDIRECT($Z48), MATCH('Calc - Sparklines'!$C$1,INDIRECT($AA48),0), MATCH('Calc - Sparklines'!$D48,INDIRECT($AB48),0)-F$3))=FALSE,NA(), INDEX(INDIRECT($Z48), MATCH('Calc - Sparklines'!$C$1,INDIRECT($AA48),0), MATCH('Calc - Sparklines'!$D48,INDIRECT($AB48),0)-F$3)),NA()) ->  | G48: =IFERROR(IF(ISNUMBER( INDEX(INDIRECT($Z48), MATCH('Calc - Sparklines'!$C$1,INDIRECT($AA48),0), MATCH('Calc - Sparklines'!$D48,INDIRECT($AB48),0)-G$3))=FALSE,NA(), INDEX(INDIRECT($Z48), MATCH('Calc - Sparklines'!$C$1,INDIRECT($AA48),0), MATCH('Calc - Sparklines'!$D48,INDIRECT($AB48),0)-G$3)),NA()) ->  | H48: =IFERROR(IF(ISNUMBER( INDEX(INDIRECT($Z48), MATCH('Calc - Sparklines'!$C$1,INDIRECT($AA48),0), MATCH('Calc - Sparklines'!$D48,INDIRECT($AB48),0)-H$3))=FALSE,NA(), INDEX(INDIRECT($Z48), MATCH('Calc - Sparklines'!$C$1,INDIRECT($AA48),0), MATCH('Calc - Sparklines'!$D48,INDIRECT($AB48),0)-H$3)),NA()) ->  | I48: =IFERROR(IF(ISNUMBER( INDEX(INDIRECT($Z48), MATCH('Calc - Sparklines'!$C$1,INDIRECT($AA48),0), MATCH('Calc - Sparklines'!$D48,INDIRECT($AB48),0)-I$3))=FALSE,NA(), INDEX(INDIRECT($Z48), MATCH('Calc - Sparklines'!$C$1,INDIRECT($AA48),0), MATCH('Calc - Sparklines'!$D48,INDIRECT($AB48),0)-I$3)),NA()) ->  | J48: =IFERROR(IF(ISNUMBER( INDEX(INDIRECT($Z48), MATCH('Calc - Sparklines'!$C$1,INDIRECT($AA48),0), MATCH('Calc - Sparklines'!$D48,INDIRECT($AB48),0)-J$3))=FALSE,NA(), INDEX(INDIRECT($Z48), MATCH('Calc - Sparklines'!$C$1,INDIRECT($AA48),0), MATCH('Calc - Sparklines'!$D48,INDIRECT($AB48),0)-J$3)),NA()) ->  | K48: =IFERROR(IF(ISNUMBER( INDEX(INDIRECT($Z48), MATCH('Calc - Sparklines'!$C$1,INDIRECT($AA48),0), MATCH('Calc - Sparklines'!$D48,INDIRECT($AB48),0)-K$3))=FALSE,NA(), INDEX(INDIRECT($Z48), MATCH('Calc - Sparklines'!$C$1,INDIRECT($AA48),0), MATCH('Calc - Sparklines'!$D48,INDIRECT($AB48),0)-K$3)),NA()) -> 112 | L48: =IFERROR(IF(ISNUMBER( INDEX(INDIRECT($Z48), MATCH('Calc - Sparklines'!$C$1,INDIRECT($AA48),0), MATCH('Calc - Sparklines'!$D48,INDIRECT($AB48),0)-L$3))=FALSE,NA(), INDEX(INDIRECT($Z48), MATCH('Calc - Sparklines'!$C$1,INDIRECT($AA48),0), MATCH('Calc - Sparklines'!$D48,INDIRECT($AB48),0)-L$3)),NA()) -> 90 | M48: =IFERROR(IF(ISNUMBER( INDEX(INDIRECT($Z48), MATCH('Calc - Sparklines'!$C$1,INDIRECT($AA48),0), MATCH('Calc - Sparklines'!$D48,INDIRECT($AB48),0)-M$3))=FALSE,NA(), INDEX(INDIRECT($Z48), MATCH('Calc - Sparklines'!$C$1,INDIRECT($AA48),0), MATCH('Calc - Sparklines'!$D48,INDIRECT($AB48),0)-M$3)),NA()) -> 89 | N48: =IFERROR(IF(ISNUMBER( INDEX(INDIRECT($Z48), MATCH('Calc - Sparklines'!$C$1,INDIRECT($AA48),0), MATCH('Calc - Sparklines'!$D48,INDIRECT($AB48),0)-N$3))=FALSE,NA(), INDEX(INDIRECT($Z48), MATCH('Calc - Sparklines'!$C$1,INDIRECT($AA48),0), MATCH('Calc - Sparklines'!$D48,INDIRECT($AB48),0)-N$3)),NA()) -> 108 | O48: =IFERROR(IF(ISNUMBER( INDEX(INDIRECT($Z48), MATCH('Calc - Sparklines'!$C$1,INDIRECT($AA48),0), MATCH('Calc - Sparklines'!$D48,INDIRECT($AB48),0)-O$3))=FALSE,NA(), INDEX(INDIRECT($Z48), MATCH('Calc - Sparklines'!$C$1,INDIRECT($AA48),0), MATCH('Calc - Sparklines'!$D48,INDIRECT($AB48),0)-O$3)),NA()) -> 83 | P48: =IFERROR(IF(ISNUMBER( INDEX(INDIRECT($Z48), MATCH('Calc - Sparklines'!$C$1,INDIRECT($AA48),0), MATCH('Calc - Sparklines'!$D48,INDIRECT($AB48),0)-P$3))=FALSE,NA(), INDEX(INDIRECT($Z48), MATCH('Calc - Sparklines'!$C$1,INDIRECT($AA48),0), MATCH('Calc - Sparklines'!$D48,INDIRECT($AB48),0)-P$3)),NA()) -> 73 | R48: 6 | S48: 0 | T48: 73 | U48: 83 | V48: ▼ | W48: Sparkline44 | X48: =IF(R48<=2,"N/A","") ->  | Z48: Data_Table_HJ_i | AA48: Data_Orgs_HJ_i | AB48: Data_Dates_HJ_i | AD48: National measure only | AE48: National measure only
A49: HJ_ii_a | B49: HJ(ii.a) | C49: % of mental health patients receiving group therapy in secure and detained settings - Age:18+ | D49: ='HJ(ii_a)_FINAL CALC'!B6 -> Q1-Q2 2017/18 | E49: =IFERROR(IF(ISNUMBER( INDEX(INDIRECT($Z49), MATCH('Calc - Sparklines'!$C$1,INDIRECT($AA49),0), MATCH('Calc - Sparklines'!$D49,INDIRECT($AB49),0)-E$3))=FALSE,NA(), INDEX(INDIRECT($Z49), MATCH('Calc - Sparklines'!$C$1,INDIRECT($AA49),0), MATCH('Calc - Sparklines'!$D49,INDIRECT($AB49),0)-E$3)),NA()) ->  | F49: =IFERROR(IF(ISNUMBER( INDEX(INDIRECT($Z49), MATCH('Calc - Sparklines'!$C$1,INDIRECT($AA49),0), MATCH('Calc - Sparklines'!$D49,INDIRECT($AB49),0)-F$3))=FALSE,NA(), INDEX(INDIRECT($Z49), MATCH('Calc - Sparklines'!$C$1,INDIRECT($AA49),0), MATCH('Calc - Sparklines'!$D49,INDIRECT($AB49),0)-F$3)),NA()) ->  | G49: =IFERROR(IF(ISNUMBER( INDEX(INDIRECT($Z49), MATCH('Calc - Sparklines'!$C$1,INDIRECT($AA49),0), MATCH('Calc - Sparklines'!$D49,INDIRECT($AB49),0)-G$3))=FALSE,NA(), INDEX(INDIRECT($Z49), MATCH('Calc - Sparklines'!$C$1,INDIRECT($AA49),0), MATCH('Calc - Sparklines'!$D49,INDIRECT($AB49),0)-G$3)),NA()) ->  | H49: =IFERROR(IF(ISNUMBER( INDEX(INDIRECT($Z49), MATCH('Calc - Sparklines'!$C$1,INDIRECT($AA49),0), MATCH('Calc - Sparklines'!$D49,INDIRECT($AB49),0)-H$3))=FALSE,NA(), INDEX(INDIRECT($Z49), MATCH('Calc - Sparklines'!$C$1,INDIRECT($AA49),0), MATCH('Calc - Sparklines'!$D49,INDIRECT($AB49),0)-H$3)),NA()) ->  | I49: =IFERROR(IF(ISNUMBER( INDEX(INDIRECT($Z49), MATCH('Calc - Sparklines'!$C$1,INDIRECT($AA49),0), MATCH('Calc - Sparklines'!$D49,INDIRECT($AB49),0)-I$3))=FALSE,NA(), INDEX(INDIRECT($Z49), MATCH('Calc - Sparklines'!$C$1,INDIRECT($AA49),0), MATCH('Calc - Sparklines'!$D49,INDIRECT($AB49),0)-I$3)),NA()) ->  | J49: =IFERROR(IF(ISNUMBER( INDEX(INDIRECT($Z49), MATCH('Calc - Sparklines'!$C$1,INDIRECT($AA49),0), MATCH('Calc - Sparklines'!$D49,INDIRECT($AB49),0)-J$3))=FALSE,NA(), INDEX(INDIRECT($Z49), MATCH('Calc - Sparklines'!$C$1,INDIRECT($AA49),0), MATCH('Calc - Sparklines'!$D49,INDIRECT($AB49),0)-J$3)),NA()) ->  | K49: =IFERROR(IF(ISNUMBER( INDEX(INDIRECT($Z49), MATCH('Calc - Sparklines'!$C$1,INDIRECT($AA49),0), MATCH('Calc - Sparklines'!$D49,INDIRECT($AB49),0)-K$3))=FALSE,NA(), INDEX(INDIRECT($Z49), MATCH('Calc - Sparklines'!$C$1,INDIRECT($AA49),0), MATCH('Calc - Sparklines'!$D49,INDIRECT($AB49),0)-K$3)),NA()) ->  | L49: =IFERROR(IF(ISNUMBER( INDEX(INDIRECT($Z49), MATCH('Calc - Sparklines'!$C$1,INDIRECT($AA49),0), MATCH('Calc - Sparklines'!$D49,INDIRECT($AB49),0)-L$3))=FALSE,NA(), INDEX(INDIRECT($Z49), MATCH('Calc - Sparklines'!$C$1,INDIRECT($AA49),0), MATCH('Calc - Sparklines'!$D49,INDIRECT($AB49),0)-L$3)),NA()) ->  | M49: =IFERROR(IF(ISNUMBER( INDEX(INDIRECT($Z49), MATCH('Calc - Sparklines'!$C$1,INDIRECT($AA49),0), MATCH('Calc - Sparklines'!$D49,INDIRECT($AB49),0)-M$3))=FALSE,NA(), INDEX(INDIRECT($Z49), MATCH('Calc - Sparklines'!$C$1,INDIRECT($AA49),0), MATCH('Calc - Sparklines'!$D49,INDIRECT($AB49),0)-M$3)),NA()) ->  | N49: =IFERROR(IF(ISNUMBER( INDEX(INDIRECT($Z49), MATCH('Calc - Sparklines'!$C$1,INDIRECT($AA49),0), MATCH('Calc - Sparklines'!$D49,INDIRECT($AB49),0)-N$3))=FALSE,NA(), INDEX(INDIRECT($Z49), MATCH('Calc - Sparklines'!$C$1,INDIRECT($AA49),0), MATCH('Calc - Sparklines'!$D49,INDIRECT($AB49),0)-N$3)),NA()) ->  | O49: =IFERROR(IF(ISNUMBER( INDEX(INDIRECT($Z49), MATCH('Calc - Sparklines'!$C$1,INDIRECT($AA49),0), MATCH('Calc - Sparklines'!$D49,INDIRECT($AB49),0)-O$3))=FALSE,NA(), INDEX(INDIRECT($Z49), MATCH('Calc - Sparklines'!$C$1,INDIRECT($AA49),0), MATCH('Calc - Sparklines'!$D49,INDIRECT($AB49),0)-O$3)),NA()) ->  | P49: =IFERROR(IF(ISNUMBER( INDEX(INDIRECT($Z49), MATCH('Calc - Sparklines'!$C$1,INDIRECT($AA49),0), MATCH('Calc - Sparklines'!$D49,INDIRECT($AB49),0)-P$3))=FALSE,NA(), INDEX(INDIRECT($Z49), MATCH('Calc - Sparklines'!$C$1,INDIRECT($AA49),0), MATCH('Calc - Sparklines'!$D49,INDIRECT($AB49),0)-P$3)),NA()) -> 0.029 | R49: 0 | S49: 0 | T49: 0.029 | V49: N/A | W49: Sparkline45 | X49: N/A | Z49: Data_Table_HJ_ii_a | AA49: Data_Orgs_HJ_ii_a | AB49: Data_Dates_HJ_ii_a | AD49: National measure only | AE49: National measure only
A50: HJ_ii_b | B50: HJ(ii.b) | C50: % of mental patients receiving individual therapy in secure and detained settings - Age:18+ | D50: ='HJ(ii_b)_FINAL CALC'!B6 -> Q1-Q2 2017/18 | E50: =IFERROR(IF(ISNUMBER( INDEX(INDIRECT($Z50), MATCH('Calc - Sparklines'!$C$1,INDIRECT($AA50),0), MATCH('Calc - Sparklines'!$D50,INDIRECT($AB50),0)-E$3))=FALSE,NA(), INDEX(INDIRECT($Z50), MATCH('Calc - Sparklines'!$C$1,INDIRECT($AA50),0), MATCH('Calc - Sparklines'!$D50,INDIRECT($AB50),0)-E$3)),NA()) ->  | F50: =IFERROR(IF(ISNUMBER( INDEX(INDIRECT($Z50), MATCH('Calc - Sparklines'!$C$1,INDIRECT($AA50),0), MATCH('Calc - Sparklines'!$D50,INDIRECT($AB50),0)-F$3))=FALSE,NA(), INDEX(INDIRECT($Z50), MATCH('Calc - Sparklines'!$C$1,INDIRECT($AA50),0), MATCH('Calc - Sparklines'!$D50,INDIRECT($AB50),0)-F$3)),NA()) ->  | G50: =IFERROR(IF(ISNUMBER( INDEX(INDIRECT($Z50), MATCH('Calc - Sparklines'!$C$1,INDIRECT($AA50),0), MATCH('Calc - Sparklines'!$D50,INDIRECT($AB50),0)-G$3))=FALSE,NA(), INDEX(INDIRECT($Z50), MATCH('Calc - Sparklines'!$C$1,INDIRECT($AA50),0), MATCH('Calc - Sparklines'!$D50,INDIRECT($AB50),0)-G$3)),NA()) ->  | H50: =IFERROR(IF(ISNUMBER( INDEX(INDIRECT($Z50), MATCH('Calc - Sparklines'!$C$1,INDIRECT($AA50),0), MATCH('Calc - Sparklines'!$D50,INDIRECT($AB50),0)-H$3))=FALSE,NA(), INDEX(INDIRECT($Z50), MATCH('Calc - Sparklines'!$C$1,INDIRECT($AA50),0), MATCH('Calc - Sparklines'!$D50,INDIRECT($AB50),0)-H$3)),NA()) ->  | I50: =IFERROR(IF(ISNUMBER( INDEX(INDIRECT($Z50), MATCH('Calc - Sparklines'!$C$1,INDIRECT($AA50),0), MATCH('Calc - Sparklines'!$D50,INDIRECT($AB50),0)-I$3))=FALSE,NA(), INDEX(INDIRECT($Z50), MATCH('Calc - Sparklines'!$C$1,INDIRECT($AA50),0), MATCH('Calc - Sparklines'!$D50,INDIRECT($AB50),0)-I$3)),NA()) ->  | J50: =IFERROR(IF(ISNUMBER( INDEX(INDIRECT($Z50), MATCH('Calc - Sparklines'!$C$1,INDIRECT($AA50),0), MATCH('Calc - Sparklines'!$D50,INDIRECT($AB50),0)-J$3))=FALSE,NA(), INDEX(INDIRECT($Z50), MATCH('Calc - Sparklines'!$C$1,INDIRECT($AA50),0), MATCH('Calc - Sparklines'!$D50,INDIRECT($AB50),0)-J$3)),NA()) ->  | K50: =IFERROR(IF(ISNUMBER( INDEX(INDIRECT($Z50), MATCH('Calc - Sparklines'!$C$1,INDIRECT($AA50),0), MATCH('Calc - Sparklines'!$D50,INDIRECT($AB50),0)-K$3))=FALSE,NA(), INDEX(INDIRECT($Z50), MATCH('Calc - Sparklines'!$C$1,INDIRECT($AA50),0), MATCH('Calc - Sparklines'!$D50,INDIRECT($AB50),0)-K$3)),NA()) ->  | L50: =IFERROR(IF(ISNUMBER( INDEX(INDIRECT($Z50), MATCH('Calc - Sparklines'!$C$1,INDIRECT($AA50),0), MATCH('Calc - Sparklines'!$D50,INDIRECT($AB50),0)-L$3))=FALSE,NA(), INDEX(INDIRECT($Z50), MATCH('Calc - Sparklines'!$C$1,INDIRECT($AA50),0), MATCH('Calc - Sparklines'!$D50,INDIRECT($AB50),0)-L$3)),NA()) ->  | M50: =IFERROR(IF(ISNUMBER( INDEX(INDIRECT($Z50), MATCH('Calc - Sparklines'!$C$1,INDIRECT($AA50),0), MATCH('Calc - Sparklines'!$D50,INDIRECT($AB50),0)-M$3))=FALSE,NA(), INDEX(INDIRECT($Z50), MATCH('Calc - Sparklines'!$C$1,INDIRECT($AA50),0), MATCH('Calc - Sparklines'!$D50,INDIRECT($AB50),0)-M$3)),NA()) ->  | N50: =IFERROR(IF(ISNUMBER( INDEX(INDIRECT($Z50), MATCH('Calc - Sparklines'!$C$1,INDIRECT($AA50),0), MATCH('Calc - Sparklines'!$D50,INDIRECT($AB50),0)-N$3))=FALSE,NA(), INDEX(INDIRECT($Z50), MATCH('Calc - Sparklines'!$C$1,INDIRECT($AA50),0), MATCH('Calc - Sparklines'!$D50,INDIRECT($AB50),0)-N$3)),NA()) -> 0.335 | O50: =IFERROR(IF(ISNUMBER( INDEX(INDIRECT($Z50), MATCH('Calc - Sparklines'!$C$1,INDIRECT($AA50),0), MATCH('Calc - Sparklines'!$D50,INDIRECT($AB50),0)-O$3))=FALSE,NA(), INDEX(INDIRECT($Z50), MATCH('Calc - Sparklines'!$C$1,INDIRECT($AA50),0), MATCH('Calc - Sparklines'!$D50,INDIRECT($AB50),0)-O$3)),NA()) -> 0.384 | P50: =IFERROR(IF(ISNUMBER( INDEX(INDIRECT($Z50), MATCH('Calc - Sparklines'!$C$1,INDIRECT($AA50),0), MATCH('Calc - Sparklines'!$D50,INDIRECT($AB50),0)-P$3))=FALSE,NA(), INDEX(INDIRECT($Z50), MATCH('Calc - Sparklines'!$C$1,INDIRECT($AA50),0), MATCH('Calc - Sparklines'!$D50,INDIRECT($AB50),0)-P$3)),NA()) -> 0.52 | R50: 3 | S50: 0 | T50: 0.52 | U50: 0.384 | V50: ▲ | W50: Sparkline46 | Z50: Data_Table_HJ_ii_b | AA50: Data_Orgs_HJ_ii_b | AB50: Data_Dates_HJ_ii_b | AD50: National measure only | AE50: National measure only
A51: HJ_iii | B51: HJ(iii) | C51: % of population with access to liaison and diversion services - All ages | D51: ='HJ(iii)_FINAL CALC'!B6 -> 2016/17 | E51: =IFERROR(IF(ISNUMBER( INDEX(INDIRECT($Z51), MATCH('Calc - Sparklines'!$C$1,INDIRECT($AA51),0), MATCH('Calc - Sparklines'!$D51,INDIRECT($AB51),0)-E$3))=FALSE,NA(), INDEX(INDIRECT($Z51), MATCH('Calc - Sparklines'!$C$1,INDIRECT($AA51),0), MATCH('Calc - Sparklines'!$D51,INDIRECT($AB51),0)-E$3)),NA()) ->  | F51: =IFERROR(IF(ISNUMBER( INDEX(INDIRECT($Z51), MATCH('Calc - Sparklines'!$C$1,INDIRECT($AA51),0), MATCH('Calc - Sparklines'!$D51,INDIRECT($AB51),0)-F$3))=FALSE,NA(), INDEX(INDIRECT($Z51), MATCH('Calc - Sparklines'!$C$1,INDIRECT($AA51),0), MATCH('Calc - Sparklines'!$D51,INDIRECT($AB51),0)-F$3)),NA()) ->  | G51: =IFERROR(IF(ISNUMBER( INDEX(INDIRECT($Z51), MATCH('Calc - Sparklines'!$C$1,INDIRECT($AA51),0), MATCH('Calc - Sparklines'!$D51,INDIRECT($AB51),0)-G$3))=FALSE,NA(), INDEX(INDIRECT($Z51), MATCH('Calc - Sparklines'!$C$1,INDIRECT($AA51),0), MATCH('Calc - Sparklines'!$D51,INDIRECT($AB51),0)-G$3)),NA()) ->  | H51: =IFERROR(IF(ISNUMBER( INDEX(INDIRECT($Z51), MATCH('Calc - Sparklines'!$C$1,INDIRECT($AA51),0), MATCH('Calc - Sparklines'!$D51,INDIRECT($AB51),0)-H$3))=FALSE,NA(), INDEX(INDIRECT($Z51), MATCH('Calc - Sparklines'!$C$1,INDIRECT($AA51),0), MATCH('Calc - Sparklines'!$D51,INDIRECT($AB51),0)-H$3)),NA()) ->  | I51: =IFERROR(IF(ISNUMBER( INDEX(INDIRECT($Z51), MATCH('Calc - Sparklines'!$C$1,INDIRECT($AA51),0), MATCH('Calc - Sparklines'!$D51,INDIRECT($AB51),0)-I$3))=FALSE,NA(), INDEX(INDIRECT($Z51), MATCH('Calc - Sparklines'!$C$1,INDIRECT($AA51),0), MATCH('Calc - Sparklines'!$D51,INDIRECT($AB51),0)-I$3)),NA()) ->  | J51: =IFERROR(IF(ISNUMBER( INDEX(INDIRECT($Z51), MATCH('Calc - Sparklines'!$C$1,INDIRECT($AA51),0), MATCH('Calc - Sparklines'!$D51,INDIRECT($AB51),0)-J$3))=FALSE,NA(), INDEX(INDIRECT($Z51), MATCH('Calc - Sparklines'!$C$1,INDIRECT($AA51),0), MATCH('Calc - Sparklines'!$D51,INDIRECT($AB51),0)-J$3)),NA()) ->  | K51: =IFERROR(IF(ISNUMBER( INDEX(INDIRECT($Z51), MATCH('Calc - Sparklines'!$C$1,INDIRECT($AA51),0), MATCH('Calc - Sparklines'!$D51,INDIRECT($AB51),0)-K$3))=FALSE,NA(), INDEX(INDIRECT($Z51), MATCH('Calc - Sparklines'!$C$1,INDIRECT($AA51),0), MATCH('Calc - Sparklines'!$D51,INDIRECT($AB51),0)-K$3)),NA()) ->  | L51: =IFERROR(IF(ISNUMBER( INDEX(INDIRECT($Z51), MATCH('Calc - Sparklines'!$C$1,INDIRECT($AA51),0), MATCH('Calc - Sparklines'!$D51,INDIRECT($AB51),0)-L$3))=FALSE,NA(), INDEX(INDIRECT($Z51), MATCH('Calc - Sparklines'!$C$1,INDIRECT($AA51),0), MATCH('Calc - Sparklines'!$D51,INDIRECT($AB51),0)-L$3)),NA()) ->  | M51: =IFERROR(IF(ISNUMBER( INDEX(INDIRECT($Z51), MATCH('Calc - Sparklines'!$C$1,INDIRECT($AA51),0), MATCH('Calc - Sparklines'!$D51,INDIRECT($AB51),0)-M$3))=FALSE,NA(), INDEX(INDIRECT($Z51), MATCH('Calc - Sparklines'!$C$1,INDIRECT($AA51),0), MATCH('Calc - Sparklines'!$D51,INDIRECT($AB51),0)-M$3)),NA()) ->  | N51: =IFERROR(IF(ISNUMBER( INDEX(INDIRECT($Z51), MATCH('Calc - Sparklines'!$C$1,INDIRECT($AA51),0), MATCH('Calc - Sparklines'!$D51,INDIRECT($AB51),0)-N$3))=FALSE,NA(), INDEX(INDIRECT($Z51), MATCH('Calc - Sparklines'!$C$1,INDIRECT($AA51),0), MATCH('Calc - Sparklines'!$D51,INDIRECT($AB51),0)-N$3)),NA()) ->  | O51: =IFERROR(IF(ISNUMBER( INDEX(INDIRECT($Z51), MATCH('Calc - Sparklines'!$C$1,INDIRECT($AA51),0), MATCH('Calc - Sparklines'!$D51,INDIRECT($AB51),0)-O$3))=FALSE,NA(), INDEX(INDIRECT($Z51), MATCH('Calc - Sparklines'!$C$1,INDIRECT($AA51),0), MATCH('Calc - Sparklines'!$D51,INDIRECT($AB51),0)-O$3)),NA()) -> 0.22 | P51: =IFERROR(IF(ISNUMBER( INDEX(INDIRECT($Z51), MATCH('Calc - Sparklines'!$C$1,INDIRECT($AA51),0), MATCH('Calc - Sparklines'!$D51,INDIRECT($AB51),0)-P$3))=FALSE,NA(), INDEX(INDIRECT($Z51), MATCH('Calc - Sparklines'!$C$1,INDIRECT($AA51),0), MATCH('Calc - Sparklines'!$D51,INDIRECT($AB51),0)-P$3)),NA()) -> 0.68 | R51: 0 | S51: 0 | T51: 0.68 | U51: 0.22 | V51: ▲ | W51: Sparkline47 | X51: N/A | Z51: Data_Table_HJ_iii | AA51: Data_Orgs_HJ_iii | AB51: Data_Dates_HJ_iii | AD51: National measure only | AE51: National measure only
A52: Suicide prevention | B52: Suicide prevention | E52: =IFERROR(IF(ISNUMBER( INDEX(INDIRECT($Z52), MATCH('Calc - Sparklines'!$C$1,INDIRECT($AA52),0), MATCH('Calc - Sparklines'!$D52,INDIRECT($AB52),0)-E$3))=FALSE,NA(), INDEX(INDIRECT($Z52), MATCH('Calc - Sparklines'!$C$1,INDIRECT($AA52),0), MATCH('Calc - Sparklines'!$D52,INDIRECT($AB52),0)-E$3)),NA()) ->  | F52: =IFERROR(IF(ISNUMBER( INDEX(INDIRECT($Z52), MATCH('Calc - Sparklines'!$C$1,INDIRECT($AA52),0), MATCH('Calc - Sparklines'!$D52,INDIRECT($AB52),0)-F$3))=FALSE,NA(), INDEX(INDIRECT($Z52), MATCH('Calc - Sparklines'!$C$1,INDIRECT($AA52),0), MATCH('Calc - Sparklines'!$D52,INDIRECT($AB52),0)-F$3)),NA()) ->  | G52: =IFERROR(IF(ISNUMBER( INDEX(INDIRECT($Z52), MATCH('Calc - Sparklines'!$C$1,INDIRECT($AA52),0), MATCH('Calc - Sparklines'!$D52,INDIRECT($AB52),0)-G$3))=FALSE,NA(), INDEX(INDIRECT($Z52), MATCH('Calc - Sparklines'!$C$1,INDIRECT($AA52),0), MATCH('Calc - Sparklines'!$D52,INDIRECT($AB52),0)-G$3)),NA()) ->  | H52: =IFERROR(IF(ISNUMBER( INDEX(INDIRECT($Z52), MATCH('Calc - Sparklines'!$C$1,INDIRECT($AA52),0), MATCH('Calc - Sparklines'!$D52,INDIRECT($AB52),0)-H$3))=FALSE,NA(), INDEX(INDIRECT($Z52), MATCH('Calc - Sparklines'!$C$1,INDIRECT($AA52),0), MATCH('Calc - Sparklines'!$D52,INDIRECT($AB52),0)-H$3)),NA()) ->  | I52: =IFERROR(IF(ISNUMBER( INDEX(INDIRECT($Z52), MATCH('Calc - Sparklines'!$C$1,INDIRECT($AA52),0), MATCH('Calc - Sparklines'!$D52,INDIRECT($AB52),0)-I$3))=FALSE,NA(), INDEX(INDIRECT($Z52), MATCH('Calc - Sparklines'!$C$1,INDIRECT($AA52),0), MATCH('Calc - Sparklines'!$D52,INDIRECT($AB52),0)-I$3)),NA()) ->  | J52: =IFERROR(IF(ISNUMBER( INDEX(INDIRECT($Z52), MATCH('Calc - Sparklines'!$C$1,INDIRECT($AA52),0), MATCH('Calc - Sparklines'!$D52,INDIRECT($AB52),0)-J$3))=FALSE,NA(), INDEX(INDIRECT($Z52), MATCH('Calc - Sparklines'!$C$1,INDIRECT($AA52),0), MATCH('Calc - Sparklines'!$D52,INDIRECT($AB52),0)-J$3)),NA()) ->  | K52: =IFERROR(IF(ISNUMBER( INDEX(INDIRECT($Z52), MATCH('Calc - Sparklines'!$C$1,INDIRECT($AA52),0), MATCH('Calc - Sparklines'!$D52,INDIRECT($AB52),0)-K$3))=FALSE,NA(), INDEX(INDIRECT($Z52), MATCH('Calc - Sparklines'!$C$1,INDIRECT($AA52),0), MATCH('Calc - Sparklines'!$D52,INDIRECT($AB52),0)-K$3)),NA()) ->  | L52: =IFERROR(IF(ISNUMBER( INDEX(INDIRECT($Z52), MATCH('Calc - Sparklines'!$C$1,INDIRECT($AA52),0), MATCH('Calc - Sparklines'!$D52,INDIRECT($AB52),0)-L$3))=FALSE,NA(), INDEX(INDIRECT($Z52), MATCH('Calc - Sparklines'!$C$1,INDIRECT($AA52),0), MATCH('Calc - Sparklines'!$D52,INDIRECT($AB52),0)-L$3)),NA()) ->  | M52: =IFERROR(IF(ISNUMBER( INDEX(INDIRECT($Z52), MATCH('Calc - Sparklines'!$C$1,INDIRECT($AA52),0), MATCH('Calc - Sparklines'!$D52,INDIRECT($AB52),0)-M$3))=FALSE,NA(), INDEX(INDIRECT($Z52), MATCH('Calc - Sparklines'!$C$1,INDIRECT($AA52),0), MATCH('Calc - Sparklines'!$D52,INDIRECT($AB52),0)-M$3)),NA()) ->  | N52: =IFERROR(IF(ISNUMBER( INDEX(INDIRECT($Z52), MATCH('Calc - Sparklines'!$C$1,INDIRECT($AA52),0), MATCH('Calc - Sparklines'!$D52,INDIRECT($AB52),0)-N$3))=FALSE,NA(), INDEX(INDIRECT($Z52), MATCH('Calc - Sparklines'!$C$1,INDIRECT($AA52),0), MATCH('Calc - Sparklines'!$D52,INDIRECT($AB52),0)-N$3)),NA()) ->  | O52: =IFERROR(IF(ISNUMBER( INDEX(INDIRECT($Z52), MATCH('Calc - Sparklines'!$C$1,INDIRECT($AA52),0), MATCH('Calc - Sparklines'!$D52,INDIRECT($AB52),0)-O$3))=FALSE,NA(), INDEX(INDIRECT($Z52), MATCH('Calc - Sparklines'!$C$1,INDIRECT($AA52),0), MATCH('Calc - Sparklines'!$D52,INDIRECT($AB52),0)-O$3)),NA()) ->  | P52: =IFERROR(IF(ISNUMBER( INDEX(INDIRECT($Z52), MATCH('Calc - Sparklines'!$C$1,INDIRECT($AA52),0), MATCH('Calc - Sparklines'!$D52,INDIRECT($AB52),0)-P$3))=FALSE,NA(), INDEX(INDIRECT($Z52), MATCH('Calc - Sparklines'!$C$1,INDIRECT($AA52),0), MATCH('Calc - Sparklines'!$D52,INDIRECT($AB52),0)-P$3)),NA()) ->  | R52: =IF(COUNTA(E52:P52)-COUNTIF(E52:P52,"#N/A")<3, 0, COUNTA(E52:P52)-COUNTIF(E52:P52,"#N/A")) -> 0 | S52: =IF(P52="N/A",IF(O52="N/A",2,1),0) ->  | T52: =OFFSET(P52,,-S52) ->  | U52: =IF(ISERROR(O52),IF(ISERROR(N52),IF(ISERROR(M52),IF(ISERROR(L52),IF(ISERROR(K52),IF(ISERROR(J52),IF(ISERROR(I52),IF(ISERROR(H52),IF(ISERROR(G52),IF(ISERROR(F52),IF(ISERROR(E52), NA(), E52),F52),G52),H52),I52),J52),K52),L52),M52),N52),O52) ->  | V52: =IF(D52="","",IFERROR(IF(T52>U52,"▲", IF(T52<U52,"▼","◄►")),"N/A")) ->  | X52: =IF(R52<=2,"N/A","") -> N/A | AD52: Heading
A53: SP_i | B53: SP(i) | C53: Suicide: age-standardised death rate per 100,000 population - Age:10+ | D53: ='SP(i)_FINAL CALC'!B6 -> 2014-2016 | E53: =IFERROR(IF(ISNUMBER( INDEX(INDIRECT($Z53), MATCH('Calc - Sparklines'!$C$1,INDIRECT($AA53),0), MATCH('Calc - Sparklines'!$D53,INDIRECT($AB53),0)-E$3))=FALSE,NA(), INDEX(INDIRECT($Z53), MATCH('Calc - Sparklines'!$C$1,INDIRECT($AA53),0), MATCH('Calc - Sparklines'!$D53,INDIRECT($AB53),0)-E$3)),NA()) ->  | F53: =IFERROR(IF(ISNUMBER( INDEX(INDIRECT($Z53), MATCH('Calc - Sparklines'!$C$1,INDIRECT($AA53),0), MATCH('Calc - Sparklines'!$D53,INDIRECT($AB53),0)-F$3))=FALSE,NA(), INDEX(INDIRECT($Z53), MATCH('Calc - Sparklines'!$C$1,INDIRECT($AA53),0), MATCH('Calc - Sparklines'!$D53,INDIRECT($AB53),0)-F$3)),NA()) ->  | G53: =IFERROR(IF(ISNUMBER( INDEX(INDIRECT($Z53), MATCH('Calc - Sparklines'!$C$1,INDIRECT($AA53),0), MATCH('Calc - Sparklines'!$D53,INDIRECT($AB53),0)-G$3))=FALSE,NA(), INDEX(INDIRECT($Z53), MATCH('Calc - Sparklines'!$C$1,INDIRECT($AA53),0), MATCH('Calc - Sparklines'!$D53,INDIRECT($AB53),0)-G$3)),NA()) ->  | H53: =IFERROR(IF(ISNUMBER( INDEX(INDIRECT($Z53), MATCH('Calc - Sparklines'!$C$1,INDIRECT($AA53),0), MATCH('Calc - Sparklines'!$D53,INDIRECT($AB53),0)-H$3))=FALSE,NA(), INDEX(INDIRECT($Z53), MATCH('Calc - Sparklines'!$C$1,INDIRECT($AA53),0), MATCH('Calc - Sparklines'!$D53,INDIRECT($AB53),0)-H$3)),NA()) ->  | I53: =IFERROR(IF(ISNUMBER( INDEX(INDIRECT($Z53), MATCH('Calc - Sparklines'!$C$1,INDIRECT($AA53),0), MATCH('Calc - Sparklines'!$D53,INDIRECT($AB53),0)-I$3))=FALSE,NA(), INDEX(INDIRECT($Z53), MATCH('Calc - Sparklines'!$C$1,INDIRECT($AA53),0), MATCH('Calc - Sparklines'!$D53,INDIRECT($AB53),0)-I$3)),NA()) ->  | J53: =IFERROR(IF(ISNUMBER( INDEX(INDIRECT($Z53), MATCH('Calc - Sparklines'!$C$1,INDIRECT($AA53),0), MATCH('Calc - Sparklines'!$D53,INDIRECT($AB53),0)-J$3))=FALSE,NA(), INDEX(INDIRECT($Z53), MATCH('Calc - Sparklines'!$C$1,INDIRECT($AA53),0), MATCH('Calc - Sparklines'!$D53,INDIRECT($AB53),0)-J$3)),NA()) ->  | K53: =IFERROR(IF(ISNUMBER( INDEX(INDIRECT($Z53), MATCH('Calc - Sparklines'!$C$1,INDIRECT($AA53),0), MATCH('Calc - Sparklines'!$D53,INDIRECT($AB53),0)-K$3))=FALSE,NA(), INDEX(INDIRECT($Z53), MATCH('Calc - Sparklines'!$C$1,INDIRECT($AA53),0), MATCH('Calc - Sparklines'!$D53,INDIRECT($AB53),0)-K$3)),NA()) ->  | L53: =IFERROR(IF(ISNUMBER( INDEX(INDIRECT($Z53), MATCH('Calc - Sparklines'!$C$1,INDIRECT($AA53),0), MATCH('Calc - Sparklines'!$D53,INDIRECT($AB53),0)-L$3))=FALSE,NA(), INDEX(INDIRECT($Z53), MATCH('Calc - Sparklines'!$C$1,INDIRECT($AA53),0), MATCH('Calc - Sparklines'!$D53,INDIRECT($AB53),0)-L$3)),NA()) ->  | M53: =IFERROR(IF(ISNUMBER( INDEX(INDIRECT($Z53), MATCH('Calc - Sparklines'!$C$1,INDIRECT($AA53),0), MATCH('Calc - Sparklines'!$D53,INDIRECT($AB53),0)-M$3))=FALSE,NA(), INDEX(INDIRECT($Z53), MATCH('Calc - Sparklines'!$C$1,INDIRECT($AA53),0), MATCH('Calc - Sparklines'!$D53,INDIRECT($AB53),0)-M$3)),NA()) -> 9.8 | N53: =IFERROR(IF(ISNUMBER( INDEX(INDIRECT($Z53), MATCH('Calc - Sparklines'!$C$1,INDIRECT($AA53),0), MATCH('Calc - Sparklines'!$D53,INDIRECT($AB53),0)-N$3))=FALSE,NA(), INDEX(INDIRECT($Z53), MATCH('Calc - Sparklines'!$C$1,INDIRECT($AA53),0), MATCH('Calc - Sparklines'!$D53,INDIRECT($AB53),0)-N$3)),NA()) -> 10 | O53: =IFERROR(IF(ISNUMBER( INDEX(INDIRECT($Z53), MATCH('Calc - Sparklines'!$C$1,INDIRECT($AA53),0), MATCH('Calc - Sparklines'!$D53,INDIRECT($AB53),0)-O$3))=FALSE,NA(), INDEX(INDIRECT($Z53), MATCH('Calc - Sparklines'!$C$1,INDIRECT($AA53),0), MATCH('Calc - Sparklines'!$D53,INDIRECT($AB53),0)-O$3)),NA()) -> 10.1 | P53: =IFERROR(IF(ISNUMBER( INDEX(INDIRECT($Z53), MATCH('Calc - Sparklines'!$C$1,INDIRECT($AA53),0), MATCH('Calc - Sparklines'!$D53,INDIRECT($AB53),0)-P$3))=FALSE,NA(), INDEX(INDIRECT($Z53), MATCH('Calc - Sparklines'!$C$1,INDIRECT($AA53),0), MATCH('Calc - Sparklines'!$D53,INDIRECT($AB53),0)-P$3)),NA()) -> 9.9 | R53: =IF(COUNTA(E53:P53)-COUNTIF(E53:P53,"#N/A")<3, 0, COUNTA(E53:P53)-COUNTIF(E53:P53,"#N/A")) -> 4 | S53: =IF(P53="N/A",IF(O53="N/A",2,1),0) -> 0 | T53: =OFFSET(P53,,-S53) -> 9.9 | U53: =IF(ISERROR(O53),IF(ISERROR(N53),IF(ISERROR(M53),IF(ISERROR(L53),IF(ISERROR(K53),IF(ISERROR(J53),IF(ISERROR(I53),IF(ISERROR(H53),IF(ISERROR(G53),IF(ISERROR(F53),IF(ISERROR(E53), NA(), E53),F53),G53),H53),I53),J53),K53),L53),M53),N53),O53) -> 10.1 | V53: =IF(D53="","",IFERROR(IF(T53>U53,"▲", IF(T53<U53,"▼","◄►")),"N/A")) -> ▼ | W53: Sparkline48 | X53: =IF(R53<=2,"N/A","") ->  | Z53: Data_Table_SP_i | AA53: Data_Orgs_SP_i | AB53: Data_Dates_SP_i | AD53: Chart available at CCG & STP level only | AE53: =IF(OR(Dashboard!$N$3=1,Dashboard!$N$3=2),"Chart available at CCG & STP level only","") -> Chart available at CCG & STP level only
A54: SP_ii_a | B54: SP(ii.a) | C54: Hospital admissions for self-harm: age standardised rate per 100,000 - Age: 10-24 | D54: ='SP(ii_a)_FINAL CALC'!B6 -> Q1-Q2 2017/18 | E54: =IFERROR(IF(ISNUMBER( INDEX(INDIRECT($Z54), MATCH('Calc - Sparklines'!$C$1,INDIRECT($AA54),0), MATCH('Calc - Sparklines'!$D54,INDIRECT($AB54),0)-E$3))=FALSE,NA(), INDEX(INDIRECT($Z54), MATCH('Calc - Sparklines'!$C$1,INDIRECT($AA54),0), MATCH('Calc - Sparklines'!$D54,INDIRECT($AB54),0)-E$3)),NA()) ->  | F54: =IFERROR(IF(ISNUMBER( INDEX(INDIRECT($Z54), MATCH('Calc - Sparklines'!$C$1,INDIRECT($AA54),0), MATCH('Calc - Sparklines'!$D54,INDIRECT($AB54),0)-F$3))=FALSE,NA(), INDEX(INDIRECT($Z54), MATCH('Calc - Sparklines'!$C$1,INDIRECT($AA54),0), MATCH('Calc - Sparklines'!$D54,INDIRECT($AB54),0)-F$3)),NA()) ->  | G54: =IFERROR(IF(ISNUMBER( INDEX(INDIRECT($Z54), MATCH('Calc - Sparklines'!$C$1,INDIRECT($AA54),0), MATCH('Calc - Sparklines'!$D54,INDIRECT($AB54),0)-G$3))=FALSE,NA(), INDEX(INDIRECT($Z54), MATCH('Calc - Sparklines'!$C$1,INDIRECT($AA54),0), MATCH('Calc - Sparklines'!$D54,INDIRECT($AB54),0)-G$3)),NA()) ->  | H54: =IFERROR(IF(ISNUMBER( INDEX(INDIRECT($Z54), MATCH('Calc - Sparklines'!$C$1,INDIRECT($AA54),0), MATCH('Calc - Sparklines'!$D54,INDIRECT($AB54),0)-H$3))=FALSE,NA(), INDEX(INDIRECT($Z54), MATCH('Calc - Sparklines'!$C$1,INDIRECT($AA54),0), MATCH('Calc - Sparklines'!$D54,INDIRECT($AB54),0)-H$3)),NA()) ->  | I54: =IFERROR(IF(ISNUMBER( INDEX(INDIRECT($Z54), MATCH('Calc - Sparklines'!$C$1,INDIRECT($AA54),0), MATCH('Calc - Sparklines'!$D54,INDIRECT($AB54),0)-I$3))=FALSE,NA(), INDEX(INDIRECT($Z54), MATCH('Calc - Sparklines'!$C$1,INDIRECT($AA54),0), MATCH('Calc - Sparklines'!$D54,INDIRECT($AB54),0)-I$3)),NA()) ->  | J54: =IFERROR(IF(ISNUMBER( INDEX(INDIRECT($Z54), MATCH('Calc - Sparklines'!$C$1,INDIRECT($AA54),0), MATCH('Calc - Sparklines'!$D54,INDIRECT($AB54),0)-J$3))=FALSE,NA(), INDEX(INDIRECT($Z54), MATCH('Calc - Sparklines'!$C$1,INDIRECT($AA54),0), MATCH('Calc - Sparklines'!$D54,INDIRECT($AB54),0)-J$3)),NA()) ->  | K54: =IFERROR(IF(ISNUMBER( INDEX(INDIRECT($Z54), MATCH('Calc - Sparklines'!$C$1,INDIRECT($AA54),0), MATCH('Calc - Sparklines'!$D54,INDIRECT($AB54),0)-K$3))=FALSE,NA(), INDEX(INDIRECT($Z54), MATCH('Calc - Sparklines'!$C$1,INDIRECT($AA54),0), MATCH('Calc - Sparklines'!$D54,INDIRECT($AB54),0)-K$3)),NA()) ->  | L54: =IFERROR(IF(ISNUMBER( INDEX(INDIRECT($Z54), MATCH('Calc - Sparklines'!$C$1,INDIRECT($AA54),0), MATCH('Calc - Sparklines'!$D54,INDIRECT($AB54),0)-L$3))=FALSE,NA(), INDEX(INDIRECT($Z54), MATCH('Calc - Sparklines'!$C$1,INDIRECT($AA54),0), MATCH('Calc - Sparklines'!$D54,INDIRECT($AB54),0)-L$3)),NA()) ->  | M54: =IFERROR(IF(ISNUMBER( INDEX(INDIRECT($Z54), MATCH('Calc - Sparklines'!$C$1,INDIRECT($AA54),0), MATCH('Calc - Sparklines'!$D54,INDIRECT($AB54),0)-M$3))=FALSE,NA(), INDEX(INDIRECT($Z54), MATCH('Calc - Sparklines'!$C$1,INDIRECT($AA54),0), MATCH('Calc - Sparklines'!$D54,INDIRECT($AB54),0)-M$3)),NA()) ->  | N54: =IFERROR(IF(ISNUMBER( INDEX(INDIRECT($Z54), MATCH('Calc - Sparklines'!$C$1,INDIRECT($AA54),0), MATCH('Calc - Sparklines'!$D54,INDIRECT($AB54),0)-N$3))=FALSE,NA(), INDEX(INDIRECT($Z54), MATCH('Calc - Sparklines'!$C$1,INDIRECT($AA54),0), MATCH('Calc - Sparklines'!$D54,INDIRECT($AB54),0)-N$3)),NA()) -> 197.4601111 | O54: =IFERROR(IF(ISNUMBER( INDEX(INDIRECT($Z54), MATCH('Calc - Sparklines'!$C$1,INDIRECT($AA54),0), MATCH('Calc - Sparklines'!$D54,INDIRECT($AB54),0)-O$3))=FALSE,NA(), INDEX(INDIRECT($Z54), MATCH('Calc - Sparklines'!$C$1,INDIRECT($AA54),0), MATCH('Calc - Sparklines'!$D54,INDIRECT($AB54),0)-O$3)),NA()) -> 195.0564823 | P54: =IFERROR(IF(ISNUMBER( INDEX(INDIRECT($Z54), MATCH('Calc - Sparklines'!$C$1,INDIRECT($AA54),0), MATCH('Calc - Sparklines'!$D54,INDIRECT($AB54),0)-P$3))=FALSE,NA(), INDEX(INDIRECT($Z54), MATCH('Calc - Sparklines'!$C$1,INDIRECT($AA54),0), MATCH('Calc - Sparklines'!$D54,INDIRECT($AB54),0)-P$3)),NA()) -> 207.5978822 | R54: =IF(COUNTA(E54:P54)-COUNTIF(E54:P54,"#N/A")<3, 0, COUNTA(E54:P54)-COUNTIF(E54:P54,"#N/A")) -> 3 | S54: =IF(P54="N/A",IF(O54="N/A",2,1),0) -> 0 | T54: =OFFSET(P54,,-S54) -> 207.5978822 | U54: =IF(ISERROR(O54),IF(ISERROR(N54),IF(ISERROR(M54),IF(ISERROR(L54),IF(ISERROR(K54),IF(ISERROR(J54),IF(ISERROR(I54),IF(ISERROR(H54),IF(ISERROR(G54),IF(ISERROR(F54),IF(ISERROR(E54), NA(), E54),F54),G54),H54),I54),J54),K54),L54),M54),N54),O54) -> 195.0564823 | V54: =IF(D54="","",IFERROR(IF(T54>U54,"▲", IF(T54<U54,"▼","◄►")),"N/A")) -> ▲ | W54: Sparkline49 | X54: =IF(R54<=2,"N/A","") ->  | Z54: Data_Table_SP_ii_a | AA54: Data_Orgs_SP_ii_a | AB54: Data_Dates_SP_ii_a | AD54: Chart available at CCG & STP level only | AE54: =IF(OR(Dashboard!$N$3=1,Dashboard!$N$3=2),"Chart available at CCG & STP level only","") -> Chart available at CCG & STP level only
A55: SP_ii_b | B55: SP(ii.b) | C55: Hospital admissions for self-harm: age standardised rate per 100,000 - Age:25+ | D55: ='SP(ii_b)_FINAL CALC'!B6 -> Q1-Q2 2017/18 | E55: =IFERROR(IF(ISNUMBER( INDEX(INDIRECT($Z55), MATCH('Calc - Sparklines'!$C$1,INDIRECT($AA55),0), MATCH('Calc - Sparklines'!$D55,INDIRECT($AB55),0)-E$3))=FALSE,NA(), INDEX(INDIRECT($Z55), MATCH('Calc - Sparklines'!$C$1,INDIRECT($AA55),0), MATCH('Calc - Sparklines'!$D55,INDIRECT($AB55),0)-E$3)),NA()) ->  | F55: =IFERROR(IF(ISNUMBER( INDEX(INDIRECT($Z55), MATCH('Calc - Sparklines'!$C$1,INDIRECT($AA55),0), MATCH('Calc - Sparklines'!$D55,INDIRECT($AB55),0)-F$3))=FALSE,NA(), INDEX(INDIRECT($Z55), MATCH('Calc - Sparklines'!$C$1,INDIRECT($AA55),0), MATCH('Calc - Sparklines'!$D55,INDIRECT($AB55),0)-F$3)),NA()) ->  | G55: =IFERROR(IF(ISNUMBER( INDEX(INDIRECT($Z55), MATCH('Calc - Sparklines'!$C$1,INDIRECT($AA55),0), MATCH('Calc - Sparklines'!$D55,INDIRECT($AB55),0)-G$3))=FALSE,NA(), INDEX(INDIRECT($Z55), MATCH('Calc - Sparklines'!$C$1,INDIRECT($AA55),0), MATCH('Calc - Sparklines'!$D55,INDIRECT($AB55),0)-G$3)),NA()) ->  | H55: =IFERROR(IF(ISNUMBER( INDEX(INDIRECT($Z55), MATCH('Calc - Sparklines'!$C$1,INDIRECT($AA55),0), MATCH('Calc - Sparklines'!$D55,INDIRECT($AB55),0)-H$3))=FALSE,NA(), INDEX(INDIRECT($Z55), MATCH('Calc - Sparklines'!$C$1,INDIRECT($AA55),0), MATCH('Calc - Sparklines'!$D55,INDIRECT($AB55),0)-H$3)),NA()) ->  | I55: =IFERROR(IF(ISNUMBER( INDEX(INDIRECT($Z55), MATCH('Calc - Sparklines'!$C$1,INDIRECT($AA55),0), MATCH('Calc - Sparklines'!$D55,INDIRECT($AB55),0)-I$3))=FALSE,NA(), INDEX(INDIRECT($Z55), MATCH('Calc - Sparklines'!$C$1,INDIRECT($AA55),0), MATCH('Calc - Sparklines'!$D55,INDIRECT($AB55),0)-I$3)),NA()) ->  | J55: =IFERROR(IF(ISNUMBER( INDEX(INDIRECT($Z55), MATCH('Calc - Sparklines'!$C$1,INDIRECT($AA55),0), MATCH('Calc - Sparklines'!$D55,INDIRECT($AB55),0)-J$3))=FALSE,NA(), INDEX(INDIRECT($Z55), MATCH('Calc - Sparklines'!$C$1,INDIRECT($AA55),0), MATCH('Calc - Sparklines'!$D55,INDIRECT($AB55),0)-J$3)),NA()) ->  | K55: =IFERROR(IF(ISNUMBER( INDEX(INDIRECT($Z55), MATCH('Calc - Sparklines'!$C$1,INDIRECT($AA55),0), MATCH('Calc - Sparklines'!$D55,INDIRECT($AB55),0)-K$3))=FALSE,NA(), INDEX(INDIRECT($Z55), MATCH('Calc - Sparklines'!$C$1,INDIRECT($AA55),0), MATCH('Calc - Sparklines'!$D55,INDIRECT($AB55),0)-K$3)),NA()) ->  | L55: =IFERROR(IF(ISNUMBER( INDEX(INDIRECT($Z55), MATCH('Calc - Sparklines'!$C$1,INDIRECT($AA55),0), MATCH('Calc - Sparklines'!$D55,INDIRECT($AB55),0)-L$3))=FALSE,NA(), INDEX(INDIRECT($Z55), MATCH('Calc - Sparklines'!$C$1,INDIRECT($AA55),0), MATCH('Calc - Sparklines'!$D55,INDIRECT($AB55),0)-L$3)),NA()) ->  | M55: =IFERROR(IF(ISNUMBER( INDEX(INDIRECT($Z55), MATCH('Calc - Sparklines'!$C$1,INDIRECT($AA55),0), MATCH('Calc - Sparklines'!$D55,INDIRECT($AB55),0)-M$3))=FALSE,NA(), INDEX(INDIRECT($Z55), MATCH('Calc - Sparklines'!$C$1,INDIRECT($AA55),0), MATCH('Calc - Sparklines'!$D55,INDIRECT($AB55),0)-M$3)),NA()) ->  | N55: =IFERROR(IF(ISNUMBER( INDEX(INDIRECT($Z55), MATCH('Calc - Sparklines'!$C$1,INDIRECT($AA55),0), MATCH('Calc - Sparklines'!$D55,INDIRECT($AB55),0)-N$3))=FALSE,NA(), INDEX(INDIRECT($Z55), MATCH('Calc - Sparklines'!$C$1,INDIRECT($AA55),0), MATCH('Calc - Sparklines'!$D55,INDIRECT($AB55),0)-N$3)),NA()) -> 80.93304734 | O55: =IFERROR(IF(ISNUMBER( INDEX(INDIRECT($Z55), MATCH('Calc - Sparklines'!$C$1,INDIRECT($AA55),0), MATCH('Calc - Sparklines'!$D55,INDIRECT($AB55),0)-O$3))=FALSE,NA(), INDEX(INDIRECT($Z55), MATCH('Calc - Sparklines'!$C$1,INDIRECT($AA55),0), MATCH('Calc - Sparklines'!$D55,INDIRECT($AB55),0)-O$3)),NA()) -> 69.67952966 | P55: =IFERROR(IF(ISNUMBER( INDEX(INDIRECT($Z55), MATCH('Calc - Sparklines'!$C$1,INDIRECT($AA55),0), MATCH('Calc - Sparklines'!$D55,INDIRECT($AB55),0)-P$3))=FALSE,NA(), INDEX(INDIRECT($Z55), MATCH('Calc - Sparklines'!$C$1,INDIRECT($AA55),0), MATCH('Calc - Sparklines'!$D55,INDIRECT($AB55),0)-P$3)),NA()) -> 80.22507773 | R55: =IF(COUNTA(E55:P55)-COUNTIF(E55:P55,"#N/A")<3, 0, COUNTA(E55:P55)-COUNTIF(E55:P55,"#N/A")) -> 3 | S55: =IF(P55="N/A",IF(O55="N/A",2,1),0) -> 0 | T55: =OFFSET(P55,,-S55) -> 80.22507773 | U55: =IF(ISERROR(O55),IF(ISERROR(N55),IF(ISERROR(M55),IF(ISERROR(L55),IF(ISERROR(K55),IF(ISERROR(J55),IF(ISERROR(I55),IF(ISERROR(H55),IF(ISERROR(G55),IF(ISERROR(F55),IF(ISERROR(E55), NA(), E55),F55),G55),H55),I55),J55),K55),L55),M55),N55),O55) -> 69.67952966 | V55: =IF(D55="","",IFERROR(IF(T55>U55,"▲", IF(T55<U55,"▼","◄►")),"N/A")) -> ▲ | W55: Sparkline50 | X55: =IF(R55<=2,"N/A","") ->  | Z55: Data_Table_SP_ii_b | AA55: Data_Orgs_SP_ii_b | AB55: Data_Dates_SP_ii_b | AD55: Chart available at CCG & STP level only | AE55: =IF(OR(Dashboard!$N$3=1,Dashboard!$N$3=2),"Chart available at CCG & STP level only","") -> Chart available at CCG & STP level only
A56: SP_iii | B56: SP(iii) | C56: % of patients on CPA discharged from hospital and followed up within 7 days | D56: ='SP(iii)_FINAL CALC'!B6 -> Q1-Q2 2017/18 | E56: =IFERROR(IF(ISNUMBER( INDEX(INDIRECT($Z56), MATCH('Calc - Sparklines'!$C$1,INDIRECT($AA56),0), MATCH('Calc - Sparklines'!$D56,INDIRECT($AB56),0)-E$3))=FALSE,NA(), INDEX(INDIRECT($Z56), MATCH('Calc - Sparklines'!$C$1,INDIRECT($AA56),0), MATCH('Calc - Sparklines'!$D56,INDIRECT($AB56),0)-E$3)),NA()) ->  | F56: =IFERROR(IF(ISNUMBER( INDEX(INDIRECT($Z56), MATCH('Calc - Sparklines'!$C$1,INDIRECT($AA56),0), MATCH('Calc - Sparklines'!$D56,INDIRECT($AB56),0)-F$3))=FALSE,NA(), INDEX(INDIRECT($Z56), MATCH('Calc - Sparklines'!$C$1,INDIRECT($AA56),0), MATCH('Calc - Sparklines'!$D56,INDIRECT($AB56),0)-F$3)),NA()) ->  | G56: =IFERROR(IF(ISNUMBER( INDEX(INDIRECT($Z56), MATCH('Calc - Sparklines'!$C$1,INDIRECT($AA56),0), MATCH('Calc - Sparklines'!$D56,INDIRECT($AB56),0)-G$3))=FALSE,NA(), INDEX(INDIRECT($Z56), MATCH('Calc - Sparklines'!$C$1,INDIRECT($AA56),0), MATCH('Calc - Sparklines'!$D56,INDIRECT($AB56),0)-G$3)),NA()) ->  | H56: =IFERROR(IF(ISNUMBER( INDEX(INDIRECT($Z56), MATCH('Calc - Sparklines'!$C$1,INDIRECT($AA56),0), MATCH('Calc - Sparklines'!$D56,INDIRECT($AB56),0)-H$3))=FALSE,NA(), INDEX(INDIRECT($Z56), MATCH('Calc - Sparklines'!$C$1,INDIRECT($AA56),0), MATCH('Calc - Sparklines'!$D56,INDIRECT($AB56),0)-H$3)),NA()) ->  | I56: =IFERROR(IF(ISNUMBER( INDEX(INDIRECT($Z56), MATCH('Calc - Sparklines'!$C$1,INDIRECT($AA56),0), MATCH('Calc - Sparklines'!$D56,INDIRECT($AB56),0)-I$3))=FALSE,NA(), INDEX(INDIRECT($Z56), MATCH('Calc - Sparklines'!$C$1,INDIRECT($AA56),0), MATCH('Calc - Sparklines'!$D56,INDIRECT($AB56),0)-I$3)),NA()) ->  | J56: =IFERROR(IF(ISNUMBER( INDEX(INDIRECT($Z56), MATCH('Calc - Sparklines'!$C$1,INDIRECT($AA56),0), MATCH('Calc - Sparklines'!$D56,INDIRECT($AB56),0)-J$3))=FALSE,NA(), INDEX(INDIRECT($Z56), MATCH('Calc - Sparklines'!$C$1,INDIRECT($AA56),0), MATCH('Calc - Sparklines'!$D56,INDIRECT($AB56),0)-J$3)),NA()) ->  | K56: =IFERROR(IF(ISNUMBER( INDEX(INDIRECT($Z56), MATCH('Calc - Sparklines'!$C$1,INDIRECT($AA56),0), MATCH('Calc - Sparklines'!$D56,INDIRECT($AB56),0)-K$3))=FALSE,NA(), INDEX(INDIRECT($Z56), MATCH('Calc - Sparklines'!$C$1,INDIRECT($AA56),0), MATCH('Calc - Sparklines'!$D56,INDIRECT($AB56),0)-K$3)),NA()) ->  | L56: =IFERROR(IF(ISNUMBER( INDEX(INDIRECT($Z56), MATCH('Calc - Sparklines'!$C$1,INDIRECT($AA56),0), MATCH('Calc - Sparklines'!$D56,INDIRECT($AB56),0)-L$3))=FALSE,NA(), INDEX(INDIRECT($Z56), MATCH('Calc - Sparklines'!$C$1,INDIRECT($AA56),0), MATCH('Calc - Sparklines'!$D56,INDIRECT($AB56),0)-L$3)),NA()) ->  | M56: =IFERROR(IF(ISNUMBER( INDEX(INDIRECT($Z56), MATCH('Calc - Sparklines'!$C$1,INDIRECT($AA56),0), MATCH('Calc - Sparklines'!$D56,INDIRECT($AB56),0)-M$3))=FALSE,NA(), INDEX(INDIRECT($Z56), MATCH('Calc - Sparklines'!$C$1,INDIRECT($AA56),0), MATCH('Calc - Sparklines'!$D56,INDIRECT($AB56),0)-M$3)),NA()) ->  | N56: =IFERROR(IF(ISNUMBER( INDEX(INDIRECT($Z56), MATCH('Calc - Sparklines'!$C$1,INDIRECT($AA56),0), MATCH('Calc - Sparklines'!$D56,INDIRECT($AB56),0)-N$3))=FALSE,NA(), INDEX(INDIRECT($Z56), MATCH('Calc - Sparklines'!$C$1,INDIRECT($AA56),0), MATCH('Calc - Sparklines'!$D56,INDIRECT($AB56),0)-N$3)),NA()) -> 0.9650101109 | O56: =IFERROR(IF(ISNUMBER( INDEX(INDIRECT($Z56), MATCH('Calc - Sparklines'!$C$1,INDIRECT($AA56),0), MATCH('Calc - Sparklines'!$D56,INDIRECT($AB56),0)-O$3))=FALSE,NA(), INDEX(INDIRECT($Z56), MATCH('Calc - Sparklines'!$C$1,INDIRECT($AA56),0), MATCH('Calc - Sparklines'!$D56,INDIRECT($AB56),0)-O$3)),NA()) -> 0.9680598877 | P56: =IFERROR(IF(ISNUMBER( INDEX(INDIRECT($Z56), MATCH('Calc - Sparklines'!$C$1,INDIRECT($AA56),0), MATCH('Calc - Sparklines'!$D56,INDIRECT($AB56),0)-P$3))=FALSE,NA(), INDEX(INDIRECT($Z56), MATCH('Calc - Sparklines'!$C$1,INDIRECT($AA56),0), MATCH('Calc - Sparklines'!$D56,INDIRECT($AB56),0)-P$3)),NA()) -> 0.9669610929 | R56: =IF(COUNTA(E56:P56)-COUNTIF(E56:P56,"#N/A")<3, 0, COUNTA(E56:P56)-COUNTIF(E56:P56,"#N/A")) -> 3 | S56: =IF(P56="N/A",IF(O56="N/A",2,1),0) -> 0 | T56: =OFFSET(P56,,-S56) -> 0.9669610929 | U56: =IF(ISERROR(O56),IF(ISERROR(N56),IF(ISERROR(M56),IF(ISERROR(L56),IF(ISERROR(K56),IF(ISERROR(J56),IF(ISERROR(I56),IF(ISERROR(H56),IF(ISERROR(G56),IF(ISERROR(F56),IF(ISERROR(E56), NA(), E56),F56),G56),H56),I56),J56),K56),L56),M56),N56),O56) -> 0.9680598877 | V56: =IF(D56="","",IFERROR(IF(T56>U56,"▲", IF(T56<U56,"▼","◄►")),"N/A")) -> ▼ | W56: Sparkline51 | X56: =IF(R56<=2,"N/A","") ->  | Z56: Data_Table_SP_iii | AA56: Data_Orgs_SP_iii | AB56: Data_Dates_SP_iii | AD56: Chart available at CCG & STP level only | AE56: =IF(OR(Dashboard!$N$3=1,Dashboard!$N$3=2),"Chart available at CCG & STP level only","") -> Chart available at CCG & STP level only
A57: Meeting commitment to increase mental health funding | B57: Meeting commitment to increase mental health funding | E57: =IFERROR(IF(ISNUMBER( INDEX(INDIRECT($Z57), MATCH('Calc - Sparklines'!$C$1,INDIRECT($AA57),0), MATCH('Calc - Sparklines'!$D57,INDIRECT($AB57),0)-E$3))=FALSE,NA(), INDEX(INDIRECT($Z57), MATCH('Calc - Sparklines'!$C$1,INDIRECT($AA57),0), MATCH('Calc - Sparklines'!$D57,INDIRECT($AB57),0)-E$3)),NA()) ->  | F57: =IFERROR(IF(ISNUMBER( INDEX(INDIRECT($Z57), MATCH('Calc - Sparklines'!$C$1,INDIRECT($AA57),0), MATCH('Calc - Sparklines'!$D57,INDIRECT($AB57),0)-F$3))=FALSE,NA(), INDEX(INDIRECT($Z57), MATCH('Calc - Sparklines'!$C$1,INDIRECT($AA57),0), MATCH('Calc - Sparklines'!$D57,INDIRECT($AB57),0)-F$3)),NA()) ->  | G57: =IFERROR(IF(ISNUMBER( INDEX(INDIRECT($Z57), MATCH('Calc - Sparklines'!$C$1,INDIRECT($AA57),0), MATCH('Calc - Sparklines'!$D57,INDIRECT($AB57),0)-G$3))=FALSE,NA(), INDEX(INDIRECT($Z57), MATCH('Calc - Sparklines'!$C$1,INDIRECT($AA57),0), MATCH('Calc - Sparklines'!$D57,INDIRECT($AB57),0)-G$3)),NA()) ->  | H57: =IFERROR(IF(ISNUMBER( INDEX(INDIRECT($Z57), MATCH('Calc - Sparklines'!$C$1,INDIRECT($AA57),0), MATCH('Calc - Sparklines'!$D57,INDIRECT($AB57),0)-H$3))=FALSE,NA(), INDEX(INDIRECT($Z57), MATCH('Calc - Sparklines'!$C$1,INDIRECT($AA57),0), MATCH('Calc - Sparklines'!$D57,INDIRECT($AB57),0)-H$3)),NA()) ->  | I57: =IFERROR(IF(ISNUMBER( INDEX(INDIRECT($Z57), MATCH('Calc - Sparklines'!$C$1,INDIRECT($AA57),0), MATCH('Calc - Sparklines'!$D57,INDIRECT($AB57),0)-I$3))=FALSE,NA(), INDEX(INDIRECT($Z57), MATCH('Calc - Sparklines'!$C$1,INDIRECT($AA57),0), MATCH('Calc - Sparklines'!$D57,INDIRECT($AB57),0)-I$3)),NA()) ->  | J57: =IFERROR(IF(ISNUMBER( INDEX(INDIRECT($Z57), MATCH('Calc - Sparklines'!$C$1,INDIRECT($AA57),0), MATCH('Calc - Sparklines'!$D57,INDIRECT($AB57),0)-J$3))=FALSE,NA(), INDEX(INDIRECT($Z57), MATCH('Calc - Sparklines'!$C$1,INDIRECT($AA57),0), MATCH('Calc - Sparklines'!$D57,INDIRECT($AB57),0)-J$3)),NA()) ->  | K57: =IFERROR(IF(ISNUMBER( INDEX(INDIRECT($Z57), MATCH('Calc - Sparklines'!$C$1,INDIRECT($AA57),0), MATCH('Calc - Sparklines'!$D57,INDIRECT($AB57),0)-K$3))=FALSE,NA(), INDEX(INDIRECT($Z57), MATCH('Calc - Sparklines'!$C$1,INDIRECT($AA57),0), MATCH('Calc - Sparklines'!$D57,INDIRECT($AB57),0)-K$3)),NA()) ->  | L57: =IFERROR(IF(ISNUMBER( INDEX(INDIRECT($Z57), MATCH('Calc - Sparklines'!$C$1,INDIRECT($AA57),0), MATCH('Calc - Sparklines'!$D57,INDIRECT($AB57),0)-L$3))=FALSE,NA(), INDEX(INDIRECT($Z57), MATCH('Calc - Sparklines'!$C$1,INDIRECT($AA57),0), MATCH('Calc - Sparklines'!$D57,INDIRECT($AB57),0)-L$3)),NA()) ->  | M57: =IFERROR(IF(ISNUMBER( INDEX(INDIRECT($Z57), MATCH('Calc - Sparklines'!$C$1,INDIRECT($AA57),0), MATCH('Calc - Sparklines'!$D57,INDIRECT($AB57),0)-M$3))=FALSE,NA(), INDEX(INDIRECT($Z57), MATCH('Calc - Sparklines'!$C$1,INDIRECT($AA57),0), MATCH('Calc - Sparklines'!$D57,INDIRECT($AB57),0)-M$3)),NA()) ->  | N57: =IFERROR(IF(ISNUMBER( INDEX(INDIRECT($Z57), MATCH('Calc - Sparklines'!$C$1,INDIRECT($AA57),0), MATCH('Calc - Sparklines'!$D57,INDIRECT($AB57),0)-N$3))=FALSE,NA(), INDEX(INDIRECT($Z57), MATCH('Calc - Sparklines'!$C$1,INDIRECT($AA57),0), MATCH('Calc - Sparklines'!$D57,INDIRECT($AB57),0)-N$3)),NA()) ->  | O57: =IFERROR(IF(ISNUMBER( INDEX(INDIRECT($Z57), MATCH('Calc - Sparklines'!$C$1,INDIRECT($AA57),0), MATCH('Calc - Sparklines'!$D57,INDIRECT($AB57),0)-O$3))=FALSE,NA(), INDEX(INDIRECT($Z57), MATCH('Calc - Sparklines'!$C$1,INDIRECT($AA57),0), MATCH('Calc - Sparklines'!$D57,INDIRECT($AB57),0)-O$3)),NA()) ->  | P57: =IFERROR(IF(ISNUMBER( INDEX(INDIRECT($Z57), MATCH('Calc - Sparklines'!$C$1,INDIRECT($AA57),0), MATCH('Calc - Sparklines'!$D57,INDIRECT($AB57),0)-P$3))=FALSE,NA(), INDEX(INDIRECT($Z57), MATCH('Calc - Sparklines'!$C$1,INDIRECT($AA57),0), MATCH('Calc - Sparklines'!$D57,INDIRECT($AB57),0)-P$3)),NA()) ->  | R57: 0 | X57: N/A | AD57: Heading
A58: MHF_i | B58: MHF(i) | C58: Mental health planned spend as a % of overall CCG allocation | D58: ='MHF(i)_FINAL CALC'!B6 -> 2017/18 | E58: =IFERROR(IF(ISNUMBER( INDEX(INDIRECT($Z58), MATCH('Calc - Sparklines'!$C$1,INDIRECT($AA58),0), MATCH('Calc - Sparklines'!$D58,INDIRECT($AB58),0)-E$3))=FALSE,NA(), INDEX(INDIRECT($Z58), MATCH('Calc - Sparklines'!$C$1,INDIRECT($AA58),0), MATCH('Calc - Sparklines'!$D58,INDIRECT($AB58),0)-E$3)),NA()) ->  | F58: =IFERROR(IF(ISNUMBER( INDEX(INDIRECT($Z58), MATCH('Calc - Sparklines'!$C$1,INDIRECT($AA58),0), MATCH('Calc - Sparklines'!$D58,INDIRECT($AB58),0)-F$3))=FALSE,NA(), INDEX(INDIRECT($Z58), MATCH('Calc - Sparklines'!$C$1,INDIRECT($AA58),0), MATCH('Calc - Sparklines'!$D58,INDIRECT($AB58),0)-F$3)),NA()) ->  | G58: =IFERROR(IF(ISNUMBER( INDEX(INDIRECT($Z58), MATCH('Calc - Sparklines'!$C$1,INDIRECT($AA58),0), MATCH('Calc - Sparklines'!$D58,INDIRECT($AB58),0)-G$3))=FALSE,NA(), INDEX(INDIRECT($Z58), MATCH('Calc - Sparklines'!$C$1,INDIRECT($AA58),0), MATCH('Calc - Sparklines'!$D58,INDIRECT($AB58),0)-G$3)),NA()) ->  | H58: =IFERROR(IF(ISNUMBER( INDEX(INDIRECT($Z58), MATCH('Calc - Sparklines'!$C$1,INDIRECT($AA58),0), MATCH('Calc - Sparklines'!$D58,INDIRECT($AB58),0)-H$3))=FALSE,NA(), INDEX(INDIRECT($Z58), MATCH('Calc - Sparklines'!$C$1,INDIRECT($AA58),0), MATCH('Calc - Sparklines'!$D58,INDIRECT($AB58),0)-H$3)),NA()) ->  | I58: =IFERROR(IF(ISNUMBER( INDEX(INDIRECT($Z58), MATCH('Calc - Sparklines'!$C$1,INDIRECT($AA58),0), MATCH('Calc - Sparklines'!$D58,INDIRECT($AB58),0)-I$3))=FALSE,NA(), INDEX(INDIRECT($Z58), MATCH('Calc - Sparklines'!$C$1,INDIRECT($AA58),0), MATCH('Calc - Sparklines'!$D58,INDIRECT($AB58),0)-I$3)),NA()) ->  | J58: =IFERROR(IF(ISNUMBER( INDEX(INDIRECT($Z58), MATCH('Calc - Sparklines'!$C$1,INDIRECT($AA58),0), MATCH('Calc - Sparklines'!$D58,INDIRECT($AB58),0)-J$3))=FALSE,NA(), INDEX(INDIRECT($Z58), MATCH('Calc - Sparklines'!$C$1,INDIRECT($AA58),0), MATCH('Calc - Sparklines'!$D58,INDIRECT($AB58),0)-J$3)),NA()) ->  | K58: =IFERROR(IF(ISNUMBER( INDEX(INDIRECT($Z58), MATCH('Calc - Sparklines'!$C$1,INDIRECT($AA58),0), MATCH('Calc - Sparklines'!$D58,INDIRECT($AB58),0)-K$3))=FALSE,NA(), INDEX(INDIRECT($Z58), MATCH('Calc - Sparklines'!$C$1,INDIRECT($AA58),0), MATCH('Calc - Sparklines'!$D58,INDIRECT($AB58),0)-K$3)),NA()) ->  | L58: =IFERROR(IF(ISNUMBER( INDEX(INDIRECT($Z58), MATCH('Calc - Sparklines'!$C$1,INDIRECT($AA58),0), MATCH('Calc - Sparklines'!$D58,INDIRECT($AB58),0)-L$3))=FALSE,NA(), INDEX(INDIRECT($Z58), MATCH('Calc - Sparklines'!$C$1,INDIRECT($AA58),0), MATCH('Calc - Sparklines'!$D58,INDIRECT($AB58),0)-L$3)),NA()) ->  | M58: =IFERROR(IF(ISNUMBER( INDEX(INDIRECT($Z58), MATCH('Calc - Sparklines'!$C$1,INDIRECT($AA58),0), MATCH('Calc - Sparklines'!$D58,INDIRECT($AB58),0)-M$3))=FALSE,NA(), INDEX(INDIRECT($Z58), MATCH('Calc - Sparklines'!$C$1,INDIRECT($AA58),0), MATCH('Calc - Sparklines'!$D58,INDIRECT($AB58),0)-M$3)),NA()) ->  | N58: =IFERROR(IF(ISNUMBER( INDEX(INDIRECT($Z58), MATCH('Calc - Sparklines'!$C$1,INDIRECT($AA58),0), MATCH('Calc - Sparklines'!$D58,INDIRECT($AB58),0)-N$3))=FALSE,NA(), INDEX(INDIRECT($Z58), MATCH('Calc - Sparklines'!$C$1,INDIRECT($AA58),0), MATCH('Calc - Sparklines'!$D58,INDIRECT($AB58),0)-N$3)),NA()) ->  | O58: =IFERROR(IF(ISNUMBER( INDEX(INDIRECT($Z58), MATCH('Calc - Sparklines'!$C$1,INDIRECT($AA58),0), MATCH('Calc - Sparklines'!$D58,INDIRECT($AB58),0)-O$3))=FALSE,NA(), INDEX(INDIRECT($Z58), MATCH('Calc - Sparklines'!$C$1,INDIRECT($AA58),0), MATCH('Calc - Sparklines'!$D58,INDIRECT($AB58),0)-O$3)),NA()) ->  | P58: =IFERROR(IF(ISNUMBER( INDEX(INDIRECT($Z58), MATCH('Calc - Sparklines'!$C$1,INDIRECT($AA58),0), MATCH('Calc - Sparklines'!$D58,INDIRECT($AB58),0)-P$3))=FALSE,NA(), INDEX(INDIRECT($Z58), MATCH('Calc - Sparklines'!$C$1,INDIRECT($AA58),0), MATCH('Calc - Sparklines'!$D58,INDIRECT($AB58),0)-P$3)),NA()) -> 0.1375446959 | R58: 0 | S58: 0 | T58: 0.1375446959 | V58: N/A | X58: N/A | Z58: Data_Table_MHF_i | AA58: Data_Orgs_MHF_i | AB58: Data_Dates_MHF_i | AD58: Not Applicable | AE58: Not Applicable
A59: MHF_ii_a | B59: MHF(ii.a) | C59: Mental health forecast outturn (£k) | D59: =OFFSET('MHF(ii)_FINAL CALC'!$A$10,,MATCH('Calc - Sparklines'!D60,'MHF(ii)_FINAL CALC'!$10:$10,0)-2) -> 2016/17 | E59: =IFERROR(IF(ISNUMBER( INDEX(INDIRECT($Z59), MATCH('Calc - Sparklines'!$C$1,INDIRECT($AA59),0), MATCH('Calc - Sparklines'!$D59,INDIRECT($AB59),0)-E$3))=FALSE,NA(), INDEX(INDIRECT($Z59), MATCH('Calc - Sparklines'!$C$1,INDIRECT($AA59),0), MATCH('Calc - Sparklines'!$D59,INDIRECT($AB59),0)-E$3)),NA()) ->  | F59: =IFERROR(IF(ISNUMBER( INDEX(INDIRECT($Z59), MATCH('Calc - Sparklines'!$C$1,INDIRECT($AA59),0), MATCH('Calc - Sparklines'!$D59,INDIRECT($AB59),0)-F$3))=FALSE,NA(), INDEX(INDIRECT($Z59), MATCH('Calc - Sparklines'!$C$1,INDIRECT($AA59),0), MATCH('Calc - Sparklines'!$D59,INDIRECT($AB59),0)-F$3)),NA()) ->  | G59: =IFERROR(IF(ISNUMBER( INDEX(INDIRECT($Z59), MATCH('Calc - Sparklines'!$C$1,INDIRECT($AA59),0), MATCH('Calc - Sparklines'!$D59,INDIRECT($AB59),0)-G$3))=FALSE,NA(), INDEX(INDIRECT($Z59), MATCH('Calc - Sparklines'!$C$1,INDIRECT($AA59),0), MATCH('Calc - Sparklines'!$D59,INDIRECT($AB59),0)-G$3)),NA()) ->  | H59: =IFERROR(IF(ISNUMBER( INDEX(INDIRECT($Z59), MATCH('Calc - Sparklines'!$C$1,INDIRECT($AA59),0), MATCH('Calc - Sparklines'!$D59,INDIRECT($AB59),0)-H$3))=FALSE,NA(), INDEX(INDIRECT($Z59), MATCH('Calc - Sparklines'!$C$1,INDIRECT($AA59),0), MATCH('Calc - Sparklines'!$D59,INDIRECT($AB59),0)-H$3)),NA()) ->  | I59: =IFERROR(IF(ISNUMBER( INDEX(INDIRECT($Z59), MATCH('Calc - Sparklines'!$C$1,INDIRECT($AA59),0), MATCH('Calc - Sparklines'!$D59,INDIRECT($AB59),0)-I$3))=FALSE,NA(), INDEX(INDIRECT($Z59), MATCH('Calc - Sparklines'!$C$1,INDIRECT($AA59),0), MATCH('Calc - Sparklines'!$D59,INDIRECT($AB59),0)-I$3)),NA()) ->  | J59: =IFERROR(IF(ISNUMBER( INDEX(INDIRECT($Z59), MATCH('Calc - Sparklines'!$C$1,INDIRECT($AA59),0), MATCH('Calc - Sparklines'!$D59,INDIRECT($AB59),0)-J$3))=FALSE,NA(), INDEX(INDIRECT($Z59), MATCH('Calc - Sparklines'!$C$1,INDIRECT($AA59),0), MATCH('Calc - Sparklines'!$D59,INDIRECT($AB59),0)-J$3)),NA()) ->  | K59: =IFERROR(IF(ISNUMBER( INDEX(INDIRECT($Z59), MATCH('Calc - Sparklines'!$C$1,INDIRECT($AA59),0), MATCH('Calc - Sparklines'!$D59,INDIRECT($AB59),0)-K$3))=FALSE,NA(), INDEX(INDIRECT($Z59), MATCH('Calc - Sparklines'!$C$1,INDIRECT($AA59),0), MATCH('Calc - Sparklines'!$D59,INDIRECT($AB59),0)-K$3)),NA()) ->  | L59: =IFERROR(IF(ISNUMBER( INDEX(INDIRECT($Z59), MATCH('Calc - Sparklines'!$C$1,INDIRECT($AA59),0), MATCH('Calc - Sparklines'!$D59,INDIRECT($AB59),0)-L$3))=FALSE,NA(), INDEX(INDIRECT($Z59), MATCH('Calc - Sparklines'!$C$1,INDIRECT($AA59),0), MATCH('Calc - Sparklines'!$D59,INDIRECT($AB59),0)-L$3)),NA()) ->  | M59: =IFERROR(IF(ISNUMBER( INDEX(INDIRECT($Z59), MATCH('Calc - Sparklines'!$C$1,INDIRECT($AA59),0), MATCH('Calc - Sparklines'!$D59,INDIRECT($AB59),0)-M$3))=FALSE,NA(), INDEX(INDIRECT($Z59), MATCH('Calc - Sparklines'!$C$1,INDIRECT($AA59),0), MATCH('Calc - Sparklines'!$D59,INDIRECT($AB59),0)-M$3)),NA()) ->  | N59: =IFERROR(IF(ISNUMBER( INDEX(INDIRECT($Z59), MATCH('Calc - Sparklines'!$C$1,INDIRECT($AA59),0), MATCH('Calc - Sparklines'!$D59,INDIRECT($AB59),0)-N$3))=FALSE,NA(), INDEX(INDIRECT($Z59), MATCH('Calc - Sparklines'!$C$1,INDIRECT($AA59),0), MATCH('Calc - Sparklines'!$D59,INDIRECT($AB59),0)-N$3)),NA()) ->  | O59: =IFERROR(IF(ISNUMBER( INDEX(INDIRECT($Z59), MATCH('Calc - Sparklines'!$C$1,INDIRECT($AA59),0), MATCH('Calc - Sparklines'!$D59,INDIRECT($AB59),0)-O$3))=FALSE,NA(), INDEX(INDIRECT($Z59), MATCH('Calc - Sparklines'!$C$1,INDIRECT($AA59),0), MATCH('Calc - Sparklines'!$D59,INDIRECT($AB59),0)-O$3)),NA()) ->  | P59: =IFERROR(IF(ISNUMBER( INDEX(INDIRECT($Z59), MATCH('Calc - Sparklines'!$C$1,INDIRECT($AA59),0), MATCH('Calc - Sparklines'!$D59,INDIRECT($AB59),0)-P$3))=FALSE,NA(), INDEX(INDIRECT($Z59), MATCH('Calc - Sparklines'!$C$1,INDIRECT($AA59),0), MATCH('Calc - Sparklines'!$D59,INDIRECT($AB59),0)-P$3)),NA()) -> 9644090802 | R59: =IF(COUNTA(E59:P59)-COUNTIF(E59:P59,"#N/A")<3, 0, COUNTA(E59:P59)-COUNTIF(E59:P59,"#N/A")) -> 0 | S59: =IF(P59="N/A",IF(O59="N/A",2,1),0) -> 0 | T59: =OFFSET(P59,,-S59) -> 9644090802 | U59: =IF(ISERROR(O59),IF(ISERROR(N59),IF(ISERROR(M59),IF(ISERROR(L59),IF(ISERROR(K59),IF(ISERROR(J59),IF(ISERROR(I59),IF(ISERROR(H59),IF(ISERROR(G59),IF(ISERROR(F59),IF(ISERROR(E59), NA(), E59),F59),G59),H59),I59),J59),K59),L59),M59),N59),O59) ->  | V59: N/A | X59: N/A | Z59: Data_Table_MHF_ii | AA59: Data_Orgs_MHF_ii | AB59: Data_Dates_MHF_ii | AD59: Not Applicable | AE59: Not Applicable
A60: MHF_ii_b | B60: MHF(ii.b) | C60: Mental health forecast outturn (£k) | D60: ='MHF(ii)_FINAL CALC'!B6 -> 2017/18 | E60: =IFERROR(IF(ISNUMBER( INDEX(INDIRECT($Z60), MATCH('Calc - Sparklines'!$C$1,INDIRECT($AA60),0), MATCH('Calc - Sparklines'!$D60,INDIRECT($AB60),0)-E$3))=FALSE,NA(), INDEX(INDIRECT($Z60), MATCH('Calc - Sparklines'!$C$1,INDIRECT($AA60),0), MATCH('Calc - Sparklines'!$D60,INDIRECT($AB60),0)-E$3)),NA()) ->  | F60: =IFERROR(IF(ISNUMBER( INDEX(INDIRECT($Z60), MATCH('Calc - Sparklines'!$C$1,INDIRECT($AA60),0), MATCH('Calc - Sparklines'!$D60,INDIRECT($AB60),0)-F$3))=FALSE,NA(), INDEX(INDIRECT($Z60), MATCH('Calc - Sparklines'!$C$1,INDIRECT($AA60),0), MATCH('Calc - Sparklines'!$D60,INDIRECT($AB60),0)-F$3)),NA()) ->  | G60: =IFERROR(IF(ISNUMBER( INDEX(INDIRECT($Z60), MATCH('Calc - Sparklines'!$C$1,INDIRECT($AA60),0), MATCH('Calc - Sparklines'!$D60,INDIRECT($AB60),0)-G$3))=FALSE,NA(), INDEX(INDIRECT($Z60), MATCH('Calc - Sparklines'!$C$1,INDIRECT($AA60),0), MATCH('Calc - Sparklines'!$D60,INDIRECT($AB60),0)-G$3)),NA()) ->  | H60: =IFERROR(IF(ISNUMBER( INDEX(INDIRECT($Z60), MATCH('Calc - Sparklines'!$C$1,INDIRECT($AA60),0), MATCH('Calc - Sparklines'!$D60,INDIRECT($AB60),0)-H$3))=FALSE,NA(), INDEX(INDIRECT($Z60), MATCH('Calc - Sparklines'!$C$1,INDIRECT($AA60),0), MATCH('Calc - Sparklines'!$D60,INDIRECT($AB60),0)-H$3)),NA()) ->  | I60: =IFERROR(IF(ISNUMBER( INDEX(INDIRECT($Z60), MATCH('Calc - Sparklines'!$C$1,INDIRECT($AA60),0), MATCH('Calc - Sparklines'!$D60,INDIRECT($AB60),0)-I$3))=FALSE,NA(), INDEX(INDIRECT($Z60), MATCH('Calc - Sparklines'!$C$1,INDIRECT($AA60),0), MATCH('Calc - Sparklines'!$D60,INDIRECT($AB60),0)-I$3)),NA()) ->  | J60: =IFERROR(IF(ISNUMBER( INDEX(INDIRECT($Z60), MATCH('Calc - Sparklines'!$C$1,INDIRECT($AA60),0), MATCH('Calc - Sparklines'!$D60,INDIRECT($AB60),0)-J$3))=FALSE,NA(), INDEX(INDIRECT($Z60), MATCH('Calc - Sparklines'!$C$1,INDIRECT($AA60),0), MATCH('Calc - Sparklines'!$D60,INDIRECT($AB60),0)-J$3)),NA()) ->  | K60: =IFERROR(IF(ISNUMBER( INDEX(INDIRECT($Z60), MATCH('Calc - Sparklines'!$C$1,INDIRECT($AA60),0), MATCH('Calc - Sparklines'!$D60,INDIRECT($AB60),0)-K$3))=FALSE,NA(), INDEX(INDIRECT($Z60), MATCH('Calc - Sparklines'!$C$1,INDIRECT($AA60),0), MATCH('Calc - Sparklines'!$D60,INDIRECT($AB60),0)-K$3)),NA()) ->  | L60: =IFERROR(IF(ISNUMBER( INDEX(INDIRECT($Z60), MATCH('Calc - Sparklines'!$C$1,INDIRECT($AA60),0), MATCH('Calc - Sparklines'!$D60,INDIRECT($AB60),0)-L$3))=FALSE,NA(), INDEX(INDIRECT($Z60), MATCH('Calc - Sparklines'!$C$1,INDIRECT($AA60),0), MATCH('Calc - Sparklines'!$D60,INDIRECT($AB60),0)-L$3)),NA()) ->  | M60: =IFERROR(IF(ISNUMBER( INDEX(INDIRECT($Z60), MATCH('Calc - Sparklines'!$C$1,INDIRECT($AA60),0), MATCH('Calc - Sparklines'!$D60,INDIRECT($AB60),0)-M$3))=FALSE,NA(), INDEX(INDIRECT($Z60), MATCH('Calc - Sparklines'!$C$1,INDIRECT($AA60),0), MATCH('Calc - Sparklines'!$D60,INDIRECT($AB60),0)-M$3)),NA()) ->  | N60: =IFERROR(IF(ISNUMBER( INDEX(INDIRECT($Z60), MATCH('Calc - Sparklines'!$C$1,INDIRECT($AA60),0), MATCH('Calc - Sparklines'!$D60,INDIRECT($AB60),0)-N$3))=FALSE,NA(), INDEX(INDIRECT($Z60), MATCH('Calc - Sparklines'!$C$1,INDIRECT($AA60),0), MATCH('Calc - Sparklines'!$D60,INDIRECT($AB60),0)-N$3)),NA()) ->  | O60: =IFERROR(IF(ISNUMBER( INDEX(INDIRECT($Z60), MATCH('Calc - Sparklines'!$C$1,INDIRECT($AA60),0), MATCH('Calc - Sparklines'!$D60,INDIRECT($AB60),0)-O$3))=FALSE,NA(), INDEX(INDIRECT($Z60), MATCH('Calc - Sparklines'!$C$1,INDIRECT($AA60),0), MATCH('Calc - Sparklines'!$D60,INDIRECT($AB60),0)-O$3)),NA()) -> 9644090802 | P60: =IFERROR(IF(ISNUMBER( INDEX(INDIRECT($Z60), MATCH('Calc - Sparklines'!$C$1,INDIRECT($AA60),0), MATCH('Calc - Sparklines'!$D60,INDIRECT($AB60),0)-P$3))=FALSE,NA(), INDEX(INDIRECT($Z60), MATCH('Calc - Sparklines'!$C$1,INDIRECT($AA60),0), MATCH('Calc - Sparklines'!$D60,INDIRECT($AB60),0)-P$3)),NA()) -> 9907754679 | R60: 0 | S60: 0 | T60: 9907754679 | U60: 9644090802 | V60: =IF(D60="","",IFERROR(IF(T60>U60,"▲", IF(T60<U60,"▼","◄►")),"N/A")) -> ▲ | X60: N/A | Z60: Data_Table_MHF_ii | AA60: Data_Orgs_MHF_ii | AB60: Data_Dates_MHF_ii | AD60: Not Applicable | AE60: Not Applicable
A61: MHF_iii | B61: MHF(iii) | C61: Mental Health Investment Standard achieved? | D61: ='MHF(iii)_FINAL CALC'!B6 -> 2017/18 | E61: =IFERROR(IF(ISNUMBER( INDEX(INDIRECT($Z61), MATCH('Calc - Sparklines'!$C$1,INDIRECT($AA61),0), MATCH('Calc - Sparklines'!$D61,INDIRECT($AB61),0)-E$3))=FALSE,NA(), INDEX(INDIRECT($Z61), MATCH('Calc - Sparklines'!$C$1,INDIRECT($AA61),0), MATCH('Calc - Sparklines'!$D61,INDIRECT($AB61),0)-E$3)),NA()) ->  | F61: =IFERROR(IF(ISNUMBER( INDEX(INDIRECT($Z61), MATCH('Calc - Sparklines'!$C$1,INDIRECT($AA61),0), MATCH('Calc - Sparklines'!$D61,INDIRECT($AB61),0)-F$3))=FALSE,NA(), INDEX(INDIRECT($Z61), MATCH('Calc - Sparklines'!$C$1,INDIRECT($AA61),0), MATCH('Calc - Sparklines'!$D61,INDIRECT($AB61),0)-F$3)),NA()) ->  | G61: =IFERROR(IF(ISNUMBER( INDEX(INDIRECT($Z61), MATCH('Calc - Sparklines'!$C$1,INDIRECT($AA61),0), MATCH('Calc - Sparklines'!$D61,INDIRECT($AB61),0)-G$3))=FALSE,NA(), INDEX(INDIRECT($Z61), MATCH('Calc - Sparklines'!$C$1,INDIRECT($AA61),0), MATCH('Calc - Sparklines'!$D61,INDIRECT($AB61),0)-G$3)),NA()) ->  | H61: =IFERROR(IF(ISNUMBER( INDEX(INDIRECT($Z61), MATCH('Calc - Sparklines'!$C$1,INDIRECT($AA61),0), MATCH('Calc - Sparklines'!$D61,INDIRECT($AB61),0)-H$3))=FALSE,NA(), INDEX(INDIRECT($Z61), MATCH('Calc - Sparklines'!$C$1,INDIRECT($AA61),0), MATCH('Calc - Sparklines'!$D61,INDIRECT($AB61),0)-H$3)),NA()) ->  | I61: =IFERROR(IF(ISNUMBER( INDEX(INDIRECT($Z61), MATCH('Calc - Sparklines'!$C$1,INDIRECT($AA61),0), MATCH('Calc - Sparklines'!$D61,INDIRECT($AB61),0)-I$3))=FALSE,NA(), INDEX(INDIRECT($Z61), MATCH('Calc - Sparklines'!$C$1,INDIRECT($AA61),0), MATCH('Calc - Sparklines'!$D61,INDIRECT($AB61),0)-I$3)),NA()) ->  | J61: =IFERROR(IF(ISNUMBER( INDEX(INDIRECT($Z61), MATCH('Calc - Sparklines'!$C$1,INDIRECT($AA61),0), MATCH('Calc - Sparklines'!$D61,INDIRECT($AB61),0)-J$3))=FALSE,NA(), INDEX(INDIRECT($Z61), MATCH('Calc - Sparklines'!$C$1,INDIRECT($AA61),0), MATCH('Calc - Sparklines'!$D61,INDIRECT($AB61),0)-J$3)),NA()) ->  | K61: =IFERROR(IF(ISNUMBER( INDEX(INDIRECT($Z61), MATCH('Calc - Sparklines'!$C$1,INDIRECT($AA61),0), MATCH('Calc - Sparklines'!$D61,INDIRECT($AB61),0)-K$3))=FALSE,NA(), INDEX(INDIRECT($Z61), MATCH('Calc - Sparklines'!$C$1,INDIRECT($AA61),0), MATCH('Calc - Sparklines'!$D61,INDIRECT($AB61),0)-K$3)),NA()) ->  | L61: =IFERROR(IF(ISNUMBER( INDEX(INDIRECT($Z61), MATCH('Calc - Sparklines'!$C$1,INDIRECT($AA61),0), MATCH('Calc - Sparklines'!$D61,INDIRECT($AB61),0)-L$3))=FALSE,NA(), INDEX(INDIRECT($Z61), MATCH('Calc - Sparklines'!$C$1,INDIRECT($AA61),0), MATCH('Calc - Sparklines'!$D61,INDIRECT($AB61),0)-L$3)),NA()) ->  | M61: =IFERROR(IF(ISNUMBER( INDEX(INDIRECT($Z61), MATCH('Calc - Sparklines'!$C$1,INDIRECT($AA61),0), MATCH('Calc - Sparklines'!$D61,INDIRECT($AB61),0)-M$3))=FALSE,NA(), INDEX(INDIRECT($Z61), MATCH('Calc - Sparklines'!$C$1,INDIRECT($AA61),0), MATCH('Calc - Sparklines'!$D61,INDIRECT($AB61),0)-M$3)),NA()) ->  | N61: =IFERROR(IF(ISNUMBER( INDEX(INDIRECT($Z61), MATCH('Calc - Sparklines'!$C$1,INDIRECT($AA61),0), MATCH('Calc - Sparklines'!$D61,INDIRECT($AB61),0)-N$3))=FALSE,NA(), INDEX(INDIRECT($Z61), MATCH('Calc - Sparklines'!$C$1,INDIRECT($AA61),0), MATCH('Calc - Sparklines'!$D61,INDIRECT($AB61),0)-N$3)),NA()) ->  | O61: =IFERROR(IF(ISNUMBER( INDEX(INDIRECT($Z61), MATCH('Calc - Sparklines'!$C$1,INDIRECT($AA61),0), MATCH('Calc - Sparklines'!$D61,INDIRECT($AB61),0)-O$3))=FALSE,NA(), INDEX(INDIRECT($Z61), MATCH('Calc - Sparklines'!$C$1,INDIRECT($AA61),0), MATCH('Calc - Sparklines'!$D61,INDIRECT($AB61),0)-O$3)),NA()) ->  | P61: =INDEX(INDIRECT($Z61), MATCH('Calc - Sparklines'!$C$1,INDIRECT($AA61),0), MATCH('Calc - Sparklines'!$D61,INDIRECT($AB61),0)-P$3) -> Y | Q61: =INDEX(INDIRECT($Z61), MATCH('Calc - Sparklines'!$C$1,INDIRECT($AA61),0), MATCH('Calc - Sparklines'!$D61,INDIRECT($AB61),0)-P$3) -> Y | R61: =IF(COUNTA(E61:P61)-COUNTIF(E61:P61,"#N/A")<3, 0, COUNTA(E61:P61)-COUNTIF(E61:P61,"#N/A")) -> 0 | S61: =IF(P61="N/A",IF(O61="N/A",2,1),0) -> 0 | T61: =OFFSET(P61,,-S61) -> Y | U61: =IF(ISERROR(O61),IF(ISERROR(N61),IF(ISERROR(M61),IF(ISERROR(L61),IF(ISERROR(K61),IF(ISERROR(J61),IF(ISERROR(I61),IF(ISERROR(H61),IF(ISERROR(G61),IF(ISERROR(F61),IF(ISERROR(E61), NA(), E61),F61),G61),H61),I61),J61),K61),L61),M61),N61),O61) ->  | V61: N/A | X61: N/A | Z61: Data_Table_MHF_iii | AA61: Data_Orgs_MHF_iii | AB61: Data_Dates_MHF_iii | AD61: Not Applicable | AE61: Not Applicable

Sheet Calc - Spinecharts (hidden)
A1: Indicator Count | C1: =COUNTA(A11:A58) -> 48
A2: Type | C2: =IF(OR(Dashboard!N3=1,Dashboard!N3=2),1,0) -> 1
A3: Selected Org Type | C3: ='LKP - National List Values'!I4 -> England
A4: Selected CCG | C4: =CCGName -> England
A5: Selected Org Code | C5: =Selected_Org_Code -> EN
A6: Starting Position Adjustment | C6: =IF(C3="STP",0,44) -> 44
A7: Height Adjustment | C7: =IF(C3="STP",44,207) -> 207
H9: Comparison data (e.g. England and Region or other comparators) | P9: Scaling Values | T9: Chart Data | AB9: Chart Series
B10: Code | C10: Indicator | D10: Named range reference | E10: Named range reference | F10: Best or worst | G10: Statistic | H10: National Minimum | I10: National 25th Percentile | J10: National Median | K10: National 75th Percentile | L10: National Maximum | M10: Regional Average | N10: Worst | O10: Best | P10: Scale Minimum | Q10: Scale Maximum | R10: Scale Worst | S10: Scale Best | T10: Y-value | U10: Scaled Statistic | V10: Worst | W10: Bottom quartile | X10: National Average | Y10: Top quartile | Z10: Best | AA10: Regional Average | AB10: Sig Low | AC10: No Difference by 95% CI's | AD10: Sig High | AE10: Not Assessed | AF10: Count
A11: 1 | B11: Children and Young people (CYP) Mental Health | H11: =IF(G11="","",MIN(Data_Latest_EIP_i)) ->  | I11: =IF(G11="","",_xlfn.PERCENTILE.INC(Data_Latest_EIP_i,25%)) ->  | J11: =IF(I11="","",MEDIAN(Data_Latest_EIP_i)) ->  | K11: =IF(I11="","",_xlfn.PERCENTILE.INC(Data_Latest_EIP_i,75%)) ->  | L11: =IF(K11="","",MAX(Data_Latest_EIP_i)) ->  | N11: =IF($F11=1,H11,L11) ->  | O11: =IF($F11=2,H11,L11) ->  | P11: =IF((J11-H11)>(L11-J11),H11,(J11-(L11-J11))) ->  | Q11: =IF(P11=H11,J11+(J11-H11),L11) ->  | R11: =IF(F11=1,P11,Q11) ->  | S11: =IF(F11=1,Q11,P11) ->  | T11: =$C$1-0.5 -> 47.5 | U11: =(G11-R11)/(S11-R11) ->  | V11: =IF(F11=1,(H11-R11)/(S11-R11),(N11-R11)/(S11-R11)) ->  | W11: =IF(F11=1,(I11-R11)/(S11-R11),(K11-R11)/(S11-R11)) ->  | X11: =IF(OR($C$2=1,$F11=0,ISNA($G11)),NA(),0.5) ->  | Y11: =IF(F11=1,(K11-R11)/(S11-R11),(I11-R11)/(S11-R11)) ->  | Z11: =IF(F11=1,(L11-R11)/(S11-R11),(H11-R11)/(S11-R11)) ->  | AA11: =IF(ISERROR((M11-R11)/(S11-R11)),-999,(M11-R11)/(S11-R11)) -> -999 | AE11: =IF(OR(G11="B",G11="DQ issue"),NA(),IF(AND(G11<>"",G11<>"*"),U11,NA())) ->  | AF11: 1
